Workbook

Sheet Results
F1: =MATCH("loadnodr",data_x,0) -> 14 | G1: =MATCH("loadwdr",data_x,0) -> 15 | H1: =MATCH("impact",data_x,0) -> 16 | J1: =MATCH("temp",data_x,0) -> 13 | N1: 17
A2: Pacific Gas & Electric
A3: =evalyear&" "&evalprogram&" Ex Ante Load Impacts" -> 2025 ELRP Ex Ante Load Impacts
E4: =IFERROR(IF(AND($F$7="",$C$23<>"Confidential"),"Table will update when a valid subcategory is selected.",""),"Table will update when a valid subcategory is selected.") -> 
B5: Table 1: Menu options | E5: Hour ending | F5: ="Reference load ("&units&")" -> Reference load (MWh/hour) | G5: ="Estimated load w/ DR ("&units&")" -> Estimated load w/ DR (MWh/hour) | H5: ="Load reduction ("&units&")" -> Load reduction (MWh/hour) | I5: % Load reduction | J5: Weighted temp (F) | K5: Uncertainty adjusted impact - Percentiles | N5: Std. Error
B6: Type of results | C6: Aggregate | K6: 5th | L6: 50th | M6: 95th
B7: Program | C7: A1 | E7: 1 | F7: =IFERROR(IF(AND(public,confidential),"",INDEX(data,MATCH(Lists!$S5,data_key,0),F$1)*Lists!$U5 * IF(result_type = "Aggregate", sites/1000, 1)),"") -> 531.0090059 | G7: =IFERROR(IF(AND(public,confidential),"",F7-H7),"") -> 531.0090059 | H7: =IFERROR(IF(AND(public,confidential),"",INDEX(data,MATCH(Lists!$S5,data_key,0),H$1)*Lists!$V5*IF(result_type="Aggregate",sites/1000,1)*-1),"") -> 0 | I7: =IF(F7<=0,"NA",IFERROR(IF(AND(public,confidential),"",H7/F7),"")) -> 0 | J7: =IFERROR(IF(AND(public,confidential),"",INDEX(data,MATCH(Lists!$S5,data_key,0),J$1)),"") -> 77.81957625 | K7: =IFERROR(IF(AND(public,confidential),"",$H7+$N7*_xlfn.NORM.INV(0.05,0,1)), "") -> 0 | L7: =IFERROR(IF(AND(public,confidential),"",$H7+IF($N7=0,0,$N7*_xlfn.NORM.S.INV(0.5))), "") -> 0 | M7: =IFERROR(IF(AND(public,confidential),"",$H7+$N7*_xlfn.NORM.INV(0.95,0,1)), "") -> 0 | N7: =IFERROR(IF(AND(public,confidential),"",INDEX(data,MATCH(Lists!$S5,data_key,0),N$1) * IF(result_type = "Aggregate", sites/1000, 1)),"") -> 0
B8: Category | C8: All | E8: 2 | F8: =IFERROR(IF(AND(public,confidential),"",INDEX(data,MATCH(Lists!$S6,data_key,0),F$1)*Lists!$U6 * IF(result_type = "Aggregate", sites/1000, 1)),"") -> 518.4114783 | G8: =IFERROR(IF(AND(public,confidential),"",F8-H8),"") -> 518.4114783 | H8: =IFERROR(IF(AND(public,confidential),"",INDEX(data,MATCH(Lists!$S6,data_key,0),H$1)*Lists!$V6*IF(result_type="Aggregate",sites/1000,1)*-1),"") -> 0 | I8: 0 | J8: =IFERROR(IF(AND(public,confidential),"",INDEX(data,MATCH(Lists!$S6,data_key,0),J$1)),"") -> 76.02917148 | K8: 0 | L8: 0 | M8: 0 | N8: =IFERROR(IF(AND(public,confidential),"",INDEX(data,MATCH(Lists!$S6,data_key,0),N$1) * IF(result_type = "Aggregate", sites/1000, 1)),"") -> 0
B9: Subcategory | C9: All | E9: 3 | F9: =IFERROR(IF(AND(public,confidential),"",INDEX(data,MATCH(Lists!$S7,data_key,0),F$1)*Lists!$U7 * IF(result_type = "Aggregate", sites/1000, 1)),"") -> 507.4497882 | G9: 507.4497882 | H9: =IFERROR(IF(AND(public,confidential),"",INDEX(data,MATCH(Lists!$S7,data_key,0),H$1)*Lists!$V7*IF(result_type="Aggregate",sites/1000,1)*-1),"") -> 0 | I9: 0 | J9: =IFERROR(IF(AND(public,confidential),"",INDEX(data,MATCH(Lists!$S7,data_key,0),J$1)),"") -> 73.91500248 | K9: 0 | L9: 0 | M9: 0 | N9: =IFERROR(IF(AND(public,confidential),"",INDEX(data,MATCH(Lists!$S7,data_key,0),N$1) * IF(result_type = "Aggregate", sites/1000, 1)),"") -> 0
B10: Measurement Hours | C10: 5 | E10: 4 | F10: =IFERROR(IF(AND(public,confidential),"",INDEX(data,MATCH(Lists!$S8,data_key,0),F$1)*Lists!$U8 * IF(result_type = "Aggregate", sites/1000, 1)),"") -> 505.4833927 | G10: 505.4833927 | H10: =IFERROR(IF(AND(public,confidential),"",INDEX(data,MATCH(Lists!$S8,data_key,0),H$1)*Lists!$V8*IF(result_type="Aggregate",sites/1000,1)*-1),"") -> 0 | I10: 0 | J10: =IFERROR(IF(AND(public,confidential),"",INDEX(data,MATCH(Lists!$S8,data_key,0),J$1)),"") -> 72.5371039 | K10: 0 | L10: 0 | M10: 0 | N10: =IFERROR(IF(AND(public,confidential),"",INDEX(data,MATCH(Lists!$S8,data_key,0),N$1) * IF(result_type = "Aggregate", sites/1000, 1)),"") -> 0
B11: Portfolio | C11: Program Specific | E11: 5 | F11: =IFERROR(IF(AND(public,confidential),"",INDEX(data,MATCH(Lists!$S9,data_key,0),F$1)*Lists!$U9 * IF(result_type = "Aggregate", sites/1000, 1)),"") -> 511.4996522 | G11: 511.4996522 | H11: =IFERROR(IF(AND(public,confidential),"",INDEX(data,MATCH(Lists!$S9,data_key,0),H$1)*Lists!$V9*IF(result_type="Aggregate",sites/1000,1)*-1),"") -> 0 | I11: 0 | J11: =IFERROR(IF(AND(public,confidential),"",INDEX(data,MATCH(Lists!$S9,data_key,0),J$1)),"") -> 71.3127682 | K11: 0 | L11: 0 | M11: 0 | N11: =IFERROR(IF(AND(public,confidential),"",INDEX(data,MATCH(Lists!$S9,data_key,0),N$1) * IF(result_type = "Aggregate", sites/1000, 1)),"") -> 0
B12: Electric System | C12: PG&E | E12: 6 | F12: =IFERROR(IF(AND(public,confidential),"",INDEX(data,MATCH(Lists!$S10,data_key,0),F$1)*Lists!$U10 * IF(result_type = "Aggregate", sites/1000, 1)),"") -> 532.8997669 | G12: 532.8997669 | H12: =IFERROR(IF(AND(public,confidential),"",INDEX(data,MATCH(Lists!$S10,data_key,0),H$1)*Lists!$V10*IF(result_type="Aggregate",sites/1000,1)*-1),"") -> 0 | I12: 0 | J12: =IFERROR(IF(AND(public,confidential),"",INDEX(data,MATCH(Lists!$S10,data_key,0),J$1)),"") -> 70.44894991 | K12: 0 | L12: 0 | M12: 0 | N12: =IFERROR(IF(AND(public,confidential),"",INDEX(data,MATCH(Lists!$S10,data_key,0),N$1) * IF(result_type = "Aggregate", sites/1000, 1)),"") -> 0
B13: Day Type | C13: WORST DAY | E13: 7 | F13: =IFERROR(IF(AND(public,confidential),"",INDEX(data,MATCH(Lists!$S11,data_key,0),F$1)*Lists!$U11 * IF(result_type = "Aggregate", sites/1000, 1)),"") -> 576.0071075 | G13: 576.0071075 | H13: =IFERROR(IF(AND(public,confidential),"",INDEX(data,MATCH(Lists!$S11,data_key,0),H$1)*Lists!$V11*IF(result_type="Aggregate",sites/1000,1)*-1),"") -> 0 | I13: 0 | J13: =IFERROR(IF(AND(public,confidential),"",INDEX(data,MATCH(Lists!$S11,data_key,0),J$1)),"") -> 70.08342961 | K13: 0 | L13: 0 | M13: 0 | N13: =IFERROR(IF(AND(public,confidential),"",INDEX(data,MATCH(Lists!$S11,data_key,0),N$1) * IF(result_type = "Aggregate", sites/1000, 1)),"") -> 0
B14: Weather Year | C14: 1-in-2 | E14: 8 | F14: =IFERROR(IF(AND(public,confidential),"",INDEX(data,MATCH(Lists!$S12,data_key,0),F$1)*Lists!$U12 * IF(result_type = "Aggregate", sites/1000, 1)),"") -> 586.7650708 | G14: 586.7650708 | H14: =IFERROR(IF(AND(public,confidential),"",INDEX(data,MATCH(Lists!$S12,data_key,0),H$1)*Lists!$V12*IF(result_type="Aggregate",sites/1000,1)*-1),"") -> 0 | I14: 0 | J14: =IFERROR(IF(AND(public,confidential),"",INDEX(data,MATCH(Lists!$S12,data_key,0),J$1)),"") -> 72.29560365 | K14: 0 | L14: 0 | M14: 0 | N14: =IFERROR(IF(AND(public,confidential),"",INDEX(data,MATCH(Lists!$S12,data_key,0),N$1) * IF(result_type = "Aggregate", sites/1000, 1)),"") -> 0
B15: Forecast Year | C15: 2025 | E15: 9 | F15: =IFERROR(IF(AND(public,confidential),"",INDEX(data,MATCH(Lists!$S13,data_key,0),F$1)*Lists!$U13 * IF(result_type = "Aggregate", sites/1000, 1)),"") -> 582.9219985 | G15: 582.9219985 | H15: =IFERROR(IF(AND(public,confidential),"",INDEX(data,MATCH(Lists!$S13,data_key,0),H$1)*Lists!$V13*IF(result_type="Aggregate",sites/1000,1)*-1),"") -> 0 | I15: 0 | J15: =IFERROR(IF(AND(public,confidential),"",INDEX(data,MATCH(Lists!$S13,data_key,0),J$1)),"") -> 76.9025623 | K15: 0 | L15: 0 | M15: 0 | N15: =IFERROR(IF(AND(public,confidential),"",INDEX(data,MATCH(Lists!$S13,data_key,0),N$1) * IF(result_type = "Aggregate", sites/1000, 1)),"") -> 0
B16: Month | C16: August | E16: 10 | F16: =IFERROR(IF(AND(public,confidential),"",INDEX(data,MATCH(Lists!$S14,data_key,0),F$1)*Lists!$U14 * IF(result_type = "Aggregate", sites/1000, 1)),"") -> 589.7845685 | G16: 589.7845685 | H16: =IFERROR(IF(AND(public,confidential),"",INDEX(data,MATCH(Lists!$S14,data_key,0),H$1)*Lists!$V14*IF(result_type="Aggregate",sites/1000,1)*-1),"") -> 0 | I16: 0 | J16: =IFERROR(IF(AND(public,confidential),"",INDEX(data,MATCH(Lists!$S14,data_key,0),J$1)),"") -> 81.78890906 | K16: 0 | L16: 0 | M16: 0 | N16: =IFERROR(IF(AND(public,confidential),"",INDEX(data,MATCH(Lists!$S14,data_key,0),N$1) * IF(result_type = "Aggregate", sites/1000, 1)),"") -> 0
B17: Hour Ending View | C17: HE (Prevailing Time) | E17: 11 | F17: =IFERROR(IF(AND(public,confidential),"",INDEX(data,MATCH(Lists!$S15,data_key,0),F$1)*Lists!$U15 * IF(result_type = "Aggregate", sites/1000, 1)),"") -> 589.6990516 | G17: 589.6990516 | H17: =IFERROR(IF(AND(public,confidential),"",INDEX(data,MATCH(Lists!$S15,data_key,0),H$1)*Lists!$V15*IF(result_type="Aggregate",sites/1000,1)*-1),"") -> 0 | I17: 0 | J17: =IFERROR(IF(AND(public,confidential),"",INDEX(data,MATCH(Lists!$S15,data_key,0),J$1)),"") -> 86.05555785 | K17: 0 | L17: 0 | M17: 0 | N17: =IFERROR(IF(AND(public,confidential),"",INDEX(data,MATCH(Lists!$S15,data_key,0),N$1) * IF(result_type = "Aggregate", sites/1000, 1)),"") -> 0
E18: 12 | F18: =IFERROR(IF(AND(public,confidential),"",INDEX(data,MATCH(Lists!$S16,data_key,0),F$1)*Lists!$U16 * IF(result_type = "Aggregate", sites/1000, 1)),"") -> 589.5906228 | G18: 589.5906228 | H18: =IFERROR(IF(AND(public,confidential),"",INDEX(data,MATCH(Lists!$S16,data_key,0),H$1)*Lists!$V16*IF(result_type="Aggregate",sites/1000,1)*-1),"") -> 0 | I18: 0 | J18: =IFERROR(IF(AND(public,confidential),"",INDEX(data,MATCH(Lists!$S16,data_key,0),J$1)),"") -> 89.77767577 | K18: 0 | L18: 0 | M18: 0 | N18: =IFERROR(IF(AND(public,confidential),"",INDEX(data,MATCH(Lists!$S16,data_key,0),N$1) * IF(result_type = "Aggregate", sites/1000, 1)),"") -> 0
B19: Table 2: Event day information | E19: 13 | F19: =IFERROR(IF(AND(public,confidential),"",INDEX(data,MATCH(Lists!$S17,data_key,0),F$1)*Lists!$U17 * IF(result_type = "Aggregate", sites/1000, 1)),"") -> 597.6354297 | G19: 597.6354297 | H19: =IFERROR(IF(AND(public,confidential),"",INDEX(data,MATCH(Lists!$S17,data_key,0),H$1)*Lists!$V17*IF(result_type="Aggregate",sites/1000,1)*-1),"") -> 0 | I19: 0 | J19: =IFERROR(IF(AND(public,confidential),"",INDEX(data,MATCH(Lists!$S17,data_key,0),J$1)),"") -> 93.10229617 | K19: 0 | L19: 0 | M19: 0 | N19: =IFERROR(IF(AND(public,confidential),"",INDEX(data,MATCH(Lists!$S17,data_key,0),N$1) * IF(result_type = "Aggregate", sites/1000, 1)),"") -> 0
B20: Total enrolled accounts | C20: =IF(AND(public,confidential,iou="SDG&E"),"",INDEX(enrollment, MATCH(program&category&subcategory&year&month_num,enrollment_key,0),MATCH("sites",enrollment_x,0))) -> 12119 | E20: 14 | F20: =IFERROR(IF(AND(public,confidential),"",INDEX(data,MATCH(Lists!$S18,data_key,0),F$1)*Lists!$U18 * IF(result_type = "Aggregate", sites/1000, 1)),"") -> 606.3464569 | G20: 606.3464569 | H20: =IFERROR(IF(AND(public,confidential),"",INDEX(data,MATCH(Lists!$S18,data_key,0),H$1)*Lists!$V18*IF(result_type="Aggregate",sites/1000,1)*-1),"") -> 0 | I20: 0 | J20: =IFERROR(IF(AND(public,confidential),"",INDEX(data,MATCH(Lists!$S18,data_key,0),J$1)),"") -> 95.5554547 | K20: 0 | L20: 0 | M20: 0 | N20: =IFERROR(IF(AND(public,confidential),"",INDEX(data,MATCH(Lists!$S18,data_key,0),N$1) * IF(result_type = "Aggregate", sites/1000, 1)),"") -> 0
B21: ="Load reduction - "&CHAR(10)&MATCH(1,eventhours,1)-duration-12&" to "&MATCH(1,eventhours,1)-12&" pm"&" ("&units&")" -> Load reduction - 4 to 9 pm (MWh/hour) | C21: =H34 -> 4.555191747 | E21: 15 | F21: =IFERROR(IF(AND(public,confidential),"",INDEX(data,MATCH(Lists!$S19,data_key,0),F$1)*Lists!$U19 * IF(result_type = "Aggregate", sites/1000, 1)),"") -> 604.3480292 | G21: 604.3480292 | H21: =IFERROR(IF(AND(public,confidential),"",INDEX(data,MATCH(Lists!$S19,data_key,0),H$1)*Lists!$V19*IF(result_type="Aggregate",sites/1000,1)*-1),"") -> 0 | I21: 0 | J21: =IFERROR(IF(AND(public,confidential),"",INDEX(data,MATCH(Lists!$S19,data_key,0),J$1)),"") -> 97.38245791 | K21: 0 | L21: 0 | M21: 0 | N21: =IFERROR(IF(AND(public,confidential),"",INDEX(data,MATCH(Lists!$S19,data_key,0),N$1) * IF(result_type = "Aggregate", sites/1000, 1)),"") -> 0
B22: ="% Load reduction - " &CHAR(10)&MATCH(1,eventhours,1)-duration-12&" to "&MATCH(1,eventhours,1)-12&" pm" -> % Load reduction - 4 to 9 pm | C22: =IF(F34<=0,"N/A",I34) -> 0.00759888116 | E22: 16 | F22: =IFERROR(IF(AND(public,confidential),"",INDEX(data,MATCH(Lists!$S20,data_key,0),F$1)*Lists!$U20 * IF(result_type = "Aggregate", sites/1000, 1)),"") -> 604.6241681 | G22: 604.6241681 | H22: =IFERROR(IF(AND(public,confidential),"",INDEX(data,MATCH(Lists!$S20,data_key,0),H$1)*Lists!$V20*IF(result_type="Aggregate",sites/1000,1)*-1),"") -> 0 | I22: 0 | J22: =IFERROR(IF(AND(public,confidential),"",INDEX(data,MATCH(Lists!$S20,data_key,0),J$1)),"") -> 98.5008149 | K22: 0 | L22: 0 | M22: 0 | N22: =IFERROR(IF(AND(public,confidential),"",INDEX(data,MATCH(Lists!$S20,data_key,0),N$1) * IF(result_type = "Aggregate", sites/1000, 1)),"") -> 0
B23: Reduction significant (95% confidence level) | C23: =IF(N34 = "","",IF(OR($N$34 = 0,IF($N$34 = 0,0,ABS($H$34/$N$34)) > _xlfn.NORM.S.INV(0.975)),"Yes","No")) -> Yes | E23: 17 | F23: =IFERROR(IF(AND(public,confidential),"",INDEX(data,MATCH(Lists!$S21,data_key,0),F$1)*Lists!$U21 * IF(result_type = "Aggregate", sites/1000, 1)),"") -> 599.8907735 | G23: 595.3322749 | H23: =IFERROR(IF(AND(public,confidential),"",INDEX(data,MATCH(Lists!$S21,data_key,0),H$1)*Lists!$V21*IF(result_type="Aggregate",sites/1000,1)*-1),"") -> 4.558498622 | I23: 0.007598881035 | J23: =IFERROR(IF(AND(public,confidential),"",INDEX(data,MATCH(Lists!$S21,data_key,0),J$1)),"") -> 98.53102822 | K23: 4.549938342 | L23: 4.558498622 | M23: 4.567058903 | N23: =IFERROR(IF(AND(public,confidential),"",INDEX(data,MATCH(Lists!$S21,data_key,0),N$1) * IF(result_type = "Aggregate", sites/1000, 1)),"") -> 0.005204281059
E24: 18 | F24: =IFERROR(IF(AND(public,confidential),"",INDEX(data,MATCH(Lists!$S22,data_key,0),F$1)*Lists!$U22 * IF(result_type = "Aggregate", sites/1000, 1)),"") -> 587.4548344 | G24: 582.9908349 | H24: =IFERROR(IF(AND(public,confidential),"",INDEX(data,MATCH(Lists!$S22,data_key,0),H$1)*Lists!$V22*IF(result_type="Aggregate",sites/1000,1)*-1),"") -> 4.463999495 | I24: 0.007598881198 | J24: =IFERROR(IF(AND(public,confidential),"",INDEX(data,MATCH(Lists!$S22,data_key,0),J$1)),"") -> 97.64866315 | K24: 4.455811332 | L24: 4.463999495 | M24: 4.472187659 | N24: =IFERROR(IF(AND(public,confidential),"",INDEX(data,MATCH(Lists!$S22,data_key,0),N$1) * IF(result_type = "Aggregate", sites/1000, 1)),"") -> 0.004978049773
B25: confidential | E25: 19 | F25: =IFERROR(IF(AND(public,confidential),"",INDEX(data,MATCH(Lists!$S23,data_key,0),F$1)*Lists!$U23 * IF(result_type = "Aggregate", sites/1000, 1)),"") -> 594.4616824 | G25: 589.9444388 | H25: =IFERROR(IF(AND(public,confidential),"",INDEX(data,MATCH(Lists!$S23,data_key,0),H$1)*Lists!$V23*IF(result_type="Aggregate",sites/1000,1)*-1),"") -> 4.517243665 | I25: 0.007598881136 | J25: =IFERROR(IF(AND(public,confidential),"",INDEX(data,MATCH(Lists!$S23,data_key,0),J$1)),"") -> 95.3359981 | K25: 4.50954584 | L25: 4.517243665 | M25: 4.524941489 | N25: =IFERROR(IF(AND(public,confidential),"",INDEX(data,MATCH(Lists!$S23,data_key,0),N$1) * IF(result_type = "Aggregate", sites/1000, 1)),"") -> 0.004679944792
E26: 20 | F26: =IFERROR(IF(AND(public,confidential),"",INDEX(data,MATCH(Lists!$S24,data_key,0),F$1)*Lists!$U24 * IF(result_type = "Aggregate", sites/1000, 1)),"") -> 609.3161455 | G26: 604.6860245 | H26: =IFERROR(IF(AND(public,confidential),"",INDEX(data,MATCH(Lists!$S24,data_key,0),H$1)*Lists!$V24*IF(result_type="Aggregate",sites/1000,1)*-1),"") -> 4.630120976 | I26: 0.007598881155 | J26: =IFERROR(IF(AND(public,confidential),"",INDEX(data,MATCH(Lists!$S24,data_key,0),J$1)),"") -> 91.26600924 | K26: 4.622669438 | L26: 4.630120976 | M26: 4.637572514 | N26: =IFERROR(IF(AND(public,confidential),"",INDEX(data,MATCH(Lists!$S24,data_key,0),N$1) * IF(result_type = "Aggregate", sites/1000, 1)),"") -> 0.004530213337
E27: 21 | F27: =IFERROR(IF(AND(public,confidential),"",INDEX(data,MATCH(Lists!$S25,data_key,0),F$1)*Lists!$U25 * IF(result_type = "Aggregate", sites/1000, 1)),"") -> 606.1544867 | G27: 601.5483907 | H27: =IFERROR(IF(AND(public,confidential),"",INDEX(data,MATCH(Lists!$S25,data_key,0),H$1)*Lists!$V25*IF(result_type="Aggregate",sites/1000,1)*-1),"") -> 4.606095978 | I27: 0.007598881275 | J27: =IFERROR(IF(AND(public,confidential),"",INDEX(data,MATCH(Lists!$S25,data_key,0),J$1)),"") -> 87.17638018 | K27: 4.598826671 | L27: 4.606095978 | M27: 4.613365285 | N27: =IFERROR(IF(AND(public,confidential),"",INDEX(data,MATCH(Lists!$S25,data_key,0),N$1) * IF(result_type = "Aggregate", sites/1000, 1)),"") -> 0.00441942487
E28: 22 | F28: =IFERROR(IF(AND(public,confidential),"",INDEX(data,MATCH(Lists!$S26,data_key,0),F$1)*Lists!$U26 * IF(result_type = "Aggregate", sites/1000, 1)),"") -> 597.2448694 | G28: 597.2448694 | H28: =IFERROR(IF(AND(public,confidential),"",INDEX(data,MATCH(Lists!$S26,data_key,0),H$1)*Lists!$V26*IF(result_type="Aggregate",sites/1000,1)*-1),"") -> 0 | I28: 0 | J28: =IFERROR(IF(AND(public,confidential),"",INDEX(data,MATCH(Lists!$S26,data_key,0),J$1)),"") -> 84.58684395 | K28: 0 | L28: 0 | M28: 0 | N28: =IFERROR(IF(AND(public,confidential),"",INDEX(data,MATCH(Lists!$S26,data_key,0),N$1) * IF(result_type = "Aggregate", sites/1000, 1)),"") -> 0
A29: =IF(result_type = "Aggregate", "MWh/hour", "kWh/hour") -> MWh/hour | E29: 23 | F29: =IFERROR(IF(AND(public,confidential),"",INDEX(data,MATCH(Lists!$S27,data_key,0),F$1)*Lists!$U27 * IF(result_type = "Aggregate", sites/1000, 1)),"") -> 576.4520867 | G29: 576.4520867 | H29: =IFERROR(IF(AND(public,confidential),"",INDEX(data,MATCH(Lists!$S27,data_key,0),H$1)*Lists!$V27*IF(result_type="Aggregate",sites/1000,1)*-1),"") -> 0 | I29: 0 | J29: =IFERROR(IF(AND(public,confidential),"",INDEX(data,MATCH(Lists!$S27,data_key,0),J$1)),"") -> 82.75944875 | K29: 0 | L29: 0 | M29: 0 | N29: =IFERROR(IF(AND(public,confidential),"",INDEX(data,MATCH(Lists!$S27,data_key,0),N$1) * IF(result_type = "Aggregate", sites/1000, 1)),"") -> 0
E30: 24 | F30: =IFERROR(IF(AND(public,confidential),"",INDEX(data,MATCH(Lists!$S28,data_key,0),F$1)*Lists!$U28 * IF(result_type = "Aggregate", sites/1000, 1)),"") -> 554.6861832 | G30: 554.6861832 | H30: =IFERROR(IF(AND(public,confidential),"",INDEX(data,MATCH(Lists!$S28,data_key,0),H$1)*Lists!$V28*IF(result_type="Aggregate",sites/1000,1)*-1),"") -> 0 | I30: 0 | J30: =IFERROR(IF(AND(public,confidential),"",INDEX(data,MATCH(Lists!$S28,data_key,0),J$1)),"") -> 80.36834667 | K30: 0 | L30: 0 | M30: 0 | N30: =IFERROR(IF(AND(public,confidential),"",INDEX(data,MATCH(Lists!$S28,data_key,0),N$1) * IF(result_type = "Aggregate", sites/1000, 1)),"") -> 0
E31: Period | F31: =F5 -> Reference load (MWh/hour) | G31: Estimated load w/ DR (MWh/hour) | H31: Load reduction (MWh/hour) | I31: =I5 -> % Load reduction | J31: Weighted temp (F) | K31: =K5 -> Uncertainty adjusted impact - Percentiles | N31: Std. Error
B32: =units -> MWh/hour | K32: =K6 -> 5th | L32: =L6 -> 50th | M32: 95th
E33: Daily | F33: =IFERROR(IF(AND(public,confidential),"",AVERAGE(F7:F30)),"") -> 573.3390271 | G33: =IFERROR(IF(AND(public,confidential),"",AVERAGE(G7:G30)),"") -> 572.3900288 | H33: =IFERROR(IF(AND(public,confidential),"",AVERAGE(H7:H30)),"") -> 0.9489982807 | I33: =IF(F33<=0,"NA",IFERROR(IF(AND(public,confidential),"",H33/F33),"")) -> 0.001655213121 | J33: =IFERROR(IF(AND(public,confidential),"",AVERAGE(J7:J30)),"") -> 84.21583552 | K33: =IFERROR(IF(AND(public,confidential),"","n/a"),"") -> n/a | L33: =IFERROR(IF(AND(public,confidential),"","n/a"),"") -> n/a | M33: =IFERROR(IF(AND(public,confidential),"","n/a"),"") -> n/a | N33: =IFERROR(IF(AND(public,confidential),"","n/a"),"") -> n/a
E34: ="Measurement Hour Avg - "&CHAR(10)&MATCH(1,rahours,1)-duration-12&" to "&MATCH(1,rahours,1)-12&" pm" -> Measurement Hour Avg - 4 to 9 pm | F34: =IFERROR(IF(AND(public,confidential),"",AVERAGEIF(rahours,1,F$7:F$30)),"") -> 599.4555845 | G34: =IFERROR(IF(AND(public,confidential),"",AVERAGEIF(rahours,1,G$7:G$30)),"") -> 594.9003928 | H34: =IFERROR(IF(AND(public,confidential),"",AVERAGEIF(rahours,1,H$7:H$30)),"") -> 4.555191747 | I34: =IF(F34<=0,"NA",IFERROR(IF(AND(public,confidential),"",H34/F34),"")) -> 0.00759888116 | J34: =IFERROR(IF(AND(public,confidential),"",AVERAGEIF(rahours,1,J$7:J$30)),"") -> 93.99161578 | K34: =IFERROR(IF(AND(public,confidential),"",AVERAGEIF(rahours,1,K$7:K$30)),"") -> 4.547358325 | L34: =IFERROR(IF(AND(public,confidential),"",AVERAGEIF(rahours,1,L$7:L$30)),"") -> 4.555191747 | M34: =IFERROR(IF(AND(public,confidential),"",AVERAGEIF(rahours,1,M$7:M$30)),"") -> 4.56302517 | N34: =IFERROR(IF(AND(public,confidential),"",AVERAGEIF(rahours,1,N$7:N$30)),"") -> 0.004762382766
E35: ="Event Hour Avg - "&CHAR(10)&MATCH(1,eventhours,1)-duration-12&" to "&MATCH(1,eventhours,1)-12&" pm" -> Event Hour Avg - 4 to 9 pm | F35: =IFERROR(IF(AND(public,confidential),"",AVERAGEIF(eventhours,1,F$7:F$30)),"") -> 599.4555845 | G35: =IFERROR(IF(AND(public,confidential),"",AVERAGEIF(eventhours,1,G$7:G$30)),"") -> 594.9003928 | H35: =IFERROR(IF(AND(public,confidential),"",AVERAGEIF(eventhours,1,H$7:H$30)),"") -> 4.555191747 | I35: =IF(F35<=0,"NA",IFERROR(IF(AND(public,confidential),"",H35/F35),"")) -> 0.00759888116 | J35: =IFERROR(IF(AND(public,confidential),"",AVERAGEIF(eventhours,1,J$7:J$30)),"") -> 93.99161578 | K35: =IFERROR(IF(AND(public,confidential),"",AVERAGEIF(eventhours,1,K$7:K$30)),"") -> 4.547358325 | L35: =IFERROR(IF(AND(public,confidential),"",AVERAGEIF(eventhours,1,L$7:L$30)),"") -> 4.555191747 | M35: =IFERROR(IF(AND(public,confidential),"",AVERAGEIF(eventhours,1,M$7:M$30)),"") -> 4.56302517 | N35: =IFERROR(IF(AND(public,confidential),"",AVERAGEIF(eventhours,1,N$7:N$30)),"") -> 0.004762382766
B38: CONFIDENTIAL content removed and blacked out
E40: Monthly Forecast:
F41: =units -> MWh/hour
E42: Month | F42: =INDEX(program_list,COLUMN(F$58)-COLUMN($E$58)) -> A1 | G42: =INDEX(program_list,COLUMN(G$58)-COLUMN($E$58)) -> A1BIP | H42: =INDEX(program_list,COLUMN(H$58)-COLUMN($E$58)) -> A2 | I42: =INDEX(program_list,COLUMN(I$58)-COLUMN($E$58)) -> A2BIP | J42: =INDEX(program_list,COLUMN(J$58)-COLUMN($E$58)) -> A4 | K42: =INDEX(program_list,COLUMN(K$58)-COLUMN($E$58)) -> A5 | L42: =INDEX(program_list,COLUMN(L$58)-COLUMN($E$58)) -> B2 | M42: =INDEX(program_list,COLUMN(M$58)-COLUMN($E$58)) -> All groups
E43: January | F43: =IFERROR(IF(AND(public,INDEX(program_conf_list,MATCH(Results!F$42,program_list,0))),"", SUMPRODUCT(OFFSET(INDEX(data,MATCH(F$42&portfolio&category&subcategory&IF(OR(F$42="A4",F$42="A5"),3,5)&system&wyear&daytype&VLOOKUP($E43,months,2,FALSE)&MATCH(1,INDIRECT(Lists!$E37&IF(OR(F$42="A4",F$42="A5"),"_direct","")),0),data_key,0),$H$1),0,0,IF(OR(F$42="A4",F$42="A5"),3,5),1), OFFSET(INDEX(load_multipliers,MATCH(F$42&category&subcategory&year&VLOOKUP($E43,months,2,FALSE)&daytype&MATCH(1,INDIRECT(Lists!$E37&IF(OR(F$42="A4",F$42="A5"),"_direct","")),0),load_multipliers_key,0),MATCH("impact_multiplier",load_multipliers_x,0)),0,0,IF(OR(F$42="A4",F$42="A5"),3,5),1))/IF(OR(F$42="A4",F$42="A5"),3,5) * IF(result_type = "Aggregate", INDEX(enrollment, MATCH(F$42&category&subcategory&year&VLOOKUP($E43,months,2,FALSE),enrollment_key,0),MATCH("sites",enrollment_x,0))/1000,1) * -1),"") -> 0 | G43: =IFERROR(IF(AND(public,INDEX(program_conf_list,MATCH(Results!G$42,program_list,0))),"", SUMPRODUCT(OFFSET(INDEX(data,MATCH(G$42&portfolio&category&subcategory&IF(OR(G$42="A4",G$42="A5"),3,5)&system&wyear&daytype&VLOOKUP($E43,months,2,FALSE)&MATCH(1,INDIRECT(Lists!$E37&IF(OR(G$42="A4",G$42="A5"),"_direct","")),0),data_key,0),$H$1),0,0,IF(OR(G$42="A4",G$42="A5"),3,5),1), OFFSET(INDEX(load_multipliers,MATCH(G$42&category&subcategory&year&VLOOKUP($E43,months,2,FALSE)&daytype&MATCH(1,INDIRECT(Lists!$E37&IF(OR(G$42="A4",G$42="A5"),"_direct","")),0),load_multipliers_key,0),MATCH("impact_multiplier",load_multipliers_x,0)),0,0,IF(OR(G$42="A4",G$42="A5"),3,5),1))/IF(OR(G$42="A4",G$42="A5"),3,5) * IF(result_type = "Aggregate", INDEX(enrollment, MATCH(G$42&category&subcategory&year&VLOOKUP($E43,months,2,FALSE),enrollment_key,0),MATCH("sites",enrollment_x,0))/1000,1) * -1),"") ->  | H43: =IFERROR(IF(AND(public,INDEX(program_conf_list,MATCH(Results!H$42,program_list,0))),"", SUMPRODUCT(OFFSET(INDEX(data,MATCH(H$42&portfolio&category&subcategory&IF(OR(H$42="A4",H$42="A5"),3,5)&system&wyear&daytype&VLOOKUP($E43,months,2,FALSE)&MATCH(1,INDIRECT(Lists!$E37&IF(OR(H$42="A4",H$42="A5"),"_direct","")),0),data_key,0),$H$1),0,0,IF(OR(H$42="A4",H$42="A5"),3,5),1), OFFSET(INDEX(load_multipliers,MATCH(H$42&category&subcategory&year&VLOOKUP($E43,months,2,FALSE)&daytype&MATCH(1,INDIRECT(Lists!$E37&IF(OR(H$42="A4",H$42="A5"),"_direct","")),0),load_multipliers_key,0),MATCH("impact_multiplier",load_multipliers_x,0)),0,0,IF(OR(H$42="A4",H$42="A5"),3,5),1))/IF(OR(H$42="A4",H$42="A5"),3,5) * IF(result_type = "Aggregate", INDEX(enrollment, MATCH(H$42&category&subcategory&year&VLOOKUP($E43,months,2,FALSE),enrollment_key,0),MATCH("sites",enrollment_x,0))/1000,1) * -1),"") -> 0 | I43: =IFERROR(IF(AND(public,INDEX(program_conf_list,MATCH(Results!I$42,program_list,0))),"", SUMPRODUCT(OFFSET(INDEX(data,MATCH(I$42&portfolio&category&subcategory&IF(OR(I$42="A4",I$42="A5"),3,5)&system&wyear&daytype&VLOOKUP($E43,months,2,FALSE)&MATCH(1,INDIRECT(Lists!$E37&IF(OR(I$42="A4",I$42="A5"),"_direct","")),0),data_key,0),$H$1),0,0,IF(OR(I$42="A4",I$42="A5"),3,5),1), OFFSET(INDEX(load_multipliers,MATCH(I$42&category&subcategory&year&VLOOKUP($E43,months,2,FALSE)&daytype&MATCH(1,INDIRECT(Lists!$E37&IF(OR(I$42="A4",I$42="A5"),"_direct","")),0),load_multipliers_key,0),MATCH("impact_multiplier",load_multipliers_x,0)),0,0,IF(OR(I$42="A4",I$42="A5"),3,5),1))/IF(OR(I$42="A4",I$42="A5"),3,5) * IF(result_type = "Aggregate", INDEX(enrollment, MATCH(I$42&category&subcategory&year&VLOOKUP($E43,months,2,FALSE),enrollment_key,0),MATCH("sites",enrollment_x,0))/1000,1) * -1),"") ->  | J43: =IFERROR(IF(AND(public,INDEX(program_conf_list,MATCH(Results!J$42,program_list,0))),"", SUMPRODUCT(OFFSET(INDEX(data,MATCH(J$42&portfolio&category&subcategory&IF(OR(J$42="A4",J$42="A5"),3,5)&system&wyear&daytype&VLOOKUP($E43,months,2,FALSE)&MATCH(1,INDIRECT(Lists!$E37&IF(OR(J$42="A4",J$42="A5"),"_direct","")),0),data_key,0),$H$1),0,0,IF(OR(J$42="A4",J$42="A5"),3,5),1), OFFSET(INDEX(load_multipliers,MATCH(J$42&category&subcategory&year&VLOOKUP($E43,months,2,FALSE)&daytype&MATCH(1,INDIRECT(Lists!$E37&IF(OR(J$42="A4",J$42="A5"),"_direct","")),0),load_multipliers_key,0),MATCH("impact_multiplier",load_multipliers_x,0)),0,0,IF(OR(J$42="A4",J$42="A5"),3,5),1))/IF(OR(J$42="A4",J$42="A5"),3,5) * IF(result_type = "Aggregate", INDEX(enrollment, MATCH(J$42&category&subcategory&year&VLOOKUP($E43,months,2,FALSE),enrollment_key,0),MATCH("sites",enrollment_x,0))/1000,1) * -1),"") -> 0 | K43: =IFERROR(IF(AND(public,INDEX(program_conf_list,MATCH(Results!K$42,program_list,0))),"", SUMPRODUCT(OFFSET(INDEX(data,MATCH(K$42&portfolio&category&subcategory&IF(OR(K$42="A4",K$42="A5"),3,5)&system&wyear&daytype&VLOOKUP($E43,months,2,FALSE)&MATCH(1,INDIRECT(Lists!$E37&IF(OR(K$42="A4",K$42="A5"),"_direct","")),0),data_key,0),$H$1),0,0,IF(OR(K$42="A4",K$42="A5"),3,5),1), OFFSET(INDEX(load_multipliers,MATCH(K$42&category&subcategory&year&VLOOKUP($E43,months,2,FALSE)&daytype&MATCH(1,INDIRECT(Lists!$E37&IF(OR(K$42="A4",K$42="A5"),"_direct","")),0),load_multipliers_key,0),MATCH("impact_multiplier",load_multipliers_x,0)),0,0,IF(OR(K$42="A4",K$42="A5"),3,5),1))/IF(OR(K$42="A4",K$42="A5"),3,5) * IF(result_type = "Aggregate", INDEX(enrollment, MATCH(K$42&category&subcategory&year&VLOOKUP($E43,months,2,FALSE),enrollment_key,0),MATCH("sites",enrollment_x,0))/1000,1) * -1),"") -> 0 | L43: =IFERROR(IF(AND(public,INDEX(program_conf_list,MATCH(Results!L$42,program_list,0))),"", SUMPRODUCT(OFFSET(INDEX(data,MATCH(L$42&portfolio&category&subcategory&IF(OR(L$42="A4",L$42="A5"),3,5)&system&wyear&daytype&VLOOKUP($E43,months,2,FALSE)&MATCH(1,INDIRECT(Lists!$E37&IF(OR(L$42="A4",L$42="A5"),"_direct","")),0),data_key,0),$H$1),0,0,IF(OR(L$42="A4",L$42="A5"),3,5),1), OFFSET(INDEX(load_multipliers,MATCH(L$42&category&subcategory&year&VLOOKUP($E43,months,2,FALSE)&daytype&MATCH(1,INDIRECT(Lists!$E37&IF(OR(L$42="A4",L$42="A5"),"_direct","")),0),load_multipliers_key,0),MATCH("impact_multiplier",load_multipliers_x,0)),0,0,IF(OR(L$42="A4",L$42="A5"),3,5),1))/IF(OR(L$42="A4",L$42="A5"),3,5) * IF(result_type = "Aggregate", INDEX(enrollment, MATCH(L$42&category&subcategory&year&VLOOKUP($E43,months,2,FALSE),enrollment_key,0),MATCH("sites",enrollment_x,0))/1000,1) * -1),"") -> 0 | M43: =IFERROR(IF(AND(public,INDEX(program_conf_list,MATCH(Results!M$42,program_list,0))),"", SUMPRODUCT(OFFSET(INDEX(data,MATCH(M$42&portfolio&category&subcategory&IF(OR(M$42="A4",M$42="A5"),3,5)&system&wyear&daytype&VLOOKUP($E43,months,2,FALSE)&MATCH(1,INDIRECT(Lists!$E37&IF(OR(M$42="A4",M$42="A5"),"_direct","")),0),data_key,0),$H$1),0,0,IF(OR(M$42="A4",M$42="A5"),3,5),1), OFFSET(INDEX(load_multipliers,MATCH(M$42&category&subcategory&year&VLOOKUP($E43,months,2,FALSE)&daytype&MATCH(1,INDIRECT(Lists!$E37&IF(OR(M$42="A4",M$42="A5"),"_direct","")),0),load_multipliers_key,0),MATCH("impact_multiplier",load_multipliers_x,0)),0,0,IF(OR(M$42="A4",M$42="A5"),3,5),1))/IF(OR(M$42="A4",M$42="A5"),3,5) * IF(result_type = "Aggregate", INDEX(enrollment, MATCH(M$42&category&subcategory&year&VLOOKUP($E43,months,2,FALSE),enrollment_key,0),MATCH("sites",enrollment_x,0))/1000,1) * -1),"") -> 0
E44: February | F44: =IFERROR(IF(AND(public,INDEX(program_conf_list,MATCH(Results!F$42,program_list,0))),"", SUMPRODUCT(OFFSET(INDEX(data,MATCH(F$42&portfolio&category&subcategory&IF(OR(F$42="A4",F$42="A5"),3,5)&system&wyear&daytype&VLOOKUP($E44,months,2,FALSE)&MATCH(1,INDIRECT(Lists!$E38&IF(OR(F$42="A4",F$42="A5"),"_direct","")),0),data_key,0),$H$1),0,0,IF(OR(F$42="A4",F$42="A5"),3,5),1), OFFSET(INDEX(load_multipliers,MATCH(F$42&category&subcategory&year&VLOOKUP($E44,months,2,FALSE)&daytype&MATCH(1,INDIRECT(Lists!$E38&IF(OR(F$42="A4",F$42="A5"),"_direct","")),0),load_multipliers_key,0),MATCH("impact_multiplier",load_multipliers_x,0)),0,0,IF(OR(F$42="A4",F$42="A5"),3,5),1))/IF(OR(F$42="A4",F$42="A5"),3,5) * IF(result_type = "Aggregate", INDEX(enrollment, MATCH(F$42&category&subcategory&year&VLOOKUP($E44,months,2,FALSE),enrollment_key,0),MATCH("sites",enrollment_x,0))/1000,1) * -1),"") -> 0 | G44: =IFERROR(IF(AND(public,INDEX(program_conf_list,MATCH(Results!G$42,program_list,0))),"", SUMPRODUCT(OFFSET(INDEX(data,MATCH(G$42&portfolio&category&subcategory&IF(OR(G$42="A4",G$42="A5"),3,5)&system&wyear&daytype&VLOOKUP($E44,months,2,FALSE)&MATCH(1,INDIRECT(Lists!$E38&IF(OR(G$42="A4",G$42="A5"),"_direct","")),0),data_key,0),$H$1),0,0,IF(OR(G$42="A4",G$42="A5"),3,5),1), OFFSET(INDEX(load_multipliers,MATCH(G$42&category&subcategory&year&VLOOKUP($E44,months,2,FALSE)&daytype&MATCH(1,INDIRECT(Lists!$E38&IF(OR(G$42="A4",G$42="A5"),"_direct","")),0),load_multipliers_key,0),MATCH("impact_multiplier",load_multipliers_x,0)),0,0,IF(OR(G$42="A4",G$42="A5"),3,5),1))/IF(OR(G$42="A4",G$42="A5"),3,5) * IF(result_type = "Aggregate", INDEX(enrollment, MATCH(G$42&category&subcategory&year&VLOOKUP($E44,months,2,FALSE),enrollment_key,0),MATCH("sites",enrollment_x,0))/1000,1) * -1),"") ->  | H44: =IFERROR(IF(AND(public,INDEX(program_conf_list,MATCH(Results!H$42,program_list,0))),"", SUMPRODUCT(OFFSET(INDEX(data,MATCH(H$42&portfolio&category&subcategory&IF(OR(H$42="A4",H$42="A5"),3,5)&system&wyear&daytype&VLOOKUP($E44,months,2,FALSE)&MATCH(1,INDIRECT(Lists!$E38&IF(OR(H$42="A4",H$42="A5"),"_direct","")),0),data_key,0),$H$1),0,0,IF(OR(H$42="A4",H$42="A5"),3,5),1), OFFSET(INDEX(load_multipliers,MATCH(H$42&category&subcategory&year&VLOOKUP($E44,months,2,FALSE)&daytype&MATCH(1,INDIRECT(Lists!$E38&IF(OR(H$42="A4",H$42="A5"),"_direct","")),0),load_multipliers_key,0),MATCH("impact_multiplier",load_multipliers_x,0)),0,0,IF(OR(H$42="A4",H$42="A5"),3,5),1))/IF(OR(H$42="A4",H$42="A5"),3,5) * IF(result_type = "Aggregate", INDEX(enrollment, MATCH(H$42&category&subcategory&year&VLOOKUP($E44,months,2,FALSE),enrollment_key,0),MATCH("sites",enrollment_x,0))/1000,1) * -1),"") -> 0 | I44: =IFERROR(IF(AND(public,INDEX(program_conf_list,MATCH(Results!I$42,program_list,0))),"", SUMPRODUCT(OFFSET(INDEX(data,MATCH(I$42&portfolio&category&subcategory&IF(OR(I$42="A4",I$42="A5"),3,5)&system&wyear&daytype&VLOOKUP($E44,months,2,FALSE)&MATCH(1,INDIRECT(Lists!$E38&IF(OR(I$42="A4",I$42="A5"),"_direct","")),0),data_key,0),$H$1),0,0,IF(OR(I$42="A4",I$42="A5"),3,5),1), OFFSET(INDEX(load_multipliers,MATCH(I$42&category&subcategory&year&VLOOKUP($E44,months,2,FALSE)&daytype&MATCH(1,INDIRECT(Lists!$E38&IF(OR(I$42="A4",I$42="A5"),"_direct","")),0),load_multipliers_key,0),MATCH("impact_multiplier",load_multipliers_x,0)),0,0,IF(OR(I$42="A4",I$42="A5"),3,5),1))/IF(OR(I$42="A4",I$42="A5"),3,5) * IF(result_type = "Aggregate", INDEX(enrollment, MATCH(I$42&category&subcategory&year&VLOOKUP($E44,months,2,FALSE),enrollment_key,0),MATCH("sites",enrollment_x,0))/1000,1) * -1),"") ->  | J44: =IFERROR(IF(AND(public,INDEX(program_conf_list,MATCH(Results!J$42,program_list,0))),"", SUMPRODUCT(OFFSET(INDEX(data,MATCH(J$42&portfolio&category&subcategory&IF(OR(J$42="A4",J$42="A5"),3,5)&system&wyear&daytype&VLOOKUP($E44,months,2,FALSE)&MATCH(1,INDIRECT(Lists!$E38&IF(OR(J$42="A4",J$42="A5"),"_direct","")),0),data_key,0),$H$1),0,0,IF(OR(J$42="A4",J$42="A5"),3,5),1), OFFSET(INDEX(load_multipliers,MATCH(J$42&category&subcategory&year&VLOOKUP($E44,months,2,FALSE)&daytype&MATCH(1,INDIRECT(Lists!$E38&IF(OR(J$42="A4",J$42="A5"),"_direct","")),0),load_multipliers_key,0),MATCH("impact_multiplier",load_multipliers_x,0)),0,0,IF(OR(J$42="A4",J$42="A5"),3,5),1))/IF(OR(J$42="A4",J$42="A5"),3,5) * IF(result_type = "Aggregate", INDEX(enrollment, MATCH(J$42&category&subcategory&year&VLOOKUP($E44,months,2,FALSE),enrollment_key,0),MATCH("sites",enrollment_x,0))/1000,1) * -1),"") -> 0 | K44: =IFERROR(IF(AND(public,INDEX(program_conf_list,MATCH(Results!K$42,program_list,0))),"", SUMPRODUCT(OFFSET(INDEX(data,MATCH(K$42&portfolio&category&subcategory&IF(OR(K$42="A4",K$42="A5"),3,5)&system&wyear&daytype&VLOOKUP($E44,months,2,FALSE)&MATCH(1,INDIRECT(Lists!$E38&IF(OR(K$42="A4",K$42="A5"),"_direct","")),0),data_key,0),$H$1),0,0,IF(OR(K$42="A4",K$42="A5"),3,5),1), OFFSET(INDEX(load_multipliers,MATCH(K$42&category&subcategory&year&VLOOKUP($E44,months,2,FALSE)&daytype&MATCH(1,INDIRECT(Lists!$E38&IF(OR(K$42="A4",K$42="A5"),"_direct","")),0),load_multipliers_key,0),MATCH("impact_multiplier",load_multipliers_x,0)),0,0,IF(OR(K$42="A4",K$42="A5"),3,5),1))/IF(OR(K$42="A4",K$42="A5"),3,5) * IF(result_type = "Aggregate", INDEX(enrollment, MATCH(K$42&category&subcategory&year&VLOOKUP($E44,months,2,FALSE),enrollment_key,0),MATCH("sites",enrollment_x,0))/1000,1) * -1),"") -> 0 | L44: =IFERROR(IF(AND(public,INDEX(program_conf_list,MATCH(Results!L$42,program_list,0))),"", SUMPRODUCT(OFFSET(INDEX(data,MATCH(L$42&portfolio&category&subcategory&IF(OR(L$42="A4",L$42="A5"),3,5)&system&wyear&daytype&VLOOKUP($E44,months,2,FALSE)&MATCH(1,INDIRECT(Lists!$E38&IF(OR(L$42="A4",L$42="A5"),"_direct","")),0),data_key,0),$H$1),0,0,IF(OR(L$42="A4",L$42="A5"),3,5),1), OFFSET(INDEX(load_multipliers,MATCH(L$42&category&subcategory&year&VLOOKUP($E44,months,2,FALSE)&daytype&MATCH(1,INDIRECT(Lists!$E38&IF(OR(L$42="A4",L$42="A5"),"_direct","")),0),load_multipliers_key,0),MATCH("impact_multiplier",load_multipliers_x,0)),0,0,IF(OR(L$42="A4",L$42="A5"),3,5),1))/IF(OR(L$42="A4",L$42="A5"),3,5) * IF(result_type = "Aggregate", INDEX(enrollment, MATCH(L$42&category&subcategory&year&VLOOKUP($E44,months,2,FALSE),enrollment_key,0),MATCH("sites",enrollment_x,0))/1000,1) * -1),"") -> 0 | M44: =IFERROR(IF(AND(public,INDEX(program_conf_list,MATCH(Results!M$42,program_list,0))),"", SUMPRODUCT(OFFSET(INDEX(data,MATCH(M$42&portfolio&category&subcategory&IF(OR(M$42="A4",M$42="A5"),3,5)&system&wyear&daytype&VLOOKUP($E44,months,2,FALSE)&MATCH(1,INDIRECT(Lists!$E38&IF(OR(M$42="A4",M$42="A5"),"_direct","")),0),data_key,0),$H$1),0,0,IF(OR(M$42="A4",M$42="A5"),3,5),1), OFFSET(INDEX(load_multipliers,MATCH(M$42&category&subcategory&year&VLOOKUP($E44,months,2,FALSE)&daytype&MATCH(1,INDIRECT(Lists!$E38&IF(OR(M$42="A4",M$42="A5"),"_direct","")),0),load_multipliers_key,0),MATCH("impact_multiplier",load_multipliers_x,0)),0,0,IF(OR(M$42="A4",M$42="A5"),3,5),1))/IF(OR(M$42="A4",M$42="A5"),3,5) * IF(result_type = "Aggregate", INDEX(enrollment, MATCH(M$42&category&subcategory&year&VLOOKUP($E44,months,2,FALSE),enrollment_key,0),MATCH("sites",enrollment_x,0))/1000,1) * -1),"") -> 0
E45: March | F45: =IFERROR(IF(AND(public,INDEX(program_conf_list,MATCH(Results!F$42,program_list,0))),"", SUMPRODUCT(OFFSET(INDEX(data,MATCH(F$42&portfolio&category&subcategory&IF(OR(F$42="A4",F$42="A5"),3,5)&system&wyear&daytype&VLOOKUP($E45,months,2,FALSE)&MATCH(1,INDIRECT(Lists!$E39&IF(OR(F$42="A4",F$42="A5"),"_direct","")),0),data_key,0),$H$1),0,0,IF(OR(F$42="A4",F$42="A5"),3,5),1), OFFSET(INDEX(load_multipliers,MATCH(F$42&category&subcategory&year&VLOOKUP($E45,months,2,FALSE)&daytype&MATCH(1,INDIRECT(Lists!$E39&IF(OR(F$42="A4",F$42="A5"),"_direct","")),0),load_multipliers_key,0),MATCH("impact_multiplier",load_multipliers_x,0)),0,0,IF(OR(F$42="A4",F$42="A5"),3,5),1))/IF(OR(F$42="A4",F$42="A5"),3,5) * IF(result_type = "Aggregate", INDEX(enrollment, MATCH(F$42&category&subcategory&year&VLOOKUP($E45,months,2,FALSE),enrollment_key,0),MATCH("sites",enrollment_x,0))/1000,1) * -1),"") -> 0 | G45: =IFERROR(IF(AND(public,INDEX(program_conf_list,MATCH(Results!G$42,program_list,0))),"", SUMPRODUCT(OFFSET(INDEX(data,MATCH(G$42&portfolio&category&subcategory&IF(OR(G$42="A4",G$42="A5"),3,5)&system&wyear&daytype&VLOOKUP($E45,months,2,FALSE)&MATCH(1,INDIRECT(Lists!$E39&IF(OR(G$42="A4",G$42="A5"),"_direct","")),0),data_key,0),$H$1),0,0,IF(OR(G$42="A4",G$42="A5"),3,5),1), OFFSET(INDEX(load_multipliers,MATCH(G$42&category&subcategory&year&VLOOKUP($E45,months,2,FALSE)&daytype&MATCH(1,INDIRECT(Lists!$E39&IF(OR(G$42="A4",G$42="A5"),"_direct","")),0),load_multipliers_key,0),MATCH("impact_multiplier",load_multipliers_x,0)),0,0,IF(OR(G$42="A4",G$42="A5"),3,5),1))/IF(OR(G$42="A4",G$42="A5"),3,5) * IF(result_type = "Aggregate", INDEX(enrollment, MATCH(G$42&category&subcategory&year&VLOOKUP($E45,months,2,FALSE),enrollment_key,0),MATCH("sites",enrollment_x,0))/1000,1) * -1),"") ->  | H45: =IFERROR(IF(AND(public,INDEX(program_conf_list,MATCH(Results!H$42,program_list,0))),"", SUMPRODUCT(OFFSET(INDEX(data,MATCH(H$42&portfolio&category&subcategory&IF(OR(H$42="A4",H$42="A5"),3,5)&system&wyear&daytype&VLOOKUP($E45,months,2,FALSE)&MATCH(1,INDIRECT(Lists!$E39&IF(OR(H$42="A4",H$42="A5"),"_direct","")),0),data_key,0),$H$1),0,0,IF(OR(H$42="A4",H$42="A5"),3,5),1), OFFSET(INDEX(load_multipliers,MATCH(H$42&category&subcategory&year&VLOOKUP($E45,months,2,FALSE)&daytype&MATCH(1,INDIRECT(Lists!$E39&IF(OR(H$42="A4",H$42="A5"),"_direct","")),0),load_multipliers_key,0),MATCH("impact_multiplier",load_multipliers_x,0)),0,0,IF(OR(H$42="A4",H$42="A5"),3,5),1))/IF(OR(H$42="A4",H$42="A5"),3,5) * IF(result_type = "Aggregate", INDEX(enrollment, MATCH(H$42&category&subcategory&year&VLOOKUP($E45,months,2,FALSE),enrollment_key,0),MATCH("sites",enrollment_x,0))/1000,1) * -1),"") -> 0 | I45: =IFERROR(IF(AND(public,INDEX(program_conf_list,MATCH(Results!I$42,program_list,0))),"", SUMPRODUCT(OFFSET(INDEX(data,MATCH(I$42&portfolio&category&subcategory&IF(OR(I$42="A4",I$42="A5"),3,5)&system&wyear&daytype&VLOOKUP($E45,months,2,FALSE)&MATCH(1,INDIRECT(Lists!$E39&IF(OR(I$42="A4",I$42="A5"),"_direct","")),0),data_key,0),$H$1),0,0,IF(OR(I$42="A4",I$42="A5"),3,5),1), OFFSET(INDEX(load_multipliers,MATCH(I$42&category&subcategory&year&VLOOKUP($E45,months,2,FALSE)&daytype&MATCH(1,INDIRECT(Lists!$E39&IF(OR(I$42="A4",I$42="A5"),"_direct","")),0),load_multipliers_key,0),MATCH("impact_multiplier",load_multipliers_x,0)),0,0,IF(OR(I$42="A4",I$42="A5"),3,5),1))/IF(OR(I$42="A4",I$42="A5"),3,5) * IF(result_type = "Aggregate", INDEX(enrollment, MATCH(I$42&category&subcategory&year&VLOOKUP($E45,months,2,FALSE),enrollment_key,0),MATCH("sites",enrollment_x,0))/1000,1) * -1),"") ->  | J45: =IFERROR(IF(AND(public,INDEX(program_conf_list,MATCH(Results!J$42,program_list,0))),"", SUMPRODUCT(OFFSET(INDEX(data,MATCH(J$42&portfolio&category&subcategory&IF(OR(J$42="A4",J$42="A5"),3,5)&system&wyear&daytype&VLOOKUP($E45,months,2,FALSE)&MATCH(1,INDIRECT(Lists!$E39&IF(OR(J$42="A4",J$42="A5"),"_direct","")),0),data_key,0),$H$1),0,0,IF(OR(J$42="A4",J$42="A5"),3,5),1), OFFSET(INDEX(load_multipliers,MATCH(J$42&category&subcategory&year&VLOOKUP($E45,months,2,FALSE)&daytype&MATCH(1,INDIRECT(Lists!$E39&IF(OR(J$42="A4",J$42="A5"),"_direct","")),0),load_multipliers_key,0),MATCH("impact_multiplier",load_multipliers_x,0)),0,0,IF(OR(J$42="A4",J$42="A5"),3,5),1))/IF(OR(J$42="A4",J$42="A5"),3,5) * IF(result_type = "Aggregate", INDEX(enrollment, MATCH(J$42&category&subcategory&year&VLOOKUP($E45,months,2,FALSE),enrollment_key,0),MATCH("sites",enrollment_x,0))/1000,1) * -1),"") -> 0 | K45: =IFERROR(IF(AND(public,INDEX(program_conf_list,MATCH(Results!K$42,program_list,0))),"", SUMPRODUCT(OFFSET(INDEX(data,MATCH(K$42&portfolio&category&subcategory&IF(OR(K$42="A4",K$42="A5"),3,5)&system&wyear&daytype&VLOOKUP($E45,months,2,FALSE)&MATCH(1,INDIRECT(Lists!$E39&IF(OR(K$42="A4",K$42="A5"),"_direct","")),0),data_key,0),$H$1),0,0,IF(OR(K$42="A4",K$42="A5"),3,5),1), OFFSET(INDEX(load_multipliers,MATCH(K$42&category&subcategory&year&VLOOKUP($E45,months,2,FALSE)&daytype&MATCH(1,INDIRECT(Lists!$E39&IF(OR(K$42="A4",K$42="A5"),"_direct","")),0),load_multipliers_key,0),MATCH("impact_multiplier",load_multipliers_x,0)),0,0,IF(OR(K$42="A4",K$42="A5"),3,5),1))/IF(OR(K$42="A4",K$42="A5"),3,5) * IF(result_type = "Aggregate", INDEX(enrollment, MATCH(K$42&category&subcategory&year&VLOOKUP($E45,months,2,FALSE),enrollment_key,0),MATCH("sites",enrollment_x,0))/1000,1) * -1),"") -> 0 | L45: =IFERROR(IF(AND(public,INDEX(program_conf_list,MATCH(Results!L$42,program_list,0))),"", SUMPRODUCT(OFFSET(INDEX(data,MATCH(L$42&portfolio&category&subcategory&IF(OR(L$42="A4",L$42="A5"),3,5)&system&wyear&daytype&VLOOKUP($E45,months,2,FALSE)&MATCH(1,INDIRECT(Lists!$E39&IF(OR(L$42="A4",L$42="A5"),"_direct","")),0),data_key,0),$H$1),0,0,IF(OR(L$42="A4",L$42="A5"),3,5),1), OFFSET(INDEX(load_multipliers,MATCH(L$42&category&subcategory&year&VLOOKUP($E45,months,2,FALSE)&daytype&MATCH(1,INDIRECT(Lists!$E39&IF(OR(L$42="A4",L$42="A5"),"_direct","")),0),load_multipliers_key,0),MATCH("impact_multiplier",load_multipliers_x,0)),0,0,IF(OR(L$42="A4",L$42="A5"),3,5),1))/IF(OR(L$42="A4",L$42="A5"),3,5) * IF(result_type = "Aggregate", INDEX(enrollment, MATCH(L$42&category&subcategory&year&VLOOKUP($E45,months,2,FALSE),enrollment_key,0),MATCH("sites",enrollment_x,0))/1000,1) * -1),"") -> 0 | M45: =IFERROR(IF(AND(public,INDEX(program_conf_list,MATCH(Results!M$42,program_list,0))),"", SUMPRODUCT(OFFSET(INDEX(data,MATCH(M$42&portfolio&category&subcategory&IF(OR(M$42="A4",M$42="A5"),3,5)&system&wyear&daytype&VLOOKUP($E45,months,2,FALSE)&MATCH(1,INDIRECT(Lists!$E39&IF(OR(M$42="A4",M$42="A5"),"_direct","")),0),data_key,0),$H$1),0,0,IF(OR(M$42="A4",M$42="A5"),3,5),1), OFFSET(INDEX(load_multipliers,MATCH(M$42&category&subcategory&year&VLOOKUP($E45,months,2,FALSE)&daytype&MATCH(1,INDIRECT(Lists!$E39&IF(OR(M$42="A4",M$42="A5"),"_direct","")),0),load_multipliers_key,0),MATCH("impact_multiplier",load_multipliers_x,0)),0,0,IF(OR(M$42="A4",M$42="A5"),3,5),1))/IF(OR(M$42="A4",M$42="A5"),3,5) * IF(result_type = "Aggregate", INDEX(enrollment, MATCH(M$42&category&subcategory&year&VLOOKUP($E45,months,2,FALSE),enrollment_key,0),MATCH("sites",enrollment_x,0))/1000,1) * -1),"") -> 0
E46: April | F46: =IFERROR(IF(AND(public,INDEX(program_conf_list,MATCH(Results!F$42,program_list,0))),"", SUMPRODUCT(OFFSET(INDEX(data,MATCH(F$42&portfolio&category&subcategory&IF(OR(F$42="A4",F$42="A5"),3,5)&system&wyear&daytype&VLOOKUP($E46,months,2,FALSE)&MATCH(1,INDIRECT(Lists!$E40&IF(OR(F$42="A4",F$42="A5"),"_direct","")),0),data_key,0),$H$1),0,0,IF(OR(F$42="A4",F$42="A5"),3,5),1), OFFSET(INDEX(load_multipliers,MATCH(F$42&category&subcategory&year&VLOOKUP($E46,months,2,FALSE)&daytype&MATCH(1,INDIRECT(Lists!$E40&IF(OR(F$42="A4",F$42="A5"),"_direct","")),0),load_multipliers_key,0),MATCH("impact_multiplier",load_multipliers_x,0)),0,0,IF(OR(F$42="A4",F$42="A5"),3,5),1))/IF(OR(F$42="A4",F$42="A5"),3,5) * IF(result_type = "Aggregate", INDEX(enrollment, MATCH(F$42&category&subcategory&year&VLOOKUP($E46,months,2,FALSE),enrollment_key,0),MATCH("sites",enrollment_x,0))/1000,1) * -1),"") -> 0 | G46: =IFERROR(IF(AND(public,INDEX(program_conf_list,MATCH(Results!G$42,program_list,0))),"", SUMPRODUCT(OFFSET(INDEX(data,MATCH(G$42&portfolio&category&subcategory&IF(OR(G$42="A4",G$42="A5"),3,5)&system&wyear&daytype&VLOOKUP($E46,months,2,FALSE)&MATCH(1,INDIRECT(Lists!$E40&IF(OR(G$42="A4",G$42="A5"),"_direct","")),0),data_key,0),$H$1),0,0,IF(OR(G$42="A4",G$42="A5"),3,5),1), OFFSET(INDEX(load_multipliers,MATCH(G$42&category&subcategory&year&VLOOKUP($E46,months,2,FALSE)&daytype&MATCH(1,INDIRECT(Lists!$E40&IF(OR(G$42="A4",G$42="A5"),"_direct","")),0),load_multipliers_key,0),MATCH("impact_multiplier",load_multipliers_x,0)),0,0,IF(OR(G$42="A4",G$42="A5"),3,5),1))/IF(OR(G$42="A4",G$42="A5"),3,5) * IF(result_type = "Aggregate", INDEX(enrollment, MATCH(G$42&category&subcategory&year&VLOOKUP($E46,months,2,FALSE),enrollment_key,0),MATCH("sites",enrollment_x,0))/1000,1) * -1),"") ->  | H46: =IFERROR(IF(AND(public,INDEX(program_conf_list,MATCH(Results!H$42,program_list,0))),"", SUMPRODUCT(OFFSET(INDEX(data,MATCH(H$42&portfolio&category&subcategory&IF(OR(H$42="A4",H$42="A5"),3,5)&system&wyear&daytype&VLOOKUP($E46,months,2,FALSE)&MATCH(1,INDIRECT(Lists!$E40&IF(OR(H$42="A4",H$42="A5"),"_direct","")),0),data_key,0),$H$1),0,0,IF(OR(H$42="A4",H$42="A5"),3,5),1), OFFSET(INDEX(load_multipliers,MATCH(H$42&category&subcategory&year&VLOOKUP($E46,months,2,FALSE)&daytype&MATCH(1,INDIRECT(Lists!$E40&IF(OR(H$42="A4",H$42="A5"),"_direct","")),0),load_multipliers_key,0),MATCH("impact_multiplier",load_multipliers_x,0)),0,0,IF(OR(H$42="A4",H$42="A5"),3,5),1))/IF(OR(H$42="A4",H$42="A5"),3,5) * IF(result_type = "Aggregate", INDEX(enrollment, MATCH(H$42&category&subcategory&year&VLOOKUP($E46,months,2,FALSE),enrollment_key,0),MATCH("sites",enrollment_x,0))/1000,1) * -1),"") -> 0 | I46: =IFERROR(IF(AND(public,INDEX(program_conf_list,MATCH(Results!I$42,program_list,0))),"", SUMPRODUCT(OFFSET(INDEX(data,MATCH(I$42&portfolio&category&subcategory&IF(OR(I$42="A4",I$42="A5"),3,5)&system&wyear&daytype&VLOOKUP($E46,months,2,FALSE)&MATCH(1,INDIRECT(Lists!$E40&IF(OR(I$42="A4",I$42="A5"),"_direct","")),0),data_key,0),$H$1),0,0,IF(OR(I$42="A4",I$42="A5"),3,5),1), OFFSET(INDEX(load_multipliers,MATCH(I$42&category&subcategory&year&VLOOKUP($E46,months,2,FALSE)&daytype&MATCH(1,INDIRECT(Lists!$E40&IF(OR(I$42="A4",I$42="A5"),"_direct","")),0),load_multipliers_key,0),MATCH("impact_multiplier",load_multipliers_x,0)),0,0,IF(OR(I$42="A4",I$42="A5"),3,5),1))/IF(OR(I$42="A4",I$42="A5"),3,5) * IF(result_type = "Aggregate", INDEX(enrollment, MATCH(I$42&category&subcategory&year&VLOOKUP($E46,months,2,FALSE),enrollment_key,0),MATCH("sites",enrollment_x,0))/1000,1) * -1),"") ->  | J46: =IFERROR(IF(AND(public,INDEX(program_conf_list,MATCH(Results!J$42,program_list,0))),"", SUMPRODUCT(OFFSET(INDEX(data,MATCH(J$42&portfolio&category&subcategory&IF(OR(J$42="A4",J$42="A5"),3,5)&system&wyear&daytype&VLOOKUP($E46,months,2,FALSE)&MATCH(1,INDIRECT(Lists!$E40&IF(OR(J$42="A4",J$42="A5"),"_direct","")),0),data_key,0),$H$1),0,0,IF(OR(J$42="A4",J$42="A5"),3,5),1), OFFSET(INDEX(load_multipliers,MATCH(J$42&category&subcategory&year&VLOOKUP($E46,months,2,FALSE)&daytype&MATCH(1,INDIRECT(Lists!$E40&IF(OR(J$42="A4",J$42="A5"),"_direct","")),0),load_multipliers_key,0),MATCH("impact_multiplier",load_multipliers_x,0)),0,0,IF(OR(J$42="A4",J$42="A5"),3,5),1))/IF(OR(J$42="A4",J$42="A5"),3,5) * IF(result_type = "Aggregate", INDEX(enrollment, MATCH(J$42&category&subcategory&year&VLOOKUP($E46,months,2,FALSE),enrollment_key,0),MATCH("sites",enrollment_x,0))/1000,1) * -1),"") -> 0 | K46: =IFERROR(IF(AND(public,INDEX(program_conf_list,MATCH(Results!K$42,program_list,0))),"", SUMPRODUCT(OFFSET(INDEX(data,MATCH(K$42&portfolio&category&subcategory&IF(OR(K$42="A4",K$42="A5"),3,5)&system&wyear&daytype&VLOOKUP($E46,months,2,FALSE)&MATCH(1,INDIRECT(Lists!$E40&IF(OR(K$42="A4",K$42="A5"),"_direct","")),0),data_key,0),$H$1),0,0,IF(OR(K$42="A4",K$42="A5"),3,5),1), OFFSET(INDEX(load_multipliers,MATCH(K$42&category&subcategory&year&VLOOKUP($E46,months,2,FALSE)&daytype&MATCH(1,INDIRECT(Lists!$E40&IF(OR(K$42="A4",K$42="A5"),"_direct","")),0),load_multipliers_key,0),MATCH("impact_multiplier",load_multipliers_x,0)),0,0,IF(OR(K$42="A4",K$42="A5"),3,5),1))/IF(OR(K$42="A4",K$42="A5"),3,5) * IF(result_type = "Aggregate", INDEX(enrollment, MATCH(K$42&category&subcategory&year&VLOOKUP($E46,months,2,FALSE),enrollment_key,0),MATCH("sites",enrollment_x,0))/1000,1) * -1),"") -> 0 | L46: =IFERROR(IF(AND(public,INDEX(program_conf_list,MATCH(Results!L$42,program_list,0))),"", SUMPRODUCT(OFFSET(INDEX(data,MATCH(L$42&portfolio&category&subcategory&IF(OR(L$42="A4",L$42="A5"),3,5)&system&wyear&daytype&VLOOKUP($E46,months,2,FALSE)&MATCH(1,INDIRECT(Lists!$E40&IF(OR(L$42="A4",L$42="A5"),"_direct","")),0),data_key,0),$H$1),0,0,IF(OR(L$42="A4",L$42="A5"),3,5),1), OFFSET(INDEX(load_multipliers,MATCH(L$42&category&subcategory&year&VLOOKUP($E46,months,2,FALSE)&daytype&MATCH(1,INDIRECT(Lists!$E40&IF(OR(L$42="A4",L$42="A5"),"_direct","")),0),load_multipliers_key,0),MATCH("impact_multiplier",load_multipliers_x,0)),0,0,IF(OR(L$42="A4",L$42="A5"),3,5),1))/IF(OR(L$42="A4",L$42="A5"),3,5) * IF(result_type = "Aggregate", INDEX(enrollment, MATCH(L$42&category&subcategory&year&VLOOKUP($E46,months,2,FALSE),enrollment_key,0),MATCH("sites",enrollment_x,0))/1000,1) * -1),"") -> 0 | M46: =IFERROR(IF(AND(public,INDEX(program_conf_list,MATCH(Results!M$42,program_list,0))),"", SUMPRODUCT(OFFSET(INDEX(data,MATCH(M$42&portfolio&category&subcategory&IF(OR(M$42="A4",M$42="A5"),3,5)&system&wyear&daytype&VLOOKUP($E46,months,2,FALSE)&MATCH(1,INDIRECT(Lists!$E40&IF(OR(M$42="A4",M$42="A5"),"_direct","")),0),data_key,0),$H$1),0,0,IF(OR(M$42="A4",M$42="A5"),3,5),1), OFFSET(INDEX(load_multipliers,MATCH(M$42&category&subcategory&year&VLOOKUP($E46,months,2,FALSE)&daytype&MATCH(1,INDIRECT(Lists!$E40&IF(OR(M$42="A4",M$42="A5"),"_direct","")),0),load_multipliers_key,0),MATCH("impact_multiplier",load_multipliers_x,0)),0,0,IF(OR(M$42="A4",M$42="A5"),3,5),1))/IF(OR(M$42="A4",M$42="A5"),3,5) * IF(result_type = "Aggregate", INDEX(enrollment, MATCH(M$42&category&subcategory&year&VLOOKUP($E46,months,2,FALSE),enrollment_key,0),MATCH("sites",enrollment_x,0))/1000,1) * -1),"") -> 0
E47: May | F47: =IFERROR(IF(AND(public,INDEX(program_conf_list,MATCH(Results!F$42,program_list,0))),"", SUMPRODUCT(OFFSET(INDEX(data,MATCH(F$42&portfolio&category&subcategory&IF(OR(F$42="A4",F$42="A5"),3,5)&system&wyear&daytype&VLOOKUP($E47,months,2,FALSE)&MATCH(1,INDIRECT(Lists!$E41&IF(OR(F$42="A4",F$42="A5"),"_direct","")),0),data_key,0),$H$1),0,0,IF(OR(F$42="A4",F$42="A5"),3,5),1), OFFSET(INDEX(load_multipliers,MATCH(F$42&category&subcategory&year&VLOOKUP($E47,months,2,FALSE)&daytype&MATCH(1,INDIRECT(Lists!$E41&IF(OR(F$42="A4",F$42="A5"),"_direct","")),0),load_multipliers_key,0),MATCH("impact_multiplier",load_multipliers_x,0)),0,0,IF(OR(F$42="A4",F$42="A5"),3,5),1))/IF(OR(F$42="A4",F$42="A5"),3,5) * IF(result_type = "Aggregate", INDEX(enrollment, MATCH(F$42&category&subcategory&year&VLOOKUP($E47,months,2,FALSE),enrollment_key,0),MATCH("sites",enrollment_x,0))/1000,1) * -1),"") -> 4.011623373 | G47: =IFERROR(IF(AND(public,INDEX(program_conf_list,MATCH(Results!G$42,program_list,0))),"", SUMPRODUCT(OFFSET(INDEX(data,MATCH(G$42&portfolio&category&subcategory&IF(OR(G$42="A4",G$42="A5"),3,5)&system&wyear&daytype&VLOOKUP($E47,months,2,FALSE)&MATCH(1,INDIRECT(Lists!$E41&IF(OR(G$42="A4",G$42="A5"),"_direct","")),0),data_key,0),$H$1),0,0,IF(OR(G$42="A4",G$42="A5"),3,5),1), OFFSET(INDEX(load_multipliers,MATCH(G$42&category&subcategory&year&VLOOKUP($E47,months,2,FALSE)&daytype&MATCH(1,INDIRECT(Lists!$E41&IF(OR(G$42="A4",G$42="A5"),"_direct","")),0),load_multipliers_key,0),MATCH("impact_multiplier",load_multipliers_x,0)),0,0,IF(OR(G$42="A4",G$42="A5"),3,5),1))/IF(OR(G$42="A4",G$42="A5"),3,5) * IF(result_type = "Aggregate", INDEX(enrollment, MATCH(G$42&category&subcategory&year&VLOOKUP($E47,months,2,FALSE),enrollment_key,0),MATCH("sites",enrollment_x,0))/1000,1) * -1),"") ->  | H47: =IFERROR(IF(AND(public,INDEX(program_conf_list,MATCH(Results!H$42,program_list,0))),"", SUMPRODUCT(OFFSET(INDEX(data,MATCH(H$42&portfolio&category&subcategory&IF(OR(H$42="A4",H$42="A5"),3,5)&system&wyear&daytype&VLOOKUP($E47,months,2,FALSE)&MATCH(1,INDIRECT(Lists!$E41&IF(OR(H$42="A4",H$42="A5"),"_direct","")),0),data_key,0),$H$1),0,0,IF(OR(H$42="A4",H$42="A5"),3,5),1), OFFSET(INDEX(load_multipliers,MATCH(H$42&category&subcategory&year&VLOOKUP($E47,months,2,FALSE)&daytype&MATCH(1,INDIRECT(Lists!$E41&IF(OR(H$42="A4",H$42="A5"),"_direct","")),0),load_multipliers_key,0),MATCH("impact_multiplier",load_multipliers_x,0)),0,0,IF(OR(H$42="A4",H$42="A5"),3,5),1))/IF(OR(H$42="A4",H$42="A5"),3,5) * IF(result_type = "Aggregate", INDEX(enrollment, MATCH(H$42&category&subcategory&year&VLOOKUP($E47,months,2,FALSE),enrollment_key,0),MATCH("sites",enrollment_x,0))/1000,1) * -1),"") -> 0 | I47: =IFERROR(IF(AND(public,INDEX(program_conf_list,MATCH(Results!I$42,program_list,0))),"", SUMPRODUCT(OFFSET(INDEX(data,MATCH(I$42&portfolio&category&subcategory&IF(OR(I$42="A4",I$42="A5"),3,5)&system&wyear&daytype&VLOOKUP($E47,months,2,FALSE)&MATCH(1,INDIRECT(Lists!$E41&IF(OR(I$42="A4",I$42="A5"),"_direct","")),0),data_key,0),$H$1),0,0,IF(OR(I$42="A4",I$42="A5"),3,5),1), OFFSET(INDEX(load_multipliers,MATCH(I$42&category&subcategory&year&VLOOKUP($E47,months,2,FALSE)&daytype&MATCH(1,INDIRECT(Lists!$E41&IF(OR(I$42="A4",I$42="A5"),"_direct","")),0),load_multipliers_key,0),MATCH("impact_multiplier",load_multipliers_x,0)),0,0,IF(OR(I$42="A4",I$42="A5"),3,5),1))/IF(OR(I$42="A4",I$42="A5"),3,5) * IF(result_type = "Aggregate", INDEX(enrollment, MATCH(I$42&category&subcategory&year&VLOOKUP($E47,months,2,FALSE),enrollment_key,0),MATCH("sites",enrollment_x,0))/1000,1) * -1),"") ->  | J47: =IFERROR(IF(AND(public,INDEX(program_conf_list,MATCH(Results!J$42,program_list,0))),"", SUMPRODUCT(OFFSET(INDEX(data,MATCH(J$42&portfolio&category&subcategory&IF(OR(J$42="A4",J$42="A5"),3,5)&system&wyear&daytype&VLOOKUP($E47,months,2,FALSE)&MATCH(1,INDIRECT(Lists!$E41&IF(OR(J$42="A4",J$42="A5"),"_direct","")),0),data_key,0),$H$1),0,0,IF(OR(J$42="A4",J$42="A5"),3,5),1), OFFSET(INDEX(load_multipliers,MATCH(J$42&category&subcategory&year&VLOOKUP($E47,months,2,FALSE)&daytype&MATCH(1,INDIRECT(Lists!$E41&IF(OR(J$42="A4",J$42="A5"),"_direct","")),0),load_multipliers_key,0),MATCH("impact_multiplier",load_multipliers_x,0)),0,0,IF(OR(J$42="A4",J$42="A5"),3,5),1))/IF(OR(J$42="A4",J$42="A5"),3,5) * IF(result_type = "Aggregate", INDEX(enrollment, MATCH(J$42&category&subcategory&year&VLOOKUP($E47,months,2,FALSE),enrollment_key,0),MATCH("sites",enrollment_x,0))/1000,1) * -1),"") -> 20.41653083 | K47: =IFERROR(IF(AND(public,INDEX(program_conf_list,MATCH(Results!K$42,program_list,0))),"", SUMPRODUCT(OFFSET(INDEX(data,MATCH(K$42&portfolio&category&subcategory&IF(OR(K$42="A4",K$42="A5"),3,5)&system&wyear&daytype&VLOOKUP($E47,months,2,FALSE)&MATCH(1,INDIRECT(Lists!$E41&IF(OR(K$42="A4",K$42="A5"),"_direct","")),0),data_key,0),$H$1),0,0,IF(OR(K$42="A4",K$42="A5"),3,5),1), OFFSET(INDEX(load_multipliers,MATCH(K$42&category&subcategory&year&VLOOKUP($E47,months,2,FALSE)&daytype&MATCH(1,INDIRECT(Lists!$E41&IF(OR(K$42="A4",K$42="A5"),"_direct","")),0),load_multipliers_key,0),MATCH("impact_multiplier",load_multipliers_x,0)),0,0,IF(OR(K$42="A4",K$42="A5"),3,5),1))/IF(OR(K$42="A4",K$42="A5"),3,5) * IF(result_type = "Aggregate", INDEX(enrollment, MATCH(K$42&category&subcategory&year&VLOOKUP($E47,months,2,FALSE),enrollment_key,0),MATCH("sites",enrollment_x,0))/1000,1) * -1),"") -> 0.005678030784 | L47: =IFERROR(IF(AND(public,INDEX(program_conf_list,MATCH(Results!L$42,program_list,0))),"", SUMPRODUCT(OFFSET(INDEX(data,MATCH(L$42&portfolio&category&subcategory&IF(OR(L$42="A4",L$42="A5"),3,5)&system&wyear&daytype&VLOOKUP($E47,months,2,FALSE)&MATCH(1,INDIRECT(Lists!$E41&IF(OR(L$42="A4",L$42="A5"),"_direct","")),0),data_key,0),$H$1),0,0,IF(OR(L$42="A4",L$42="A5"),3,5),1), OFFSET(INDEX(load_multipliers,MATCH(L$42&category&subcategory&year&VLOOKUP($E47,months,2,FALSE)&daytype&MATCH(1,INDIRECT(Lists!$E41&IF(OR(L$42="A4",L$42="A5"),"_direct","")),0),load_multipliers_key,0),MATCH("impact_multiplier",load_multipliers_x,0)),0,0,IF(OR(L$42="A4",L$42="A5"),3,5),1))/IF(OR(L$42="A4",L$42="A5"),3,5) * IF(result_type = "Aggregate", INDEX(enrollment, MATCH(L$42&category&subcategory&year&VLOOKUP($E47,months,2,FALSE),enrollment_key,0),MATCH("sites",enrollment_x,0))/1000,1) * -1),"") -> 0 | M47: =IFERROR(IF(AND(public,INDEX(program_conf_list,MATCH(Results!M$42,program_list,0))),"", SUMPRODUCT(OFFSET(INDEX(data,MATCH(M$42&portfolio&category&subcategory&IF(OR(M$42="A4",M$42="A5"),3,5)&system&wyear&daytype&VLOOKUP($E47,months,2,FALSE)&MATCH(1,INDIRECT(Lists!$E41&IF(OR(M$42="A4",M$42="A5"),"_direct","")),0),data_key,0),$H$1),0,0,IF(OR(M$42="A4",M$42="A5"),3,5),1), OFFSET(INDEX(load_multipliers,MATCH(M$42&category&subcategory&year&VLOOKUP($E47,months,2,FALSE)&daytype&MATCH(1,INDIRECT(Lists!$E41&IF(OR(M$42="A4",M$42="A5"),"_direct","")),0),load_multipliers_key,0),MATCH("impact_multiplier",load_multipliers_x,0)),0,0,IF(OR(M$42="A4",M$42="A5"),3,5),1))/IF(OR(M$42="A4",M$42="A5"),3,5) * IF(result_type = "Aggregate", INDEX(enrollment, MATCH(M$42&category&subcategory&year&VLOOKUP($E47,months,2,FALSE),enrollment_key,0),MATCH("sites",enrollment_x,0))/1000,1) * -1),"") -> 16.31710491
E48: June | F48: =IFERROR(IF(AND(public,INDEX(program_conf_list,MATCH(Results!F$42,program_list,0))),"", SUMPRODUCT(OFFSET(INDEX(data,MATCH(F$42&portfolio&category&subcategory&IF(OR(F$42="A4",F$42="A5"),3,5)&system&wyear&daytype&VLOOKUP($E48,months,2,FALSE)&MATCH(1,INDIRECT(Lists!$E42&IF(OR(F$42="A4",F$42="A5"),"_direct","")),0),data_key,0),$H$1),0,0,IF(OR(F$42="A4",F$42="A5"),3,5),1), OFFSET(INDEX(load_multipliers,MATCH(F$42&category&subcategory&year&VLOOKUP($E48,months,2,FALSE)&daytype&MATCH(1,INDIRECT(Lists!$E42&IF(OR(F$42="A4",F$42="A5"),"_direct","")),0),load_multipliers_key,0),MATCH("impact_multiplier",load_multipliers_x,0)),0,0,IF(OR(F$42="A4",F$42="A5"),3,5),1))/IF(OR(F$42="A4",F$42="A5"),3,5) * IF(result_type = "Aggregate", INDEX(enrollment, MATCH(F$42&category&subcategory&year&VLOOKUP($E48,months,2,FALSE),enrollment_key,0),MATCH("sites",enrollment_x,0))/1000,1) * -1),"") -> 4.431499178 | G48: =IFERROR(IF(AND(public,INDEX(program_conf_list,MATCH(Results!G$42,program_list,0))),"", SUMPRODUCT(OFFSET(INDEX(data,MATCH(G$42&portfolio&category&subcategory&IF(OR(G$42="A4",G$42="A5"),3,5)&system&wyear&daytype&VLOOKUP($E48,months,2,FALSE)&MATCH(1,INDIRECT(Lists!$E42&IF(OR(G$42="A4",G$42="A5"),"_direct","")),0),data_key,0),$H$1),0,0,IF(OR(G$42="A4",G$42="A5"),3,5),1), OFFSET(INDEX(load_multipliers,MATCH(G$42&category&subcategory&year&VLOOKUP($E48,months,2,FALSE)&daytype&MATCH(1,INDIRECT(Lists!$E42&IF(OR(G$42="A4",G$42="A5"),"_direct","")),0),load_multipliers_key,0),MATCH("impact_multiplier",load_multipliers_x,0)),0,0,IF(OR(G$42="A4",G$42="A5"),3,5),1))/IF(OR(G$42="A4",G$42="A5"),3,5) * IF(result_type = "Aggregate", INDEX(enrollment, MATCH(G$42&category&subcategory&year&VLOOKUP($E48,months,2,FALSE),enrollment_key,0),MATCH("sites",enrollment_x,0))/1000,1) * -1),"") ->  | H48: =IFERROR(IF(AND(public,INDEX(program_conf_list,MATCH(Results!H$42,program_list,0))),"", SUMPRODUCT(OFFSET(INDEX(data,MATCH(H$42&portfolio&category&subcategory&IF(OR(H$42="A4",H$42="A5"),3,5)&system&wyear&daytype&VLOOKUP($E48,months,2,FALSE)&MATCH(1,INDIRECT(Lists!$E42&IF(OR(H$42="A4",H$42="A5"),"_direct","")),0),data_key,0),$H$1),0,0,IF(OR(H$42="A4",H$42="A5"),3,5),1), OFFSET(INDEX(load_multipliers,MATCH(H$42&category&subcategory&year&VLOOKUP($E48,months,2,FALSE)&daytype&MATCH(1,INDIRECT(Lists!$E42&IF(OR(H$42="A4",H$42="A5"),"_direct","")),0),load_multipliers_key,0),MATCH("impact_multiplier",load_multipliers_x,0)),0,0,IF(OR(H$42="A4",H$42="A5"),3,5),1))/IF(OR(H$42="A4",H$42="A5"),3,5) * IF(result_type = "Aggregate", INDEX(enrollment, MATCH(H$42&category&subcategory&year&VLOOKUP($E48,months,2,FALSE),enrollment_key,0),MATCH("sites",enrollment_x,0))/1000,1) * -1),"") -> 0 | I48: =IFERROR(IF(AND(public,INDEX(program_conf_list,MATCH(Results!I$42,program_list,0))),"", SUMPRODUCT(OFFSET(INDEX(data,MATCH(I$42&portfolio&category&subcategory&IF(OR(I$42="A4",I$42="A5"),3,5)&system&wyear&daytype&VLOOKUP($E48,months,2,FALSE)&MATCH(1,INDIRECT(Lists!$E42&IF(OR(I$42="A4",I$42="A5"),"_direct","")),0),data_key,0),$H$1),0,0,IF(OR(I$42="A4",I$42="A5"),3,5),1), OFFSET(INDEX(load_multipliers,MATCH(I$42&category&subcategory&year&VLOOKUP($E48,months,2,FALSE)&daytype&MATCH(1,INDIRECT(Lists!$E42&IF(OR(I$42="A4",I$42="A5"),"_direct","")),0),load_multipliers_key,0),MATCH("impact_multiplier",load_multipliers_x,0)),0,0,IF(OR(I$42="A4",I$42="A5"),3,5),1))/IF(OR(I$42="A4",I$42="A5"),3,5) * IF(result_type = "Aggregate", INDEX(enrollment, MATCH(I$42&category&subcategory&year&VLOOKUP($E48,months,2,FALSE),enrollment_key,0),MATCH("sites",enrollment_x,0))/1000,1) * -1),"") ->  | J48: =IFERROR(IF(AND(public,INDEX(program_conf_list,MATCH(Results!J$42,program_list,0))),"", SUMPRODUCT(OFFSET(INDEX(data,MATCH(J$42&portfolio&category&subcategory&IF(OR(J$42="A4",J$42="A5"),3,5)&system&wyear&daytype&VLOOKUP($E48,months,2,FALSE)&MATCH(1,INDIRECT(Lists!$E42&IF(OR(J$42="A4",J$42="A5"),"_direct","")),0),data_key,0),$H$1),0,0,IF(OR(J$42="A4",J$42="A5"),3,5),1), OFFSET(INDEX(load_multipliers,MATCH(J$42&category&subcategory&year&VLOOKUP($E48,months,2,FALSE)&daytype&MATCH(1,INDIRECT(Lists!$E42&IF(OR(J$42="A4",J$42="A5"),"_direct","")),0),load_multipliers_key,0),MATCH("impact_multiplier",load_multipliers_x,0)),0,0,IF(OR(J$42="A4",J$42="A5"),3,5),1))/IF(OR(J$42="A4",J$42="A5"),3,5) * IF(result_type = "Aggregate", INDEX(enrollment, MATCH(J$42&category&subcategory&year&VLOOKUP($E48,months,2,FALSE),enrollment_key,0),MATCH("sites",enrollment_x,0))/1000,1) * -1),"") -> 20.50411515 | K48: =IFERROR(IF(AND(public,INDEX(program_conf_list,MATCH(Results!K$42,program_list,0))),"", SUMPRODUCT(OFFSET(INDEX(data,MATCH(K$42&portfolio&category&subcategory&IF(OR(K$42="A4",K$42="A5"),3,5)&system&wyear&daytype&VLOOKUP($E48,months,2,FALSE)&MATCH(1,INDIRECT(Lists!$E42&IF(OR(K$42="A4",K$42="A5"),"_direct","")),0),data_key,0),$H$1),0,0,IF(OR(K$42="A4",K$42="A5"),3,5),1), OFFSET(INDEX(load_multipliers,MATCH(K$42&category&subcategory&year&VLOOKUP($E48,months,2,FALSE)&daytype&MATCH(1,INDIRECT(Lists!$E42&IF(OR(K$42="A4",K$42="A5"),"_direct","")),0),load_multipliers_key,0),MATCH("impact_multiplier",load_multipliers_x,0)),0,0,IF(OR(K$42="A4",K$42="A5"),3,5),1))/IF(OR(K$42="A4",K$42="A5"),3,5) * IF(result_type = "Aggregate", INDEX(enrollment, MATCH(K$42&category&subcategory&year&VLOOKUP($E48,months,2,FALSE),enrollment_key,0),MATCH("sites",enrollment_x,0))/1000,1) * -1),"") -> 0.6761003404 | L48: =IFERROR(IF(AND(public,INDEX(program_conf_list,MATCH(Results!L$42,program_list,0))),"", SUMPRODUCT(OFFSET(INDEX(data,MATCH(L$42&portfolio&category&subcategory&IF(OR(L$42="A4",L$42="A5"),3,5)&system&wyear&daytype&VLOOKUP($E48,months,2,FALSE)&MATCH(1,INDIRECT(Lists!$E42&IF(OR(L$42="A4",L$42="A5"),"_direct","")),0),data_key,0),$H$1),0,0,IF(OR(L$42="A4",L$42="A5"),3,5),1), OFFSET(INDEX(load_multipliers,MATCH(L$42&category&subcategory&year&VLOOKUP($E48,months,2,FALSE)&daytype&MATCH(1,INDIRECT(Lists!$E42&IF(OR(L$42="A4",L$42="A5"),"_direct","")),0),load_multipliers_key,0),MATCH("impact_multiplier",load_multipliers_x,0)),0,0,IF(OR(L$42="A4",L$42="A5"),3,5),1))/IF(OR(L$42="A4",L$42="A5"),3,5) * IF(result_type = "Aggregate", INDEX(enrollment, MATCH(L$42&category&subcategory&year&VLOOKUP($E48,months,2,FALSE),enrollment_key,0),MATCH("sites",enrollment_x,0))/1000,1) * -1),"") -> 1.973413968 | M48: =IFERROR(IF(AND(public,INDEX(program_conf_list,MATCH(Results!M$42,program_list,0))),"", SUMPRODUCT(OFFSET(INDEX(data,MATCH(M$42&portfolio&category&subcategory&IF(OR(M$42="A4",M$42="A5"),3,5)&system&wyear&daytype&VLOOKUP($E48,months,2,FALSE)&MATCH(1,INDIRECT(Lists!$E42&IF(OR(M$42="A4",M$42="A5"),"_direct","")),0),data_key,0),$H$1),0,0,IF(OR(M$42="A4",M$42="A5"),3,5),1), OFFSET(INDEX(load_multipliers,MATCH(M$42&category&subcategory&year&VLOOKUP($E48,months,2,FALSE)&daytype&MATCH(1,INDIRECT(Lists!$E42&IF(OR(M$42="A4",M$42="A5"),"_direct","")),0),load_multipliers_key,0),MATCH("impact_multiplier",load_multipliers_x,0)),0,0,IF(OR(M$42="A4",M$42="A5"),3,5),1))/IF(OR(M$42="A4",M$42="A5"),3,5) * IF(result_type = "Aggregate", INDEX(enrollment, MATCH(M$42&category&subcategory&year&VLOOKUP($E48,months,2,FALSE),enrollment_key,0),MATCH("sites",enrollment_x,0))/1000,1) * -1),"") -> 19.14443801
E49: July | F49: =IFERROR(IF(AND(public,INDEX(program_conf_list,MATCH(Results!F$42,program_list,0))),"", SUMPRODUCT(OFFSET(INDEX(data,MATCH(F$42&portfolio&category&subcategory&IF(OR(F$42="A4",F$42="A5"),3,5)&system&wyear&daytype&VLOOKUP($E49,months,2,FALSE)&MATCH(1,INDIRECT(Lists!$E43&IF(OR(F$42="A4",F$42="A5"),"_direct","")),0),data_key,0),$H$1),0,0,IF(OR(F$42="A4",F$42="A5"),3,5),1), OFFSET(INDEX(load_multipliers,MATCH(F$42&category&subcategory&year&VLOOKUP($E49,months,2,FALSE)&daytype&MATCH(1,INDIRECT(Lists!$E43&IF(OR(F$42="A4",F$42="A5"),"_direct","")),0),load_multipliers_key,0),MATCH("impact_multiplier",load_multipliers_x,0)),0,0,IF(OR(F$42="A4",F$42="A5"),3,5),1))/IF(OR(F$42="A4",F$42="A5"),3,5) * IF(result_type = "Aggregate", INDEX(enrollment, MATCH(F$42&category&subcategory&year&VLOOKUP($E49,months,2,FALSE),enrollment_key,0),MATCH("sites",enrollment_x,0))/1000,1) * -1),"") -> 4.513862883 | G49: =IFERROR(IF(AND(public,INDEX(program_conf_list,MATCH(Results!G$42,program_list,0))),"", SUMPRODUCT(OFFSET(INDEX(data,MATCH(G$42&portfolio&category&subcategory&IF(OR(G$42="A4",G$42="A5"),3,5)&system&wyear&daytype&VLOOKUP($E49,months,2,FALSE)&MATCH(1,INDIRECT(Lists!$E43&IF(OR(G$42="A4",G$42="A5"),"_direct","")),0),data_key,0),$H$1),0,0,IF(OR(G$42="A4",G$42="A5"),3,5),1), OFFSET(INDEX(load_multipliers,MATCH(G$42&category&subcategory&year&VLOOKUP($E49,months,2,FALSE)&daytype&MATCH(1,INDIRECT(Lists!$E43&IF(OR(G$42="A4",G$42="A5"),"_direct","")),0),load_multipliers_key,0),MATCH("impact_multiplier",load_multipliers_x,0)),0,0,IF(OR(G$42="A4",G$42="A5"),3,5),1))/IF(OR(G$42="A4",G$42="A5"),3,5) * IF(result_type = "Aggregate", INDEX(enrollment, MATCH(G$42&category&subcategory&year&VLOOKUP($E49,months,2,FALSE),enrollment_key,0),MATCH("sites",enrollment_x,0))/1000,1) * -1),"") ->  | H49: =IFERROR(IF(AND(public,INDEX(program_conf_list,MATCH(Results!H$42,program_list,0))),"", SUMPRODUCT(OFFSET(INDEX(data,MATCH(H$42&portfolio&category&subcategory&IF(OR(H$42="A4",H$42="A5"),3,5)&system&wyear&daytype&VLOOKUP($E49,months,2,FALSE)&MATCH(1,INDIRECT(Lists!$E43&IF(OR(H$42="A4",H$42="A5"),"_direct","")),0),data_key,0),$H$1),0,0,IF(OR(H$42="A4",H$42="A5"),3,5),1), OFFSET(INDEX(load_multipliers,MATCH(H$42&category&subcategory&year&VLOOKUP($E49,months,2,FALSE)&daytype&MATCH(1,INDIRECT(Lists!$E43&IF(OR(H$42="A4",H$42="A5"),"_direct","")),0),load_multipliers_key,0),MATCH("impact_multiplier",load_multipliers_x,0)),0,0,IF(OR(H$42="A4",H$42="A5"),3,5),1))/IF(OR(H$42="A4",H$42="A5"),3,5) * IF(result_type = "Aggregate", INDEX(enrollment, MATCH(H$42&category&subcategory&year&VLOOKUP($E49,months,2,FALSE),enrollment_key,0),MATCH("sites",enrollment_x,0))/1000,1) * -1),"") -> 0 | I49: =IFERROR(IF(AND(public,INDEX(program_conf_list,MATCH(Results!I$42,program_list,0))),"", SUMPRODUCT(OFFSET(INDEX(data,MATCH(I$42&portfolio&category&subcategory&IF(OR(I$42="A4",I$42="A5"),3,5)&system&wyear&daytype&VLOOKUP($E49,months,2,FALSE)&MATCH(1,INDIRECT(Lists!$E43&IF(OR(I$42="A4",I$42="A5"),"_direct","")),0),data_key,0),$H$1),0,0,IF(OR(I$42="A4",I$42="A5"),3,5),1), OFFSET(INDEX(load_multipliers,MATCH(I$42&category&subcategory&year&VLOOKUP($E49,months,2,FALSE)&daytype&MATCH(1,INDIRECT(Lists!$E43&IF(OR(I$42="A4",I$42="A5"),"_direct","")),0),load_multipliers_key,0),MATCH("impact_multiplier",load_multipliers_x,0)),0,0,IF(OR(I$42="A4",I$42="A5"),3,5),1))/IF(OR(I$42="A4",I$42="A5"),3,5) * IF(result_type = "Aggregate", INDEX(enrollment, MATCH(I$42&category&subcategory&year&VLOOKUP($E49,months,2,FALSE),enrollment_key,0),MATCH("sites",enrollment_x,0))/1000,1) * -1),"") ->  | J49: =IFERROR(IF(AND(public,INDEX(program_conf_list,MATCH(Results!J$42,program_list,0))),"", SUMPRODUCT(OFFSET(INDEX(data,MATCH(J$42&portfolio&category&subcategory&IF(OR(J$42="A4",J$42="A5"),3,5)&system&wyear&daytype&VLOOKUP($E49,months,2,FALSE)&MATCH(1,INDIRECT(Lists!$E43&IF(OR(J$42="A4",J$42="A5"),"_direct","")),0),data_key,0),$H$1),0,0,IF(OR(J$42="A4",J$42="A5"),3,5),1), OFFSET(INDEX(load_multipliers,MATCH(J$42&category&subcategory&year&VLOOKUP($E49,months,2,FALSE)&daytype&MATCH(1,INDIRECT(Lists!$E43&IF(OR(J$42="A4",J$42="A5"),"_direct","")),0),load_multipliers_key,0),MATCH("impact_multiplier",load_multipliers_x,0)),0,0,IF(OR(J$42="A4",J$42="A5"),3,5),1))/IF(OR(J$42="A4",J$42="A5"),3,5) * IF(result_type = "Aggregate", INDEX(enrollment, MATCH(J$42&category&subcategory&year&VLOOKUP($E49,months,2,FALSE),enrollment_key,0),MATCH("sites",enrollment_x,0))/1000,1) * -1),"") -> 20.87322051 | K49: =IFERROR(IF(AND(public,INDEX(program_conf_list,MATCH(Results!K$42,program_list,0))),"", SUMPRODUCT(OFFSET(INDEX(data,MATCH(K$42&portfolio&category&subcategory&IF(OR(K$42="A4",K$42="A5"),3,5)&system&wyear&daytype&VLOOKUP($E49,months,2,FALSE)&MATCH(1,INDIRECT(Lists!$E43&IF(OR(K$42="A4",K$42="A5"),"_direct","")),0),data_key,0),$H$1),0,0,IF(OR(K$42="A4",K$42="A5"),3,5),1), OFFSET(INDEX(load_multipliers,MATCH(K$42&category&subcategory&year&VLOOKUP($E49,months,2,FALSE)&daytype&MATCH(1,INDIRECT(Lists!$E43&IF(OR(K$42="A4",K$42="A5"),"_direct","")),0),load_multipliers_key,0),MATCH("impact_multiplier",load_multipliers_x,0)),0,0,IF(OR(K$42="A4",K$42="A5"),3,5),1))/IF(OR(K$42="A4",K$42="A5"),3,5) * IF(result_type = "Aggregate", INDEX(enrollment, MATCH(K$42&category&subcategory&year&VLOOKUP($E49,months,2,FALSE),enrollment_key,0),MATCH("sites",enrollment_x,0))/1000,1) * -1),"") -> 0.6811285763 | L49: =IFERROR(IF(AND(public,INDEX(program_conf_list,MATCH(Results!L$42,program_list,0))),"", SUMPRODUCT(OFFSET(INDEX(data,MATCH(L$42&portfolio&category&subcategory&IF(OR(L$42="A4",L$42="A5"),3,5)&system&wyear&daytype&VLOOKUP($E49,months,2,FALSE)&MATCH(1,INDIRECT(Lists!$E43&IF(OR(L$42="A4",L$42="A5"),"_direct","")),0),data_key,0),$H$1),0,0,IF(OR(L$42="A4",L$42="A5"),3,5),1), OFFSET(INDEX(load_multipliers,MATCH(L$42&category&subcategory&year&VLOOKUP($E49,months,2,FALSE)&daytype&MATCH(1,INDIRECT(Lists!$E43&IF(OR(L$42="A4",L$42="A5"),"_direct","")),0),load_multipliers_key,0),MATCH("impact_multiplier",load_multipliers_x,0)),0,0,IF(OR(L$42="A4",L$42="A5"),3,5),1))/IF(OR(L$42="A4",L$42="A5"),3,5) * IF(result_type = "Aggregate", INDEX(enrollment, MATCH(L$42&category&subcategory&year&VLOOKUP($E49,months,2,FALSE),enrollment_key,0),MATCH("sites",enrollment_x,0))/1000,1) * -1),"") -> 2.127198363 | M49: =IFERROR(IF(AND(public,INDEX(program_conf_list,MATCH(Results!M$42,program_list,0))),"", SUMPRODUCT(OFFSET(INDEX(data,MATCH(M$42&portfolio&category&subcategory&IF(OR(M$42="A4",M$42="A5"),3,5)&system&wyear&daytype&VLOOKUP($E49,months,2,FALSE)&MATCH(1,INDIRECT(Lists!$E43&IF(OR(M$42="A4",M$42="A5"),"_direct","")),0),data_key,0),$H$1),0,0,IF(OR(M$42="A4",M$42="A5"),3,5),1), OFFSET(INDEX(load_multipliers,MATCH(M$42&category&subcategory&year&VLOOKUP($E49,months,2,FALSE)&daytype&MATCH(1,INDIRECT(Lists!$E43&IF(OR(M$42="A4",M$42="A5"),"_direct","")),0),load_multipliers_key,0),MATCH("impact_multiplier",load_multipliers_x,0)),0,0,IF(OR(M$42="A4",M$42="A5"),3,5),1))/IF(OR(M$42="A4",M$42="A5"),3,5) * IF(result_type = "Aggregate", INDEX(enrollment, MATCH(M$42&category&subcategory&year&VLOOKUP($E49,months,2,FALSE),enrollment_key,0),MATCH("sites",enrollment_x,0))/1000,1) * -1),"") -> 19.606011
E50: August | F50: =IFERROR(IF(AND(public,INDEX(program_conf_list,MATCH(Results!F$42,program_list,0))),"", SUMPRODUCT(OFFSET(INDEX(data,MATCH(F$42&portfolio&category&subcategory&IF(OR(F$42="A4",F$42="A5"),3,5)&system&wyear&daytype&VLOOKUP($E50,months,2,FALSE)&MATCH(1,INDIRECT(Lists!$E44&IF(OR(F$42="A4",F$42="A5"),"_direct","")),0),data_key,0),$H$1),0,0,IF(OR(F$42="A4",F$42="A5"),3,5),1), OFFSET(INDEX(load_multipliers,MATCH(F$42&category&subcategory&year&VLOOKUP($E50,months,2,FALSE)&daytype&MATCH(1,INDIRECT(Lists!$E44&IF(OR(F$42="A4",F$42="A5"),"_direct","")),0),load_multipliers_key,0),MATCH("impact_multiplier",load_multipliers_x,0)),0,0,IF(OR(F$42="A4",F$42="A5"),3,5),1))/IF(OR(F$42="A4",F$42="A5"),3,5) * IF(result_type = "Aggregate", INDEX(enrollment, MATCH(F$42&category&subcategory&year&VLOOKUP($E50,months,2,FALSE),enrollment_key,0),MATCH("sites",enrollment_x,0))/1000,1) * -1),"") -> 4.555191747 | G50: =IFERROR(IF(AND(public,INDEX(program_conf_list,MATCH(Results!G$42,program_list,0))),"", SUMPRODUCT(OFFSET(INDEX(data,MATCH(G$42&portfolio&category&subcategory&IF(OR(G$42="A4",G$42="A5"),3,5)&system&wyear&daytype&VLOOKUP($E50,months,2,FALSE)&MATCH(1,INDIRECT(Lists!$E44&IF(OR(G$42="A4",G$42="A5"),"_direct","")),0),data_key,0),$H$1),0,0,IF(OR(G$42="A4",G$42="A5"),3,5),1), OFFSET(INDEX(load_multipliers,MATCH(G$42&category&subcategory&year&VLOOKUP($E50,months,2,FALSE)&daytype&MATCH(1,INDIRECT(Lists!$E44&IF(OR(G$42="A4",G$42="A5"),"_direct","")),0),load_multipliers_key,0),MATCH("impact_multiplier",load_multipliers_x,0)),0,0,IF(OR(G$42="A4",G$42="A5"),3,5),1))/IF(OR(G$42="A4",G$42="A5"),3,5) * IF(result_type = "Aggregate", INDEX(enrollment, MATCH(G$42&category&subcategory&year&VLOOKUP($E50,months,2,FALSE),enrollment_key,0),MATCH("sites",enrollment_x,0))/1000,1) * -1),"") ->  | H50: =IFERROR(IF(AND(public,INDEX(program_conf_list,MATCH(Results!H$42,program_list,0))),"", SUMPRODUCT(OFFSET(INDEX(data,MATCH(H$42&portfolio&category&subcategory&IF(OR(H$42="A4",H$42="A5"),3,5)&system&wyear&daytype&VLOOKUP($E50,months,2,FALSE)&MATCH(1,INDIRECT(Lists!$E44&IF(OR(H$42="A4",H$42="A5"),"_direct","")),0),data_key,0),$H$1),0,0,IF(OR(H$42="A4",H$42="A5"),3,5),1), OFFSET(INDEX(load_multipliers,MATCH(H$42&category&subcategory&year&VLOOKUP($E50,months,2,FALSE)&daytype&MATCH(1,INDIRECT(Lists!$E44&IF(OR(H$42="A4",H$42="A5"),"_direct","")),0),load_multipliers_key,0),MATCH("impact_multiplier",load_multipliers_x,0)),0,0,IF(OR(H$42="A4",H$42="A5"),3,5),1))/IF(OR(H$42="A4",H$42="A5"),3,5) * IF(result_type = "Aggregate", INDEX(enrollment, MATCH(H$42&category&subcategory&year&VLOOKUP($E50,months,2,FALSE),enrollment_key,0),MATCH("sites",enrollment_x,0))/1000,1) * -1),"") -> 0 | I50: =IFERROR(IF(AND(public,INDEX(program_conf_list,MATCH(Results!I$42,program_list,0))),"", SUMPRODUCT(OFFSET(INDEX(data,MATCH(I$42&portfolio&category&subcategory&IF(OR(I$42="A4",I$42="A5"),3,5)&system&wyear&daytype&VLOOKUP($E50,months,2,FALSE)&MATCH(1,INDIRECT(Lists!$E44&IF(OR(I$42="A4",I$42="A5"),"_direct","")),0),data_key,0),$H$1),0,0,IF(OR(I$42="A4",I$42="A5"),3,5),1), OFFSET(INDEX(load_multipliers,MATCH(I$42&category&subcategory&year&VLOOKUP($E50,months,2,FALSE)&daytype&MATCH(1,INDIRECT(Lists!$E44&IF(OR(I$42="A4",I$42="A5"),"_direct","")),0),load_multipliers_key,0),MATCH("impact_multiplier",load_multipliers_x,0)),0,0,IF(OR(I$42="A4",I$42="A5"),3,5),1))/IF(OR(I$42="A4",I$42="A5"),3,5) * IF(result_type = "Aggregate", INDEX(enrollment, MATCH(I$42&category&subcategory&year&VLOOKUP($E50,months,2,FALSE),enrollment_key,0),MATCH("sites",enrollment_x,0))/1000,1) * -1),"") ->  | J50: =IFERROR(IF(AND(public,INDEX(program_conf_list,MATCH(Results!J$42,program_list,0))),"", SUMPRODUCT(OFFSET(INDEX(data,MATCH(J$42&portfolio&category&subcategory&IF(OR(J$42="A4",J$42="A5"),3,5)&system&wyear&daytype&VLOOKUP($E50,months,2,FALSE)&MATCH(1,INDIRECT(Lists!$E44&IF(OR(J$42="A4",J$42="A5"),"_direct","")),0),data_key,0),$H$1),0,0,IF(OR(J$42="A4",J$42="A5"),3,5),1), OFFSET(INDEX(load_multipliers,MATCH(J$42&category&subcategory&year&VLOOKUP($E50,months,2,FALSE)&daytype&MATCH(1,INDIRECT(Lists!$E44&IF(OR(J$42="A4",J$42="A5"),"_direct","")),0),load_multipliers_key,0),MATCH("impact_multiplier",load_multipliers_x,0)),0,0,IF(OR(J$42="A4",J$42="A5"),3,5),1))/IF(OR(J$42="A4",J$42="A5"),3,5) * IF(result_type = "Aggregate", INDEX(enrollment, MATCH(J$42&category&subcategory&year&VLOOKUP($E50,months,2,FALSE),enrollment_key,0),MATCH("sites",enrollment_x,0))/1000,1) * -1),"") -> 20.38837873 | K50: =IFERROR(IF(AND(public,INDEX(program_conf_list,MATCH(Results!K$42,program_list,0))),"", SUMPRODUCT(OFFSET(INDEX(data,MATCH(K$42&portfolio&category&subcategory&IF(OR(K$42="A4",K$42="A5"),3,5)&system&wyear&daytype&VLOOKUP($E50,months,2,FALSE)&MATCH(1,INDIRECT(Lists!$E44&IF(OR(K$42="A4",K$42="A5"),"_direct","")),0),data_key,0),$H$1),0,0,IF(OR(K$42="A4",K$42="A5"),3,5),1), OFFSET(INDEX(load_multipliers,MATCH(K$42&category&subcategory&year&VLOOKUP($E50,months,2,FALSE)&daytype&MATCH(1,INDIRECT(Lists!$E44&IF(OR(K$42="A4",K$42="A5"),"_direct","")),0),load_multipliers_key,0),MATCH("impact_multiplier",load_multipliers_x,0)),0,0,IF(OR(K$42="A4",K$42="A5"),3,5),1))/IF(OR(K$42="A4",K$42="A5"),3,5) * IF(result_type = "Aggregate", INDEX(enrollment, MATCH(K$42&category&subcategory&year&VLOOKUP($E50,months,2,FALSE),enrollment_key,0),MATCH("sites",enrollment_x,0))/1000,1) * -1),"") -> 0.7360564237 | L50: =IFERROR(IF(AND(public,INDEX(program_conf_list,MATCH(Results!L$42,program_list,0))),"", SUMPRODUCT(OFFSET(INDEX(data,MATCH(L$42&portfolio&category&subcategory&IF(OR(L$42="A4",L$42="A5"),3,5)&system&wyear&daytype&VLOOKUP($E50,months,2,FALSE)&MATCH(1,INDIRECT(Lists!$E44&IF(OR(L$42="A4",L$42="A5"),"_direct","")),0),data_key,0),$H$1),0,0,IF(OR(L$42="A4",L$42="A5"),3,5),1), OFFSET(INDEX(load_multipliers,MATCH(L$42&category&subcategory&year&VLOOKUP($E50,months,2,FALSE)&daytype&MATCH(1,INDIRECT(Lists!$E44&IF(OR(L$42="A4",L$42="A5"),"_direct","")),0),load_multipliers_key,0),MATCH("impact_multiplier",load_multipliers_x,0)),0,0,IF(OR(L$42="A4",L$42="A5"),3,5),1))/IF(OR(L$42="A4",L$42="A5"),3,5) * IF(result_type = "Aggregate", INDEX(enrollment, MATCH(L$42&category&subcategory&year&VLOOKUP($E50,months,2,FALSE),enrollment_key,0),MATCH("sites",enrollment_x,0))/1000,1) * -1),"") -> 2.15614342 | M50: =IFERROR(IF(AND(public,INDEX(program_conf_list,MATCH(Results!M$42,program_list,0))),"", SUMPRODUCT(OFFSET(INDEX(data,MATCH(M$42&portfolio&category&subcategory&IF(OR(M$42="A4",M$42="A5"),3,5)&system&wyear&daytype&VLOOKUP($E50,months,2,FALSE)&MATCH(1,INDIRECT(Lists!$E44&IF(OR(M$42="A4",M$42="A5"),"_direct","")),0),data_key,0),$H$1),0,0,IF(OR(M$42="A4",M$42="A5"),3,5),1), OFFSET(INDEX(load_multipliers,MATCH(M$42&category&subcategory&year&VLOOKUP($E50,months,2,FALSE)&daytype&MATCH(1,INDIRECT(Lists!$E44&IF(OR(M$42="A4",M$42="A5"),"_direct","")),0),load_multipliers_key,0),MATCH("impact_multiplier",load_multipliers_x,0)),0,0,IF(OR(M$42="A4",M$42="A5"),3,5),1))/IF(OR(M$42="A4",M$42="A5"),3,5) * IF(result_type = "Aggregate", INDEX(enrollment, MATCH(M$42&category&subcategory&year&VLOOKUP($E50,months,2,FALSE),enrollment_key,0),MATCH("sites",enrollment_x,0))/1000,1) * -1),"") -> 19.42668906
E51: September | F51: =IFERROR(IF(AND(public,INDEX(program_conf_list,MATCH(Results!F$42,program_list,0))),"", SUMPRODUCT(OFFSET(INDEX(data,MATCH(F$42&portfolio&category&subcategory&IF(OR(F$42="A4",F$42="A5"),3,5)&system&wyear&daytype&VLOOKUP($E51,months,2,FALSE)&MATCH(1,INDIRECT(Lists!$E45&IF(OR(F$42="A4",F$42="A5"),"_direct","")),0),data_key,0),$H$1),0,0,IF(OR(F$42="A4",F$42="A5"),3,5),1), OFFSET(INDEX(load_multipliers,MATCH(F$42&category&subcategory&year&VLOOKUP($E51,months,2,FALSE)&daytype&MATCH(1,INDIRECT(Lists!$E45&IF(OR(F$42="A4",F$42="A5"),"_direct","")),0),load_multipliers_key,0),MATCH("impact_multiplier",load_multipliers_x,0)),0,0,IF(OR(F$42="A4",F$42="A5"),3,5),1))/IF(OR(F$42="A4",F$42="A5"),3,5) * IF(result_type = "Aggregate", INDEX(enrollment, MATCH(F$42&category&subcategory&year&VLOOKUP($E51,months,2,FALSE),enrollment_key,0),MATCH("sites",enrollment_x,0))/1000,1) * -1),"") -> 4.574636576 | G51: =IFERROR(IF(AND(public,INDEX(program_conf_list,MATCH(Results!G$42,program_list,0))),"", SUMPRODUCT(OFFSET(INDEX(data,MATCH(G$42&portfolio&category&subcategory&IF(OR(G$42="A4",G$42="A5"),3,5)&system&wyear&daytype&VLOOKUP($E51,months,2,FALSE)&MATCH(1,INDIRECT(Lists!$E45&IF(OR(G$42="A4",G$42="A5"),"_direct","")),0),data_key,0),$H$1),0,0,IF(OR(G$42="A4",G$42="A5"),3,5),1), OFFSET(INDEX(load_multipliers,MATCH(G$42&category&subcategory&year&VLOOKUP($E51,months,2,FALSE)&daytype&MATCH(1,INDIRECT(Lists!$E45&IF(OR(G$42="A4",G$42="A5"),"_direct","")),0),load_multipliers_key,0),MATCH("impact_multiplier",load_multipliers_x,0)),0,0,IF(OR(G$42="A4",G$42="A5"),3,5),1))/IF(OR(G$42="A4",G$42="A5"),3,5) * IF(result_type = "Aggregate", INDEX(enrollment, MATCH(G$42&category&subcategory&year&VLOOKUP($E51,months,2,FALSE),enrollment_key,0),MATCH("sites",enrollment_x,0))/1000,1) * -1),"") ->  | H51: =IFERROR(IF(AND(public,INDEX(program_conf_list,MATCH(Results!H$42,program_list,0))),"", SUMPRODUCT(OFFSET(INDEX(data,MATCH(H$42&portfolio&category&subcategory&IF(OR(H$42="A4",H$42="A5"),3,5)&system&wyear&daytype&VLOOKUP($E51,months,2,FALSE)&MATCH(1,INDIRECT(Lists!$E45&IF(OR(H$42="A4",H$42="A5"),"_direct","")),0),data_key,0),$H$1),0,0,IF(OR(H$42="A4",H$42="A5"),3,5),1), OFFSET(INDEX(load_multipliers,MATCH(H$42&category&subcategory&year&VLOOKUP($E51,months,2,FALSE)&daytype&MATCH(1,INDIRECT(Lists!$E45&IF(OR(H$42="A4",H$42="A5"),"_direct","")),0),load_multipliers_key,0),MATCH("impact_multiplier",load_multipliers_x,0)),0,0,IF(OR(H$42="A4",H$42="A5"),3,5),1))/IF(OR(H$42="A4",H$42="A5"),3,5) * IF(result_type = "Aggregate", INDEX(enrollment, MATCH(H$42&category&subcategory&year&VLOOKUP($E51,months,2,FALSE),enrollment_key,0),MATCH("sites",enrollment_x,0))/1000,1) * -1),"") -> 0 | I51: =IFERROR(IF(AND(public,INDEX(program_conf_list,MATCH(Results!I$42,program_list,0))),"", SUMPRODUCT(OFFSET(INDEX(data,MATCH(I$42&portfolio&category&subcategory&IF(OR(I$42="A4",I$42="A5"),3,5)&system&wyear&daytype&VLOOKUP($E51,months,2,FALSE)&MATCH(1,INDIRECT(Lists!$E45&IF(OR(I$42="A4",I$42="A5"),"_direct","")),0),data_key,0),$H$1),0,0,IF(OR(I$42="A4",I$42="A5"),3,5),1), OFFSET(INDEX(load_multipliers,MATCH(I$42&category&subcategory&year&VLOOKUP($E51,months,2,FALSE)&daytype&MATCH(1,INDIRECT(Lists!$E45&IF(OR(I$42="A4",I$42="A5"),"_direct","")),0),load_multipliers_key,0),MATCH("impact_multiplier",load_multipliers_x,0)),0,0,IF(OR(I$42="A4",I$42="A5"),3,5),1))/IF(OR(I$42="A4",I$42="A5"),3,5) * IF(result_type = "Aggregate", INDEX(enrollment, MATCH(I$42&category&subcategory&year&VLOOKUP($E51,months,2,FALSE),enrollment_key,0),MATCH("sites",enrollment_x,0))/1000,1) * -1),"") ->  | J51: =IFERROR(IF(AND(public,INDEX(program_conf_list,MATCH(Results!J$42,program_list,0))),"", SUMPRODUCT(OFFSET(INDEX(data,MATCH(J$42&portfolio&category&subcategory&IF(OR(J$42="A4",J$42="A5"),3,5)&system&wyear&daytype&VLOOKUP($E51,months,2,FALSE)&MATCH(1,INDIRECT(Lists!$E45&IF(OR(J$42="A4",J$42="A5"),"_direct","")),0),data_key,0),$H$1),0,0,IF(OR(J$42="A4",J$42="A5"),3,5),1), OFFSET(INDEX(load_multipliers,MATCH(J$42&category&subcategory&year&VLOOKUP($E51,months,2,FALSE)&daytype&MATCH(1,INDIRECT(Lists!$E45&IF(OR(J$42="A4",J$42="A5"),"_direct","")),0),load_multipliers_key,0),MATCH("impact_multiplier",load_multipliers_x,0)),0,0,IF(OR(J$42="A4",J$42="A5"),3,5),1))/IF(OR(J$42="A4",J$42="A5"),3,5) * IF(result_type = "Aggregate", INDEX(enrollment, MATCH(J$42&category&subcategory&year&VLOOKUP($E51,months,2,FALSE),enrollment_key,0),MATCH("sites",enrollment_x,0))/1000,1) * -1),"") -> 20.4071468 | K51: =IFERROR(IF(AND(public,INDEX(program_conf_list,MATCH(Results!K$42,program_list,0))),"", SUMPRODUCT(OFFSET(INDEX(data,MATCH(K$42&portfolio&category&subcategory&IF(OR(K$42="A4",K$42="A5"),3,5)&system&wyear&daytype&VLOOKUP($E51,months,2,FALSE)&MATCH(1,INDIRECT(Lists!$E45&IF(OR(K$42="A4",K$42="A5"),"_direct","")),0),data_key,0),$H$1),0,0,IF(OR(K$42="A4",K$42="A5"),3,5),1), OFFSET(INDEX(load_multipliers,MATCH(K$42&category&subcategory&year&VLOOKUP($E51,months,2,FALSE)&daytype&MATCH(1,INDIRECT(Lists!$E45&IF(OR(K$42="A4",K$42="A5"),"_direct","")),0),load_multipliers_key,0),MATCH("impact_multiplier",load_multipliers_x,0)),0,0,IF(OR(K$42="A4",K$42="A5"),3,5),1))/IF(OR(K$42="A4",K$42="A5"),3,5) * IF(result_type = "Aggregate", INDEX(enrollment, MATCH(K$42&category&subcategory&year&VLOOKUP($E51,months,2,FALSE),enrollment_key,0),MATCH("sites",enrollment_x,0))/1000,1) * -1),"") -> 0.7409015724 | L51: =IFERROR(IF(AND(public,INDEX(program_conf_list,MATCH(Results!L$42,program_list,0))),"", SUMPRODUCT(OFFSET(INDEX(data,MATCH(L$42&portfolio&category&subcategory&IF(OR(L$42="A4",L$42="A5"),3,5)&system&wyear&daytype&VLOOKUP($E51,months,2,FALSE)&MATCH(1,INDIRECT(Lists!$E45&IF(OR(L$42="A4",L$42="A5"),"_direct","")),0),data_key,0),$H$1),0,0,IF(OR(L$42="A4",L$42="A5"),3,5),1), OFFSET(INDEX(load_multipliers,MATCH(L$42&category&subcategory&year&VLOOKUP($E51,months,2,FALSE)&daytype&MATCH(1,INDIRECT(Lists!$E45&IF(OR(L$42="A4",L$42="A5"),"_direct","")),0),load_multipliers_key,0),MATCH("impact_multiplier",load_multipliers_x,0)),0,0,IF(OR(L$42="A4",L$42="A5"),3,5),1))/IF(OR(L$42="A4",L$42="A5"),3,5) * IF(result_type = "Aggregate", INDEX(enrollment, MATCH(L$42&category&subcategory&year&VLOOKUP($E51,months,2,FALSE),enrollment_key,0),MATCH("sites",enrollment_x,0))/1000,1) * -1),"") -> 2.11811739 | M51: =IFERROR(IF(AND(public,INDEX(program_conf_list,MATCH(Results!M$42,program_list,0))),"", SUMPRODUCT(OFFSET(INDEX(data,MATCH(M$42&portfolio&category&subcategory&IF(OR(M$42="A4",M$42="A5"),3,5)&system&wyear&daytype&VLOOKUP($E51,months,2,FALSE)&MATCH(1,INDIRECT(Lists!$E45&IF(OR(M$42="A4",M$42="A5"),"_direct","")),0),data_key,0),$H$1),0,0,IF(OR(M$42="A4",M$42="A5"),3,5),1), OFFSET(INDEX(load_multipliers,MATCH(M$42&category&subcategory&year&VLOOKUP($E51,months,2,FALSE)&daytype&MATCH(1,INDIRECT(Lists!$E45&IF(OR(M$42="A4",M$42="A5"),"_direct","")),0),load_multipliers_key,0),MATCH("impact_multiplier",load_multipliers_x,0)),0,0,IF(OR(M$42="A4",M$42="A5"),3,5),1))/IF(OR(M$42="A4",M$42="A5"),3,5) * IF(result_type = "Aggregate", INDEX(enrollment, MATCH(M$42&category&subcategory&year&VLOOKUP($E51,months,2,FALSE),enrollment_key,0),MATCH("sites",enrollment_x,0))/1000,1) * -1),"") -> 19.42225956
E52: October | F52: =IFERROR(IF(AND(public,INDEX(program_conf_list,MATCH(Results!F$42,program_list,0))),"", SUMPRODUCT(OFFSET(INDEX(data,MATCH(F$42&portfolio&category&subcategory&IF(OR(F$42="A4",F$42="A5"),3,5)&system&wyear&daytype&VLOOKUP($E52,months,2,FALSE)&MATCH(1,INDIRECT(Lists!$E46&IF(OR(F$42="A4",F$42="A5"),"_direct","")),0),data_key,0),$H$1),0,0,IF(OR(F$42="A4",F$42="A5"),3,5),1), OFFSET(INDEX(load_multipliers,MATCH(F$42&category&subcategory&year&VLOOKUP($E52,months,2,FALSE)&daytype&MATCH(1,INDIRECT(Lists!$E46&IF(OR(F$42="A4",F$42="A5"),"_direct","")),0),load_multipliers_key,0),MATCH("impact_multiplier",load_multipliers_x,0)),0,0,IF(OR(F$42="A4",F$42="A5"),3,5),1))/IF(OR(F$42="A4",F$42="A5"),3,5) * IF(result_type = "Aggregate", INDEX(enrollment, MATCH(F$42&category&subcategory&year&VLOOKUP($E52,months,2,FALSE),enrollment_key,0),MATCH("sites",enrollment_x,0))/1000,1) * -1),"") -> 4.153801474 | G52: =IFERROR(IF(AND(public,INDEX(program_conf_list,MATCH(Results!G$42,program_list,0))),"", SUMPRODUCT(OFFSET(INDEX(data,MATCH(G$42&portfolio&category&subcategory&IF(OR(G$42="A4",G$42="A5"),3,5)&system&wyear&daytype&VLOOKUP($E52,months,2,FALSE)&MATCH(1,INDIRECT(Lists!$E46&IF(OR(G$42="A4",G$42="A5"),"_direct","")),0),data_key,0),$H$1),0,0,IF(OR(G$42="A4",G$42="A5"),3,5),1), OFFSET(INDEX(load_multipliers,MATCH(G$42&category&subcategory&year&VLOOKUP($E52,months,2,FALSE)&daytype&MATCH(1,INDIRECT(Lists!$E46&IF(OR(G$42="A4",G$42="A5"),"_direct","")),0),load_multipliers_key,0),MATCH("impact_multiplier",load_multipliers_x,0)),0,0,IF(OR(G$42="A4",G$42="A5"),3,5),1))/IF(OR(G$42="A4",G$42="A5"),3,5) * IF(result_type = "Aggregate", INDEX(enrollment, MATCH(G$42&category&subcategory&year&VLOOKUP($E52,months,2,FALSE),enrollment_key,0),MATCH("sites",enrollment_x,0))/1000,1) * -1),"") ->  | H52: =IFERROR(IF(AND(public,INDEX(program_conf_list,MATCH(Results!H$42,program_list,0))),"", SUMPRODUCT(OFFSET(INDEX(data,MATCH(H$42&portfolio&category&subcategory&IF(OR(H$42="A4",H$42="A5"),3,5)&system&wyear&daytype&VLOOKUP($E52,months,2,FALSE)&MATCH(1,INDIRECT(Lists!$E46&IF(OR(H$42="A4",H$42="A5"),"_direct","")),0),data_key,0),$H$1),0,0,IF(OR(H$42="A4",H$42="A5"),3,5),1), OFFSET(INDEX(load_multipliers,MATCH(H$42&category&subcategory&year&VLOOKUP($E52,months,2,FALSE)&daytype&MATCH(1,INDIRECT(Lists!$E46&IF(OR(H$42="A4",H$42="A5"),"_direct","")),0),load_multipliers_key,0),MATCH("impact_multiplier",load_multipliers_x,0)),0,0,IF(OR(H$42="A4",H$42="A5"),3,5),1))/IF(OR(H$42="A4",H$42="A5"),3,5) * IF(result_type = "Aggregate", INDEX(enrollment, MATCH(H$42&category&subcategory&year&VLOOKUP($E52,months,2,FALSE),enrollment_key,0),MATCH("sites",enrollment_x,0))/1000,1) * -1),"") -> 0 | I52: =IFERROR(IF(AND(public,INDEX(program_conf_list,MATCH(Results!I$42,program_list,0))),"", SUMPRODUCT(OFFSET(INDEX(data,MATCH(I$42&portfolio&category&subcategory&IF(OR(I$42="A4",I$42="A5"),3,5)&system&wyear&daytype&VLOOKUP($E52,months,2,FALSE)&MATCH(1,INDIRECT(Lists!$E46&IF(OR(I$42="A4",I$42="A5"),"_direct","")),0),data_key,0),$H$1),0,0,IF(OR(I$42="A4",I$42="A5"),3,5),1), OFFSET(INDEX(load_multipliers,MATCH(I$42&category&subcategory&year&VLOOKUP($E52,months,2,FALSE)&daytype&MATCH(1,INDIRECT(Lists!$E46&IF(OR(I$42="A4",I$42="A5"),"_direct","")),0),load_multipliers_key,0),MATCH("impact_multiplier",load_multipliers_x,0)),0,0,IF(OR(I$42="A4",I$42="A5"),3,5),1))/IF(OR(I$42="A4",I$42="A5"),3,5) * IF(result_type = "Aggregate", INDEX(enrollment, MATCH(I$42&category&subcategory&year&VLOOKUP($E52,months,2,FALSE),enrollment_key,0),MATCH("sites",enrollment_x,0))/1000,1) * -1),"") ->  | J52: =IFERROR(IF(AND(public,INDEX(program_conf_list,MATCH(Results!J$42,program_list,0))),"", SUMPRODUCT(OFFSET(INDEX(data,MATCH(J$42&portfolio&category&subcategory&IF(OR(J$42="A4",J$42="A5"),3,5)&system&wyear&daytype&VLOOKUP($E52,months,2,FALSE)&MATCH(1,INDIRECT(Lists!$E46&IF(OR(J$42="A4",J$42="A5"),"_direct","")),0),data_key,0),$H$1),0,0,IF(OR(J$42="A4",J$42="A5"),3,5),1), OFFSET(INDEX(load_multipliers,MATCH(J$42&category&subcategory&year&VLOOKUP($E52,months,2,FALSE)&daytype&MATCH(1,INDIRECT(Lists!$E46&IF(OR(J$42="A4",J$42="A5"),"_direct","")),0),load_multipliers_key,0),MATCH("impact_multiplier",load_multipliers_x,0)),0,0,IF(OR(J$42="A4",J$42="A5"),3,5),1))/IF(OR(J$42="A4",J$42="A5"),3,5) * IF(result_type = "Aggregate", INDEX(enrollment, MATCH(J$42&category&subcategory&year&VLOOKUP($E52,months,2,FALSE),enrollment_key,0),MATCH("sites",enrollment_x,0))/1000,1) * -1),"") -> 20.42591487 | K52: =IFERROR(IF(AND(public,INDEX(program_conf_list,MATCH(Results!K$42,program_list,0))),"", SUMPRODUCT(OFFSET(INDEX(data,MATCH(K$42&portfolio&category&subcategory&IF(OR(K$42="A4",K$42="A5"),3,5)&system&wyear&daytype&VLOOKUP($E52,months,2,FALSE)&MATCH(1,INDIRECT(Lists!$E46&IF(OR(K$42="A4",K$42="A5"),"_direct","")),0),data_key,0),$H$1),0,0,IF(OR(K$42="A4",K$42="A5"),3,5),1), OFFSET(INDEX(load_multipliers,MATCH(K$42&category&subcategory&year&VLOOKUP($E52,months,2,FALSE)&daytype&MATCH(1,INDIRECT(Lists!$E46&IF(OR(K$42="A4",K$42="A5"),"_direct","")),0),load_multipliers_key,0),MATCH("impact_multiplier",load_multipliers_x,0)),0,0,IF(OR(K$42="A4",K$42="A5"),3,5),1))/IF(OR(K$42="A4",K$42="A5"),3,5) * IF(result_type = "Aggregate", INDEX(enrollment, MATCH(K$42&category&subcategory&year&VLOOKUP($E52,months,2,FALSE),enrollment_key,0),MATCH("sites",enrollment_x,0))/1000,1) * -1),"") -> 0.7867514965 | L52: =IFERROR(IF(AND(public,INDEX(program_conf_list,MATCH(Results!L$42,program_list,0))),"", SUMPRODUCT(OFFSET(INDEX(data,MATCH(L$42&portfolio&category&subcategory&IF(OR(L$42="A4",L$42="A5"),3,5)&system&wyear&daytype&VLOOKUP($E52,months,2,FALSE)&MATCH(1,INDIRECT(Lists!$E46&IF(OR(L$42="A4",L$42="A5"),"_direct","")),0),data_key,0),$H$1),0,0,IF(OR(L$42="A4",L$42="A5"),3,5),1), OFFSET(INDEX(load_multipliers,MATCH(L$42&category&subcategory&year&VLOOKUP($E52,months,2,FALSE)&daytype&MATCH(1,INDIRECT(Lists!$E46&IF(OR(L$42="A4",L$42="A5"),"_direct","")),0),load_multipliers_key,0),MATCH("impact_multiplier",load_multipliers_x,0)),0,0,IF(OR(L$42="A4",L$42="A5"),3,5),1))/IF(OR(L$42="A4",L$42="A5"),3,5) * IF(result_type = "Aggregate", INDEX(enrollment, MATCH(L$42&category&subcategory&year&VLOOKUP($E52,months,2,FALSE),enrollment_key,0),MATCH("sites",enrollment_x,0))/1000,1) * -1),"") -> 2.099285649 | M52: =IFERROR(IF(AND(public,INDEX(program_conf_list,MATCH(Results!M$42,program_list,0))),"", SUMPRODUCT(OFFSET(INDEX(data,MATCH(M$42&portfolio&category&subcategory&IF(OR(M$42="A4",M$42="A5"),3,5)&system&wyear&daytype&VLOOKUP($E52,months,2,FALSE)&MATCH(1,INDIRECT(Lists!$E46&IF(OR(M$42="A4",M$42="A5"),"_direct","")),0),data_key,0),$H$1),0,0,IF(OR(M$42="A4",M$42="A5"),3,5),1), OFFSET(INDEX(load_multipliers,MATCH(M$42&category&subcategory&year&VLOOKUP($E52,months,2,FALSE)&daytype&MATCH(1,INDIRECT(Lists!$E46&IF(OR(M$42="A4",M$42="A5"),"_direct","")),0),load_multipliers_key,0),MATCH("impact_multiplier",load_multipliers_x,0)),0,0,IF(OR(M$42="A4",M$42="A5"),3,5),1))/IF(OR(M$42="A4",M$42="A5"),3,5) * IF(result_type = "Aggregate", INDEX(enrollment, MATCH(M$42&category&subcategory&year&VLOOKUP($E52,months,2,FALSE),enrollment_key,0),MATCH("sites",enrollment_x,0))/1000,1) * -1),"") -> 19.02029293
E53: November | F53: =IFERROR(IF(AND(public,INDEX(program_conf_list,MATCH(Results!F$42,program_list,0))),"", SUMPRODUCT(OFFSET(INDEX(data,MATCH(F$42&portfolio&category&subcategory&IF(OR(F$42="A4",F$42="A5"),3,5)&system&wyear&daytype&VLOOKUP($E53,months,2,FALSE)&MATCH(1,INDIRECT(Lists!$E47&IF(OR(F$42="A4",F$42="A5"),"_direct","")),0),data_key,0),$H$1),0,0,IF(OR(F$42="A4",F$42="A5"),3,5),1), OFFSET(INDEX(load_multipliers,MATCH(F$42&category&subcategory&year&VLOOKUP($E53,months,2,FALSE)&daytype&MATCH(1,INDIRECT(Lists!$E47&IF(OR(F$42="A4",F$42="A5"),"_direct","")),0),load_multipliers_key,0),MATCH("impact_multiplier",load_multipliers_x,0)),0,0,IF(OR(F$42="A4",F$42="A5"),3,5),1))/IF(OR(F$42="A4",F$42="A5"),3,5) * IF(result_type = "Aggregate", INDEX(enrollment, MATCH(F$42&category&subcategory&year&VLOOKUP($E53,months,2,FALSE),enrollment_key,0),MATCH("sites",enrollment_x,0))/1000,1) * -1),"") -> 0 | G53: =IFERROR(IF(AND(public,INDEX(program_conf_list,MATCH(Results!G$42,program_list,0))),"", SUMPRODUCT(OFFSET(INDEX(data,MATCH(G$42&portfolio&category&subcategory&IF(OR(G$42="A4",G$42="A5"),3,5)&system&wyear&daytype&VLOOKUP($E53,months,2,FALSE)&MATCH(1,INDIRECT(Lists!$E47&IF(OR(G$42="A4",G$42="A5"),"_direct","")),0),data_key,0),$H$1),0,0,IF(OR(G$42="A4",G$42="A5"),3,5),1), OFFSET(INDEX(load_multipliers,MATCH(G$42&category&subcategory&year&VLOOKUP($E53,months,2,FALSE)&daytype&MATCH(1,INDIRECT(Lists!$E47&IF(OR(G$42="A4",G$42="A5"),"_direct","")),0),load_multipliers_key,0),MATCH("impact_multiplier",load_multipliers_x,0)),0,0,IF(OR(G$42="A4",G$42="A5"),3,5),1))/IF(OR(G$42="A4",G$42="A5"),3,5) * IF(result_type = "Aggregate", INDEX(enrollment, MATCH(G$42&category&subcategory&year&VLOOKUP($E53,months,2,FALSE),enrollment_key,0),MATCH("sites",enrollment_x,0))/1000,1) * -1),"") ->  | H53: =IFERROR(IF(AND(public,INDEX(program_conf_list,MATCH(Results!H$42,program_list,0))),"", SUMPRODUCT(OFFSET(INDEX(data,MATCH(H$42&portfolio&category&subcategory&IF(OR(H$42="A4",H$42="A5"),3,5)&system&wyear&daytype&VLOOKUP($E53,months,2,FALSE)&MATCH(1,INDIRECT(Lists!$E47&IF(OR(H$42="A4",H$42="A5"),"_direct","")),0),data_key,0),$H$1),0,0,IF(OR(H$42="A4",H$42="A5"),3,5),1), OFFSET(INDEX(load_multipliers,MATCH(H$42&category&subcategory&year&VLOOKUP($E53,months,2,FALSE)&daytype&MATCH(1,INDIRECT(Lists!$E47&IF(OR(H$42="A4",H$42="A5"),"_direct","")),0),load_multipliers_key,0),MATCH("impact_multiplier",load_multipliers_x,0)),0,0,IF(OR(H$42="A4",H$42="A5"),3,5),1))/IF(OR(H$42="A4",H$42="A5"),3,5) * IF(result_type = "Aggregate", INDEX(enrollment, MATCH(H$42&category&subcategory&year&VLOOKUP($E53,months,2,FALSE),enrollment_key,0),MATCH("sites",enrollment_x,0))/1000,1) * -1),"") -> 0 | I53: =IFERROR(IF(AND(public,INDEX(program_conf_list,MATCH(Results!I$42,program_list,0))),"", SUMPRODUCT(OFFSET(INDEX(data,MATCH(I$42&portfolio&category&subcategory&IF(OR(I$42="A4",I$42="A5"),3,5)&system&wyear&daytype&VLOOKUP($E53,months,2,FALSE)&MATCH(1,INDIRECT(Lists!$E47&IF(OR(I$42="A4",I$42="A5"),"_direct","")),0),data_key,0),$H$1),0,0,IF(OR(I$42="A4",I$42="A5"),3,5),1), OFFSET(INDEX(load_multipliers,MATCH(I$42&category&subcategory&year&VLOOKUP($E53,months,2,FALSE)&daytype&MATCH(1,INDIRECT(Lists!$E47&IF(OR(I$42="A4",I$42="A5"),"_direct","")),0),load_multipliers_key,0),MATCH("impact_multiplier",load_multipliers_x,0)),0,0,IF(OR(I$42="A4",I$42="A5"),3,5),1))/IF(OR(I$42="A4",I$42="A5"),3,5) * IF(result_type = "Aggregate", INDEX(enrollment, MATCH(I$42&category&subcategory&year&VLOOKUP($E53,months,2,FALSE),enrollment_key,0),MATCH("sites",enrollment_x,0))/1000,1) * -1),"") ->  | J53: =IFERROR(IF(AND(public,INDEX(program_conf_list,MATCH(Results!J$42,program_list,0))),"", SUMPRODUCT(OFFSET(INDEX(data,MATCH(J$42&portfolio&category&subcategory&IF(OR(J$42="A4",J$42="A5"),3,5)&system&wyear&daytype&VLOOKUP($E53,months,2,FALSE)&MATCH(1,INDIRECT(Lists!$E47&IF(OR(J$42="A4",J$42="A5"),"_direct","")),0),data_key,0),$H$1),0,0,IF(OR(J$42="A4",J$42="A5"),3,5),1), OFFSET(INDEX(load_multipliers,MATCH(J$42&category&subcategory&year&VLOOKUP($E53,months,2,FALSE)&daytype&MATCH(1,INDIRECT(Lists!$E47&IF(OR(J$42="A4",J$42="A5"),"_direct","")),0),load_multipliers_key,0),MATCH("impact_multiplier",load_multipliers_x,0)),0,0,IF(OR(J$42="A4",J$42="A5"),3,5),1))/IF(OR(J$42="A4",J$42="A5"),3,5) * IF(result_type = "Aggregate", INDEX(enrollment, MATCH(J$42&category&subcategory&year&VLOOKUP($E53,months,2,FALSE),enrollment_key,0),MATCH("sites",enrollment_x,0))/1000,1) * -1),"") -> 0 | K53: =IFERROR(IF(AND(public,INDEX(program_conf_list,MATCH(Results!K$42,program_list,0))),"", SUMPRODUCT(OFFSET(INDEX(data,MATCH(K$42&portfolio&category&subcategory&IF(OR(K$42="A4",K$42="A5"),3,5)&system&wyear&daytype&VLOOKUP($E53,months,2,FALSE)&MATCH(1,INDIRECT(Lists!$E47&IF(OR(K$42="A4",K$42="A5"),"_direct","")),0),data_key,0),$H$1),0,0,IF(OR(K$42="A4",K$42="A5"),3,5),1), OFFSET(INDEX(load_multipliers,MATCH(K$42&category&subcategory&year&VLOOKUP($E53,months,2,FALSE)&daytype&MATCH(1,INDIRECT(Lists!$E47&IF(OR(K$42="A4",K$42="A5"),"_direct","")),0),load_multipliers_key,0),MATCH("impact_multiplier",load_multipliers_x,0)),0,0,IF(OR(K$42="A4",K$42="A5"),3,5),1))/IF(OR(K$42="A4",K$42="A5"),3,5) * IF(result_type = "Aggregate", INDEX(enrollment, MATCH(K$42&category&subcategory&year&VLOOKUP($E53,months,2,FALSE),enrollment_key,0),MATCH("sites",enrollment_x,0))/1000,1) * -1),"") -> 0 | L53: =IFERROR(IF(AND(public,INDEX(program_conf_list,MATCH(Results!L$42,program_list,0))),"", SUMPRODUCT(OFFSET(INDEX(data,MATCH(L$42&portfolio&category&subcategory&IF(OR(L$42="A4",L$42="A5"),3,5)&system&wyear&daytype&VLOOKUP($E53,months,2,FALSE)&MATCH(1,INDIRECT(Lists!$E47&IF(OR(L$42="A4",L$42="A5"),"_direct","")),0),data_key,0),$H$1),0,0,IF(OR(L$42="A4",L$42="A5"),3,5),1), OFFSET(INDEX(load_multipliers,MATCH(L$42&category&subcategory&year&VLOOKUP($E53,months,2,FALSE)&daytype&MATCH(1,INDIRECT(Lists!$E47&IF(OR(L$42="A4",L$42="A5"),"_direct","")),0),load_multipliers_key,0),MATCH("impact_multiplier",load_multipliers_x,0)),0,0,IF(OR(L$42="A4",L$42="A5"),3,5),1))/IF(OR(L$42="A4",L$42="A5"),3,5) * IF(result_type = "Aggregate", INDEX(enrollment, MATCH(L$42&category&subcategory&year&VLOOKUP($E53,months,2,FALSE),enrollment_key,0),MATCH("sites",enrollment_x,0))/1000,1) * -1),"") -> 0 | M53: =IFERROR(IF(AND(public,INDEX(program_conf_list,MATCH(Results!M$42,program_list,0))),"", SUMPRODUCT(OFFSET(INDEX(data,MATCH(M$42&portfolio&category&subcategory&IF(OR(M$42="A4",M$42="A5"),3,5)&system&wyear&daytype&VLOOKUP($E53,months,2,FALSE)&MATCH(1,INDIRECT(Lists!$E47&IF(OR(M$42="A4",M$42="A5"),"_direct","")),0),data_key,0),$H$1),0,0,IF(OR(M$42="A4",M$42="A5"),3,5),1), OFFSET(INDEX(load_multipliers,MATCH(M$42&category&subcategory&year&VLOOKUP($E53,months,2,FALSE)&daytype&MATCH(1,INDIRECT(Lists!$E47&IF(OR(M$42="A4",M$42="A5"),"_direct","")),0),load_multipliers_key,0),MATCH("impact_multiplier",load_multipliers_x,0)),0,0,IF(OR(M$42="A4",M$42="A5"),3,5),1))/IF(OR(M$42="A4",M$42="A5"),3,5) * IF(result_type = "Aggregate", INDEX(enrollment, MATCH(M$42&category&subcategory&year&VLOOKUP($E53,months,2,FALSE),enrollment_key,0),MATCH("sites",enrollment_x,0))/1000,1) * -1),"") -> 0
E54: December | F54: =IFERROR(IF(AND(public,INDEX(program_conf_list,MATCH(Results!F$42,program_list,0))),"", SUMPRODUCT(OFFSET(INDEX(data,MATCH(F$42&portfolio&category&subcategory&IF(OR(F$42="A4",F$42="A5"),3,5)&system&wyear&daytype&VLOOKUP($E54,months,2,FALSE)&MATCH(1,INDIRECT(Lists!$E48&IF(OR(F$42="A4",F$42="A5"),"_direct","")),0),data_key,0),$H$1),0,0,IF(OR(F$42="A4",F$42="A5"),3,5),1), OFFSET(INDEX(load_multipliers,MATCH(F$42&category&subcategory&year&VLOOKUP($E54,months,2,FALSE)&daytype&MATCH(1,INDIRECT(Lists!$E48&IF(OR(F$42="A4",F$42="A5"),"_direct","")),0),load_multipliers_key,0),MATCH("impact_multiplier",load_multipliers_x,0)),0,0,IF(OR(F$42="A4",F$42="A5"),3,5),1))/IF(OR(F$42="A4",F$42="A5"),3,5) * IF(result_type = "Aggregate", INDEX(enrollment, MATCH(F$42&category&subcategory&year&VLOOKUP($E54,months,2,FALSE),enrollment_key,0),MATCH("sites",enrollment_x,0))/1000,1) * -1),"") -> 0 | G54: =IFERROR(IF(AND(public,INDEX(program_conf_list,MATCH(Results!G$42,program_list,0))),"", SUMPRODUCT(OFFSET(INDEX(data,MATCH(G$42&portfolio&category&subcategory&IF(OR(G$42="A4",G$42="A5"),3,5)&system&wyear&daytype&VLOOKUP($E54,months,2,FALSE)&MATCH(1,INDIRECT(Lists!$E48&IF(OR(G$42="A4",G$42="A5"),"_direct","")),0),data_key,0),$H$1),0,0,IF(OR(G$42="A4",G$42="A5"),3,5),1), OFFSET(INDEX(load_multipliers,MATCH(G$42&category&subcategory&year&VLOOKUP($E54,months,2,FALSE)&daytype&MATCH(1,INDIRECT(Lists!$E48&IF(OR(G$42="A4",G$42="A5"),"_direct","")),0),load_multipliers_key,0),MATCH("impact_multiplier",load_multipliers_x,0)),0,0,IF(OR(G$42="A4",G$42="A5"),3,5),1))/IF(OR(G$42="A4",G$42="A5"),3,5) * IF(result_type = "Aggregate", INDEX(enrollment, MATCH(G$42&category&subcategory&year&VLOOKUP($E54,months,2,FALSE),enrollment_key,0),MATCH("sites",enrollment_x,0))/1000,1) * -1),"") ->  | H54: =IFERROR(IF(AND(public,INDEX(program_conf_list,MATCH(Results!H$42,program_list,0))),"", SUMPRODUCT(OFFSET(INDEX(data,MATCH(H$42&portfolio&category&subcategory&IF(OR(H$42="A4",H$42="A5"),3,5)&system&wyear&daytype&VLOOKUP($E54,months,2,FALSE)&MATCH(1,INDIRECT(Lists!$E48&IF(OR(H$42="A4",H$42="A5"),"_direct","")),0),data_key,0),$H$1),0,0,IF(OR(H$42="A4",H$42="A5"),3,5),1), OFFSET(INDEX(load_multipliers,MATCH(H$42&category&subcategory&year&VLOOKUP($E54,months,2,FALSE)&daytype&MATCH(1,INDIRECT(Lists!$E48&IF(OR(H$42="A4",H$42="A5"),"_direct","")),0),load_multipliers_key,0),MATCH("impact_multiplier",load_multipliers_x,0)),0,0,IF(OR(H$42="A4",H$42="A5"),3,5),1))/IF(OR(H$42="A4",H$42="A5"),3,5) * IF(result_type = "Aggregate", INDEX(enrollment, MATCH(H$42&category&subcategory&year&VLOOKUP($E54,months,2,FALSE),enrollment_key,0),MATCH("sites",enrollment_x,0))/1000,1) * -1),"") -> 0 | I54: =IFERROR(IF(AND(public,INDEX(program_conf_list,MATCH(Results!I$42,program_list,0))),"", SUMPRODUCT(OFFSET(INDEX(data,MATCH(I$42&portfolio&category&subcategory&IF(OR(I$42="A4",I$42="A5"),3,5)&system&wyear&daytype&VLOOKUP($E54,months,2,FALSE)&MATCH(1,INDIRECT(Lists!$E48&IF(OR(I$42="A4",I$42="A5"),"_direct","")),0),data_key,0),$H$1),0,0,IF(OR(I$42="A4",I$42="A5"),3,5),1), OFFSET(INDEX(load_multipliers,MATCH(I$42&category&subcategory&year&VLOOKUP($E54,months,2,FALSE)&daytype&MATCH(1,INDIRECT(Lists!$E48&IF(OR(I$42="A4",I$42="A5"),"_direct","")),0),load_multipliers_key,0),MATCH("impact_multiplier",load_multipliers_x,0)),0,0,IF(OR(I$42="A4",I$42="A5"),3,5),1))/IF(OR(I$42="A4",I$42="A5"),3,5) * IF(result_type = "Aggregate", INDEX(enrollment, MATCH(I$42&category&subcategory&year&VLOOKUP($E54,months,2,FALSE),enrollment_key,0),MATCH("sites",enrollment_x,0))/1000,1) * -1),"") ->  | J54: =IFERROR(IF(AND(public,INDEX(program_conf_list,MATCH(Results!J$42,program_list,0))),"", SUMPRODUCT(OFFSET(INDEX(data,MATCH(J$42&portfolio&category&subcategory&IF(OR(J$42="A4",J$42="A5"),3,5)&system&wyear&daytype&VLOOKUP($E54,months,2,FALSE)&MATCH(1,INDIRECT(Lists!$E48&IF(OR(J$42="A4",J$42="A5"),"_direct","")),0),data_key,0),$H$1),0,0,IF(OR(J$42="A4",J$42="A5"),3,5),1), OFFSET(INDEX(load_multipliers,MATCH(J$42&category&subcategory&year&VLOOKUP($E54,months,2,FALSE)&daytype&MATCH(1,INDIRECT(Lists!$E48&IF(OR(J$42="A4",J$42="A5"),"_direct","")),0),load_multipliers_key,0),MATCH("impact_multiplier",load_multipliers_x,0)),0,0,IF(OR(J$42="A4",J$42="A5"),3,5),1))/IF(OR(J$42="A4",J$42="A5"),3,5) * IF(result_type = "Aggregate", INDEX(enrollment, MATCH(J$42&category&subcategory&year&VLOOKUP($E54,months,2,FALSE),enrollment_key,0),MATCH("sites",enrollment_x,0))/1000,1) * -1),"") -> 0 | K54: =IFERROR(IF(AND(public,INDEX(program_conf_list,MATCH(Results!K$42,program_list,0))),"", SUMPRODUCT(OFFSET(INDEX(data,MATCH(K$42&portfolio&category&subcategory&IF(OR(K$42="A4",K$42="A5"),3,5)&system&wyear&daytype&VLOOKUP($E54,months,2,FALSE)&MATCH(1,INDIRECT(Lists!$E48&IF(OR(K$42="A4",K$42="A5"),"_direct","")),0),data_key,0),$H$1),0,0,IF(OR(K$42="A4",K$42="A5"),3,5),1), OFFSET(INDEX(load_multipliers,MATCH(K$42&category&subcategory&year&VLOOKUP($E54,months,2,FALSE)&daytype&MATCH(1,INDIRECT(Lists!$E48&IF(OR(K$42="A4",K$42="A5"),"_direct","")),0),load_multipliers_key,0),MATCH("impact_multiplier",load_multipliers_x,0)),0,0,IF(OR(K$42="A4",K$42="A5"),3,5),1))/IF(OR(K$42="A4",K$42="A5"),3,5) * IF(result_type = "Aggregate", INDEX(enrollment, MATCH(K$42&category&subcategory&year&VLOOKUP($E54,months,2,FALSE),enrollment_key,0),MATCH("sites",enrollment_x,0))/1000,1) * -1),"") -> 0 | L54: =IFERROR(IF(AND(public,INDEX(program_conf_list,MATCH(Results!L$42,program_list,0))),"", SUMPRODUCT(OFFSET(INDEX(data,MATCH(L$42&portfolio&category&subcategory&IF(OR(L$42="A4",L$42="A5"),3,5)&system&wyear&daytype&VLOOKUP($E54,months,2,FALSE)&MATCH(1,INDIRECT(Lists!$E48&IF(OR(L$42="A4",L$42="A5"),"_direct","")),0),data_key,0),$H$1),0,0,IF(OR(L$42="A4",L$42="A5"),3,5),1), OFFSET(INDEX(load_multipliers,MATCH(L$42&category&subcategory&year&VLOOKUP($E54,months,2,FALSE)&daytype&MATCH(1,INDIRECT(Lists!$E48&IF(OR(L$42="A4",L$42="A5"),"_direct","")),0),load_multipliers_key,0),MATCH("impact_multiplier",load_multipliers_x,0)),0,0,IF(OR(L$42="A4",L$42="A5"),3,5),1))/IF(OR(L$42="A4",L$42="A5"),3,5) * IF(result_type = "Aggregate", INDEX(enrollment, MATCH(L$42&category&subcategory&year&VLOOKUP($E54,months,2,FALSE),enrollment_key,0),MATCH("sites",enrollment_x,0))/1000,1) * -1),"") -> 0 | M54: =IFERROR(IF(AND(public,INDEX(program_conf_list,MATCH(Results!M$42,program_list,0))),"", SUMPRODUCT(OFFSET(INDEX(data,MATCH(M$42&portfolio&category&subcategory&IF(OR(M$42="A4",M$42="A5"),3,5)&system&wyear&daytype&VLOOKUP($E54,months,2,FALSE)&MATCH(1,INDIRECT(Lists!$E48&IF(OR(M$42="A4",M$42="A5"),"_direct","")),0),data_key,0),$H$1),0,0,IF(OR(M$42="A4",M$42="A5"),3,5),1), OFFSET(INDEX(load_multipliers,MATCH(M$42&category&subcategory&year&VLOOKUP($E54,months,2,FALSE)&daytype&MATCH(1,INDIRECT(Lists!$E48&IF(OR(M$42="A4",M$42="A5"),"_direct","")),0),load_multipliers_key,0),MATCH("impact_multiplier",load_multipliers_x,0)),0,0,IF(OR(M$42="A4",M$42="A5"),3,5),1))/IF(OR(M$42="A4",M$42="A5"),3,5) * IF(result_type = "Aggregate", INDEX(enrollment, MATCH(M$42&category&subcategory&year&VLOOKUP($E54,months,2,FALSE),enrollment_key,0),MATCH("sites",enrollment_x,0))/1000,1) * -1),"") -> 0
E57: Annual Forecast:
F58: =units -> MWh/hour
E59: Forecast year | F59: =INDEX(program_list,COLUMN(F$58)-COLUMN($E$58)) -> A1 | G59: =INDEX(program_list,COLUMN(G$58)-COLUMN($E$58)) -> A1BIP | H59: =INDEX(program_list,COLUMN(H$58)-COLUMN($E$58)) -> A2 | I59: =INDEX(program_list,COLUMN(I$58)-COLUMN($E$58)) -> A2BIP | J59: =INDEX(program_list,COLUMN(J$58)-COLUMN($E$58)) -> A4 | K59: =INDEX(program_list,COLUMN(K$58)-COLUMN($E$58)) -> A5 | L59: =INDEX(program_list,COLUMN(L$58)-COLUMN($E$58)) -> B2 | M59: =INDEX(program_list,COLUMN(M$58)-COLUMN($E$58)) -> All groups
E60: =INDEX(years_list,ROW($D60)-ROW($D$59)) -> 2025 | F60: =IFERROR(IF(AND(public,INDEX(program_conf_list,MATCH(Results!F$59,program_list,0))),"", SUMPRODUCT(OFFSET(INDEX(data,MATCH(F$59&portfolio&category&subcategory&IF(OR(F$59="A4",F$59="A5"),3,5)&system&wyear&daytype&month_num&MATCH(1,INDIRECT(INDEX(rahours_months,month_num)&IF(OR(F$42="A4",F$42="A5"),"_direct","")),0),data_key,0),$H$1),0,0,IF(OR(F$59="A4",F$59="A5"),3,5),1), OFFSET(INDEX(load_multipliers,MATCH(F$59&category&subcategory&$E60&month_num&daytype&MATCH(1,INDIRECT(INDEX(rahours_months,month_num)&IF(OR(F$42="A4",F$42="A5"),"_direct","")),0),load_multipliers_key,0),MATCH("impact_multiplier",load_multipliers_x,0)),0,0,IF(OR(F$59="A4",F$59="A5"),3,5),1))/IF(OR(F$59="A4",F$59="A5"),3,5) * IF(result_type = "Aggregate", INDEX(enrollment, MATCH(F$59&category&subcategory&$E60&month_num,enrollment_key,0),MATCH("sites",enrollment_x,0))/1000,1) * -1),"") -> 4.555191747 | G60: =IFERROR(IF(AND(public,INDEX(program_conf_list,MATCH(Results!G$59,program_list,0))),"", SUMPRODUCT(OFFSET(INDEX(data,MATCH(G$59&portfolio&category&subcategory&IF(OR(G$59="A4",G$59="A5"),3,5)&system&wyear&daytype&month_num&MATCH(1,INDIRECT(INDEX(rahours_months,month_num)&IF(OR(G$42="A4",G$42="A5"),"_direct","")),0),data_key,0),$H$1),0,0,IF(OR(G$59="A4",G$59="A5"),3,5),1), OFFSET(INDEX(load_multipliers,MATCH(G$59&category&subcategory&$E60&month_num&daytype&MATCH(1,INDIRECT(INDEX(rahours_months,month_num)&IF(OR(G$42="A4",G$42="A5"),"_direct","")),0),load_multipliers_key,0),MATCH("impact_multiplier",load_multipliers_x,0)),0,0,IF(OR(G$59="A4",G$59="A5"),3,5),1))/IF(OR(G$59="A4",G$59="A5"),3,5) * IF(result_type = "Aggregate", INDEX(enrollment, MATCH(G$59&category&subcategory&$E60&month_num,enrollment_key,0),MATCH("sites",enrollment_x,0))/1000,1) * -1),"") ->  | H60: =IFERROR(IF(AND(public,INDEX(program_conf_list,MATCH(Results!H$59,program_list,0))),"", SUMPRODUCT(OFFSET(INDEX(data,MATCH(H$59&portfolio&category&subcategory&IF(OR(H$59="A4",H$59="A5"),3,5)&system&wyear&daytype&month_num&MATCH(1,INDIRECT(INDEX(rahours_months,month_num)&IF(OR(H$42="A4",H$42="A5"),"_direct","")),0),data_key,0),$H$1),0,0,IF(OR(H$59="A4",H$59="A5"),3,5),1), OFFSET(INDEX(load_multipliers,MATCH(H$59&category&subcategory&$E60&month_num&daytype&MATCH(1,INDIRECT(INDEX(rahours_months,month_num)&IF(OR(H$42="A4",H$42="A5"),"_direct","")),0),load_multipliers_key,0),MATCH("impact_multiplier",load_multipliers_x,0)),0,0,IF(OR(H$59="A4",H$59="A5"),3,5),1))/IF(OR(H$59="A4",H$59="A5"),3,5) * IF(result_type = "Aggregate", INDEX(enrollment, MATCH(H$59&category&subcategory&$E60&month_num,enrollment_key,0),MATCH("sites",enrollment_x,0))/1000,1) * -1),"") -> 0 | I60: =IFERROR(IF(AND(public,INDEX(program_conf_list,MATCH(Results!I$59,program_list,0))),"", SUMPRODUCT(OFFSET(INDEX(data,MATCH(I$59&portfolio&category&subcategory&IF(OR(I$59="A4",I$59="A5"),3,5)&system&wyear&daytype&month_num&MATCH(1,INDIRECT(INDEX(rahours_months,month_num)&IF(OR(I$42="A4",I$42="A5"),"_direct","")),0),data_key,0),$H$1),0,0,IF(OR(I$59="A4",I$59="A5"),3,5),1), OFFSET(INDEX(load_multipliers,MATCH(I$59&category&subcategory&$E60&month_num&daytype&MATCH(1,INDIRECT(INDEX(rahours_months,month_num)&IF(OR(I$42="A4",I$42="A5"),"_direct","")),0),load_multipliers_key,0),MATCH("impact_multiplier",load_multipliers_x,0)),0,0,IF(OR(I$59="A4",I$59="A5"),3,5),1))/IF(OR(I$59="A4",I$59="A5"),3,5) * IF(result_type = "Aggregate", INDEX(enrollment, MATCH(I$59&category&subcategory&$E60&month_num,enrollment_key,0),MATCH("sites",enrollment_x,0))/1000,1) * -1),"") ->  | J60: =IFERROR(IF(AND(public,INDEX(program_conf_list,MATCH(Results!J$59,program_list,0))),"", SUMPRODUCT(OFFSET(INDEX(data,MATCH(J$59&portfolio&category&subcategory&IF(OR(J$59="A4",J$59="A5"),3,5)&system&wyear&daytype&month_num&MATCH(1,INDIRECT(INDEX(rahours_months,month_num)&IF(OR(J$42="A4",J$42="A5"),"_direct","")),0),data_key,0),$H$1),0,0,IF(OR(J$59="A4",J$59="A5"),3,5),1), OFFSET(INDEX(load_multipliers,MATCH(J$59&category&subcategory&$E60&month_num&daytype&MATCH(1,INDIRECT(INDEX(rahours_months,month_num)&IF(OR(J$42="A4",J$42="A5"),"_direct","")),0),load_multipliers_key,0),MATCH("impact_multiplier",load_multipliers_x,0)),0,0,IF(OR(J$59="A4",J$59="A5"),3,5),1))/IF(OR(J$59="A4",J$59="A5"),3,5) * IF(result_type = "Aggregate", INDEX(enrollment, MATCH(J$59&category&subcategory&$E60&month_num,enrollment_key,0),MATCH("sites",enrollment_x,0))/1000,1) * -1),"") -> 20.38837873 | K60: =IFERROR(IF(AND(public,INDEX(program_conf_list,MATCH(Results!K$59,program_list,0))),"", SUMPRODUCT(OFFSET(INDEX(data,MATCH(K$59&portfolio&category&subcategory&IF(OR(K$59="A4",K$59="A5"),3,5)&system&wyear&daytype&month_num&MATCH(1,INDIRECT(INDEX(rahours_months,month_num)&IF(OR(K$42="A4",K$42="A5"),"_direct","")),0),data_key,0),$H$1),0,0,IF(OR(K$59="A4",K$59="A5"),3,5),1), OFFSET(INDEX(load_multipliers,MATCH(K$59&category&subcategory&$E60&month_num&daytype&MATCH(1,INDIRECT(INDEX(rahours_months,month_num)&IF(OR(K$42="A4",K$42="A5"),"_direct","")),0),load_multipliers_key,0),MATCH("impact_multiplier",load_multipliers_x,0)),0,0,IF(OR(K$59="A4",K$59="A5"),3,5),1))/IF(OR(K$59="A4",K$59="A5"),3,5) * IF(result_type = "Aggregate", INDEX(enrollment, MATCH(K$59&category&subcategory&$E60&month_num,enrollment_key,0),MATCH("sites",enrollment_x,0))/1000,1) * -1),"") -> 0.7360564237 | L60: =IFERROR(IF(AND(public,INDEX(program_conf_list,MATCH(Results!L$59,program_list,0))),"", SUMPRODUCT(OFFSET(INDEX(data,MATCH(L$59&portfolio&category&subcategory&IF(OR(L$59="A4",L$59="A5"),3,5)&system&wyear&daytype&month_num&MATCH(1,INDIRECT(INDEX(rahours_months,month_num)&IF(OR(L$42="A4",L$42="A5"),"_direct","")),0),data_key,0),$H$1),0,0,IF(OR(L$59="A4",L$59="A5"),3,5),1), OFFSET(INDEX(load_multipliers,MATCH(L$59&category&subcategory&$E60&month_num&daytype&MATCH(1,INDIRECT(INDEX(rahours_months,month_num)&IF(OR(L$42="A4",L$42="A5"),"_direct","")),0),load_multipliers_key,0),MATCH("impact_multiplier",load_multipliers_x,0)),0,0,IF(OR(L$59="A4",L$59="A5"),3,5),1))/IF(OR(L$59="A4",L$59="A5"),3,5) * IF(result_type = "Aggregate", INDEX(enrollment, MATCH(L$59&category&subcategory&$E60&month_num,enrollment_key,0),MATCH("sites",enrollment_x,0))/1000,1) * -1),"") -> 2.15614342 | M60: =IFERROR(IF(AND(public,INDEX(program_conf_list,MATCH(Results!M$59,program_list,0))),"", SUMPRODUCT(OFFSET(INDEX(data,MATCH(M$59&portfolio&category&subcategory&IF(OR(M$59="A4",M$59="A5"),3,5)&system&wyear&daytype&month_num&MATCH(1,INDIRECT(INDEX(rahours_months,month_num)&IF(OR(M$42="A4",M$42="A5"),"_direct","")),0),data_key,0),$H$1),0,0,IF(OR(M$59="A4",M$59="A5"),3,5),1), OFFSET(INDEX(load_multipliers,MATCH(M$59&category&subcategory&$E60&month_num&daytype&MATCH(1,INDIRECT(INDEX(rahours_months,month_num)&IF(OR(M$42="A4",M$42="A5"),"_direct","")),0),load_multipliers_key,0),MATCH("impact_multiplier",load_multipliers_x,0)),0,0,IF(OR(M$59="A4",M$59="A5"),3,5),1))/IF(OR(M$59="A4",M$59="A5"),3,5) * IF(result_type = "Aggregate", INDEX(enrollment, MATCH(M$59&category&subcategory&$E60&month_num,enrollment_key,0),MATCH("sites",enrollment_x,0))/1000,1) * -1),"") -> 19.42668906
E61: =INDEX(years_list,ROW($D61)-ROW($D$59)) -> 2026 | F61: =IFERROR(IF(AND(public,INDEX(program_conf_list,MATCH(Results!F$59,program_list,0))),"", SUMPRODUCT(OFFSET(INDEX(data,MATCH(F$59&portfolio&category&subcategory&IF(OR(F$59="A4",F$59="A5"),3,5)&system&wyear&daytype&month_num&MATCH(1,INDIRECT(INDEX(rahours_months,month_num)&IF(OR(F$42="A4",F$42="A5"),"_direct","")),0),data_key,0),$H$1),0,0,IF(OR(F$59="A4",F$59="A5"),3,5),1), OFFSET(INDEX(load_multipliers,MATCH(F$59&category&subcategory&$E61&month_num&daytype&MATCH(1,INDIRECT(INDEX(rahours_months,month_num)&IF(OR(F$42="A4",F$42="A5"),"_direct","")),0),load_multipliers_key,0),MATCH("impact_multiplier",load_multipliers_x,0)),0,0,IF(OR(F$59="A4",F$59="A5"),3,5),1))/IF(OR(F$59="A4",F$59="A5"),3,5) * IF(result_type = "Aggregate", INDEX(enrollment, MATCH(F$59&category&subcategory&$E61&month_num,enrollment_key,0),MATCH("sites",enrollment_x,0))/1000,1) * -1),"") -> 4.943540563 | G61: =IFERROR(IF(AND(public,INDEX(program_conf_list,MATCH(Results!G$59,program_list,0))),"", SUMPRODUCT(OFFSET(INDEX(data,MATCH(G$59&portfolio&category&subcategory&IF(OR(G$59="A4",G$59="A5"),3,5)&system&wyear&daytype&month_num&MATCH(1,INDIRECT(INDEX(rahours_months,month_num)&IF(OR(G$42="A4",G$42="A5"),"_direct","")),0),data_key,0),$H$1),0,0,IF(OR(G$59="A4",G$59="A5"),3,5),1), OFFSET(INDEX(load_multipliers,MATCH(G$59&category&subcategory&$E61&month_num&daytype&MATCH(1,INDIRECT(INDEX(rahours_months,month_num)&IF(OR(G$42="A4",G$42="A5"),"_direct","")),0),load_multipliers_key,0),MATCH("impact_multiplier",load_multipliers_x,0)),0,0,IF(OR(G$59="A4",G$59="A5"),3,5),1))/IF(OR(G$59="A4",G$59="A5"),3,5) * IF(result_type = "Aggregate", INDEX(enrollment, MATCH(G$59&category&subcategory&$E61&month_num,enrollment_key,0),MATCH("sites",enrollment_x,0))/1000,1) * -1),"") ->  | H61: =IFERROR(IF(AND(public,INDEX(program_conf_list,MATCH(Results!H$59,program_list,0))),"", SUMPRODUCT(OFFSET(INDEX(data,MATCH(H$59&portfolio&category&subcategory&IF(OR(H$59="A4",H$59="A5"),3,5)&system&wyear&daytype&month_num&MATCH(1,INDIRECT(INDEX(rahours_months,month_num)&IF(OR(H$42="A4",H$42="A5"),"_direct","")),0),data_key,0),$H$1),0,0,IF(OR(H$59="A4",H$59="A5"),3,5),1), OFFSET(INDEX(load_multipliers,MATCH(H$59&category&subcategory&$E61&month_num&daytype&MATCH(1,INDIRECT(INDEX(rahours_months,month_num)&IF(OR(H$42="A4",H$42="A5"),"_direct","")),0),load_multipliers_key,0),MATCH("impact_multiplier",load_multipliers_x,0)),0,0,IF(OR(H$59="A4",H$59="A5"),3,5),1))/IF(OR(H$59="A4",H$59="A5"),3,5) * IF(result_type = "Aggregate", INDEX(enrollment, MATCH(H$59&category&subcategory&$E61&month_num,enrollment_key,0),MATCH("sites",enrollment_x,0))/1000,1) * -1),"") -> 0 | I61: =IFERROR(IF(AND(public,INDEX(program_conf_list,MATCH(Results!I$59,program_list,0))),"", SUMPRODUCT(OFFSET(INDEX(data,MATCH(I$59&portfolio&category&subcategory&IF(OR(I$59="A4",I$59="A5"),3,5)&system&wyear&daytype&month_num&MATCH(1,INDIRECT(INDEX(rahours_months,month_num)&IF(OR(I$42="A4",I$42="A5"),"_direct","")),0),data_key,0),$H$1),0,0,IF(OR(I$59="A4",I$59="A5"),3,5),1), OFFSET(INDEX(load_multipliers,MATCH(I$59&category&subcategory&$E61&month_num&daytype&MATCH(1,INDIRECT(INDEX(rahours_months,month_num)&IF(OR(I$42="A4",I$42="A5"),"_direct","")),0),load_multipliers_key,0),MATCH("impact_multiplier",load_multipliers_x,0)),0,0,IF(OR(I$59="A4",I$59="A5"),3,5),1))/IF(OR(I$59="A4",I$59="A5"),3,5) * IF(result_type = "Aggregate", INDEX(enrollment, MATCH(I$59&category&subcategory&$E61&month_num,enrollment_key,0),MATCH("sites",enrollment_x,0))/1000,1) * -1),"") ->  | J61: =IFERROR(IF(AND(public,INDEX(program_conf_list,MATCH(Results!J$59,program_list,0))),"", SUMPRODUCT(OFFSET(INDEX(data,MATCH(J$59&portfolio&category&subcategory&IF(OR(J$59="A4",J$59="A5"),3,5)&system&wyear&daytype&month_num&MATCH(1,INDIRECT(INDEX(rahours_months,month_num)&IF(OR(J$42="A4",J$42="A5"),"_direct","")),0),data_key,0),$H$1),0,0,IF(OR(J$59="A4",J$59="A5"),3,5),1), OFFSET(INDEX(load_multipliers,MATCH(J$59&category&subcategory&$E61&month_num&daytype&MATCH(1,INDIRECT(INDEX(rahours_months,month_num)&IF(OR(J$42="A4",J$42="A5"),"_direct","")),0),load_multipliers_key,0),MATCH("impact_multiplier",load_multipliers_x,0)),0,0,IF(OR(J$59="A4",J$59="A5"),3,5),1))/IF(OR(J$59="A4",J$59="A5"),3,5) * IF(result_type = "Aggregate", INDEX(enrollment, MATCH(J$59&category&subcategory&$E61&month_num,enrollment_key,0),MATCH("sites",enrollment_x,0))/1000,1) * -1),"") -> 24.75508273 | K61: =IFERROR(IF(AND(public,INDEX(program_conf_list,MATCH(Results!K$59,program_list,0))),"", SUMPRODUCT(OFFSET(INDEX(data,MATCH(K$59&portfolio&category&subcategory&IF(OR(K$59="A4",K$59="A5"),3,5)&system&wyear&daytype&month_num&MATCH(1,INDIRECT(INDEX(rahours_months,month_num)&IF(OR(K$42="A4",K$42="A5"),"_direct","")),0),data_key,0),$H$1),0,0,IF(OR(K$59="A4",K$59="A5"),3,5),1), OFFSET(INDEX(load_multipliers,MATCH(K$59&category&subcategory&$E61&month_num&daytype&MATCH(1,INDIRECT(INDEX(rahours_months,month_num)&IF(OR(K$42="A4",K$42="A5"),"_direct","")),0),load_multipliers_key,0),MATCH("impact_multiplier",load_multipliers_x,0)),0,0,IF(OR(K$59="A4",K$59="A5"),3,5),1))/IF(OR(K$59="A4",K$59="A5"),3,5) * IF(result_type = "Aggregate", INDEX(enrollment, MATCH(K$59&category&subcategory&$E61&month_num,enrollment_key,0),MATCH("sites",enrollment_x,0))/1000,1) * -1),"") -> 2.000905633 | L61: =IFERROR(IF(AND(public,INDEX(program_conf_list,MATCH(Results!L$59,program_list,0))),"", SUMPRODUCT(OFFSET(INDEX(data,MATCH(L$59&portfolio&category&subcategory&IF(OR(L$59="A4",L$59="A5"),3,5)&system&wyear&daytype&month_num&MATCH(1,INDIRECT(INDEX(rahours_months,month_num)&IF(OR(L$42="A4",L$42="A5"),"_direct","")),0),data_key,0),$H$1),0,0,IF(OR(L$59="A4",L$59="A5"),3,5),1), OFFSET(INDEX(load_multipliers,MATCH(L$59&category&subcategory&$E61&month_num&daytype&MATCH(1,INDIRECT(INDEX(rahours_months,month_num)&IF(OR(L$42="A4",L$42="A5"),"_direct","")),0),load_multipliers_key,0),MATCH("impact_multiplier",load_multipliers_x,0)),0,0,IF(OR(L$59="A4",L$59="A5"),3,5),1))/IF(OR(L$59="A4",L$59="A5"),3,5) * IF(result_type = "Aggregate", INDEX(enrollment, MATCH(L$59&category&subcategory&$E61&month_num,enrollment_key,0),MATCH("sites",enrollment_x,0))/1000,1) * -1),"") -> 2.742055777 | M61: =IFERROR(IF(AND(public,INDEX(program_conf_list,MATCH(Results!M$59,program_list,0))),"", SUMPRODUCT(OFFSET(INDEX(data,MATCH(M$59&portfolio&category&subcategory&IF(OR(M$59="A4",M$59="A5"),3,5)&system&wyear&daytype&month_num&MATCH(1,INDIRECT(INDEX(rahours_months,month_num)&IF(OR(M$42="A4",M$42="A5"),"_direct","")),0),data_key,0),$H$1),0,0,IF(OR(M$59="A4",M$59="A5"),3,5),1), OFFSET(INDEX(load_multipliers,MATCH(M$59&category&subcategory&$E61&month_num&daytype&MATCH(1,INDIRECT(INDEX(rahours_months,month_num)&IF(OR(M$42="A4",M$42="A5"),"_direct","")),0),load_multipliers_key,0),MATCH("impact_multiplier",load_multipliers_x,0)),0,0,IF(OR(M$59="A4",M$59="A5"),3,5),1))/IF(OR(M$59="A4",M$59="A5"),3,5) * IF(result_type = "Aggregate", INDEX(enrollment, MATCH(M$59&category&subcategory&$E61&month_num,enrollment_key,0),MATCH("sites",enrollment_x,0))/1000,1) * -1),"") -> 23.77518072
E62: =INDEX(years_list,ROW($D62)-ROW($D$59)) -> 2027 | F62: =IFERROR(IF(AND(public,INDEX(program_conf_list,MATCH(Results!F$59,program_list,0))),"", SUMPRODUCT(OFFSET(INDEX(data,MATCH(F$59&portfolio&category&subcategory&IF(OR(F$59="A4",F$59="A5"),3,5)&system&wyear&daytype&month_num&MATCH(1,INDIRECT(INDEX(rahours_months,month_num)&IF(OR(F$42="A4",F$42="A5"),"_direct","")),0),data_key,0),$H$1),0,0,IF(OR(F$59="A4",F$59="A5"),3,5),1), OFFSET(INDEX(load_multipliers,MATCH(F$59&category&subcategory&$E62&month_num&daytype&MATCH(1,INDIRECT(INDEX(rahours_months,month_num)&IF(OR(F$42="A4",F$42="A5"),"_direct","")),0),load_multipliers_key,0),MATCH("impact_multiplier",load_multipliers_x,0)),0,0,IF(OR(F$59="A4",F$59="A5"),3,5),1))/IF(OR(F$59="A4",F$59="A5"),3,5) * IF(result_type = "Aggregate", INDEX(enrollment, MATCH(F$59&category&subcategory&$E62&month_num,enrollment_key,0),MATCH("sites",enrollment_x,0))/1000,1) * -1),"") -> 5.000944944 | G62: =IFERROR(IF(AND(public,INDEX(program_conf_list,MATCH(Results!G$59,program_list,0))),"", SUMPRODUCT(OFFSET(INDEX(data,MATCH(G$59&portfolio&category&subcategory&IF(OR(G$59="A4",G$59="A5"),3,5)&system&wyear&daytype&month_num&MATCH(1,INDIRECT(INDEX(rahours_months,month_num)&IF(OR(G$42="A4",G$42="A5"),"_direct","")),0),data_key,0),$H$1),0,0,IF(OR(G$59="A4",G$59="A5"),3,5),1), OFFSET(INDEX(load_multipliers,MATCH(G$59&category&subcategory&$E62&month_num&daytype&MATCH(1,INDIRECT(INDEX(rahours_months,month_num)&IF(OR(G$42="A4",G$42="A5"),"_direct","")),0),load_multipliers_key,0),MATCH("impact_multiplier",load_multipliers_x,0)),0,0,IF(OR(G$59="A4",G$59="A5"),3,5),1))/IF(OR(G$59="A4",G$59="A5"),3,5) * IF(result_type = "Aggregate", INDEX(enrollment, MATCH(G$59&category&subcategory&$E62&month_num,enrollment_key,0),MATCH("sites",enrollment_x,0))/1000,1) * -1),"") ->  | H62: =IFERROR(IF(AND(public,INDEX(program_conf_list,MATCH(Results!H$59,program_list,0))),"", SUMPRODUCT(OFFSET(INDEX(data,MATCH(H$59&portfolio&category&subcategory&IF(OR(H$59="A4",H$59="A5"),3,5)&system&wyear&daytype&month_num&MATCH(1,INDIRECT(INDEX(rahours_months,month_num)&IF(OR(H$42="A4",H$42="A5"),"_direct","")),0),data_key,0),$H$1),0,0,IF(OR(H$59="A4",H$59="A5"),3,5),1), OFFSET(INDEX(load_multipliers,MATCH(H$59&category&subcategory&$E62&month_num&daytype&MATCH(1,INDIRECT(INDEX(rahours_months,month_num)&IF(OR(H$42="A4",H$42="A5"),"_direct","")),0),load_multipliers_key,0),MATCH("impact_multiplier",load_multipliers_x,0)),0,0,IF(OR(H$59="A4",H$59="A5"),3,5),1))/IF(OR(H$59="A4",H$59="A5"),3,5) * IF(result_type = "Aggregate", INDEX(enrollment, MATCH(H$59&category&subcategory&$E62&month_num,enrollment_key,0),MATCH("sites",enrollment_x,0))/1000,1) * -1),"") -> 0 | I62: =IFERROR(IF(AND(public,INDEX(program_conf_list,MATCH(Results!I$59,program_list,0))),"", SUMPRODUCT(OFFSET(INDEX(data,MATCH(I$59&portfolio&category&subcategory&IF(OR(I$59="A4",I$59="A5"),3,5)&system&wyear&daytype&month_num&MATCH(1,INDIRECT(INDEX(rahours_months,month_num)&IF(OR(I$42="A4",I$42="A5"),"_direct","")),0),data_key,0),$H$1),0,0,IF(OR(I$59="A4",I$59="A5"),3,5),1), OFFSET(INDEX(load_multipliers,MATCH(I$59&category&subcategory&$E62&month_num&daytype&MATCH(1,INDIRECT(INDEX(rahours_months,month_num)&IF(OR(I$42="A4",I$42="A5"),"_direct","")),0),load_multipliers_key,0),MATCH("impact_multiplier",load_multipliers_x,0)),0,0,IF(OR(I$59="A4",I$59="A5"),3,5),1))/IF(OR(I$59="A4",I$59="A5"),3,5) * IF(result_type = "Aggregate", INDEX(enrollment, MATCH(I$59&category&subcategory&$E62&month_num,enrollment_key,0),MATCH("sites",enrollment_x,0))/1000,1) * -1),"") ->  | J62: =IFERROR(IF(AND(public,INDEX(program_conf_list,MATCH(Results!J$59,program_list,0))),"", SUMPRODUCT(OFFSET(INDEX(data,MATCH(J$59&portfolio&category&subcategory&IF(OR(J$59="A4",J$59="A5"),3,5)&system&wyear&daytype&month_num&MATCH(1,INDIRECT(INDEX(rahours_months,month_num)&IF(OR(J$42="A4",J$42="A5"),"_direct","")),0),data_key,0),$H$1),0,0,IF(OR(J$59="A4",J$59="A5"),3,5),1), OFFSET(INDEX(load_multipliers,MATCH(J$59&category&subcategory&$E62&month_num&daytype&MATCH(1,INDIRECT(INDEX(rahours_months,month_num)&IF(OR(J$42="A4",J$42="A5"),"_direct","")),0),load_multipliers_key,0),MATCH("impact_multiplier",load_multipliers_x,0)),0,0,IF(OR(J$59="A4",J$59="A5"),3,5),1))/IF(OR(J$59="A4",J$59="A5"),3,5) * IF(result_type = "Aggregate", INDEX(enrollment, MATCH(J$59&category&subcategory&$E62&month_num,enrollment_key,0),MATCH("sites",enrollment_x,0))/1000,1) * -1),"") -> 29.35013158 | K62: =IFERROR(IF(AND(public,INDEX(program_conf_list,MATCH(Results!K$59,program_list,0))),"", SUMPRODUCT(OFFSET(INDEX(data,MATCH(K$59&portfolio&category&subcategory&IF(OR(K$59="A4",K$59="A5"),3,5)&system&wyear&daytype&month_num&MATCH(1,INDIRECT(INDEX(rahours_months,month_num)&IF(OR(K$42="A4",K$42="A5"),"_direct","")),0),data_key,0),$H$1),0,0,IF(OR(K$59="A4",K$59="A5"),3,5),1), OFFSET(INDEX(load_multipliers,MATCH(K$59&category&subcategory&$E62&month_num&daytype&MATCH(1,INDIRECT(INDEX(rahours_months,month_num)&IF(OR(K$42="A4",K$42="A5"),"_direct","")),0),load_multipliers_key,0),MATCH("impact_multiplier",load_multipliers_x,0)),0,0,IF(OR(K$59="A4",K$59="A5"),3,5),1))/IF(OR(K$59="A4",K$59="A5"),3,5) * IF(result_type = "Aggregate", INDEX(enrollment, MATCH(K$59&category&subcategory&$E62&month_num,enrollment_key,0),MATCH("sites",enrollment_x,0))/1000,1) * -1),"") -> 2.001545757 | L62: =IFERROR(IF(AND(public,INDEX(program_conf_list,MATCH(Results!L$59,program_list,0))),"", SUMPRODUCT(OFFSET(INDEX(data,MATCH(L$59&portfolio&category&subcategory&IF(OR(L$59="A4",L$59="A5"),3,5)&system&wyear&daytype&month_num&MATCH(1,INDIRECT(INDEX(rahours_months,month_num)&IF(OR(L$42="A4",L$42="A5"),"_direct","")),0),data_key,0),$H$1),0,0,IF(OR(L$59="A4",L$59="A5"),3,5),1), OFFSET(INDEX(load_multipliers,MATCH(L$59&category&subcategory&$E62&month_num&daytype&MATCH(1,INDIRECT(INDEX(rahours_months,month_num)&IF(OR(L$42="A4",L$42="A5"),"_direct","")),0),load_multipliers_key,0),MATCH("impact_multiplier",load_multipliers_x,0)),0,0,IF(OR(L$59="A4",L$59="A5"),3,5),1))/IF(OR(L$59="A4",L$59="A5"),3,5) * IF(result_type = "Aggregate", INDEX(enrollment, MATCH(L$59&category&subcategory&$E62&month_num,enrollment_key,0),MATCH("sites",enrollment_x,0))/1000,1) * -1),"") -> 2.742055777 | M62: =IFERROR(IF(AND(public,INDEX(program_conf_list,MATCH(Results!M$59,program_list,0))),"", SUMPRODUCT(OFFSET(INDEX(data,MATCH(M$59&portfolio&category&subcategory&IF(OR(M$59="A4",M$59="A5"),3,5)&system&wyear&daytype&month_num&MATCH(1,INDIRECT(INDEX(rahours_months,month_num)&IF(OR(M$42="A4",M$42="A5"),"_direct","")),0),data_key,0),$H$1),0,0,IF(OR(M$59="A4",M$59="A5"),3,5),1), OFFSET(INDEX(load_multipliers,MATCH(M$59&category&subcategory&$E62&month_num&daytype&MATCH(1,INDIRECT(INDEX(rahours_months,month_num)&IF(OR(M$42="A4",M$42="A5"),"_direct","")),0),load_multipliers_key,0),MATCH("impact_multiplier",load_multipliers_x,0)),0,0,IF(OR(M$59="A4",M$59="A5"),3,5),1))/IF(OR(M$59="A4",M$59="A5"),3,5) * IF(result_type = "Aggregate", INDEX(enrollment, MATCH(M$59&category&subcategory&$E62&month_num,enrollment_key,0),MATCH("sites",enrollment_x,0))/1000,1) * -1),"") -> 26.59322078

Sheet Slice of Day
F1: 1 | G1: 2 | H1: 3 | I1: 4 | J1: 5 | K1: 6 | L1: 7 | M1: 8 | N1: 9 | O1: 10 | P1: 11 | Q1: 12
A2: =Results!A2 -> Pacific Gas & Electric
A3: =Results!A3 -> 2025 ELRP Ex Ante Load Impacts
E4: =IFERROR(IF(AND($F$7="",$C$18<>"Confidential"),"Table will update when a valid subcategory is selected.",""),"Table will update when a valid subcategory is selected.") -> 
F5: =IF(daytype = "TYPICAL EVENT DAY", "August", "January") -> January | G5: =IF(daytype = "TYPICAL EVENT DAY","", "February") -> February | H5: =IF(daytype = "TYPICAL EVENT DAY", "", "March") -> March | I5: =IF(daytype = "TYPICAL EVENT DAY", "", "April") -> April | J5: =IF(daytype = "TYPICAL EVENT DAY", "", "May") -> May | K5: =IF(daytype = "TYPICAL EVENT DAY", "", "June") -> June | L5: =IF(daytype = "TYPICAL EVENT DAY", "", "July") -> July | M5: =IF(daytype = "TYPICAL EVENT DAY", "", "August") -> August | N5: =IF(daytype = "TYPICAL EVENT DAY", "", "September") -> September | O5: =IF(daytype = "TYPICAL EVENT DAY", "", "October") -> October | P5: =IF(daytype = "TYPICAL EVENT DAY", "", "November") -> November | Q5: =IF(daytype = "TYPICAL EVENT DAY", "", "December") -> December
B6: Table 1: Menu options | E6: Hour Ending | F6: Jan | G6: Feb | H6: Mar | I6: Apr | J6: May | K6: Jun | L6: Jul | M6: Aug | N6: Sep | O6: Oct | P6: Nov | Q6: Dec | S6: SE Aug | T6: Sig. 95%
B7: Type of results | C7: Aggregate | E7: 1 | F7: =IFERROR(IF(AND(public,confidential_slice),"",INDEX(data,--AND(F$1>=3,F$1<=10)*Data!$AD5+MATCH(Lists!$S$31&VLOOKUP(F$5,months,2,FALSE)&TEXT($E7+Lists!$AD5,"00"),data_key,0),Results!$H$1) *Lists!AE5 * IF(result_type_slice = "Aggregate", INDEX(enrollment, MATCH(program_slice&category_slice&subcategory_slice&year_slice&VLOOKUP(F$5,months,2,FALSE),enrollment_key,0),MATCH("sites",enrollment_x,0))/1000, 1) * -1), "") -> 0 | G7: =IFERROR(IF(AND(public,confidential_slice),"",INDEX(data,--AND(G$1>=3,G$1<=10)*Data!$AD5+MATCH(Lists!$S$31&VLOOKUP(G$5,months,2,FALSE)&TEXT($E7+Lists!$AD5,"00"),data_key,0),Results!$H$1) *Lists!AF5 * IF(result_type_slice = "Aggregate", INDEX(enrollment, MATCH(program_slice&category_slice&subcategory_slice&year_slice&VLOOKUP(G$5,months,2,FALSE),enrollment_key,0),MATCH("sites",enrollment_x,0))/1000, 1) * -1), "") -> 0 | H7: =IFERROR(IF(AND(public,confidential_slice),"",INDEX(data,--AND(H$1>=3,H$1<=10)*Data!$AD5+MATCH(Lists!$S$31&VLOOKUP(H$5,months,2,FALSE)&TEXT($E7+Lists!$AD5,"00"),data_key,0),Results!$H$1) *Lists!AG5 * IF(result_type_slice = "Aggregate", INDEX(enrollment, MATCH(program_slice&category_slice&subcategory_slice&year_slice&VLOOKUP(H$5,months,2,FALSE),enrollment_key,0),MATCH("sites",enrollment_x,0))/1000, 1) * -1), "") -> 0 | I7: =IFERROR(IF(AND(public,confidential_slice),"",INDEX(data,--AND(I$1>=3,I$1<=10)*Data!$AD5+MATCH(Lists!$S$31&VLOOKUP(I$5,months,2,FALSE)&TEXT($E7+Lists!$AD5,"00"),data_key,0),Results!$H$1) *Lists!AH5 * IF(result_type_slice = "Aggregate", INDEX(enrollment, MATCH(program_slice&category_slice&subcategory_slice&year_slice&VLOOKUP(I$5,months,2,FALSE),enrollment_key,0),MATCH("sites",enrollment_x,0))/1000, 1) * -1), "") -> 0 | J7: =IFERROR(IF(AND(public,confidential_slice),"",INDEX(data,--AND(J$1>=3,J$1<=10)*Data!$AD5+MATCH(Lists!$S$31&VLOOKUP(J$5,months,2,FALSE)&TEXT($E7+Lists!$AD5,"00"),data_key,0),Results!$H$1) *Lists!AI5 * IF(result_type_slice = "Aggregate", INDEX(enrollment, MATCH(program_slice&category_slice&subcategory_slice&year_slice&VLOOKUP(J$5,months,2,FALSE),enrollment_key,0),MATCH("sites",enrollment_x,0))/1000, 1) * -1), "") -> 0 | K7: =IFERROR(IF(AND(public,confidential_slice),"",INDEX(data,--AND(K$1>=3,K$1<=10)*Data!$AD5+MATCH(Lists!$S$31&VLOOKUP(K$5,months,2,FALSE)&TEXT($E7+Lists!$AD5,"00"),data_key,0),Results!$H$1) *Lists!AJ5 * IF(result_type_slice = "Aggregate", INDEX(enrollment, MATCH(program_slice&category_slice&subcategory_slice&year_slice&VLOOKUP(K$5,months,2,FALSE),enrollment_key,0),MATCH("sites",enrollment_x,0))/1000, 1) * -1), "") -> 0 | L7: =IFERROR(IF(AND(public,confidential_slice),"",INDEX(data,--AND(L$1>=3,L$1<=10)*Data!$AD5+MATCH(Lists!$S$31&VLOOKUP(L$5,months,2,FALSE)&TEXT($E7+Lists!$AD5,"00"),data_key,0),Results!$H$1) *Lists!AK5 * IF(result_type_slice = "Aggregate", INDEX(enrollment, MATCH(program_slice&category_slice&subcategory_slice&year_slice&VLOOKUP(L$5,months,2,FALSE),enrollment_key,0),MATCH("sites",enrollment_x,0))/1000, 1) * -1), "") -> 0 | M7: =IFERROR(IF(AND(public,confidential_slice),"",INDEX(data,--AND(M$1>=3,M$1<=10)*Data!$AD5+MATCH(Lists!$S$31&VLOOKUP(M$5,months,2,FALSE)&TEXT($E7+Lists!$AD5,"00"),data_key,0),Results!$H$1) *Lists!AL5 * IF(result_type_slice = "Aggregate", INDEX(enrollment, MATCH(program_slice&category_slice&subcategory_slice&year_slice&VLOOKUP(M$5,months,2,FALSE),enrollment_key,0),MATCH("sites",enrollment_x,0))/1000, 1) * -1), "") -> 0 | N7: =IFERROR(IF(AND(public,confidential_slice),"",INDEX(data,--AND(N$1>=3,N$1<=10)*Data!$AD5+MATCH(Lists!$S$31&VLOOKUP(N$5,months,2,FALSE)&TEXT($E7+Lists!$AD5,"00"),data_key,0),Results!$H$1) *Lists!AM5 * IF(result_type_slice = "Aggregate", INDEX(enrollment, MATCH(program_slice&category_slice&subcategory_slice&year_slice&VLOOKUP(N$5,months,2,FALSE),enrollment_key,0),MATCH("sites",enrollment_x,0))/1000, 1) * -1), "") -> 0 | O7: =IFERROR(IF(AND(public,confidential_slice),"",INDEX(data,--AND(O$1>=3,O$1<=10)*Data!$AD5+MATCH(Lists!$S$31&VLOOKUP(O$5,months,2,FALSE)&TEXT($E7+Lists!$AD5,"00"),data_key,0),Results!$H$1) *Lists!AN5 * IF(result_type_slice = "Aggregate", INDEX(enrollment, MATCH(program_slice&category_slice&subcategory_slice&year_slice&VLOOKUP(O$5,months,2,FALSE),enrollment_key,0),MATCH("sites",enrollment_x,0))/1000, 1) * -1), "") -> 0 | P7: =IFERROR(IF(AND(public,confidential_slice),"",INDEX(data,--AND(P$1>=3,P$1<=10)*Data!$AD5+MATCH(Lists!$S$31&VLOOKUP(P$5,months,2,FALSE)&TEXT($E7+Lists!$AD5,"00"),data_key,0),Results!$H$1) *Lists!AO5 * IF(result_type_slice = "Aggregate", INDEX(enrollment, MATCH(program_slice&category_slice&subcategory_slice&year_slice&VLOOKUP(P$5,months,2,FALSE),enrollment_key,0),MATCH("sites",enrollment_x,0))/1000, 1) * -1), "") -> 0 | Q7: =IFERROR(IF(AND(public,confidential_slice),"",INDEX(data,--AND(Q$1>=3,Q$1<=10)*Data!$AD5+MATCH(Lists!$S$31&VLOOKUP(Q$5,months,2,FALSE)&TEXT($E7+Lists!$AD5,"00"),data_key,0),Results!$H$1) *Lists!AP5 * IF(result_type_slice = "Aggregate", INDEX(enrollment, MATCH(program_slice&category_slice&subcategory_slice&year_slice&VLOOKUP(Q$5,months,2,FALSE),enrollment_key,0),MATCH("sites",enrollment_x,0))/1000, 1) * -1), "") -> 0 | S7: =IFERROR(IF(AND(public,confidential_slice),"",INDEX(data,MATCH(Lists!$S$31&VLOOKUP(M$5,months,2,FALSE)&TEXT($E7+Lists!$AD5,"00"),data_key,0),Results!$N$1) *Lists!AL5 * IF(result_type_slice = "Aggregate", INDEX(enrollment, MATCH(program_slice&category_slice&subcategory_slice&year_slice&VLOOKUP(M$5,months,2,FALSE),enrollment_key,0),MATCH("sites",enrollment_x,0))/1000, 1) * -1), "") -> 0 | T7: =IF($S7 = "","",IF(OR($S7 = 0,IF($S7 = 0,0,ABS($M7/$S7)) > _xlfn.NORM.S.INV(0.975)),"Yes","No")) -> Yes
B8: Program | C8: A1 | E8: 2 | F8: =IFERROR(IF(AND(public,confidential_slice),"",INDEX(data,--AND(F$1>=3,F$1<=10)*Data!$AD6+MATCH(Lists!$S$31&VLOOKUP(F$5,months,2,FALSE)&TEXT($E8+Lists!$AD6,"00"),data_key,0),Results!$H$1) *Lists!AE6 * IF(result_type_slice = "Aggregate", INDEX(enrollment, MATCH(program_slice&category_slice&subcategory_slice&year_slice&VLOOKUP(F$5,months,2,FALSE),enrollment_key,0),MATCH("sites",enrollment_x,0))/1000, 1) * -1), "") -> 0 | G8: =IFERROR(IF(AND(public,confidential_slice),"",INDEX(data,--AND(G$1>=3,G$1<=10)*Data!$AD6+MATCH(Lists!$S$31&VLOOKUP(G$5,months,2,FALSE)&TEXT($E8+Lists!$AD6,"00"),data_key,0),Results!$H$1) *Lists!AF6 * IF(result_type_slice = "Aggregate", INDEX(enrollment, MATCH(program_slice&category_slice&subcategory_slice&year_slice&VLOOKUP(G$5,months,2,FALSE),enrollment_key,0),MATCH("sites",enrollment_x,0))/1000, 1) * -1), "") -> 0 | H8: =IFERROR(IF(AND(public,confidential_slice),"",INDEX(data,--AND(H$1>=3,H$1<=10)*Data!$AD6+MATCH(Lists!$S$31&VLOOKUP(H$5,months,2,FALSE)&TEXT($E8+Lists!$AD6,"00"),data_key,0),Results!$H$1) *Lists!AG6 * IF(result_type_slice = "Aggregate", INDEX(enrollment, MATCH(program_slice&category_slice&subcategory_slice&year_slice&VLOOKUP(H$5,months,2,FALSE),enrollment_key,0),MATCH("sites",enrollment_x,0))/1000, 1) * -1), "") -> 0 | I8: =IFERROR(IF(AND(public,confidential_slice),"",INDEX(data,--AND(I$1>=3,I$1<=10)*Data!$AD6+MATCH(Lists!$S$31&VLOOKUP(I$5,months,2,FALSE)&TEXT($E8+Lists!$AD6,"00"),data_key,0),Results!$H$1) *Lists!AH6 * IF(result_type_slice = "Aggregate", INDEX(enrollment, MATCH(program_slice&category_slice&subcategory_slice&year_slice&VLOOKUP(I$5,months,2,FALSE),enrollment_key,0),MATCH("sites",enrollment_x,0))/1000, 1) * -1), "") -> 0 | J8: =IFERROR(IF(AND(public,confidential_slice),"",INDEX(data,--AND(J$1>=3,J$1<=10)*Data!$AD6+MATCH(Lists!$S$31&VLOOKUP(J$5,months,2,FALSE)&TEXT($E8+Lists!$AD6,"00"),data_key,0),Results!$H$1) *Lists!AI6 * IF(result_type_slice = "Aggregate", INDEX(enrollment, MATCH(program_slice&category_slice&subcategory_slice&year_slice&VLOOKUP(J$5,months,2,FALSE),enrollment_key,0),MATCH("sites",enrollment_x,0))/1000, 1) * -1), "") -> 0 | K8: =IFERROR(IF(AND(public,confidential_slice),"",INDEX(data,--AND(K$1>=3,K$1<=10)*Data!$AD6+MATCH(Lists!$S$31&VLOOKUP(K$5,months,2,FALSE)&TEXT($E8+Lists!$AD6,"00"),data_key,0),Results!$H$1) *Lists!AJ6 * IF(result_type_slice = "Aggregate", INDEX(enrollment, MATCH(program_slice&category_slice&subcategory_slice&year_slice&VLOOKUP(K$5,months,2,FALSE),enrollment_key,0),MATCH("sites",enrollment_x,0))/1000, 1) * -1), "") -> 0 | L8: =IFERROR(IF(AND(public,confidential_slice),"",INDEX(data,--AND(L$1>=3,L$1<=10)*Data!$AD6+MATCH(Lists!$S$31&VLOOKUP(L$5,months,2,FALSE)&TEXT($E8+Lists!$AD6,"00"),data_key,0),Results!$H$1) *Lists!AK6 * IF(result_type_slice = "Aggregate", INDEX(enrollment, MATCH(program_slice&category_slice&subcategory_slice&year_slice&VLOOKUP(L$5,months,2,FALSE),enrollment_key,0),MATCH("sites",enrollment_x,0))/1000, 1) * -1), "") -> 0 | M8: =IFERROR(IF(AND(public,confidential_slice),"",INDEX(data,--AND(M$1>=3,M$1<=10)*Data!$AD6+MATCH(Lists!$S$31&VLOOKUP(M$5,months,2,FALSE)&TEXT($E8+Lists!$AD6,"00"),data_key,0),Results!$H$1) *Lists!AL6 * IF(result_type_slice = "Aggregate", INDEX(enrollment, MATCH(program_slice&category_slice&subcategory_slice&year_slice&VLOOKUP(M$5,months,2,FALSE),enrollment_key,0),MATCH("sites",enrollment_x,0))/1000, 1) * -1), "") -> 0 | N8: =IFERROR(IF(AND(public,confidential_slice),"",INDEX(data,--AND(N$1>=3,N$1<=10)*Data!$AD6+MATCH(Lists!$S$31&VLOOKUP(N$5,months,2,FALSE)&TEXT($E8+Lists!$AD6,"00"),data_key,0),Results!$H$1) *Lists!AM6 * IF(result_type_slice = "Aggregate", INDEX(enrollment, MATCH(program_slice&category_slice&subcategory_slice&year_slice&VLOOKUP(N$5,months,2,FALSE),enrollment_key,0),MATCH("sites",enrollment_x,0))/1000, 1) * -1), "") -> 0 | O8: =IFERROR(IF(AND(public,confidential_slice),"",INDEX(data,--AND(O$1>=3,O$1<=10)*Data!$AD6+MATCH(Lists!$S$31&VLOOKUP(O$5,months,2,FALSE)&TEXT($E8+Lists!$AD6,"00"),data_key,0),Results!$H$1) *Lists!AN6 * IF(result_type_slice = "Aggregate", INDEX(enrollment, MATCH(program_slice&category_slice&subcategory_slice&year_slice&VLOOKUP(O$5,months,2,FALSE),enrollment_key,0),MATCH("sites",enrollment_x,0))/1000, 1) * -1), "") -> 0 | P8: =IFERROR(IF(AND(public,confidential_slice),"",INDEX(data,--AND(P$1>=3,P$1<=10)*Data!$AD6+MATCH(Lists!$S$31&VLOOKUP(P$5,months,2,FALSE)&TEXT($E8+Lists!$AD6,"00"),data_key,0),Results!$H$1) *Lists!AO6 * IF(result_type_slice = "Aggregate", INDEX(enrollment, MATCH(program_slice&category_slice&subcategory_slice&year_slice&VLOOKUP(P$5,months,2,FALSE),enrollment_key,0),MATCH("sites",enrollment_x,0))/1000, 1) * -1), "") -> 0 | Q8: =IFERROR(IF(AND(public,confidential_slice),"",INDEX(data,--AND(Q$1>=3,Q$1<=10)*Data!$AD6+MATCH(Lists!$S$31&VLOOKUP(Q$5,months,2,FALSE)&TEXT($E8+Lists!$AD6,"00"),data_key,0),Results!$H$1) *Lists!AP6 * IF(result_type_slice = "Aggregate", INDEX(enrollment, MATCH(program_slice&category_slice&subcategory_slice&year_slice&VLOOKUP(Q$5,months,2,FALSE),enrollment_key,0),MATCH("sites",enrollment_x,0))/1000, 1) * -1), "") -> 0 | S8: =IFERROR(IF(AND(public,confidential_slice),"",INDEX(data,MATCH(Lists!$S$31&VLOOKUP(M$5,months,2,FALSE)&TEXT($E8+Lists!$AD6,"00"),data_key,0),Results!$N$1) *Lists!AL6 * IF(result_type_slice = "Aggregate", INDEX(enrollment, MATCH(program_slice&category_slice&subcategory_slice&year_slice&VLOOKUP(M$5,months,2,FALSE),enrollment_key,0),MATCH("sites",enrollment_x,0))/1000, 1) * -1), "") -> 0 | T8: =IF($S8 = "","",IF(OR($S8 = 0,IF($S8 = 0,0,ABS($M8/$S8)) > _xlfn.NORM.S.INV(0.975)),"Yes","No")) -> Yes
B9: Category | C9: All | E9: 3 | F9: =IFERROR(IF(AND(public,confidential_slice),"",INDEX(data,--AND(F$1>=3,F$1<=10)*Data!$AD7+MATCH(Lists!$S$31&VLOOKUP(F$5,months,2,FALSE)&TEXT($E9+Lists!$AD7,"00"),data_key,0),Results!$H$1) *Lists!AE7 * IF(result_type_slice = "Aggregate", INDEX(enrollment, MATCH(program_slice&category_slice&subcategory_slice&year_slice&VLOOKUP(F$5,months,2,FALSE),enrollment_key,0),MATCH("sites",enrollment_x,0))/1000, 1) * -1), "") -> 0 | G9: =IFERROR(IF(AND(public,confidential_slice),"",INDEX(data,--AND(G$1>=3,G$1<=10)*Data!$AD7+MATCH(Lists!$S$31&VLOOKUP(G$5,months,2,FALSE)&TEXT($E9+Lists!$AD7,"00"),data_key,0),Results!$H$1) *Lists!AF7 * IF(result_type_slice = "Aggregate", INDEX(enrollment, MATCH(program_slice&category_slice&subcategory_slice&year_slice&VLOOKUP(G$5,months,2,FALSE),enrollment_key,0),MATCH("sites",enrollment_x,0))/1000, 1) * -1), "") -> 0 | H9: =IFERROR(IF(AND(public,confidential_slice),"",INDEX(data,--AND(H$1>=3,H$1<=10)*Data!$AD7+MATCH(Lists!$S$31&VLOOKUP(H$5,months,2,FALSE)&TEXT($E9+Lists!$AD7,"00"),data_key,0),Results!$H$1) *Lists!AG7 * IF(result_type_slice = "Aggregate", INDEX(enrollment, MATCH(program_slice&category_slice&subcategory_slice&year_slice&VLOOKUP(H$5,months,2,FALSE),enrollment_key,0),MATCH("sites",enrollment_x,0))/1000, 1) * -1), "") -> 0 | I9: =IFERROR(IF(AND(public,confidential_slice),"",INDEX(data,--AND(I$1>=3,I$1<=10)*Data!$AD7+MATCH(Lists!$S$31&VLOOKUP(I$5,months,2,FALSE)&TEXT($E9+Lists!$AD7,"00"),data_key,0),Results!$H$1) *Lists!AH7 * IF(result_type_slice = "Aggregate", INDEX(enrollment, MATCH(program_slice&category_slice&subcategory_slice&year_slice&VLOOKUP(I$5,months,2,FALSE),enrollment_key,0),MATCH("sites",enrollment_x,0))/1000, 1) * -1), "") -> 0 | J9: =IFERROR(IF(AND(public,confidential_slice),"",INDEX(data,--AND(J$1>=3,J$1<=10)*Data!$AD7+MATCH(Lists!$S$31&VLOOKUP(J$5,months,2,FALSE)&TEXT($E9+Lists!$AD7,"00"),data_key,0),Results!$H$1) *Lists!AI7 * IF(result_type_slice = "Aggregate", INDEX(enrollment, MATCH(program_slice&category_slice&subcategory_slice&year_slice&VLOOKUP(J$5,months,2,FALSE),enrollment_key,0),MATCH("sites",enrollment_x,0))/1000, 1) * -1), "") -> 0 | K9: =IFERROR(IF(AND(public,confidential_slice),"",INDEX(data,--AND(K$1>=3,K$1<=10)*Data!$AD7+MATCH(Lists!$S$31&VLOOKUP(K$5,months,2,FALSE)&TEXT($E9+Lists!$AD7,"00"),data_key,0),Results!$H$1) *Lists!AJ7 * IF(result_type_slice = "Aggregate", INDEX(enrollment, MATCH(program_slice&category_slice&subcategory_slice&year_slice&VLOOKUP(K$5,months,2,FALSE),enrollment_key,0),MATCH("sites",enrollment_x,0))/1000, 1) * -1), "") -> 0 | L9: =IFERROR(IF(AND(public,confidential_slice),"",INDEX(data,--AND(L$1>=3,L$1<=10)*Data!$AD7+MATCH(Lists!$S$31&VLOOKUP(L$5,months,2,FALSE)&TEXT($E9+Lists!$AD7,"00"),data_key,0),Results!$H$1) *Lists!AK7 * IF(result_type_slice = "Aggregate", INDEX(enrollment, MATCH(program_slice&category_slice&subcategory_slice&year_slice&VLOOKUP(L$5,months,2,FALSE),enrollment_key,0),MATCH("sites",enrollment_x,0))/1000, 1) * -1), "") -> 0 | M9: =IFERROR(IF(AND(public,confidential_slice),"",INDEX(data,--AND(M$1>=3,M$1<=10)*Data!$AD7+MATCH(Lists!$S$31&VLOOKUP(M$5,months,2,FALSE)&TEXT($E9+Lists!$AD7,"00"),data_key,0),Results!$H$1) *Lists!AL7 * IF(result_type_slice = "Aggregate", INDEX(enrollment, MATCH(program_slice&category_slice&subcategory_slice&year_slice&VLOOKUP(M$5,months,2,FALSE),enrollment_key,0),MATCH("sites",enrollment_x,0))/1000, 1) * -1), "") -> 0 | N9: =IFERROR(IF(AND(public,confidential_slice),"",INDEX(data,--AND(N$1>=3,N$1<=10)*Data!$AD7+MATCH(Lists!$S$31&VLOOKUP(N$5,months,2,FALSE)&TEXT($E9+Lists!$AD7,"00"),data_key,0),Results!$H$1) *Lists!AM7 * IF(result_type_slice = "Aggregate", INDEX(enrollment, MATCH(program_slice&category_slice&subcategory_slice&year_slice&VLOOKUP(N$5,months,2,FALSE),enrollment_key,0),MATCH("sites",enrollment_x,0))/1000, 1) * -1), "") -> 0 | O9: =IFERROR(IF(AND(public,confidential_slice),"",INDEX(data,--AND(O$1>=3,O$1<=10)*Data!$AD7+MATCH(Lists!$S$31&VLOOKUP(O$5,months,2,FALSE)&TEXT($E9+Lists!$AD7,"00"),data_key,0),Results!$H$1) *Lists!AN7 * IF(result_type_slice = "Aggregate", INDEX(enrollment, MATCH(program_slice&category_slice&subcategory_slice&year_slice&VLOOKUP(O$5,months,2,FALSE),enrollment_key,0),MATCH("sites",enrollment_x,0))/1000, 1) * -1), "") -> 0 | P9: =IFERROR(IF(AND(public,confidential_slice),"",INDEX(data,--AND(P$1>=3,P$1<=10)*Data!$AD7+MATCH(Lists!$S$31&VLOOKUP(P$5,months,2,FALSE)&TEXT($E9+Lists!$AD7,"00"),data_key,0),Results!$H$1) *Lists!AO7 * IF(result_type_slice = "Aggregate", INDEX(enrollment, MATCH(program_slice&category_slice&subcategory_slice&year_slice&VLOOKUP(P$5,months,2,FALSE),enrollment_key,0),MATCH("sites",enrollment_x,0))/1000, 1) * -1), "") -> 0 | Q9: =IFERROR(IF(AND(public,confidential_slice),"",INDEX(data,--AND(Q$1>=3,Q$1<=10)*Data!$AD7+MATCH(Lists!$S$31&VLOOKUP(Q$5,months,2,FALSE)&TEXT($E9+Lists!$AD7,"00"),data_key,0),Results!$H$1) *Lists!AP7 * IF(result_type_slice = "Aggregate", INDEX(enrollment, MATCH(program_slice&category_slice&subcategory_slice&year_slice&VLOOKUP(Q$5,months,2,FALSE),enrollment_key,0),MATCH("sites",enrollment_x,0))/1000, 1) * -1), "") -> 0 | S9: =IFERROR(IF(AND(public,confidential_slice),"",INDEX(data,MATCH(Lists!$S$31&VLOOKUP(M$5,months,2,FALSE)&TEXT($E9+Lists!$AD7,"00"),data_key,0),Results!$N$1) *Lists!AL7 * IF(result_type_slice = "Aggregate", INDEX(enrollment, MATCH(program_slice&category_slice&subcategory_slice&year_slice&VLOOKUP(M$5,months,2,FALSE),enrollment_key,0),MATCH("sites",enrollment_x,0))/1000, 1) * -1), "") -> 0 | T9: Yes
B10: Subcategory | C10: All | E10: 4 | F10: =IFERROR(IF(AND(public,confidential_slice),"",INDEX(data,--AND(F$1>=3,F$1<=10)*Data!$AD8+MATCH(Lists!$S$31&VLOOKUP(F$5,months,2,FALSE)&TEXT($E10+Lists!$AD8,"00"),data_key,0),Results!$H$1) *Lists!AE8 * IF(result_type_slice = "Aggregate", INDEX(enrollment, MATCH(program_slice&category_slice&subcategory_slice&year_slice&VLOOKUP(F$5,months,2,FALSE),enrollment_key,0),MATCH("sites",enrollment_x,0))/1000, 1) * -1), "") -> 0 | G10: =IFERROR(IF(AND(public,confidential_slice),"",INDEX(data,--AND(G$1>=3,G$1<=10)*Data!$AD8+MATCH(Lists!$S$31&VLOOKUP(G$5,months,2,FALSE)&TEXT($E10+Lists!$AD8,"00"),data_key,0),Results!$H$1) *Lists!AF8 * IF(result_type_slice = "Aggregate", INDEX(enrollment, MATCH(program_slice&category_slice&subcategory_slice&year_slice&VLOOKUP(G$5,months,2,FALSE),enrollment_key,0),MATCH("sites",enrollment_x,0))/1000, 1) * -1), "") -> 0 | H10: =IFERROR(IF(AND(public,confidential_slice),"",INDEX(data,--AND(H$1>=3,H$1<=10)*Data!$AD8+MATCH(Lists!$S$31&VLOOKUP(H$5,months,2,FALSE)&TEXT($E10+Lists!$AD8,"00"),data_key,0),Results!$H$1) *Lists!AG8 * IF(result_type_slice = "Aggregate", INDEX(enrollment, MATCH(program_slice&category_slice&subcategory_slice&year_slice&VLOOKUP(H$5,months,2,FALSE),enrollment_key,0),MATCH("sites",enrollment_x,0))/1000, 1) * -1), "") -> 0 | I10: =IFERROR(IF(AND(public,confidential_slice),"",INDEX(data,--AND(I$1>=3,I$1<=10)*Data!$AD8+MATCH(Lists!$S$31&VLOOKUP(I$5,months,2,FALSE)&TEXT($E10+Lists!$AD8,"00"),data_key,0),Results!$H$1) *Lists!AH8 * IF(result_type_slice = "Aggregate", INDEX(enrollment, MATCH(program_slice&category_slice&subcategory_slice&year_slice&VLOOKUP(I$5,months,2,FALSE),enrollment_key,0),MATCH("sites",enrollment_x,0))/1000, 1) * -1), "") -> 0 | J10: =IFERROR(IF(AND(public,confidential_slice),"",INDEX(data,--AND(J$1>=3,J$1<=10)*Data!$AD8+MATCH(Lists!$S$31&VLOOKUP(J$5,months,2,FALSE)&TEXT($E10+Lists!$AD8,"00"),data_key,0),Results!$H$1) *Lists!AI8 * IF(result_type_slice = "Aggregate", INDEX(enrollment, MATCH(program_slice&category_slice&subcategory_slice&year_slice&VLOOKUP(J$5,months,2,FALSE),enrollment_key,0),MATCH("sites",enrollment_x,0))/1000, 1) * -1), "") -> 0 | K10: =IFERROR(IF(AND(public,confidential_slice),"",INDEX(data,--AND(K$1>=3,K$1<=10)*Data!$AD8+MATCH(Lists!$S$31&VLOOKUP(K$5,months,2,FALSE)&TEXT($E10+Lists!$AD8,"00"),data_key,0),Results!$H$1) *Lists!AJ8 * IF(result_type_slice = "Aggregate", INDEX(enrollment, MATCH(program_slice&category_slice&subcategory_slice&year_slice&VLOOKUP(K$5,months,2,FALSE),enrollment_key,0),MATCH("sites",enrollment_x,0))/1000, 1) * -1), "") -> 0 | L10: =IFERROR(IF(AND(public,confidential_slice),"",INDEX(data,--AND(L$1>=3,L$1<=10)*Data!$AD8+MATCH(Lists!$S$31&VLOOKUP(L$5,months,2,FALSE)&TEXT($E10+Lists!$AD8,"00"),data_key,0),Results!$H$1) *Lists!AK8 * IF(result_type_slice = "Aggregate", INDEX(enrollment, MATCH(program_slice&category_slice&subcategory_slice&year_slice&VLOOKUP(L$5,months,2,FALSE),enrollment_key,0),MATCH("sites",enrollment_x,0))/1000, 1) * -1), "") -> 0 | M10: =IFERROR(IF(AND(public,confidential_slice),"",INDEX(data,--AND(M$1>=3,M$1<=10)*Data!$AD8+MATCH(Lists!$S$31&VLOOKUP(M$5,months,2,FALSE)&TEXT($E10+Lists!$AD8,"00"),data_key,0),Results!$H$1) *Lists!AL8 * IF(result_type_slice = "Aggregate", INDEX(enrollment, MATCH(program_slice&category_slice&subcategory_slice&year_slice&VLOOKUP(M$5,months,2,FALSE),enrollment_key,0),MATCH("sites",enrollment_x,0))/1000, 1) * -1), "") -> 0 | N10: =IFERROR(IF(AND(public,confidential_slice),"",INDEX(data,--AND(N$1>=3,N$1<=10)*Data!$AD8+MATCH(Lists!$S$31&VLOOKUP(N$5,months,2,FALSE)&TEXT($E10+Lists!$AD8,"00"),data_key,0),Results!$H$1) *Lists!AM8 * IF(result_type_slice = "Aggregate", INDEX(enrollment, MATCH(program_slice&category_slice&subcategory_slice&year_slice&VLOOKUP(N$5,months,2,FALSE),enrollment_key,0),MATCH("sites",enrollment_x,0))/1000, 1) * -1), "") -> 0 | O10: =IFERROR(IF(AND(public,confidential_slice),"",INDEX(data,--AND(O$1>=3,O$1<=10)*Data!$AD8+MATCH(Lists!$S$31&VLOOKUP(O$5,months,2,FALSE)&TEXT($E10+Lists!$AD8,"00"),data_key,0),Results!$H$1) *Lists!AN8 * IF(result_type_slice = "Aggregate", INDEX(enrollment, MATCH(program_slice&category_slice&subcategory_slice&year_slice&VLOOKUP(O$5,months,2,FALSE),enrollment_key,0),MATCH("sites",enrollment_x,0))/1000, 1) * -1), "") -> 0 | P10: =IFERROR(IF(AND(public,confidential_slice),"",INDEX(data,--AND(P$1>=3,P$1<=10)*Data!$AD8+MATCH(Lists!$S$31&VLOOKUP(P$5,months,2,FALSE)&TEXT($E10+Lists!$AD8,"00"),data_key,0),Results!$H$1) *Lists!AO8 * IF(result_type_slice = "Aggregate", INDEX(enrollment, MATCH(program_slice&category_slice&subcategory_slice&year_slice&VLOOKUP(P$5,months,2,FALSE),enrollment_key,0),MATCH("sites",enrollment_x,0))/1000, 1) * -1), "") -> 0 | Q10: =IFERROR(IF(AND(public,confidential_slice),"",INDEX(data,--AND(Q$1>=3,Q$1<=10)*Data!$AD8+MATCH(Lists!$S$31&VLOOKUP(Q$5,months,2,FALSE)&TEXT($E10+Lists!$AD8,"00"),data_key,0),Results!$H$1) *Lists!AP8 * IF(result_type_slice = "Aggregate", INDEX(enrollment, MATCH(program_slice&category_slice&subcategory_slice&year_slice&VLOOKUP(Q$5,months,2,FALSE),enrollment_key,0),MATCH("sites",enrollment_x,0))/1000, 1) * -1), "") -> 0 | S10: =IFERROR(IF(AND(public,confidential_slice),"",INDEX(data,MATCH(Lists!$S$31&VLOOKUP(M$5,months,2,FALSE)&TEXT($E10+Lists!$AD8,"00"),data_key,0),Results!$N$1) *Lists!AL8 * IF(result_type_slice = "Aggregate", INDEX(enrollment, MATCH(program_slice&category_slice&subcategory_slice&year_slice&VLOOKUP(M$5,months,2,FALSE),enrollment_key,0),MATCH("sites",enrollment_x,0))/1000, 1) * -1), "") -> 0 | T10: Yes
B11: Measurement Hours | C11: 5 | E11: 5 | F11: =IFERROR(IF(AND(public,confidential_slice),"",INDEX(data,--AND(F$1>=3,F$1<=10)*Data!$AD9+MATCH(Lists!$S$31&VLOOKUP(F$5,months,2,FALSE)&TEXT($E11+Lists!$AD9,"00"),data_key,0),Results!$H$1) *Lists!AE9 * IF(result_type_slice = "Aggregate", INDEX(enrollment, MATCH(program_slice&category_slice&subcategory_slice&year_slice&VLOOKUP(F$5,months,2,FALSE),enrollment_key,0),MATCH("sites",enrollment_x,0))/1000, 1) * -1), "") -> 0 | G11: =IFERROR(IF(AND(public,confidential_slice),"",INDEX(data,--AND(G$1>=3,G$1<=10)*Data!$AD9+MATCH(Lists!$S$31&VLOOKUP(G$5,months,2,FALSE)&TEXT($E11+Lists!$AD9,"00"),data_key,0),Results!$H$1) *Lists!AF9 * IF(result_type_slice = "Aggregate", INDEX(enrollment, MATCH(program_slice&category_slice&subcategory_slice&year_slice&VLOOKUP(G$5,months,2,FALSE),enrollment_key,0),MATCH("sites",enrollment_x,0))/1000, 1) * -1), "") -> 0 | H11: =IFERROR(IF(AND(public,confidential_slice),"",INDEX(data,--AND(H$1>=3,H$1<=10)*Data!$AD9+MATCH(Lists!$S$31&VLOOKUP(H$5,months,2,FALSE)&TEXT($E11+Lists!$AD9,"00"),data_key,0),Results!$H$1) *Lists!AG9 * IF(result_type_slice = "Aggregate", INDEX(enrollment, MATCH(program_slice&category_slice&subcategory_slice&year_slice&VLOOKUP(H$5,months,2,FALSE),enrollment_key,0),MATCH("sites",enrollment_x,0))/1000, 1) * -1), "") -> 0 | I11: =IFERROR(IF(AND(public,confidential_slice),"",INDEX(data,--AND(I$1>=3,I$1<=10)*Data!$AD9+MATCH(Lists!$S$31&VLOOKUP(I$5,months,2,FALSE)&TEXT($E11+Lists!$AD9,"00"),data_key,0),Results!$H$1) *Lists!AH9 * IF(result_type_slice = "Aggregate", INDEX(enrollment, MATCH(program_slice&category_slice&subcategory_slice&year_slice&VLOOKUP(I$5,months,2,FALSE),enrollment_key,0),MATCH("sites",enrollment_x,0))/1000, 1) * -1), "") -> 0 | J11: =IFERROR(IF(AND(public,confidential_slice),"",INDEX(data,--AND(J$1>=3,J$1<=10)*Data!$AD9+MATCH(Lists!$S$31&VLOOKUP(J$5,months,2,FALSE)&TEXT($E11+Lists!$AD9,"00"),data_key,0),Results!$H$1) *Lists!AI9 * IF(result_type_slice = "Aggregate", INDEX(enrollment, MATCH(program_slice&category_slice&subcategory_slice&year_slice&VLOOKUP(J$5,months,2,FALSE),enrollment_key,0),MATCH("sites",enrollment_x,0))/1000, 1) * -1), "") -> 0 | K11: =IFERROR(IF(AND(public,confidential_slice),"",INDEX(data,--AND(K$1>=3,K$1<=10)*Data!$AD9+MATCH(Lists!$S$31&VLOOKUP(K$5,months,2,FALSE)&TEXT($E11+Lists!$AD9,"00"),data_key,0),Results!$H$1) *Lists!AJ9 * IF(result_type_slice = "Aggregate", INDEX(enrollment, MATCH(program_slice&category_slice&subcategory_slice&year_slice&VLOOKUP(K$5,months,2,FALSE),enrollment_key,0),MATCH("sites",enrollment_x,0))/1000, 1) * -1), "") -> 0 | L11: =IFERROR(IF(AND(public,confidential_slice),"",INDEX(data,--AND(L$1>=3,L$1<=10)*Data!$AD9+MATCH(Lists!$S$31&VLOOKUP(L$5,months,2,FALSE)&TEXT($E11+Lists!$AD9,"00"),data_key,0),Results!$H$1) *Lists!AK9 * IF(result_type_slice = "Aggregate", INDEX(enrollment, MATCH(program_slice&category_slice&subcategory_slice&year_slice&VLOOKUP(L$5,months,2,FALSE),enrollment_key,0),MATCH("sites",enrollment_x,0))/1000, 1) * -1), "") -> 0 | M11: =IFERROR(IF(AND(public,confidential_slice),"",INDEX(data,--AND(M$1>=3,M$1<=10)*Data!$AD9+MATCH(Lists!$S$31&VLOOKUP(M$5,months,2,FALSE)&TEXT($E11+Lists!$AD9,"00"),data_key,0),Results!$H$1) *Lists!AL9 * IF(result_type_slice = "Aggregate", INDEX(enrollment, MATCH(program_slice&category_slice&subcategory_slice&year_slice&VLOOKUP(M$5,months,2,FALSE),enrollment_key,0),MATCH("sites",enrollment_x,0))/1000, 1) * -1), "") -> 0 | N11: =IFERROR(IF(AND(public,confidential_slice),"",INDEX(data,--AND(N$1>=3,N$1<=10)*Data!$AD9+MATCH(Lists!$S$31&VLOOKUP(N$5,months,2,FALSE)&TEXT($E11+Lists!$AD9,"00"),data_key,0),Results!$H$1) *Lists!AM9 * IF(result_type_slice = "Aggregate", INDEX(enrollment, MATCH(program_slice&category_slice&subcategory_slice&year_slice&VLOOKUP(N$5,months,2,FALSE),enrollment_key,0),MATCH("sites",enrollment_x,0))/1000, 1) * -1), "") -> 0 | O11: =IFERROR(IF(AND(public,confidential_slice),"",INDEX(data,--AND(O$1>=3,O$1<=10)*Data!$AD9+MATCH(Lists!$S$31&VLOOKUP(O$5,months,2,FALSE)&TEXT($E11+Lists!$AD9,"00"),data_key,0),Results!$H$1) *Lists!AN9 * IF(result_type_slice = "Aggregate", INDEX(enrollment, MATCH(program_slice&category_slice&subcategory_slice&year_slice&VLOOKUP(O$5,months,2,FALSE),enrollment_key,0),MATCH("sites",enrollment_x,0))/1000, 1) * -1), "") -> 0 | P11: =IFERROR(IF(AND(public,confidential_slice),"",INDEX(data,--AND(P$1>=3,P$1<=10)*Data!$AD9+MATCH(Lists!$S$31&VLOOKUP(P$5,months,2,FALSE)&TEXT($E11+Lists!$AD9,"00"),data_key,0),Results!$H$1) *Lists!AO9 * IF(result_type_slice = "Aggregate", INDEX(enrollment, MATCH(program_slice&category_slice&subcategory_slice&year_slice&VLOOKUP(P$5,months,2,FALSE),enrollment_key,0),MATCH("sites",enrollment_x,0))/1000, 1) * -1), "") -> 0 | Q11: =IFERROR(IF(AND(public,confidential_slice),"",INDEX(data,--AND(Q$1>=3,Q$1<=10)*Data!$AD9+MATCH(Lists!$S$31&VLOOKUP(Q$5,months,2,FALSE)&TEXT($E11+Lists!$AD9,"00"),data_key,0),Results!$H$1) *Lists!AP9 * IF(result_type_slice = "Aggregate", INDEX(enrollment, MATCH(program_slice&category_slice&subcategory_slice&year_slice&VLOOKUP(Q$5,months,2,FALSE),enrollment_key,0),MATCH("sites",enrollment_x,0))/1000, 1) * -1), "") -> 0 | S11: =IFERROR(IF(AND(public,confidential_slice),"",INDEX(data,MATCH(Lists!$S$31&VLOOKUP(M$5,months,2,FALSE)&TEXT($E11+Lists!$AD9,"00"),data_key,0),Results!$N$1) *Lists!AL9 * IF(result_type_slice = "Aggregate", INDEX(enrollment, MATCH(program_slice&category_slice&subcategory_slice&year_slice&VLOOKUP(M$5,months,2,FALSE),enrollment_key,0),MATCH("sites",enrollment_x,0))/1000, 1) * -1), "") -> 0 | T11: Yes
B12: Portfolio | C12: Program Specific | E12: 6 | F12: =IFERROR(IF(AND(public,confidential_slice),"",INDEX(data,--AND(F$1>=3,F$1<=10)*Data!$AD10+MATCH(Lists!$S$31&VLOOKUP(F$5,months,2,FALSE)&TEXT($E12+Lists!$AD10,"00"),data_key,0),Results!$H$1) *Lists!AE10 * IF(result_type_slice = "Aggregate", INDEX(enrollment, MATCH(program_slice&category_slice&subcategory_slice&year_slice&VLOOKUP(F$5,months,2,FALSE),enrollment_key,0),MATCH("sites",enrollment_x,0))/1000, 1) * -1), "") -> 0 | G12: =IFERROR(IF(AND(public,confidential_slice),"",INDEX(data,--AND(G$1>=3,G$1<=10)*Data!$AD10+MATCH(Lists!$S$31&VLOOKUP(G$5,months,2,FALSE)&TEXT($E12+Lists!$AD10,"00"),data_key,0),Results!$H$1) *Lists!AF10 * IF(result_type_slice = "Aggregate", INDEX(enrollment, MATCH(program_slice&category_slice&subcategory_slice&year_slice&VLOOKUP(G$5,months,2,FALSE),enrollment_key,0),MATCH("sites",enrollment_x,0))/1000, 1) * -1), "") -> 0 | H12: =IFERROR(IF(AND(public,confidential_slice),"",INDEX(data,--AND(H$1>=3,H$1<=10)*Data!$AD10+MATCH(Lists!$S$31&VLOOKUP(H$5,months,2,FALSE)&TEXT($E12+Lists!$AD10,"00"),data_key,0),Results!$H$1) *Lists!AG10 * IF(result_type_slice = "Aggregate", INDEX(enrollment, MATCH(program_slice&category_slice&subcategory_slice&year_slice&VLOOKUP(H$5,months,2,FALSE),enrollment_key,0),MATCH("sites",enrollment_x,0))/1000, 1) * -1), "") -> 0 | I12: =IFERROR(IF(AND(public,confidential_slice),"",INDEX(data,--AND(I$1>=3,I$1<=10)*Data!$AD10+MATCH(Lists!$S$31&VLOOKUP(I$5,months,2,FALSE)&TEXT($E12+Lists!$AD10,"00"),data_key,0),Results!$H$1) *Lists!AH10 * IF(result_type_slice = "Aggregate", INDEX(enrollment, MATCH(program_slice&category_slice&subcategory_slice&year_slice&VLOOKUP(I$5,months,2,FALSE),enrollment_key,0),MATCH("sites",enrollment_x,0))/1000, 1) * -1), "") -> 0 | J12: =IFERROR(IF(AND(public,confidential_slice),"",INDEX(data,--AND(J$1>=3,J$1<=10)*Data!$AD10+MATCH(Lists!$S$31&VLOOKUP(J$5,months,2,FALSE)&TEXT($E12+Lists!$AD10,"00"),data_key,0),Results!$H$1) *Lists!AI10 * IF(result_type_slice = "Aggregate", INDEX(enrollment, MATCH(program_slice&category_slice&subcategory_slice&year_slice&VLOOKUP(J$5,months,2,FALSE),enrollment_key,0),MATCH("sites",enrollment_x,0))/1000, 1) * -1), "") -> 0 | K12: =IFERROR(IF(AND(public,confidential_slice),"",INDEX(data,--AND(K$1>=3,K$1<=10)*Data!$AD10+MATCH(Lists!$S$31&VLOOKUP(K$5,months,2,FALSE)&TEXT($E12+Lists!$AD10,"00"),data_key,0),Results!$H$1) *Lists!AJ10 * IF(result_type_slice = "Aggregate", INDEX(enrollment, MATCH(program_slice&category_slice&subcategory_slice&year_slice&VLOOKUP(K$5,months,2,FALSE),enrollment_key,0),MATCH("sites",enrollment_x,0))/1000, 1) * -1), "") -> 0 | L12: =IFERROR(IF(AND(public,confidential_slice),"",INDEX(data,--AND(L$1>=3,L$1<=10)*Data!$AD10+MATCH(Lists!$S$31&VLOOKUP(L$5,months,2,FALSE)&TEXT($E12+Lists!$AD10,"00"),data_key,0),Results!$H$1) *Lists!AK10 * IF(result_type_slice = "Aggregate", INDEX(enrollment, MATCH(program_slice&category_slice&subcategory_slice&year_slice&VLOOKUP(L$5,months,2,FALSE),enrollment_key,0),MATCH("sites",enrollment_x,0))/1000, 1) * -1), "") -> 0 | M12: =IFERROR(IF(AND(public,confidential_slice),"",INDEX(data,--AND(M$1>=3,M$1<=10)*Data!$AD10+MATCH(Lists!$S$31&VLOOKUP(M$5,months,2,FALSE)&TEXT($E12+Lists!$AD10,"00"),data_key,0),Results!$H$1) *Lists!AL10 * IF(result_type_slice = "Aggregate", INDEX(enrollment, MATCH(program_slice&category_slice&subcategory_slice&year_slice&VLOOKUP(M$5,months,2,FALSE),enrollment_key,0),MATCH("sites",enrollment_x,0))/1000, 1) * -1), "") -> 0 | N12: =IFERROR(IF(AND(public,confidential_slice),"",INDEX(data,--AND(N$1>=3,N$1<=10)*Data!$AD10+MATCH(Lists!$S$31&VLOOKUP(N$5,months,2,FALSE)&TEXT($E12+Lists!$AD10,"00"),data_key,0),Results!$H$1) *Lists!AM10 * IF(result_type_slice = "Aggregate", INDEX(enrollment, MATCH(program_slice&category_slice&subcategory_slice&year_slice&VLOOKUP(N$5,months,2,FALSE),enrollment_key,0),MATCH("sites",enrollment_x,0))/1000, 1) * -1), "") -> 0 | O12: =IFERROR(IF(AND(public,confidential_slice),"",INDEX(data,--AND(O$1>=3,O$1<=10)*Data!$AD10+MATCH(Lists!$S$31&VLOOKUP(O$5,months,2,FALSE)&TEXT($E12+Lists!$AD10,"00"),data_key,0),Results!$H$1) *Lists!AN10 * IF(result_type_slice = "Aggregate", INDEX(enrollment, MATCH(program_slice&category_slice&subcategory_slice&year_slice&VLOOKUP(O$5,months,2,FALSE),enrollment_key,0),MATCH("sites",enrollment_x,0))/1000, 1) * -1), "") -> 0 | P12: =IFERROR(IF(AND(public,confidential_slice),"",INDEX(data,--AND(P$1>=3,P$1<=10)*Data!$AD10+MATCH(Lists!$S$31&VLOOKUP(P$5,months,2,FALSE)&TEXT($E12+Lists!$AD10,"00"),data_key,0),Results!$H$1) *Lists!AO10 * IF(result_type_slice = "Aggregate", INDEX(enrollment, MATCH(program_slice&category_slice&subcategory_slice&year_slice&VLOOKUP(P$5,months,2,FALSE),enrollment_key,0),MATCH("sites",enrollment_x,0))/1000, 1) * -1), "") -> 0 | Q12: =IFERROR(IF(AND(public,confidential_slice),"",INDEX(data,--AND(Q$1>=3,Q$1<=10)*Data!$AD10+MATCH(Lists!$S$31&VLOOKUP(Q$5,months,2,FALSE)&TEXT($E12+Lists!$AD10,"00"),data_key,0),Results!$H$1) *Lists!AP10 * IF(result_type_slice = "Aggregate", INDEX(enrollment, MATCH(program_slice&category_slice&subcategory_slice&year_slice&VLOOKUP(Q$5,months,2,FALSE),enrollment_key,0),MATCH("sites",enrollment_x,0))/1000, 1) * -1), "") -> 0 | S12: =IFERROR(IF(AND(public,confidential_slice),"",INDEX(data,MATCH(Lists!$S$31&VLOOKUP(M$5,months,2,FALSE)&TEXT($E12+Lists!$AD10,"00"),data_key,0),Results!$N$1) *Lists!AL10 * IF(result_type_slice = "Aggregate", INDEX(enrollment, MATCH(program_slice&category_slice&subcategory_slice&year_slice&VLOOKUP(M$5,months,2,FALSE),enrollment_key,0),MATCH("sites",enrollment_x,0))/1000, 1) * -1), "") -> 0 | T12: Yes
B13: Electric System | C13: PG&E | E13: 7 | F13: =IFERROR(IF(AND(public,confidential_slice),"",INDEX(data,--AND(F$1>=3,F$1<=10)*Data!$AD11+MATCH(Lists!$S$31&VLOOKUP(F$5,months,2,FALSE)&TEXT($E13+Lists!$AD11,"00"),data_key,0),Results!$H$1) *Lists!AE11 * IF(result_type_slice = "Aggregate", INDEX(enrollment, MATCH(program_slice&category_slice&subcategory_slice&year_slice&VLOOKUP(F$5,months,2,FALSE),enrollment_key,0),MATCH("sites",enrollment_x,0))/1000, 1) * -1), "") -> 0 | G13: =IFERROR(IF(AND(public,confidential_slice),"",INDEX(data,--AND(G$1>=3,G$1<=10)*Data!$AD11+MATCH(Lists!$S$31&VLOOKUP(G$5,months,2,FALSE)&TEXT($E13+Lists!$AD11,"00"),data_key,0),Results!$H$1) *Lists!AF11 * IF(result_type_slice = "Aggregate", INDEX(enrollment, MATCH(program_slice&category_slice&subcategory_slice&year_slice&VLOOKUP(G$5,months,2,FALSE),enrollment_key,0),MATCH("sites",enrollment_x,0))/1000, 1) * -1), "") -> 0 | H13: =IFERROR(IF(AND(public,confidential_slice),"",INDEX(data,--AND(H$1>=3,H$1<=10)*Data!$AD11+MATCH(Lists!$S$31&VLOOKUP(H$5,months,2,FALSE)&TEXT($E13+Lists!$AD11,"00"),data_key,0),Results!$H$1) *Lists!AG11 * IF(result_type_slice = "Aggregate", INDEX(enrollment, MATCH(program_slice&category_slice&subcategory_slice&year_slice&VLOOKUP(H$5,months,2,FALSE),enrollment_key,0),MATCH("sites",enrollment_x,0))/1000, 1) * -1), "") -> 0 | I13: =IFERROR(IF(AND(public,confidential_slice),"",INDEX(data,--AND(I$1>=3,I$1<=10)*Data!$AD11+MATCH(Lists!$S$31&VLOOKUP(I$5,months,2,FALSE)&TEXT($E13+Lists!$AD11,"00"),data_key,0),Results!$H$1) *Lists!AH11 * IF(result_type_slice = "Aggregate", INDEX(enrollment, MATCH(program_slice&category_slice&subcategory_slice&year_slice&VLOOKUP(I$5,months,2,FALSE),enrollment_key,0),MATCH("sites",enrollment_x,0))/1000, 1) * -1), "") -> 0 | J13: =IFERROR(IF(AND(public,confidential_slice),"",INDEX(data,--AND(J$1>=3,J$1<=10)*Data!$AD11+MATCH(Lists!$S$31&VLOOKUP(J$5,months,2,FALSE)&TEXT($E13+Lists!$AD11,"00"),data_key,0),Results!$H$1) *Lists!AI11 * IF(result_type_slice = "Aggregate", INDEX(enrollment, MATCH(program_slice&category_slice&subcategory_slice&year_slice&VLOOKUP(J$5,months,2,FALSE),enrollment_key,0),MATCH("sites",enrollment_x,0))/1000, 1) * -1), "") -> 0 | K13: =IFERROR(IF(AND(public,confidential_slice),"",INDEX(data,--AND(K$1>=3,K$1<=10)*Data!$AD11+MATCH(Lists!$S$31&VLOOKUP(K$5,months,2,FALSE)&TEXT($E13+Lists!$AD11,"00"),data_key,0),Results!$H$1) *Lists!AJ11 * IF(result_type_slice = "Aggregate", INDEX(enrollment, MATCH(program_slice&category_slice&subcategory_slice&year_slice&VLOOKUP(K$5,months,2,FALSE),enrollment_key,0),MATCH("sites",enrollment_x,0))/1000, 1) * -1), "") -> 0 | L13: =IFERROR(IF(AND(public,confidential_slice),"",INDEX(data,--AND(L$1>=3,L$1<=10)*Data!$AD11+MATCH(Lists!$S$31&VLOOKUP(L$5,months,2,FALSE)&TEXT($E13+Lists!$AD11,"00"),data_key,0),Results!$H$1) *Lists!AK11 * IF(result_type_slice = "Aggregate", INDEX(enrollment, MATCH(program_slice&category_slice&subcategory_slice&year_slice&VLOOKUP(L$5,months,2,FALSE),enrollment_key,0),MATCH("sites",enrollment_x,0))/1000, 1) * -1), "") -> 0 | M13: =IFERROR(IF(AND(public,confidential_slice),"",INDEX(data,--AND(M$1>=3,M$1<=10)*Data!$AD11+MATCH(Lists!$S$31&VLOOKUP(M$5,months,2,FALSE)&TEXT($E13+Lists!$AD11,"00"),data_key,0),Results!$H$1) *Lists!AL11 * IF(result_type_slice = "Aggregate", INDEX(enrollment, MATCH(program_slice&category_slice&subcategory_slice&year_slice&VLOOKUP(M$5,months,2,FALSE),enrollment_key,0),MATCH("sites",enrollment_x,0))/1000, 1) * -1), "") -> 0 | N13: =IFERROR(IF(AND(public,confidential_slice),"",INDEX(data,--AND(N$1>=3,N$1<=10)*Data!$AD11+MATCH(Lists!$S$31&VLOOKUP(N$5,months,2,FALSE)&TEXT($E13+Lists!$AD11,"00"),data_key,0),Results!$H$1) *Lists!AM11 * IF(result_type_slice = "Aggregate", INDEX(enrollment, MATCH(program_slice&category_slice&subcategory_slice&year_slice&VLOOKUP(N$5,months,2,FALSE),enrollment_key,0),MATCH("sites",enrollment_x,0))/1000, 1) * -1), "") -> 0 | O13: =IFERROR(IF(AND(public,confidential_slice),"",INDEX(data,--AND(O$1>=3,O$1<=10)*Data!$AD11+MATCH(Lists!$S$31&VLOOKUP(O$5,months,2,FALSE)&TEXT($E13+Lists!$AD11,"00"),data_key,0),Results!$H$1) *Lists!AN11 * IF(result_type_slice = "Aggregate", INDEX(enrollment, MATCH(program_slice&category_slice&subcategory_slice&year_slice&VLOOKUP(O$5,months,2,FALSE),enrollment_key,0),MATCH("sites",enrollment_x,0))/1000, 1) * -1), "") -> 0 | P13: =IFERROR(IF(AND(public,confidential_slice),"",INDEX(data,--AND(P$1>=3,P$1<=10)*Data!$AD11+MATCH(Lists!$S$31&VLOOKUP(P$5,months,2,FALSE)&TEXT($E13+Lists!$AD11,"00"),data_key,0),Results!$H$1) *Lists!AO11 * IF(result_type_slice = "Aggregate", INDEX(enrollment, MATCH(program_slice&category_slice&subcategory_slice&year_slice&VLOOKUP(P$5,months,2,FALSE),enrollment_key,0),MATCH("sites",enrollment_x,0))/1000, 1) * -1), "") -> 0 | Q13: =IFERROR(IF(AND(public,confidential_slice),"",INDEX(data,--AND(Q$1>=3,Q$1<=10)*Data!$AD11+MATCH(Lists!$S$31&VLOOKUP(Q$5,months,2,FALSE)&TEXT($E13+Lists!$AD11,"00"),data_key,0),Results!$H$1) *Lists!AP11 * IF(result_type_slice = "Aggregate", INDEX(enrollment, MATCH(program_slice&category_slice&subcategory_slice&year_slice&VLOOKUP(Q$5,months,2,FALSE),enrollment_key,0),MATCH("sites",enrollment_x,0))/1000, 1) * -1), "") -> 0 | S13: =IFERROR(IF(AND(public,confidential_slice),"",INDEX(data,MATCH(Lists!$S$31&VLOOKUP(M$5,months,2,FALSE)&TEXT($E13+Lists!$AD11,"00"),data_key,0),Results!$N$1) *Lists!AL11 * IF(result_type_slice = "Aggregate", INDEX(enrollment, MATCH(program_slice&category_slice&subcategory_slice&year_slice&VLOOKUP(M$5,months,2,FALSE),enrollment_key,0),MATCH("sites",enrollment_x,0))/1000, 1) * -1), "") -> 0 | T13: Yes
B14: Day Type | C14: WORST DAY | E14: 8 | F14: =IFERROR(IF(AND(public,confidential_slice),"",INDEX(data,--AND(F$1>=3,F$1<=10)*Data!$AD12+MATCH(Lists!$S$31&VLOOKUP(F$5,months,2,FALSE)&TEXT($E14+Lists!$AD12,"00"),data_key,0),Results!$H$1) *Lists!AE12 * IF(result_type_slice = "Aggregate", INDEX(enrollment, MATCH(program_slice&category_slice&subcategory_slice&year_slice&VLOOKUP(F$5,months,2,FALSE),enrollment_key,0),MATCH("sites",enrollment_x,0))/1000, 1) * -1), "") -> 0 | G14: =IFERROR(IF(AND(public,confidential_slice),"",INDEX(data,--AND(G$1>=3,G$1<=10)*Data!$AD12+MATCH(Lists!$S$31&VLOOKUP(G$5,months,2,FALSE)&TEXT($E14+Lists!$AD12,"00"),data_key,0),Results!$H$1) *Lists!AF12 * IF(result_type_slice = "Aggregate", INDEX(enrollment, MATCH(program_slice&category_slice&subcategory_slice&year_slice&VLOOKUP(G$5,months,2,FALSE),enrollment_key,0),MATCH("sites",enrollment_x,0))/1000, 1) * -1), "") -> 0 | H14: =IFERROR(IF(AND(public,confidential_slice),"",INDEX(data,--AND(H$1>=3,H$1<=10)*Data!$AD12+MATCH(Lists!$S$31&VLOOKUP(H$5,months,2,FALSE)&TEXT($E14+Lists!$AD12,"00"),data_key,0),Results!$H$1) *Lists!AG12 * IF(result_type_slice = "Aggregate", INDEX(enrollment, MATCH(program_slice&category_slice&subcategory_slice&year_slice&VLOOKUP(H$5,months,2,FALSE),enrollment_key,0),MATCH("sites",enrollment_x,0))/1000, 1) * -1), "") -> 0 | I14: =IFERROR(IF(AND(public,confidential_slice),"",INDEX(data,--AND(I$1>=3,I$1<=10)*Data!$AD12+MATCH(Lists!$S$31&VLOOKUP(I$5,months,2,FALSE)&TEXT($E14+Lists!$AD12,"00"),data_key,0),Results!$H$1) *Lists!AH12 * IF(result_type_slice = "Aggregate", INDEX(enrollment, MATCH(program_slice&category_slice&subcategory_slice&year_slice&VLOOKUP(I$5,months,2,FALSE),enrollment_key,0),MATCH("sites",enrollment_x,0))/1000, 1) * -1), "") -> 0 | J14: =IFERROR(IF(AND(public,confidential_slice),"",INDEX(data,--AND(J$1>=3,J$1<=10)*Data!$AD12+MATCH(Lists!$S$31&VLOOKUP(J$5,months,2,FALSE)&TEXT($E14+Lists!$AD12,"00"),data_key,0),Results!$H$1) *Lists!AI12 * IF(result_type_slice = "Aggregate", INDEX(enrollment, MATCH(program_slice&category_slice&subcategory_slice&year_slice&VLOOKUP(J$5,months,2,FALSE),enrollment_key,0),MATCH("sites",enrollment_x,0))/1000, 1) * -1), "") -> 0 | K14: =IFERROR(IF(AND(public,confidential_slice),"",INDEX(data,--AND(K$1>=3,K$1<=10)*Data!$AD12+MATCH(Lists!$S$31&VLOOKUP(K$5,months,2,FALSE)&TEXT($E14+Lists!$AD12,"00"),data_key,0),Results!$H$1) *Lists!AJ12 * IF(result_type_slice = "Aggregate", INDEX(enrollment, MATCH(program_slice&category_slice&subcategory_slice&year_slice&VLOOKUP(K$5,months,2,FALSE),enrollment_key,0),MATCH("sites",enrollment_x,0))/1000, 1) * -1), "") -> 0 | L14: =IFERROR(IF(AND(public,confidential_slice),"",INDEX(data,--AND(L$1>=3,L$1<=10)*Data!$AD12+MATCH(Lists!$S$31&VLOOKUP(L$5,months,2,FALSE)&TEXT($E14+Lists!$AD12,"00"),data_key,0),Results!$H$1) *Lists!AK12 * IF(result_type_slice = "Aggregate", INDEX(enrollment, MATCH(program_slice&category_slice&subcategory_slice&year_slice&VLOOKUP(L$5,months,2,FALSE),enrollment_key,0),MATCH("sites",enrollment_x,0))/1000, 1) * -1), "") -> 0 | M14: =IFERROR(IF(AND(public,confidential_slice),"",INDEX(data,--AND(M$1>=3,M$1<=10)*Data!$AD12+MATCH(Lists!$S$31&VLOOKUP(M$5,months,2,FALSE)&TEXT($E14+Lists!$AD12,"00"),data_key,0),Results!$H$1) *Lists!AL12 * IF(result_type_slice = "Aggregate", INDEX(enrollment, MATCH(program_slice&category_slice&subcategory_slice&year_slice&VLOOKUP(M$5,months,2,FALSE),enrollment_key,0),MATCH("sites",enrollment_x,0))/1000, 1) * -1), "") -> 0 | N14: =IFERROR(IF(AND(public,confidential_slice),"",INDEX(data,--AND(N$1>=3,N$1<=10)*Data!$AD12+MATCH(Lists!$S$31&VLOOKUP(N$5,months,2,FALSE)&TEXT($E14+Lists!$AD12,"00"),data_key,0),Results!$H$1) *Lists!AM12 * IF(result_type_slice = "Aggregate", INDEX(enrollment, MATCH(program_slice&category_slice&subcategory_slice&year_slice&VLOOKUP(N$5,months,2,FALSE),enrollment_key,0),MATCH("sites",enrollment_x,0))/1000, 1) * -1), "") -> 0 | O14: =IFERROR(IF(AND(public,confidential_slice),"",INDEX(data,--AND(O$1>=3,O$1<=10)*Data!$AD12+MATCH(Lists!$S$31&VLOOKUP(O$5,months,2,FALSE)&TEXT($E14+Lists!$AD12,"00"),data_key,0),Results!$H$1) *Lists!AN12 * IF(result_type_slice = "Aggregate", INDEX(enrollment, MATCH(program_slice&category_slice&subcategory_slice&year_slice&VLOOKUP(O$5,months,2,FALSE),enrollment_key,0),MATCH("sites",enrollment_x,0))/1000, 1) * -1), "") -> 0 | P14: =IFERROR(IF(AND(public,confidential_slice),"",INDEX(data,--AND(P$1>=3,P$1<=10)*Data!$AD12+MATCH(Lists!$S$31&VLOOKUP(P$5,months,2,FALSE)&TEXT($E14+Lists!$AD12,"00"),data_key,0),Results!$H$1) *Lists!AO12 * IF(result_type_slice = "Aggregate", INDEX(enrollment, MATCH(program_slice&category_slice&subcategory_slice&year_slice&VLOOKUP(P$5,months,2,FALSE),enrollment_key,0),MATCH("sites",enrollment_x,0))/1000, 1) * -1), "") -> 0 | Q14: =IFERROR(IF(AND(public,confidential_slice),"",INDEX(data,--AND(Q$1>=3,Q$1<=10)*Data!$AD12+MATCH(Lists!$S$31&VLOOKUP(Q$5,months,2,FALSE)&TEXT($E14+Lists!$AD12,"00"),data_key,0),Results!$H$1) *Lists!AP12 * IF(result_type_slice = "Aggregate", INDEX(enrollment, MATCH(program_slice&category_slice&subcategory_slice&year_slice&VLOOKUP(Q$5,months,2,FALSE),enrollment_key,0),MATCH("sites",enrollment_x,0))/1000, 1) * -1), "") -> 0 | S14: =IFERROR(IF(AND(public,confidential_slice),"",INDEX(data,MATCH(Lists!$S$31&VLOOKUP(M$5,months,2,FALSE)&TEXT($E14+Lists!$AD12,"00"),data_key,0),Results!$N$1) *Lists!AL12 * IF(result_type_slice = "Aggregate", INDEX(enrollment, MATCH(program_slice&category_slice&subcategory_slice&year_slice&VLOOKUP(M$5,months,2,FALSE),enrollment_key,0),MATCH("sites",enrollment_x,0))/1000, 1) * -1), "") -> 0 | T14: Yes
B15: Weather Year | C15: 1-in-2 | E15: 9 | F15: =IFERROR(IF(AND(public,confidential_slice),"",INDEX(data,--AND(F$1>=3,F$1<=10)*Data!$AD13+MATCH(Lists!$S$31&VLOOKUP(F$5,months,2,FALSE)&TEXT($E15+Lists!$AD13,"00"),data_key,0),Results!$H$1) *Lists!AE13 * IF(result_type_slice = "Aggregate", INDEX(enrollment, MATCH(program_slice&category_slice&subcategory_slice&year_slice&VLOOKUP(F$5,months,2,FALSE),enrollment_key,0),MATCH("sites",enrollment_x,0))/1000, 1) * -1), "") -> 0 | G15: =IFERROR(IF(AND(public,confidential_slice),"",INDEX(data,--AND(G$1>=3,G$1<=10)*Data!$AD13+MATCH(Lists!$S$31&VLOOKUP(G$5,months,2,FALSE)&TEXT($E15+Lists!$AD13,"00"),data_key,0),Results!$H$1) *Lists!AF13 * IF(result_type_slice = "Aggregate", INDEX(enrollment, MATCH(program_slice&category_slice&subcategory_slice&year_slice&VLOOKUP(G$5,months,2,FALSE),enrollment_key,0),MATCH("sites",enrollment_x,0))/1000, 1) * -1), "") -> 0 | H15: =IFERROR(IF(AND(public,confidential_slice),"",INDEX(data,--AND(H$1>=3,H$1<=10)*Data!$AD13+MATCH(Lists!$S$31&VLOOKUP(H$5,months,2,FALSE)&TEXT($E15+Lists!$AD13,"00"),data_key,0),Results!$H$1) *Lists!AG13 * IF(result_type_slice = "Aggregate", INDEX(enrollment, MATCH(program_slice&category_slice&subcategory_slice&year_slice&VLOOKUP(H$5,months,2,FALSE),enrollment_key,0),MATCH("sites",enrollment_x,0))/1000, 1) * -1), "") -> 0 | I15: =IFERROR(IF(AND(public,confidential_slice),"",INDEX(data,--AND(I$1>=3,I$1<=10)*Data!$AD13+MATCH(Lists!$S$31&VLOOKUP(I$5,months,2,FALSE)&TEXT($E15+Lists!$AD13,"00"),data_key,0),Results!$H$1) *Lists!AH13 * IF(result_type_slice = "Aggregate", INDEX(enrollment, MATCH(program_slice&category_slice&subcategory_slice&year_slice&VLOOKUP(I$5,months,2,FALSE),enrollment_key,0),MATCH("sites",enrollment_x,0))/1000, 1) * -1), "") -> 0 | J15: =IFERROR(IF(AND(public,confidential_slice),"",INDEX(data,--AND(J$1>=3,J$1<=10)*Data!$AD13+MATCH(Lists!$S$31&VLOOKUP(J$5,months,2,FALSE)&TEXT($E15+Lists!$AD13,"00"),data_key,0),Results!$H$1) *Lists!AI13 * IF(result_type_slice = "Aggregate", INDEX(enrollment, MATCH(program_slice&category_slice&subcategory_slice&year_slice&VLOOKUP(J$5,months,2,FALSE),enrollment_key,0),MATCH("sites",enrollment_x,0))/1000, 1) * -1), "") -> 0 | K15: =IFERROR(IF(AND(public,confidential_slice),"",INDEX(data,--AND(K$1>=3,K$1<=10)*Data!$AD13+MATCH(Lists!$S$31&VLOOKUP(K$5,months,2,FALSE)&TEXT($E15+Lists!$AD13,"00"),data_key,0),Results!$H$1) *Lists!AJ13 * IF(result_type_slice = "Aggregate", INDEX(enrollment, MATCH(program_slice&category_slice&subcategory_slice&year_slice&VLOOKUP(K$5,months,2,FALSE),enrollment_key,0),MATCH("sites",enrollment_x,0))/1000, 1) * -1), "") -> 0 | L15: =IFERROR(IF(AND(public,confidential_slice),"",INDEX(data,--AND(L$1>=3,L$1<=10)*Data!$AD13+MATCH(Lists!$S$31&VLOOKUP(L$5,months,2,FALSE)&TEXT($E15+Lists!$AD13,"00"),data_key,0),Results!$H$1) *Lists!AK13 * IF(result_type_slice = "Aggregate", INDEX(enrollment, MATCH(program_slice&category_slice&subcategory_slice&year_slice&VLOOKUP(L$5,months,2,FALSE),enrollment_key,0),MATCH("sites",enrollment_x,0))/1000, 1) * -1), "") -> 0 | M15: =IFERROR(IF(AND(public,confidential_slice),"",INDEX(data,--AND(M$1>=3,M$1<=10)*Data!$AD13+MATCH(Lists!$S$31&VLOOKUP(M$5,months,2,FALSE)&TEXT($E15+Lists!$AD13,"00"),data_key,0),Results!$H$1) *Lists!AL13 * IF(result_type_slice = "Aggregate", INDEX(enrollment, MATCH(program_slice&category_slice&subcategory_slice&year_slice&VLOOKUP(M$5,months,2,FALSE),enrollment_key,0),MATCH("sites",enrollment_x,0))/1000, 1) * -1), "") -> 0 | N15: =IFERROR(IF(AND(public,confidential_slice),"",INDEX(data,--AND(N$1>=3,N$1<=10)*Data!$AD13+MATCH(Lists!$S$31&VLOOKUP(N$5,months,2,FALSE)&TEXT($E15+Lists!$AD13,"00"),data_key,0),Results!$H$1) *Lists!AM13 * IF(result_type_slice = "Aggregate", INDEX(enrollment, MATCH(program_slice&category_slice&subcategory_slice&year_slice&VLOOKUP(N$5,months,2,FALSE),enrollment_key,0),MATCH("sites",enrollment_x,0))/1000, 1) * -1), "") -> 0 | O15: =IFERROR(IF(AND(public,confidential_slice),"",INDEX(data,--AND(O$1>=3,O$1<=10)*Data!$AD13+MATCH(Lists!$S$31&VLOOKUP(O$5,months,2,FALSE)&TEXT($E15+Lists!$AD13,"00"),data_key,0),Results!$H$1) *Lists!AN13 * IF(result_type_slice = "Aggregate", INDEX(enrollment, MATCH(program_slice&category_slice&subcategory_slice&year_slice&VLOOKUP(O$5,months,2,FALSE),enrollment_key,0),MATCH("sites",enrollment_x,0))/1000, 1) * -1), "") -> 0 | P15: =IFERROR(IF(AND(public,confidential_slice),"",INDEX(data,--AND(P$1>=3,P$1<=10)*Data!$AD13+MATCH(Lists!$S$31&VLOOKUP(P$5,months,2,FALSE)&TEXT($E15+Lists!$AD13,"00"),data_key,0),Results!$H$1) *Lists!AO13 * IF(result_type_slice = "Aggregate", INDEX(enrollment, MATCH(program_slice&category_slice&subcategory_slice&year_slice&VLOOKUP(P$5,months,2,FALSE),enrollment_key,0),MATCH("sites",enrollment_x,0))/1000, 1) * -1), "") -> 0 | Q15: =IFERROR(IF(AND(public,confidential_slice),"",INDEX(data,--AND(Q$1>=3,Q$1<=10)*Data!$AD13+MATCH(Lists!$S$31&VLOOKUP(Q$5,months,2,FALSE)&TEXT($E15+Lists!$AD13,"00"),data_key,0),Results!$H$1) *Lists!AP13 * IF(result_type_slice = "Aggregate", INDEX(enrollment, MATCH(program_slice&category_slice&subcategory_slice&year_slice&VLOOKUP(Q$5,months,2,FALSE),enrollment_key,0),MATCH("sites",enrollment_x,0))/1000, 1) * -1), "") -> 0 | S15: =IFERROR(IF(AND(public,confidential_slice),"",INDEX(data,MATCH(Lists!$S$31&VLOOKUP(M$5,months,2,FALSE)&TEXT($E15+Lists!$AD13,"00"),data_key,0),Results!$N$1) *Lists!AL13 * IF(result_type_slice = "Aggregate", INDEX(enrollment, MATCH(program_slice&category_slice&subcategory_slice&year_slice&VLOOKUP(M$5,months,2,FALSE),enrollment_key,0),MATCH("sites",enrollment_x,0))/1000, 1) * -1), "") -> 0 | T15: Yes
B16: Forecast Year | C16: 2025 | E16: 10 | F16: =IFERROR(IF(AND(public,confidential_slice),"",INDEX(data,--AND(F$1>=3,F$1<=10)*Data!$AD14+MATCH(Lists!$S$31&VLOOKUP(F$5,months,2,FALSE)&TEXT($E16+Lists!$AD14,"00"),data_key,0),Results!$H$1) *Lists!AE14 * IF(result_type_slice = "Aggregate", INDEX(enrollment, MATCH(program_slice&category_slice&subcategory_slice&year_slice&VLOOKUP(F$5,months,2,FALSE),enrollment_key,0),MATCH("sites",enrollment_x,0))/1000, 1) * -1), "") -> 0 | G16: =IFERROR(IF(AND(public,confidential_slice),"",INDEX(data,--AND(G$1>=3,G$1<=10)*Data!$AD14+MATCH(Lists!$S$31&VLOOKUP(G$5,months,2,FALSE)&TEXT($E16+Lists!$AD14,"00"),data_key,0),Results!$H$1) *Lists!AF14 * IF(result_type_slice = "Aggregate", INDEX(enrollment, MATCH(program_slice&category_slice&subcategory_slice&year_slice&VLOOKUP(G$5,months,2,FALSE),enrollment_key,0),MATCH("sites",enrollment_x,0))/1000, 1) * -1), "") -> 0 | H16: =IFERROR(IF(AND(public,confidential_slice),"",INDEX(data,--AND(H$1>=3,H$1<=10)*Data!$AD14+MATCH(Lists!$S$31&VLOOKUP(H$5,months,2,FALSE)&TEXT($E16+Lists!$AD14,"00"),data_key,0),Results!$H$1) *Lists!AG14 * IF(result_type_slice = "Aggregate", INDEX(enrollment, MATCH(program_slice&category_slice&subcategory_slice&year_slice&VLOOKUP(H$5,months,2,FALSE),enrollment_key,0),MATCH("sites",enrollment_x,0))/1000, 1) * -1), "") -> 0 | I16: =IFERROR(IF(AND(public,confidential_slice),"",INDEX(data,--AND(I$1>=3,I$1<=10)*Data!$AD14+MATCH(Lists!$S$31&VLOOKUP(I$5,months,2,FALSE)&TEXT($E16+Lists!$AD14,"00"),data_key,0),Results!$H$1) *Lists!AH14 * IF(result_type_slice = "Aggregate", INDEX(enrollment, MATCH(program_slice&category_slice&subcategory_slice&year_slice&VLOOKUP(I$5,months,2,FALSE),enrollment_key,0),MATCH("sites",enrollment_x,0))/1000, 1) * -1), "") -> 0 | J16: =IFERROR(IF(AND(public,confidential_slice),"",INDEX(data,--AND(J$1>=3,J$1<=10)*Data!$AD14+MATCH(Lists!$S$31&VLOOKUP(J$5,months,2,FALSE)&TEXT($E16+Lists!$AD14,"00"),data_key,0),Results!$H$1) *Lists!AI14 * IF(result_type_slice = "Aggregate", INDEX(enrollment, MATCH(program_slice&category_slice&subcategory_slice&year_slice&VLOOKUP(J$5,months,2,FALSE),enrollment_key,0),MATCH("sites",enrollment_x,0))/1000, 1) * -1), "") -> 0 | K16: =IFERROR(IF(AND(public,confidential_slice),"",INDEX(data,--AND(K$1>=3,K$1<=10)*Data!$AD14+MATCH(Lists!$S$31&VLOOKUP(K$5,months,2,FALSE)&TEXT($E16+Lists!$AD14,"00"),data_key,0),Results!$H$1) *Lists!AJ14 * IF(result_type_slice = "Aggregate", INDEX(enrollment, MATCH(program_slice&category_slice&subcategory_slice&year_slice&VLOOKUP(K$5,months,2,FALSE),enrollment_key,0),MATCH("sites",enrollment_x,0))/1000, 1) * -1), "") -> 0 | L16: =IFERROR(IF(AND(public,confidential_slice),"",INDEX(data,--AND(L$1>=3,L$1<=10)*Data!$AD14+MATCH(Lists!$S$31&VLOOKUP(L$5,months,2,FALSE)&TEXT($E16+Lists!$AD14,"00"),data_key,0),Results!$H$1) *Lists!AK14 * IF(result_type_slice = "Aggregate", INDEX(enrollment, MATCH(program_slice&category_slice&subcategory_slice&year_slice&VLOOKUP(L$5,months,2,FALSE),enrollment_key,0),MATCH("sites",enrollment_x,0))/1000, 1) * -1), "") -> 0 | M16: =IFERROR(IF(AND(public,confidential_slice),"",INDEX(data,--AND(M$1>=3,M$1<=10)*Data!$AD14+MATCH(Lists!$S$31&VLOOKUP(M$5,months,2,FALSE)&TEXT($E16+Lists!$AD14,"00"),data_key,0),Results!$H$1) *Lists!AL14 * IF(result_type_slice = "Aggregate", INDEX(enrollment, MATCH(program_slice&category_slice&subcategory_slice&year_slice&VLOOKUP(M$5,months,2,FALSE),enrollment_key,0),MATCH("sites",enrollment_x,0))/1000, 1) * -1), "") -> 0 | N16: =IFERROR(IF(AND(public,confidential_slice),"",INDEX(data,--AND(N$1>=3,N$1<=10)*Data!$AD14+MATCH(Lists!$S$31&VLOOKUP(N$5,months,2,FALSE)&TEXT($E16+Lists!$AD14,"00"),data_key,0),Results!$H$1) *Lists!AM14 * IF(result_type_slice = "Aggregate", INDEX(enrollment, MATCH(program_slice&category_slice&subcategory_slice&year_slice&VLOOKUP(N$5,months,2,FALSE),enrollment_key,0),MATCH("sites",enrollment_x,0))/1000, 1) * -1), "") -> 0 | O16: =IFERROR(IF(AND(public,confidential_slice),"",INDEX(data,--AND(O$1>=3,O$1<=10)*Data!$AD14+MATCH(Lists!$S$31&VLOOKUP(O$5,months,2,FALSE)&TEXT($E16+Lists!$AD14,"00"),data_key,0),Results!$H$1) *Lists!AN14 * IF(result_type_slice = "Aggregate", INDEX(enrollment, MATCH(program_slice&category_slice&subcategory_slice&year_slice&VLOOKUP(O$5,months,2,FALSE),enrollment_key,0),MATCH("sites",enrollment_x,0))/1000, 1) * -1), "") -> 0 | P16: =IFERROR(IF(AND(public,confidential_slice),"",INDEX(data,--AND(P$1>=3,P$1<=10)*Data!$AD14+MATCH(Lists!$S$31&VLOOKUP(P$5,months,2,FALSE)&TEXT($E16+Lists!$AD14,"00"),data_key,0),Results!$H$1) *Lists!AO14 * IF(result_type_slice = "Aggregate", INDEX(enrollment, MATCH(program_slice&category_slice&subcategory_slice&year_slice&VLOOKUP(P$5,months,2,FALSE),enrollment_key,0),MATCH("sites",enrollment_x,0))/1000, 1) * -1), "") -> 0 | Q16: =IFERROR(IF(AND(public,confidential_slice),"",INDEX(data,--AND(Q$1>=3,Q$1<=10)*Data!$AD14+MATCH(Lists!$S$31&VLOOKUP(Q$5,months,2,FALSE)&TEXT($E16+Lists!$AD14,"00"),data_key,0),Results!$H$1) *Lists!AP14 * IF(result_type_slice = "Aggregate", INDEX(enrollment, MATCH(program_slice&category_slice&subcategory_slice&year_slice&VLOOKUP(Q$5,months,2,FALSE),enrollment_key,0),MATCH("sites",enrollment_x,0))/1000, 1) * -1), "") -> 0 | S16: =IFERROR(IF(AND(public,confidential_slice),"",INDEX(data,MATCH(Lists!$S$31&VLOOKUP(M$5,months,2,FALSE)&TEXT($E16+Lists!$AD14,"00"),data_key,0),Results!$N$1) *Lists!AL14 * IF(result_type_slice = "Aggregate", INDEX(enrollment, MATCH(program_slice&category_slice&subcategory_slice&year_slice&VLOOKUP(M$5,months,2,FALSE),enrollment_key,0),MATCH("sites",enrollment_x,0))/1000, 1) * -1), "") -> 0 | T16: Yes
B17: Hour Ending View | C17: HE (Prevailing Time) | E17: 11 | F17: =IFERROR(IF(AND(public,confidential_slice),"",INDEX(data,--AND(F$1>=3,F$1<=10)*Data!$AD15+MATCH(Lists!$S$31&VLOOKUP(F$5,months,2,FALSE)&TEXT($E17+Lists!$AD15,"00"),data_key,0),Results!$H$1) *Lists!AE15 * IF(result_type_slice = "Aggregate", INDEX(enrollment, MATCH(program_slice&category_slice&subcategory_slice&year_slice&VLOOKUP(F$5,months,2,FALSE),enrollment_key,0),MATCH("sites",enrollment_x,0))/1000, 1) * -1), "") -> 0 | G17: =IFERROR(IF(AND(public,confidential_slice),"",INDEX(data,--AND(G$1>=3,G$1<=10)*Data!$AD15+MATCH(Lists!$S$31&VLOOKUP(G$5,months,2,FALSE)&TEXT($E17+Lists!$AD15,"00"),data_key,0),Results!$H$1) *Lists!AF15 * IF(result_type_slice = "Aggregate", INDEX(enrollment, MATCH(program_slice&category_slice&subcategory_slice&year_slice&VLOOKUP(G$5,months,2,FALSE),enrollment_key,0),MATCH("sites",enrollment_x,0))/1000, 1) * -1), "") -> 0 | H17: =IFERROR(IF(AND(public,confidential_slice),"",INDEX(data,--AND(H$1>=3,H$1<=10)*Data!$AD15+MATCH(Lists!$S$31&VLOOKUP(H$5,months,2,FALSE)&TEXT($E17+Lists!$AD15,"00"),data_key,0),Results!$H$1) *Lists!AG15 * IF(result_type_slice = "Aggregate", INDEX(enrollment, MATCH(program_slice&category_slice&subcategory_slice&year_slice&VLOOKUP(H$5,months,2,FALSE),enrollment_key,0),MATCH("sites",enrollment_x,0))/1000, 1) * -1), "") -> 0 | I17: =IFERROR(IF(AND(public,confidential_slice),"",INDEX(data,--AND(I$1>=3,I$1<=10)*Data!$AD15+MATCH(Lists!$S$31&VLOOKUP(I$5,months,2,FALSE)&TEXT($E17+Lists!$AD15,"00"),data_key,0),Results!$H$1) *Lists!AH15 * IF(result_type_slice = "Aggregate", INDEX(enrollment, MATCH(program_slice&category_slice&subcategory_slice&year_slice&VLOOKUP(I$5,months,2,FALSE),enrollment_key,0),MATCH("sites",enrollment_x,0))/1000, 1) * -1), "") -> 0 | J17: =IFERROR(IF(AND(public,confidential_slice),"",INDEX(data,--AND(J$1>=3,J$1<=10)*Data!$AD15+MATCH(Lists!$S$31&VLOOKUP(J$5,months,2,FALSE)&TEXT($E17+Lists!$AD15,"00"),data_key,0),Results!$H$1) *Lists!AI15 * IF(result_type_slice = "Aggregate", INDEX(enrollment, MATCH(program_slice&category_slice&subcategory_slice&year_slice&VLOOKUP(J$5,months,2,FALSE),enrollment_key,0),MATCH("sites",enrollment_x,0))/1000, 1) * -1), "") -> 0 | K17: =IFERROR(IF(AND(public,confidential_slice),"",INDEX(data,--AND(K$1>=3,K$1<=10)*Data!$AD15+MATCH(Lists!$S$31&VLOOKUP(K$5,months,2,FALSE)&TEXT($E17+Lists!$AD15,"00"),data_key,0),Results!$H$1) *Lists!AJ15 * IF(result_type_slice = "Aggregate", INDEX(enrollment, MATCH(program_slice&category_slice&subcategory_slice&year_slice&VLOOKUP(K$5,months,2,FALSE),enrollment_key,0),MATCH("sites",enrollment_x,0))/1000, 1) * -1), "") -> 0 | L17: =IFERROR(IF(AND(public,confidential_slice),"",INDEX(data,--AND(L$1>=3,L$1<=10)*Data!$AD15+MATCH(Lists!$S$31&VLOOKUP(L$5,months,2,FALSE)&TEXT($E17+Lists!$AD15,"00"),data_key,0),Results!$H$1) *Lists!AK15 * IF(result_type_slice = "Aggregate", INDEX(enrollment, MATCH(program_slice&category_slice&subcategory_slice&year_slice&VLOOKUP(L$5,months,2,FALSE),enrollment_key,0),MATCH("sites",enrollment_x,0))/1000, 1) * -1), "") -> 0 | M17: =IFERROR(IF(AND(public,confidential_slice),"",INDEX(data,--AND(M$1>=3,M$1<=10)*Data!$AD15+MATCH(Lists!$S$31&VLOOKUP(M$5,months,2,FALSE)&TEXT($E17+Lists!$AD15,"00"),data_key,0),Results!$H$1) *Lists!AL15 * IF(result_type_slice = "Aggregate", INDEX(enrollment, MATCH(program_slice&category_slice&subcategory_slice&year_slice&VLOOKUP(M$5,months,2,FALSE),enrollment_key,0),MATCH("sites",enrollment_x,0))/1000, 1) * -1), "") -> 0 | N17: =IFERROR(IF(AND(public,confidential_slice),"",INDEX(data,--AND(N$1>=3,N$1<=10)*Data!$AD15+MATCH(Lists!$S$31&VLOOKUP(N$5,months,2,FALSE)&TEXT($E17+Lists!$AD15,"00"),data_key,0),Results!$H$1) *Lists!AM15 * IF(result_type_slice = "Aggregate", INDEX(enrollment, MATCH(program_slice&category_slice&subcategory_slice&year_slice&VLOOKUP(N$5,months,2,FALSE),enrollment_key,0),MATCH("sites",enrollment_x,0))/1000, 1) * -1), "") -> 0 | O17: =IFERROR(IF(AND(public,confidential_slice),"",INDEX(data,--AND(O$1>=3,O$1<=10)*Data!$AD15+MATCH(Lists!$S$31&VLOOKUP(O$5,months,2,FALSE)&TEXT($E17+Lists!$AD15,"00"),data_key,0),Results!$H$1) *Lists!AN15 * IF(result_type_slice = "Aggregate", INDEX(enrollment, MATCH(program_slice&category_slice&subcategory_slice&year_slice&VLOOKUP(O$5,months,2,FALSE),enrollment_key,0),MATCH("sites",enrollment_x,0))/1000, 1) * -1), "") -> 0 | P17: =IFERROR(IF(AND(public,confidential_slice),"",INDEX(data,--AND(P$1>=3,P$1<=10)*Data!$AD15+MATCH(Lists!$S$31&VLOOKUP(P$5,months,2,FALSE)&TEXT($E17+Lists!$AD15,"00"),data_key,0),Results!$H$1) *Lists!AO15 * IF(result_type_slice = "Aggregate", INDEX(enrollment, MATCH(program_slice&category_slice&subcategory_slice&year_slice&VLOOKUP(P$5,months,2,FALSE),enrollment_key,0),MATCH("sites",enrollment_x,0))/1000, 1) * -1), "") -> 0 | Q17: =IFERROR(IF(AND(public,confidential_slice),"",INDEX(data,--AND(Q$1>=3,Q$1<=10)*Data!$AD15+MATCH(Lists!$S$31&VLOOKUP(Q$5,months,2,FALSE)&TEXT($E17+Lists!$AD15,"00"),data_key,0),Results!$H$1) *Lists!AP15 * IF(result_type_slice = "Aggregate", INDEX(enrollment, MATCH(program_slice&category_slice&subcategory_slice&year_slice&VLOOKUP(Q$5,months,2,FALSE),enrollment_key,0),MATCH("sites",enrollment_x,0))/1000, 1) * -1), "") -> 0 | S17: =IFERROR(IF(AND(public,confidential_slice),"",INDEX(data,MATCH(Lists!$S$31&VLOOKUP(M$5,months,2,FALSE)&TEXT($E17+Lists!$AD15,"00"),data_key,0),Results!$N$1) *Lists!AL15 * IF(result_type_slice = "Aggregate", INDEX(enrollment, MATCH(program_slice&category_slice&subcategory_slice&year_slice&VLOOKUP(M$5,months,2,FALSE),enrollment_key,0),MATCH("sites",enrollment_x,0))/1000, 1) * -1), "") -> 0 | T17: Yes
E18: 12 | F18: =IFERROR(IF(AND(public,confidential_slice),"",INDEX(data,--AND(F$1>=3,F$1<=10)*Data!$AD16+MATCH(Lists!$S$31&VLOOKUP(F$5,months,2,FALSE)&TEXT($E18+Lists!$AD16,"00"),data_key,0),Results!$H$1) *Lists!AE16 * IF(result_type_slice = "Aggregate", INDEX(enrollment, MATCH(program_slice&category_slice&subcategory_slice&year_slice&VLOOKUP(F$5,months,2,FALSE),enrollment_key,0),MATCH("sites",enrollment_x,0))/1000, 1) * -1), "") -> 0 | G18: =IFERROR(IF(AND(public,confidential_slice),"",INDEX(data,--AND(G$1>=3,G$1<=10)*Data!$AD16+MATCH(Lists!$S$31&VLOOKUP(G$5,months,2,FALSE)&TEXT($E18+Lists!$AD16,"00"),data_key,0),Results!$H$1) *Lists!AF16 * IF(result_type_slice = "Aggregate", INDEX(enrollment, MATCH(program_slice&category_slice&subcategory_slice&year_slice&VLOOKUP(G$5,months,2,FALSE),enrollment_key,0),MATCH("sites",enrollment_x,0))/1000, 1) * -1), "") -> 0 | H18: =IFERROR(IF(AND(public,confidential_slice),"",INDEX(data,--AND(H$1>=3,H$1<=10)*Data!$AD16+MATCH(Lists!$S$31&VLOOKUP(H$5,months,2,FALSE)&TEXT($E18+Lists!$AD16,"00"),data_key,0),Results!$H$1) *Lists!AG16 * IF(result_type_slice = "Aggregate", INDEX(enrollment, MATCH(program_slice&category_slice&subcategory_slice&year_slice&VLOOKUP(H$5,months,2,FALSE),enrollment_key,0),MATCH("sites",enrollment_x,0))/1000, 1) * -1), "") -> 0 | I18: =IFERROR(IF(AND(public,confidential_slice),"",INDEX(data,--AND(I$1>=3,I$1<=10)*Data!$AD16+MATCH(Lists!$S$31&VLOOKUP(I$5,months,2,FALSE)&TEXT($E18+Lists!$AD16,"00"),data_key,0),Results!$H$1) *Lists!AH16 * IF(result_type_slice = "Aggregate", INDEX(enrollment, MATCH(program_slice&category_slice&subcategory_slice&year_slice&VLOOKUP(I$5,months,2,FALSE),enrollment_key,0),MATCH("sites",enrollment_x,0))/1000, 1) * -1), "") -> 0 | J18: =IFERROR(IF(AND(public,confidential_slice),"",INDEX(data,--AND(J$1>=3,J$1<=10)*Data!$AD16+MATCH(Lists!$S$31&VLOOKUP(J$5,months,2,FALSE)&TEXT($E18+Lists!$AD16,"00"),data_key,0),Results!$H$1) *Lists!AI16 * IF(result_type_slice = "Aggregate", INDEX(enrollment, MATCH(program_slice&category_slice&subcategory_slice&year_slice&VLOOKUP(J$5,months,2,FALSE),enrollment_key,0),MATCH("sites",enrollment_x,0))/1000, 1) * -1), "") -> 0 | K18: =IFERROR(IF(AND(public,confidential_slice),"",INDEX(data,--AND(K$1>=3,K$1<=10)*Data!$AD16+MATCH(Lists!$S$31&VLOOKUP(K$5,months,2,FALSE)&TEXT($E18+Lists!$AD16,"00"),data_key,0),Results!$H$1) *Lists!AJ16 * IF(result_type_slice = "Aggregate", INDEX(enrollment, MATCH(program_slice&category_slice&subcategory_slice&year_slice&VLOOKUP(K$5,months,2,FALSE),enrollment_key,0),MATCH("sites",enrollment_x,0))/1000, 1) * -1), "") -> 0 | L18: =IFERROR(IF(AND(public,confidential_slice),"",INDEX(data,--AND(L$1>=3,L$1<=10)*Data!$AD16+MATCH(Lists!$S$31&VLOOKUP(L$5,months,2,FALSE)&TEXT($E18+Lists!$AD16,"00"),data_key,0),Results!$H$1) *Lists!AK16 * IF(result_type_slice = "Aggregate", INDEX(enrollment, MATCH(program_slice&category_slice&subcategory_slice&year_slice&VLOOKUP(L$5,months,2,FALSE),enrollment_key,0),MATCH("sites",enrollment_x,0))/1000, 1) * -1), "") -> 0 | M18: =IFERROR(IF(AND(public,confidential_slice),"",INDEX(data,--AND(M$1>=3,M$1<=10)*Data!$AD16+MATCH(Lists!$S$31&VLOOKUP(M$5,months,2,FALSE)&TEXT($E18+Lists!$AD16,"00"),data_key,0),Results!$H$1) *Lists!AL16 * IF(result_type_slice = "Aggregate", INDEX(enrollment, MATCH(program_slice&category_slice&subcategory_slice&year_slice&VLOOKUP(M$5,months,2,FALSE),enrollment_key,0),MATCH("sites",enrollment_x,0))/1000, 1) * -1), "") -> 0 | N18: =IFERROR(IF(AND(public,confidential_slice),"",INDEX(data,--AND(N$1>=3,N$1<=10)*Data!$AD16+MATCH(Lists!$S$31&VLOOKUP(N$5,months,2,FALSE)&TEXT($E18+Lists!$AD16,"00"),data_key,0),Results!$H$1) *Lists!AM16 * IF(result_type_slice = "Aggregate", INDEX(enrollment, MATCH(program_slice&category_slice&subcategory_slice&year_slice&VLOOKUP(N$5,months,2,FALSE),enrollment_key,0),MATCH("sites",enrollment_x,0))/1000, 1) * -1), "") -> 0 | O18: =IFERROR(IF(AND(public,confidential_slice),"",INDEX(data,--AND(O$1>=3,O$1<=10)*Data!$AD16+MATCH(Lists!$S$31&VLOOKUP(O$5,months,2,FALSE)&TEXT($E18+Lists!$AD16,"00"),data_key,0),Results!$H$1) *Lists!AN16 * IF(result_type_slice = "Aggregate", INDEX(enrollment, MATCH(program_slice&category_slice&subcategory_slice&year_slice&VLOOKUP(O$5,months,2,FALSE),enrollment_key,0),MATCH("sites",enrollment_x,0))/1000, 1) * -1), "") -> 0 | P18: =IFERROR(IF(AND(public,confidential_slice),"",INDEX(data,--AND(P$1>=3,P$1<=10)*Data!$AD16+MATCH(Lists!$S$31&VLOOKUP(P$5,months,2,FALSE)&TEXT($E18+Lists!$AD16,"00"),data_key,0),Results!$H$1) *Lists!AO16 * IF(result_type_slice = "Aggregate", INDEX(enrollment, MATCH(program_slice&category_slice&subcategory_slice&year_slice&VLOOKUP(P$5,months,2,FALSE),enrollment_key,0),MATCH("sites",enrollment_x,0))/1000, 1) * -1), "") -> 0 | Q18: =IFERROR(IF(AND(public,confidential_slice),"",INDEX(data,--AND(Q$1>=3,Q$1<=10)*Data!$AD16+MATCH(Lists!$S$31&VLOOKUP(Q$5,months,2,FALSE)&TEXT($E18+Lists!$AD16,"00"),data_key,0),Results!$H$1) *Lists!AP16 * IF(result_type_slice = "Aggregate", INDEX(enrollment, MATCH(program_slice&category_slice&subcategory_slice&year_slice&VLOOKUP(Q$5,months,2,FALSE),enrollment_key,0),MATCH("sites",enrollment_x,0))/1000, 1) * -1), "") -> 0 | S18: =IFERROR(IF(AND(public,confidential_slice),"",INDEX(data,MATCH(Lists!$S$31&VLOOKUP(M$5,months,2,FALSE)&TEXT($E18+Lists!$AD16,"00"),data_key,0),Results!$N$1) *Lists!AL16 * IF(result_type_slice = "Aggregate", INDEX(enrollment, MATCH(program_slice&category_slice&subcategory_slice&year_slice&VLOOKUP(M$5,months,2,FALSE),enrollment_key,0),MATCH("sites",enrollment_x,0))/1000, 1) * -1), "") -> 0 | T18: Yes
E19: 13 | F19: =IFERROR(IF(AND(public,confidential_slice),"",INDEX(data,--AND(F$1>=3,F$1<=10)*Data!$AD17+MATCH(Lists!$S$31&VLOOKUP(F$5,months,2,FALSE)&TEXT($E19+Lists!$AD17,"00"),data_key,0),Results!$H$1) *Lists!AE17 * IF(result_type_slice = "Aggregate", INDEX(enrollment, MATCH(program_slice&category_slice&subcategory_slice&year_slice&VLOOKUP(F$5,months,2,FALSE),enrollment_key,0),MATCH("sites",enrollment_x,0))/1000, 1) * -1), "") -> 0 | G19: =IFERROR(IF(AND(public,confidential_slice),"",INDEX(data,--AND(G$1>=3,G$1<=10)*Data!$AD17+MATCH(Lists!$S$31&VLOOKUP(G$5,months,2,FALSE)&TEXT($E19+Lists!$AD17,"00"),data_key,0),Results!$H$1) *Lists!AF17 * IF(result_type_slice = "Aggregate", INDEX(enrollment, MATCH(program_slice&category_slice&subcategory_slice&year_slice&VLOOKUP(G$5,months,2,FALSE),enrollment_key,0),MATCH("sites",enrollment_x,0))/1000, 1) * -1), "") -> 0 | H19: =IFERROR(IF(AND(public,confidential_slice),"",INDEX(data,--AND(H$1>=3,H$1<=10)*Data!$AD17+MATCH(Lists!$S$31&VLOOKUP(H$5,months,2,FALSE)&TEXT($E19+Lists!$AD17,"00"),data_key,0),Results!$H$1) *Lists!AG17 * IF(result_type_slice = "Aggregate", INDEX(enrollment, MATCH(program_slice&category_slice&subcategory_slice&year_slice&VLOOKUP(H$5,months,2,FALSE),enrollment_key,0),MATCH("sites",enrollment_x,0))/1000, 1) * -1), "") -> 0 | I19: =IFERROR(IF(AND(public,confidential_slice),"",INDEX(data,--AND(I$1>=3,I$1<=10)*Data!$AD17+MATCH(Lists!$S$31&VLOOKUP(I$5,months,2,FALSE)&TEXT($E19+Lists!$AD17,"00"),data_key,0),Results!$H$1) *Lists!AH17 * IF(result_type_slice = "Aggregate", INDEX(enrollment, MATCH(program_slice&category_slice&subcategory_slice&year_slice&VLOOKUP(I$5,months,2,FALSE),enrollment_key,0),MATCH("sites",enrollment_x,0))/1000, 1) * -1), "") -> 0 | J19: =IFERROR(IF(AND(public,confidential_slice),"",INDEX(data,--AND(J$1>=3,J$1<=10)*Data!$AD17+MATCH(Lists!$S$31&VLOOKUP(J$5,months,2,FALSE)&TEXT($E19+Lists!$AD17,"00"),data_key,0),Results!$H$1) *Lists!AI17 * IF(result_type_slice = "Aggregate", INDEX(enrollment, MATCH(program_slice&category_slice&subcategory_slice&year_slice&VLOOKUP(J$5,months,2,FALSE),enrollment_key,0),MATCH("sites",enrollment_x,0))/1000, 1) * -1), "") -> 0 | K19: =IFERROR(IF(AND(public,confidential_slice),"",INDEX(data,--AND(K$1>=3,K$1<=10)*Data!$AD17+MATCH(Lists!$S$31&VLOOKUP(K$5,months,2,FALSE)&TEXT($E19+Lists!$AD17,"00"),data_key,0),Results!$H$1) *Lists!AJ17 * IF(result_type_slice = "Aggregate", INDEX(enrollment, MATCH(program_slice&category_slice&subcategory_slice&year_slice&VLOOKUP(K$5,months,2,FALSE),enrollment_key,0),MATCH("sites",enrollment_x,0))/1000, 1) * -1), "") -> 0 | L19: =IFERROR(IF(AND(public,confidential_slice),"",INDEX(data,--AND(L$1>=3,L$1<=10)*Data!$AD17+MATCH(Lists!$S$31&VLOOKUP(L$5,months,2,FALSE)&TEXT($E19+Lists!$AD17,"00"),data_key,0),Results!$H$1) *Lists!AK17 * IF(result_type_slice = "Aggregate", INDEX(enrollment, MATCH(program_slice&category_slice&subcategory_slice&year_slice&VLOOKUP(L$5,months,2,FALSE),enrollment_key,0),MATCH("sites",enrollment_x,0))/1000, 1) * -1), "") -> 0 | M19: =IFERROR(IF(AND(public,confidential_slice),"",INDEX(data,--AND(M$1>=3,M$1<=10)*Data!$AD17+MATCH(Lists!$S$31&VLOOKUP(M$5,months,2,FALSE)&TEXT($E19+Lists!$AD17,"00"),data_key,0),Results!$H$1) *Lists!AL17 * IF(result_type_slice = "Aggregate", INDEX(enrollment, MATCH(program_slice&category_slice&subcategory_slice&year_slice&VLOOKUP(M$5,months,2,FALSE),enrollment_key,0),MATCH("sites",enrollment_x,0))/1000, 1) * -1), "") -> 0 | N19: =IFERROR(IF(AND(public,confidential_slice),"",INDEX(data,--AND(N$1>=3,N$1<=10)*Data!$AD17+MATCH(Lists!$S$31&VLOOKUP(N$5,months,2,FALSE)&TEXT($E19+Lists!$AD17,"00"),data_key,0),Results!$H$1) *Lists!AM17 * IF(result_type_slice = "Aggregate", INDEX(enrollment, MATCH(program_slice&category_slice&subcategory_slice&year_slice&VLOOKUP(N$5,months,2,FALSE),enrollment_key,0),MATCH("sites",enrollment_x,0))/1000, 1) * -1), "") -> 0 | O19: =IFERROR(IF(AND(public,confidential_slice),"",INDEX(data,--AND(O$1>=3,O$1<=10)*Data!$AD17+MATCH(Lists!$S$31&VLOOKUP(O$5,months,2,FALSE)&TEXT($E19+Lists!$AD17,"00"),data_key,0),Results!$H$1) *Lists!AN17 * IF(result_type_slice = "Aggregate", INDEX(enrollment, MATCH(program_slice&category_slice&subcategory_slice&year_slice&VLOOKUP(O$5,months,2,FALSE),enrollment_key,0),MATCH("sites",enrollment_x,0))/1000, 1) * -1), "") -> 0 | P19: =IFERROR(IF(AND(public,confidential_slice),"",INDEX(data,--AND(P$1>=3,P$1<=10)*Data!$AD17+MATCH(Lists!$S$31&VLOOKUP(P$5,months,2,FALSE)&TEXT($E19+Lists!$AD17,"00"),data_key,0),Results!$H$1) *Lists!AO17 * IF(result_type_slice = "Aggregate", INDEX(enrollment, MATCH(program_slice&category_slice&subcategory_slice&year_slice&VLOOKUP(P$5,months,2,FALSE),enrollment_key,0),MATCH("sites",enrollment_x,0))/1000, 1) * -1), "") -> 0 | Q19: =IFERROR(IF(AND(public,confidential_slice),"",INDEX(data,--AND(Q$1>=3,Q$1<=10)*Data!$AD17+MATCH(Lists!$S$31&VLOOKUP(Q$5,months,2,FALSE)&TEXT($E19+Lists!$AD17,"00"),data_key,0),Results!$H$1) *Lists!AP17 * IF(result_type_slice = "Aggregate", INDEX(enrollment, MATCH(program_slice&category_slice&subcategory_slice&year_slice&VLOOKUP(Q$5,months,2,FALSE),enrollment_key,0),MATCH("sites",enrollment_x,0))/1000, 1) * -1), "") -> 0 | S19: =IFERROR(IF(AND(public,confidential_slice),"",INDEX(data,MATCH(Lists!$S$31&VLOOKUP(M$5,months,2,FALSE)&TEXT($E19+Lists!$AD17,"00"),data_key,0),Results!$N$1) *Lists!AL17 * IF(result_type_slice = "Aggregate", INDEX(enrollment, MATCH(program_slice&category_slice&subcategory_slice&year_slice&VLOOKUP(M$5,months,2,FALSE),enrollment_key,0),MATCH("sites",enrollment_x,0))/1000, 1) * -1), "") -> 0 | T19: Yes
E20: 14 | F20: =IFERROR(IF(AND(public,confidential_slice),"",INDEX(data,--AND(F$1>=3,F$1<=10)*Data!$AD18+MATCH(Lists!$S$31&VLOOKUP(F$5,months,2,FALSE)&TEXT($E20+Lists!$AD18,"00"),data_key,0),Results!$H$1) *Lists!AE18 * IF(result_type_slice = "Aggregate", INDEX(enrollment, MATCH(program_slice&category_slice&subcategory_slice&year_slice&VLOOKUP(F$5,months,2,FALSE),enrollment_key,0),MATCH("sites",enrollment_x,0))/1000, 1) * -1), "") -> 0 | G20: =IFERROR(IF(AND(public,confidential_slice),"",INDEX(data,--AND(G$1>=3,G$1<=10)*Data!$AD18+MATCH(Lists!$S$31&VLOOKUP(G$5,months,2,FALSE)&TEXT($E20+Lists!$AD18,"00"),data_key,0),Results!$H$1) *Lists!AF18 * IF(result_type_slice = "Aggregate", INDEX(enrollment, MATCH(program_slice&category_slice&subcategory_slice&year_slice&VLOOKUP(G$5,months,2,FALSE),enrollment_key,0),MATCH("sites",enrollment_x,0))/1000, 1) * -1), "") -> 0 | H20: =IFERROR(IF(AND(public,confidential_slice),"",INDEX(data,--AND(H$1>=3,H$1<=10)*Data!$AD18+MATCH(Lists!$S$31&VLOOKUP(H$5,months,2,FALSE)&TEXT($E20+Lists!$AD18,"00"),data_key,0),Results!$H$1) *Lists!AG18 * IF(result_type_slice = "Aggregate", INDEX(enrollment, MATCH(program_slice&category_slice&subcategory_slice&year_slice&VLOOKUP(H$5,months,2,FALSE),enrollment_key,0),MATCH("sites",enrollment_x,0))/1000, 1) * -1), "") -> 0 | I20: =IFERROR(IF(AND(public,confidential_slice),"",INDEX(data,--AND(I$1>=3,I$1<=10)*Data!$AD18+MATCH(Lists!$S$31&VLOOKUP(I$5,months,2,FALSE)&TEXT($E20+Lists!$AD18,"00"),data_key,0),Results!$H$1) *Lists!AH18 * IF(result_type_slice = "Aggregate", INDEX(enrollment, MATCH(program_slice&category_slice&subcategory_slice&year_slice&VLOOKUP(I$5,months,2,FALSE),enrollment_key,0),MATCH("sites",enrollment_x,0))/1000, 1) * -1), "") -> 0 | J20: =IFERROR(IF(AND(public,confidential_slice),"",INDEX(data,--AND(J$1>=3,J$1<=10)*Data!$AD18+MATCH(Lists!$S$31&VLOOKUP(J$5,months,2,FALSE)&TEXT($E20+Lists!$AD18,"00"),data_key,0),Results!$H$1) *Lists!AI18 * IF(result_type_slice = "Aggregate", INDEX(enrollment, MATCH(program_slice&category_slice&subcategory_slice&year_slice&VLOOKUP(J$5,months,2,FALSE),enrollment_key,0),MATCH("sites",enrollment_x,0))/1000, 1) * -1), "") -> 0 | K20: =IFERROR(IF(AND(public,confidential_slice),"",INDEX(data,--AND(K$1>=3,K$1<=10)*Data!$AD18+MATCH(Lists!$S$31&VLOOKUP(K$5,months,2,FALSE)&TEXT($E20+Lists!$AD18,"00"),data_key,0),Results!$H$1) *Lists!AJ18 * IF(result_type_slice = "Aggregate", INDEX(enrollment, MATCH(program_slice&category_slice&subcategory_slice&year_slice&VLOOKUP(K$5,months,2,FALSE),enrollment_key,0),MATCH("sites",enrollment_x,0))/1000, 1) * -1), "") -> 0 | L20: =IFERROR(IF(AND(public,confidential_slice),"",INDEX(data,--AND(L$1>=3,L$1<=10)*Data!$AD18+MATCH(Lists!$S$31&VLOOKUP(L$5,months,2,FALSE)&TEXT($E20+Lists!$AD18,"00"),data_key,0),Results!$H$1) *Lists!AK18 * IF(result_type_slice = "Aggregate", INDEX(enrollment, MATCH(program_slice&category_slice&subcategory_slice&year_slice&VLOOKUP(L$5,months,2,FALSE),enrollment_key,0),MATCH("sites",enrollment_x,0))/1000, 1) * -1), "") -> 0 | M20: =IFERROR(IF(AND(public,confidential_slice),"",INDEX(data,--AND(M$1>=3,M$1<=10)*Data!$AD18+MATCH(Lists!$S$31&VLOOKUP(M$5,months,2,FALSE)&TEXT($E20+Lists!$AD18,"00"),data_key,0),Results!$H$1) *Lists!AL18 * IF(result_type_slice = "Aggregate", INDEX(enrollment, MATCH(program_slice&category_slice&subcategory_slice&year_slice&VLOOKUP(M$5,months,2,FALSE),enrollment_key,0),MATCH("sites",enrollment_x,0))/1000, 1) * -1), "") -> 0 | N20: =IFERROR(IF(AND(public,confidential_slice),"",INDEX(data,--AND(N$1>=3,N$1<=10)*Data!$AD18+MATCH(Lists!$S$31&VLOOKUP(N$5,months,2,FALSE)&TEXT($E20+Lists!$AD18,"00"),data_key,0),Results!$H$1) *Lists!AM18 * IF(result_type_slice = "Aggregate", INDEX(enrollment, MATCH(program_slice&category_slice&subcategory_slice&year_slice&VLOOKUP(N$5,months,2,FALSE),enrollment_key,0),MATCH("sites",enrollment_x,0))/1000, 1) * -1), "") -> 0 | O20: =IFERROR(IF(AND(public,confidential_slice),"",INDEX(data,--AND(O$1>=3,O$1<=10)*Data!$AD18+MATCH(Lists!$S$31&VLOOKUP(O$5,months,2,FALSE)&TEXT($E20+Lists!$AD18,"00"),data_key,0),Results!$H$1) *Lists!AN18 * IF(result_type_slice = "Aggregate", INDEX(enrollment, MATCH(program_slice&category_slice&subcategory_slice&year_slice&VLOOKUP(O$5,months,2,FALSE),enrollment_key,0),MATCH("sites",enrollment_x,0))/1000, 1) * -1), "") -> 0 | P20: =IFERROR(IF(AND(public,confidential_slice),"",INDEX(data,--AND(P$1>=3,P$1<=10)*Data!$AD18+MATCH(Lists!$S$31&VLOOKUP(P$5,months,2,FALSE)&TEXT($E20+Lists!$AD18,"00"),data_key,0),Results!$H$1) *Lists!AO18 * IF(result_type_slice = "Aggregate", INDEX(enrollment, MATCH(program_slice&category_slice&subcategory_slice&year_slice&VLOOKUP(P$5,months,2,FALSE),enrollment_key,0),MATCH("sites",enrollment_x,0))/1000, 1) * -1), "") -> 0 | Q20: =IFERROR(IF(AND(public,confidential_slice),"",INDEX(data,--AND(Q$1>=3,Q$1<=10)*Data!$AD18+MATCH(Lists!$S$31&VLOOKUP(Q$5,months,2,FALSE)&TEXT($E20+Lists!$AD18,"00"),data_key,0),Results!$H$1) *Lists!AP18 * IF(result_type_slice = "Aggregate", INDEX(enrollment, MATCH(program_slice&category_slice&subcategory_slice&year_slice&VLOOKUP(Q$5,months,2,FALSE),enrollment_key,0),MATCH("sites",enrollment_x,0))/1000, 1) * -1), "") -> 0 | S20: =IFERROR(IF(AND(public,confidential_slice),"",INDEX(data,MATCH(Lists!$S$31&VLOOKUP(M$5,months,2,FALSE)&TEXT($E20+Lists!$AD18,"00"),data_key,0),Results!$N$1) *Lists!AL18 * IF(result_type_slice = "Aggregate", INDEX(enrollment, MATCH(program_slice&category_slice&subcategory_slice&year_slice&VLOOKUP(M$5,months,2,FALSE),enrollment_key,0),MATCH("sites",enrollment_x,0))/1000, 1) * -1), "") -> 0 | T20: Yes
E21: 15 | F21: =IFERROR(IF(AND(public,confidential_slice),"",INDEX(data,--AND(F$1>=3,F$1<=10)*Data!$AD19+MATCH(Lists!$S$31&VLOOKUP(F$5,months,2,FALSE)&TEXT($E21+Lists!$AD19,"00"),data_key,0),Results!$H$1) *Lists!AE19 * IF(result_type_slice = "Aggregate", INDEX(enrollment, MATCH(program_slice&category_slice&subcategory_slice&year_slice&VLOOKUP(F$5,months,2,FALSE),enrollment_key,0),MATCH("sites",enrollment_x,0))/1000, 1) * -1), "") -> 0 | G21: =IFERROR(IF(AND(public,confidential_slice),"",INDEX(data,--AND(G$1>=3,G$1<=10)*Data!$AD19+MATCH(Lists!$S$31&VLOOKUP(G$5,months,2,FALSE)&TEXT($E21+Lists!$AD19,"00"),data_key,0),Results!$H$1) *Lists!AF19 * IF(result_type_slice = "Aggregate", INDEX(enrollment, MATCH(program_slice&category_slice&subcategory_slice&year_slice&VLOOKUP(G$5,months,2,FALSE),enrollment_key,0),MATCH("sites",enrollment_x,0))/1000, 1) * -1), "") -> 0 | H21: =IFERROR(IF(AND(public,confidential_slice),"",INDEX(data,--AND(H$1>=3,H$1<=10)*Data!$AD19+MATCH(Lists!$S$31&VLOOKUP(H$5,months,2,FALSE)&TEXT($E21+Lists!$AD19,"00"),data_key,0),Results!$H$1) *Lists!AG19 * IF(result_type_slice = "Aggregate", INDEX(enrollment, MATCH(program_slice&category_slice&subcategory_slice&year_slice&VLOOKUP(H$5,months,2,FALSE),enrollment_key,0),MATCH("sites",enrollment_x,0))/1000, 1) * -1), "") -> 0 | I21: =IFERROR(IF(AND(public,confidential_slice),"",INDEX(data,--AND(I$1>=3,I$1<=10)*Data!$AD19+MATCH(Lists!$S$31&VLOOKUP(I$5,months,2,FALSE)&TEXT($E21+Lists!$AD19,"00"),data_key,0),Results!$H$1) *Lists!AH19 * IF(result_type_slice = "Aggregate", INDEX(enrollment, MATCH(program_slice&category_slice&subcategory_slice&year_slice&VLOOKUP(I$5,months,2,FALSE),enrollment_key,0),MATCH("sites",enrollment_x,0))/1000, 1) * -1), "") -> 0 | J21: =IFERROR(IF(AND(public,confidential_slice),"",INDEX(data,--AND(J$1>=3,J$1<=10)*Data!$AD19+MATCH(Lists!$S$31&VLOOKUP(J$5,months,2,FALSE)&TEXT($E21+Lists!$AD19,"00"),data_key,0),Results!$H$1) *Lists!AI19 * IF(result_type_slice = "Aggregate", INDEX(enrollment, MATCH(program_slice&category_slice&subcategory_slice&year_slice&VLOOKUP(J$5,months,2,FALSE),enrollment_key,0),MATCH("sites",enrollment_x,0))/1000, 1) * -1), "") -> 0 | K21: =IFERROR(IF(AND(public,confidential_slice),"",INDEX(data,--AND(K$1>=3,K$1<=10)*Data!$AD19+MATCH(Lists!$S$31&VLOOKUP(K$5,months,2,FALSE)&TEXT($E21+Lists!$AD19,"00"),data_key,0),Results!$H$1) *Lists!AJ19 * IF(result_type_slice = "Aggregate", INDEX(enrollment, MATCH(program_slice&category_slice&subcategory_slice&year_slice&VLOOKUP(K$5,months,2,FALSE),enrollment_key,0),MATCH("sites",enrollment_x,0))/1000, 1) * -1), "") -> 0 | L21: =IFERROR(IF(AND(public,confidential_slice),"",INDEX(data,--AND(L$1>=3,L$1<=10)*Data!$AD19+MATCH(Lists!$S$31&VLOOKUP(L$5,months,2,FALSE)&TEXT($E21+Lists!$AD19,"00"),data_key,0),Results!$H$1) *Lists!AK19 * IF(result_type_slice = "Aggregate", INDEX(enrollment, MATCH(program_slice&category_slice&subcategory_slice&year_slice&VLOOKUP(L$5,months,2,FALSE),enrollment_key,0),MATCH("sites",enrollment_x,0))/1000, 1) * -1), "") -> 0 | M21: =IFERROR(IF(AND(public,confidential_slice),"",INDEX(data,--AND(M$1>=3,M$1<=10)*Data!$AD19+MATCH(Lists!$S$31&VLOOKUP(M$5,months,2,FALSE)&TEXT($E21+Lists!$AD19,"00"),data_key,0),Results!$H$1) *Lists!AL19 * IF(result_type_slice = "Aggregate", INDEX(enrollment, MATCH(program_slice&category_slice&subcategory_slice&year_slice&VLOOKUP(M$5,months,2,FALSE),enrollment_key,0),MATCH("sites",enrollment_x,0))/1000, 1) * -1), "") -> 0 | N21: =IFERROR(IF(AND(public,confidential_slice),"",INDEX(data,--AND(N$1>=3,N$1<=10)*Data!$AD19+MATCH(Lists!$S$31&VLOOKUP(N$5,months,2,FALSE)&TEXT($E21+Lists!$AD19,"00"),data_key,0),Results!$H$1) *Lists!AM19 * IF(result_type_slice = "Aggregate", INDEX(enrollment, MATCH(program_slice&category_slice&subcategory_slice&year_slice&VLOOKUP(N$5,months,2,FALSE),enrollment_key,0),MATCH("sites",enrollment_x,0))/1000, 1) * -1), "") -> 0 | O21: =IFERROR(IF(AND(public,confidential_slice),"",INDEX(data,--AND(O$1>=3,O$1<=10)*Data!$AD19+MATCH(Lists!$S$31&VLOOKUP(O$5,months,2,FALSE)&TEXT($E21+Lists!$AD19,"00"),data_key,0),Results!$H$1) *Lists!AN19 * IF(result_type_slice = "Aggregate", INDEX(enrollment, MATCH(program_slice&category_slice&subcategory_slice&year_slice&VLOOKUP(O$5,months,2,FALSE),enrollment_key,0),MATCH("sites",enrollment_x,0))/1000, 1) * -1), "") -> 0 | P21: =IFERROR(IF(AND(public,confidential_slice),"",INDEX(data,--AND(P$1>=3,P$1<=10)*Data!$AD19+MATCH(Lists!$S$31&VLOOKUP(P$5,months,2,FALSE)&TEXT($E21+Lists!$AD19,"00"),data_key,0),Results!$H$1) *Lists!AO19 * IF(result_type_slice = "Aggregate", INDEX(enrollment, MATCH(program_slice&category_slice&subcategory_slice&year_slice&VLOOKUP(P$5,months,2,FALSE),enrollment_key,0),MATCH("sites",enrollment_x,0))/1000, 1) * -1), "") -> 0 | Q21: =IFERROR(IF(AND(public,confidential_slice),"",INDEX(data,--AND(Q$1>=3,Q$1<=10)*Data!$AD19+MATCH(Lists!$S$31&VLOOKUP(Q$5,months,2,FALSE)&TEXT($E21+Lists!$AD19,"00"),data_key,0),Results!$H$1) *Lists!AP19 * IF(result_type_slice = "Aggregate", INDEX(enrollment, MATCH(program_slice&category_slice&subcategory_slice&year_slice&VLOOKUP(Q$5,months,2,FALSE),enrollment_key,0),MATCH("sites",enrollment_x,0))/1000, 1) * -1), "") -> 0 | S21: =IFERROR(IF(AND(public,confidential_slice),"",INDEX(data,MATCH(Lists!$S$31&VLOOKUP(M$5,months,2,FALSE)&TEXT($E21+Lists!$AD19,"00"),data_key,0),Results!$N$1) *Lists!AL19 * IF(result_type_slice = "Aggregate", INDEX(enrollment, MATCH(program_slice&category_slice&subcategory_slice&year_slice&VLOOKUP(M$5,months,2,FALSE),enrollment_key,0),MATCH("sites",enrollment_x,0))/1000, 1) * -1), "") -> 0 | T21: Yes
E22: 16 | F22: =IFERROR(IF(AND(public,confidential_slice),"",INDEX(data,--AND(F$1>=3,F$1<=10)*Data!$AD20+MATCH(Lists!$S$31&VLOOKUP(F$5,months,2,FALSE)&TEXT($E22+Lists!$AD20,"00"),data_key,0),Results!$H$1) *Lists!AE20 * IF(result_type_slice = "Aggregate", INDEX(enrollment, MATCH(program_slice&category_slice&subcategory_slice&year_slice&VLOOKUP(F$5,months,2,FALSE),enrollment_key,0),MATCH("sites",enrollment_x,0))/1000, 1) * -1), "") -> 0 | G22: =IFERROR(IF(AND(public,confidential_slice),"",INDEX(data,--AND(G$1>=3,G$1<=10)*Data!$AD20+MATCH(Lists!$S$31&VLOOKUP(G$5,months,2,FALSE)&TEXT($E22+Lists!$AD20,"00"),data_key,0),Results!$H$1) *Lists!AF20 * IF(result_type_slice = "Aggregate", INDEX(enrollment, MATCH(program_slice&category_slice&subcategory_slice&year_slice&VLOOKUP(G$5,months,2,FALSE),enrollment_key,0),MATCH("sites",enrollment_x,0))/1000, 1) * -1), "") -> 0 | H22: =IFERROR(IF(AND(public,confidential_slice),"",INDEX(data,--AND(H$1>=3,H$1<=10)*Data!$AD20+MATCH(Lists!$S$31&VLOOKUP(H$5,months,2,FALSE)&TEXT($E22+Lists!$AD20,"00"),data_key,0),Results!$H$1) *Lists!AG20 * IF(result_type_slice = "Aggregate", INDEX(enrollment, MATCH(program_slice&category_slice&subcategory_slice&year_slice&VLOOKUP(H$5,months,2,FALSE),enrollment_key,0),MATCH("sites",enrollment_x,0))/1000, 1) * -1), "") -> 0 | I22: =IFERROR(IF(AND(public,confidential_slice),"",INDEX(data,--AND(I$1>=3,I$1<=10)*Data!$AD20+MATCH(Lists!$S$31&VLOOKUP(I$5,months,2,FALSE)&TEXT($E22+Lists!$AD20,"00"),data_key,0),Results!$H$1) *Lists!AH20 * IF(result_type_slice = "Aggregate", INDEX(enrollment, MATCH(program_slice&category_slice&subcategory_slice&year_slice&VLOOKUP(I$5,months,2,FALSE),enrollment_key,0),MATCH("sites",enrollment_x,0))/1000, 1) * -1), "") -> 0 | J22: =IFERROR(IF(AND(public,confidential_slice),"",INDEX(data,--AND(J$1>=3,J$1<=10)*Data!$AD20+MATCH(Lists!$S$31&VLOOKUP(J$5,months,2,FALSE)&TEXT($E22+Lists!$AD20,"00"),data_key,0),Results!$H$1) *Lists!AI20 * IF(result_type_slice = "Aggregate", INDEX(enrollment, MATCH(program_slice&category_slice&subcategory_slice&year_slice&VLOOKUP(J$5,months,2,FALSE),enrollment_key,0),MATCH("sites",enrollment_x,0))/1000, 1) * -1), "") -> 0 | K22: =IFERROR(IF(AND(public,confidential_slice),"",INDEX(data,--AND(K$1>=3,K$1<=10)*Data!$AD20+MATCH(Lists!$S$31&VLOOKUP(K$5,months,2,FALSE)&TEXT($E22+Lists!$AD20,"00"),data_key,0),Results!$H$1) *Lists!AJ20 * IF(result_type_slice = "Aggregate", INDEX(enrollment, MATCH(program_slice&category_slice&subcategory_slice&year_slice&VLOOKUP(K$5,months,2,FALSE),enrollment_key,0),MATCH("sites",enrollment_x,0))/1000, 1) * -1), "") -> 0 | L22: =IFERROR(IF(AND(public,confidential_slice),"",INDEX(data,--AND(L$1>=3,L$1<=10)*Data!$AD20+MATCH(Lists!$S$31&VLOOKUP(L$5,months,2,FALSE)&TEXT($E22+Lists!$AD20,"00"),data_key,0),Results!$H$1) *Lists!AK20 * IF(result_type_slice = "Aggregate", INDEX(enrollment, MATCH(program_slice&category_slice&subcategory_slice&year_slice&VLOOKUP(L$5,months,2,FALSE),enrollment_key,0),MATCH("sites",enrollment_x,0))/1000, 1) * -1), "") -> 0 | M22: =IFERROR(IF(AND(public,confidential_slice),"",INDEX(data,--AND(M$1>=3,M$1<=10)*Data!$AD20+MATCH(Lists!$S$31&VLOOKUP(M$5,months,2,FALSE)&TEXT($E22+Lists!$AD20,"00"),data_key,0),Results!$H$1) *Lists!AL20 * IF(result_type_slice = "Aggregate", INDEX(enrollment, MATCH(program_slice&category_slice&subcategory_slice&year_slice&VLOOKUP(M$5,months,2,FALSE),enrollment_key,0),MATCH("sites",enrollment_x,0))/1000, 1) * -1), "") -> 0 | N22: =IFERROR(IF(AND(public,confidential_slice),"",INDEX(data,--AND(N$1>=3,N$1<=10)*Data!$AD20+MATCH(Lists!$S$31&VLOOKUP(N$5,months,2,FALSE)&TEXT($E22+Lists!$AD20,"00"),data_key,0),Results!$H$1) *Lists!AM20 * IF(result_type_slice = "Aggregate", INDEX(enrollment, MATCH(program_slice&category_slice&subcategory_slice&year_slice&VLOOKUP(N$5,months,2,FALSE),enrollment_key,0),MATCH("sites",enrollment_x,0))/1000, 1) * -1), "") -> 0 | O22: =IFERROR(IF(AND(public,confidential_slice),"",INDEX(data,--AND(O$1>=3,O$1<=10)*Data!$AD20+MATCH(Lists!$S$31&VLOOKUP(O$5,months,2,FALSE)&TEXT($E22+Lists!$AD20,"00"),data_key,0),Results!$H$1) *Lists!AN20 * IF(result_type_slice = "Aggregate", INDEX(enrollment, MATCH(program_slice&category_slice&subcategory_slice&year_slice&VLOOKUP(O$5,months,2,FALSE),enrollment_key,0),MATCH("sites",enrollment_x,0))/1000, 1) * -1), "") -> 0 | P22: =IFERROR(IF(AND(public,confidential_slice),"",INDEX(data,--AND(P$1>=3,P$1<=10)*Data!$AD20+MATCH(Lists!$S$31&VLOOKUP(P$5,months,2,FALSE)&TEXT($E22+Lists!$AD20,"00"),data_key,0),Results!$H$1) *Lists!AO20 * IF(result_type_slice = "Aggregate", INDEX(enrollment, MATCH(program_slice&category_slice&subcategory_slice&year_slice&VLOOKUP(P$5,months,2,FALSE),enrollment_key,0),MATCH("sites",enrollment_x,0))/1000, 1) * -1), "") -> 0 | Q22: =IFERROR(IF(AND(public,confidential_slice),"",INDEX(data,--AND(Q$1>=3,Q$1<=10)*Data!$AD20+MATCH(Lists!$S$31&VLOOKUP(Q$5,months,2,FALSE)&TEXT($E22+Lists!$AD20,"00"),data_key,0),Results!$H$1) *Lists!AP20 * IF(result_type_slice = "Aggregate", INDEX(enrollment, MATCH(program_slice&category_slice&subcategory_slice&year_slice&VLOOKUP(Q$5,months,2,FALSE),enrollment_key,0),MATCH("sites",enrollment_x,0))/1000, 1) * -1), "") -> 0 | S22: =IFERROR(IF(AND(public,confidential_slice),"",INDEX(data,MATCH(Lists!$S$31&VLOOKUP(M$5,months,2,FALSE)&TEXT($E22+Lists!$AD20,"00"),data_key,0),Results!$N$1) *Lists!AL20 * IF(result_type_slice = "Aggregate", INDEX(enrollment, MATCH(program_slice&category_slice&subcategory_slice&year_slice&VLOOKUP(M$5,months,2,FALSE),enrollment_key,0),MATCH("sites",enrollment_x,0))/1000, 1) * -1), "") -> 0 | T22: Yes
E23: 17 | F23: =IFERROR(IF(AND(public,confidential_slice),"",INDEX(data,--AND(F$1>=3,F$1<=10)*Data!$AD21+MATCH(Lists!$S$31&VLOOKUP(F$5,months,2,FALSE)&TEXT($E23+Lists!$AD21,"00"),data_key,0),Results!$H$1) *Lists!AE21 * IF(result_type_slice = "Aggregate", INDEX(enrollment, MATCH(program_slice&category_slice&subcategory_slice&year_slice&VLOOKUP(F$5,months,2,FALSE),enrollment_key,0),MATCH("sites",enrollment_x,0))/1000, 1) * -1), "") -> 0 | G23: =IFERROR(IF(AND(public,confidential_slice),"",INDEX(data,--AND(G$1>=3,G$1<=10)*Data!$AD21+MATCH(Lists!$S$31&VLOOKUP(G$5,months,2,FALSE)&TEXT($E23+Lists!$AD21,"00"),data_key,0),Results!$H$1) *Lists!AF21 * IF(result_type_slice = "Aggregate", INDEX(enrollment, MATCH(program_slice&category_slice&subcategory_slice&year_slice&VLOOKUP(G$5,months,2,FALSE),enrollment_key,0),MATCH("sites",enrollment_x,0))/1000, 1) * -1), "") -> 0 | H23: =IFERROR(IF(AND(public,confidential_slice),"",INDEX(data,--AND(H$1>=3,H$1<=10)*Data!$AD21+MATCH(Lists!$S$31&VLOOKUP(H$5,months,2,FALSE)&TEXT($E23+Lists!$AD21,"00"),data_key,0),Results!$H$1) *Lists!AG21 * IF(result_type_slice = "Aggregate", INDEX(enrollment, MATCH(program_slice&category_slice&subcategory_slice&year_slice&VLOOKUP(H$5,months,2,FALSE),enrollment_key,0),MATCH("sites",enrollment_x,0))/1000, 1) * -1), "") -> 0 | I23: =IFERROR(IF(AND(public,confidential_slice),"",INDEX(data,--AND(I$1>=3,I$1<=10)*Data!$AD21+MATCH(Lists!$S$31&VLOOKUP(I$5,months,2,FALSE)&TEXT($E23+Lists!$AD21,"00"),data_key,0),Results!$H$1) *Lists!AH21 * IF(result_type_slice = "Aggregate", INDEX(enrollment, MATCH(program_slice&category_slice&subcategory_slice&year_slice&VLOOKUP(I$5,months,2,FALSE),enrollment_key,0),MATCH("sites",enrollment_x,0))/1000, 1) * -1), "") -> 0 | J23: =IFERROR(IF(AND(public,confidential_slice),"",INDEX(data,--AND(J$1>=3,J$1<=10)*Data!$AD21+MATCH(Lists!$S$31&VLOOKUP(J$5,months,2,FALSE)&TEXT($E23+Lists!$AD21,"00"),data_key,0),Results!$H$1) *Lists!AI21 * IF(result_type_slice = "Aggregate", INDEX(enrollment, MATCH(program_slice&category_slice&subcategory_slice&year_slice&VLOOKUP(J$5,months,2,FALSE),enrollment_key,0),MATCH("sites",enrollment_x,0))/1000, 1) * -1), "") -> 0 | K23: =IFERROR(IF(AND(public,confidential_slice),"",INDEX(data,--AND(K$1>=3,K$1<=10)*Data!$AD21+MATCH(Lists!$S$31&VLOOKUP(K$5,months,2,FALSE)&TEXT($E23+Lists!$AD21,"00"),data_key,0),Results!$H$1) *Lists!AJ21 * IF(result_type_slice = "Aggregate", INDEX(enrollment, MATCH(program_slice&category_slice&subcategory_slice&year_slice&VLOOKUP(K$5,months,2,FALSE),enrollment_key,0),MATCH("sites",enrollment_x,0))/1000, 1) * -1), "") -> 4.419611665 | L23: =IFERROR(IF(AND(public,confidential_slice),"",INDEX(data,--AND(L$1>=3,L$1<=10)*Data!$AD21+MATCH(Lists!$S$31&VLOOKUP(L$5,months,2,FALSE)&TEXT($E23+Lists!$AD21,"00"),data_key,0),Results!$H$1) *Lists!AK21 * IF(result_type_slice = "Aggregate", INDEX(enrollment, MATCH(program_slice&category_slice&subcategory_slice&year_slice&VLOOKUP(L$5,months,2,FALSE),enrollment_key,0),MATCH("sites",enrollment_x,0))/1000, 1) * -1), "") -> 4.50390394 | M23: =IFERROR(IF(AND(public,confidential_slice),"",INDEX(data,--AND(M$1>=3,M$1<=10)*Data!$AD21+MATCH(Lists!$S$31&VLOOKUP(M$5,months,2,FALSE)&TEXT($E23+Lists!$AD21,"00"),data_key,0),Results!$H$1) *Lists!AL21 * IF(result_type_slice = "Aggregate", INDEX(enrollment, MATCH(program_slice&category_slice&subcategory_slice&year_slice&VLOOKUP(M$5,months,2,FALSE),enrollment_key,0),MATCH("sites",enrollment_x,0))/1000, 1) * -1), "") -> 4.558498622 | N23: =IFERROR(IF(AND(public,confidential_slice),"",INDEX(data,--AND(N$1>=3,N$1<=10)*Data!$AD21+MATCH(Lists!$S$31&VLOOKUP(N$5,months,2,FALSE)&TEXT($E23+Lists!$AD21,"00"),data_key,0),Results!$H$1) *Lists!AM21 * IF(result_type_slice = "Aggregate", INDEX(enrollment, MATCH(program_slice&category_slice&subcategory_slice&year_slice&VLOOKUP(N$5,months,2,FALSE),enrollment_key,0),MATCH("sites",enrollment_x,0))/1000, 1) * -1), "") -> 4.58591206 | O23: =IFERROR(IF(AND(public,confidential_slice),"",INDEX(data,--AND(O$1>=3,O$1<=10)*Data!$AD21+MATCH(Lists!$S$31&VLOOKUP(O$5,months,2,FALSE)&TEXT($E23+Lists!$AD21,"00"),data_key,0),Results!$H$1) *Lists!AN21 * IF(result_type_slice = "Aggregate", INDEX(enrollment, MATCH(program_slice&category_slice&subcategory_slice&year_slice&VLOOKUP(O$5,months,2,FALSE),enrollment_key,0),MATCH("sites",enrollment_x,0))/1000, 1) * -1), "") -> 4.111139673 | P23: =IFERROR(IF(AND(public,confidential_slice),"",INDEX(data,--AND(P$1>=3,P$1<=10)*Data!$AD21+MATCH(Lists!$S$31&VLOOKUP(P$5,months,2,FALSE)&TEXT($E23+Lists!$AD21,"00"),data_key,0),Results!$H$1) *Lists!AO21 * IF(result_type_slice = "Aggregate", INDEX(enrollment, MATCH(program_slice&category_slice&subcategory_slice&year_slice&VLOOKUP(P$5,months,2,FALSE),enrollment_key,0),MATCH("sites",enrollment_x,0))/1000, 1) * -1), "") -> 0 | Q23: =IFERROR(IF(AND(public,confidential_slice),"",INDEX(data,--AND(Q$1>=3,Q$1<=10)*Data!$AD21+MATCH(Lists!$S$31&VLOOKUP(Q$5,months,2,FALSE)&TEXT($E23+Lists!$AD21,"00"),data_key,0),Results!$H$1) *Lists!AP21 * IF(result_type_slice = "Aggregate", INDEX(enrollment, MATCH(program_slice&category_slice&subcategory_slice&year_slice&VLOOKUP(Q$5,months,2,FALSE),enrollment_key,0),MATCH("sites",enrollment_x,0))/1000, 1) * -1), "") -> 0 | S23: =IFERROR(IF(AND(public,confidential_slice),"",INDEX(data,MATCH(Lists!$S$31&VLOOKUP(M$5,months,2,FALSE)&TEXT($E23+Lists!$AD21,"00"),data_key,0),Results!$N$1) *Lists!AL21 * IF(result_type_slice = "Aggregate", INDEX(enrollment, MATCH(program_slice&category_slice&subcategory_slice&year_slice&VLOOKUP(M$5,months,2,FALSE),enrollment_key,0),MATCH("sites",enrollment_x,0))/1000, 1) * -1), "") -> -0.005204281059 | T23: Yes
E24: 18 | F24: =IFERROR(IF(AND(public,confidential_slice),"",INDEX(data,--AND(F$1>=3,F$1<=10)*Data!$AD22+MATCH(Lists!$S$31&VLOOKUP(F$5,months,2,FALSE)&TEXT($E24+Lists!$AD22,"00"),data_key,0),Results!$H$1) *Lists!AE22 * IF(result_type_slice = "Aggregate", INDEX(enrollment, MATCH(program_slice&category_slice&subcategory_slice&year_slice&VLOOKUP(F$5,months,2,FALSE),enrollment_key,0),MATCH("sites",enrollment_x,0))/1000, 1) * -1), "") -> 0 | G24: =IFERROR(IF(AND(public,confidential_slice),"",INDEX(data,--AND(G$1>=3,G$1<=10)*Data!$AD22+MATCH(Lists!$S$31&VLOOKUP(G$5,months,2,FALSE)&TEXT($E24+Lists!$AD22,"00"),data_key,0),Results!$H$1) *Lists!AF22 * IF(result_type_slice = "Aggregate", INDEX(enrollment, MATCH(program_slice&category_slice&subcategory_slice&year_slice&VLOOKUP(G$5,months,2,FALSE),enrollment_key,0),MATCH("sites",enrollment_x,0))/1000, 1) * -1), "") -> 0 | H24: =IFERROR(IF(AND(public,confidential_slice),"",INDEX(data,--AND(H$1>=3,H$1<=10)*Data!$AD22+MATCH(Lists!$S$31&VLOOKUP(H$5,months,2,FALSE)&TEXT($E24+Lists!$AD22,"00"),data_key,0),Results!$H$1) *Lists!AG22 * IF(result_type_slice = "Aggregate", INDEX(enrollment, MATCH(program_slice&category_slice&subcategory_slice&year_slice&VLOOKUP(H$5,months,2,FALSE),enrollment_key,0),MATCH("sites",enrollment_x,0))/1000, 1) * -1), "") -> 0 | I24: =IFERROR(IF(AND(public,confidential_slice),"",INDEX(data,--AND(I$1>=3,I$1<=10)*Data!$AD22+MATCH(Lists!$S$31&VLOOKUP(I$5,months,2,FALSE)&TEXT($E24+Lists!$AD22,"00"),data_key,0),Results!$H$1) *Lists!AH22 * IF(result_type_slice = "Aggregate", INDEX(enrollment, MATCH(program_slice&category_slice&subcategory_slice&year_slice&VLOOKUP(I$5,months,2,FALSE),enrollment_key,0),MATCH("sites",enrollment_x,0))/1000, 1) * -1), "") -> 0 | J24: =IFERROR(IF(AND(public,confidential_slice),"",INDEX(data,--AND(J$1>=3,J$1<=10)*Data!$AD22+MATCH(Lists!$S$31&VLOOKUP(J$5,months,2,FALSE)&TEXT($E24+Lists!$AD22,"00"),data_key,0),Results!$H$1) *Lists!AI22 * IF(result_type_slice = "Aggregate", INDEX(enrollment, MATCH(program_slice&category_slice&subcategory_slice&year_slice&VLOOKUP(J$5,months,2,FALSE),enrollment_key,0),MATCH("sites",enrollment_x,0))/1000, 1) * -1), "") -> 3.923478883 | K24: =IFERROR(IF(AND(public,confidential_slice),"",INDEX(data,--AND(K$1>=3,K$1<=10)*Data!$AD22+MATCH(Lists!$S$31&VLOOKUP(K$5,months,2,FALSE)&TEXT($E24+Lists!$AD22,"00"),data_key,0),Results!$H$1) *Lists!AJ22 * IF(result_type_slice = "Aggregate", INDEX(enrollment, MATCH(program_slice&category_slice&subcategory_slice&year_slice&VLOOKUP(K$5,months,2,FALSE),enrollment_key,0),MATCH("sites",enrollment_x,0))/1000, 1) * -1), "") -> 4.327198336 | L24: =IFERROR(IF(AND(public,confidential_slice),"",INDEX(data,--AND(L$1>=3,L$1<=10)*Data!$AD22+MATCH(Lists!$S$31&VLOOKUP(L$5,months,2,FALSE)&TEXT($E24+Lists!$AD22,"00"),data_key,0),Results!$H$1) *Lists!AK22 * IF(result_type_slice = "Aggregate", INDEX(enrollment, MATCH(program_slice&category_slice&subcategory_slice&year_slice&VLOOKUP(L$5,months,2,FALSE),enrollment_key,0),MATCH("sites",enrollment_x,0))/1000, 1) * -1), "") -> 4.407264448 | M24: =IFERROR(IF(AND(public,confidential_slice),"",INDEX(data,--AND(M$1>=3,M$1<=10)*Data!$AD22+MATCH(Lists!$S$31&VLOOKUP(M$5,months,2,FALSE)&TEXT($E24+Lists!$AD22,"00"),data_key,0),Results!$H$1) *Lists!AL22 * IF(result_type_slice = "Aggregate", INDEX(enrollment, MATCH(program_slice&category_slice&subcategory_slice&year_slice&VLOOKUP(M$5,months,2,FALSE),enrollment_key,0),MATCH("sites",enrollment_x,0))/1000, 1) * -1), "") -> 4.463999495 | N24: =IFERROR(IF(AND(public,confidential_slice),"",INDEX(data,--AND(N$1>=3,N$1<=10)*Data!$AD22+MATCH(Lists!$S$31&VLOOKUP(N$5,months,2,FALSE)&TEXT($E24+Lists!$AD22,"00"),data_key,0),Results!$H$1) *Lists!AM22 * IF(result_type_slice = "Aggregate", INDEX(enrollment, MATCH(program_slice&category_slice&subcategory_slice&year_slice&VLOOKUP(N$5,months,2,FALSE),enrollment_key,0),MATCH("sites",enrollment_x,0))/1000, 1) * -1), "") -> 4.505039622 | O24: =IFERROR(IF(AND(public,confidential_slice),"",INDEX(data,--AND(O$1>=3,O$1<=10)*Data!$AD22+MATCH(Lists!$S$31&VLOOKUP(O$5,months,2,FALSE)&TEXT($E24+Lists!$AD22,"00"),data_key,0),Results!$H$1) *Lists!AN22 * IF(result_type_slice = "Aggregate", INDEX(enrollment, MATCH(program_slice&category_slice&subcategory_slice&year_slice&VLOOKUP(O$5,months,2,FALSE),enrollment_key,0),MATCH("sites",enrollment_x,0))/1000, 1) * -1), "") -> 4.12025723 | P24: =IFERROR(IF(AND(public,confidential_slice),"",INDEX(data,--AND(P$1>=3,P$1<=10)*Data!$AD22+MATCH(Lists!$S$31&VLOOKUP(P$5,months,2,FALSE)&TEXT($E24+Lists!$AD22,"00"),data_key,0),Results!$H$1) *Lists!AO22 * IF(result_type_slice = "Aggregate", INDEX(enrollment, MATCH(program_slice&category_slice&subcategory_slice&year_slice&VLOOKUP(P$5,months,2,FALSE),enrollment_key,0),MATCH("sites",enrollment_x,0))/1000, 1) * -1), "") -> 0 | Q24: =IFERROR(IF(AND(public,confidential_slice),"",INDEX(data,--AND(Q$1>=3,Q$1<=10)*Data!$AD22+MATCH(Lists!$S$31&VLOOKUP(Q$5,months,2,FALSE)&TEXT($E24+Lists!$AD22,"00"),data_key,0),Results!$H$1) *Lists!AP22 * IF(result_type_slice = "Aggregate", INDEX(enrollment, MATCH(program_slice&category_slice&subcategory_slice&year_slice&VLOOKUP(Q$5,months,2,FALSE),enrollment_key,0),MATCH("sites",enrollment_x,0))/1000, 1) * -1), "") -> 0 | S24: =IFERROR(IF(AND(public,confidential_slice),"",INDEX(data,MATCH(Lists!$S$31&VLOOKUP(M$5,months,2,FALSE)&TEXT($E24+Lists!$AD22,"00"),data_key,0),Results!$N$1) *Lists!AL22 * IF(result_type_slice = "Aggregate", INDEX(enrollment, MATCH(program_slice&category_slice&subcategory_slice&year_slice&VLOOKUP(M$5,months,2,FALSE),enrollment_key,0),MATCH("sites",enrollment_x,0))/1000, 1) * -1), "") -> -0.004978049773 | T24: Yes
E25: 19 | F25: =IFERROR(IF(AND(public,confidential_slice),"",INDEX(data,--AND(F$1>=3,F$1<=10)*Data!$AD23+MATCH(Lists!$S$31&VLOOKUP(F$5,months,2,FALSE)&TEXT($E25+Lists!$AD23,"00"),data_key,0),Results!$H$1) *Lists!AE23 * IF(result_type_slice = "Aggregate", INDEX(enrollment, MATCH(program_slice&category_slice&subcategory_slice&year_slice&VLOOKUP(F$5,months,2,FALSE),enrollment_key,0),MATCH("sites",enrollment_x,0))/1000, 1) * -1), "") -> 0 | G25: =IFERROR(IF(AND(public,confidential_slice),"",INDEX(data,--AND(G$1>=3,G$1<=10)*Data!$AD23+MATCH(Lists!$S$31&VLOOKUP(G$5,months,2,FALSE)&TEXT($E25+Lists!$AD23,"00"),data_key,0),Results!$H$1) *Lists!AF23 * IF(result_type_slice = "Aggregate", INDEX(enrollment, MATCH(program_slice&category_slice&subcategory_slice&year_slice&VLOOKUP(G$5,months,2,FALSE),enrollment_key,0),MATCH("sites",enrollment_x,0))/1000, 1) * -1), "") -> 0 | H25: =IFERROR(IF(AND(public,confidential_slice),"",INDEX(data,--AND(H$1>=3,H$1<=10)*Data!$AD23+MATCH(Lists!$S$31&VLOOKUP(H$5,months,2,FALSE)&TEXT($E25+Lists!$AD23,"00"),data_key,0),Results!$H$1) *Lists!AG23 * IF(result_type_slice = "Aggregate", INDEX(enrollment, MATCH(program_slice&category_slice&subcategory_slice&year_slice&VLOOKUP(H$5,months,2,FALSE),enrollment_key,0),MATCH("sites",enrollment_x,0))/1000, 1) * -1), "") -> 0 | I25: =IFERROR(IF(AND(public,confidential_slice),"",INDEX(data,--AND(I$1>=3,I$1<=10)*Data!$AD23+MATCH(Lists!$S$31&VLOOKUP(I$5,months,2,FALSE)&TEXT($E25+Lists!$AD23,"00"),data_key,0),Results!$H$1) *Lists!AH23 * IF(result_type_slice = "Aggregate", INDEX(enrollment, MATCH(program_slice&category_slice&subcategory_slice&year_slice&VLOOKUP(I$5,months,2,FALSE),enrollment_key,0),MATCH("sites",enrollment_x,0))/1000, 1) * -1), "") -> 0 | J25: =IFERROR(IF(AND(public,confidential_slice),"",INDEX(data,--AND(J$1>=3,J$1<=10)*Data!$AD23+MATCH(Lists!$S$31&VLOOKUP(J$5,months,2,FALSE)&TEXT($E25+Lists!$AD23,"00"),data_key,0),Results!$H$1) *Lists!AI23 * IF(result_type_slice = "Aggregate", INDEX(enrollment, MATCH(program_slice&category_slice&subcategory_slice&year_slice&VLOOKUP(J$5,months,2,FALSE),enrollment_key,0),MATCH("sites",enrollment_x,0))/1000, 1) * -1), "") -> 3.995709052 | K25: =IFERROR(IF(AND(public,confidential_slice),"",INDEX(data,--AND(K$1>=3,K$1<=10)*Data!$AD23+MATCH(Lists!$S$31&VLOOKUP(K$5,months,2,FALSE)&TEXT($E25+Lists!$AD23,"00"),data_key,0),Results!$H$1) *Lists!AJ23 * IF(result_type_slice = "Aggregate", INDEX(enrollment, MATCH(program_slice&category_slice&subcategory_slice&year_slice&VLOOKUP(K$5,months,2,FALSE),enrollment_key,0),MATCH("sites",enrollment_x,0))/1000, 1) * -1), "") -> 4.392705681 | L25: =IFERROR(IF(AND(public,confidential_slice),"",INDEX(data,--AND(L$1>=3,L$1<=10)*Data!$AD23+MATCH(Lists!$S$31&VLOOKUP(L$5,months,2,FALSE)&TEXT($E25+Lists!$AD23,"00"),data_key,0),Results!$H$1) *Lists!AK23 * IF(result_type_slice = "Aggregate", INDEX(enrollment, MATCH(program_slice&category_slice&subcategory_slice&year_slice&VLOOKUP(L$5,months,2,FALSE),enrollment_key,0),MATCH("sites",enrollment_x,0))/1000, 1) * -1), "") -> 4.473213103 | M25: =IFERROR(IF(AND(public,confidential_slice),"",INDEX(data,--AND(M$1>=3,M$1<=10)*Data!$AD23+MATCH(Lists!$S$31&VLOOKUP(M$5,months,2,FALSE)&TEXT($E25+Lists!$AD23,"00"),data_key,0),Results!$H$1) *Lists!AL23 * IF(result_type_slice = "Aggregate", INDEX(enrollment, MATCH(program_slice&category_slice&subcategory_slice&year_slice&VLOOKUP(M$5,months,2,FALSE),enrollment_key,0),MATCH("sites",enrollment_x,0))/1000, 1) * -1), "") -> 4.517243665 | N25: =IFERROR(IF(AND(public,confidential_slice),"",INDEX(data,--AND(N$1>=3,N$1<=10)*Data!$AD23+MATCH(Lists!$S$31&VLOOKUP(N$5,months,2,FALSE)&TEXT($E25+Lists!$AD23,"00"),data_key,0),Results!$H$1) *Lists!AM23 * IF(result_type_slice = "Aggregate", INDEX(enrollment, MATCH(program_slice&category_slice&subcategory_slice&year_slice&VLOOKUP(N$5,months,2,FALSE),enrollment_key,0),MATCH("sites",enrollment_x,0))/1000, 1) * -1), "") -> 4.545354176 | O25: =IFERROR(IF(AND(public,confidential_slice),"",INDEX(data,--AND(O$1>=3,O$1<=10)*Data!$AD23+MATCH(Lists!$S$31&VLOOKUP(O$5,months,2,FALSE)&TEXT($E25+Lists!$AD23,"00"),data_key,0),Results!$H$1) *Lists!AN23 * IF(result_type_slice = "Aggregate", INDEX(enrollment, MATCH(program_slice&category_slice&subcategory_slice&year_slice&VLOOKUP(O$5,months,2,FALSE),enrollment_key,0),MATCH("sites",enrollment_x,0))/1000, 1) * -1), "") -> 4.167627471 | P25: =IFERROR(IF(AND(public,confidential_slice),"",INDEX(data,--AND(P$1>=3,P$1<=10)*Data!$AD23+MATCH(Lists!$S$31&VLOOKUP(P$5,months,2,FALSE)&TEXT($E25+Lists!$AD23,"00"),data_key,0),Results!$H$1) *Lists!AO23 * IF(result_type_slice = "Aggregate", INDEX(enrollment, MATCH(program_slice&category_slice&subcategory_slice&year_slice&VLOOKUP(P$5,months,2,FALSE),enrollment_key,0),MATCH("sites",enrollment_x,0))/1000, 1) * -1), "") -> 0 | Q25: =IFERROR(IF(AND(public,confidential_slice),"",INDEX(data,--AND(Q$1>=3,Q$1<=10)*Data!$AD23+MATCH(Lists!$S$31&VLOOKUP(Q$5,months,2,FALSE)&TEXT($E25+Lists!$AD23,"00"),data_key,0),Results!$H$1) *Lists!AP23 * IF(result_type_slice = "Aggregate", INDEX(enrollment, MATCH(program_slice&category_slice&subcategory_slice&year_slice&VLOOKUP(Q$5,months,2,FALSE),enrollment_key,0),MATCH("sites",enrollment_x,0))/1000, 1) * -1), "") -> 0 | S25: =IFERROR(IF(AND(public,confidential_slice),"",INDEX(data,MATCH(Lists!$S$31&VLOOKUP(M$5,months,2,FALSE)&TEXT($E25+Lists!$AD23,"00"),data_key,0),Results!$N$1) *Lists!AL23 * IF(result_type_slice = "Aggregate", INDEX(enrollment, MATCH(program_slice&category_slice&subcategory_slice&year_slice&VLOOKUP(M$5,months,2,FALSE),enrollment_key,0),MATCH("sites",enrollment_x,0))/1000, 1) * -1), "") -> -0.004679944792 | T25: Yes
E26: 20 | F26: =IFERROR(IF(AND(public,confidential_slice),"",INDEX(data,--AND(F$1>=3,F$1<=10)*Data!$AD24+MATCH(Lists!$S$31&VLOOKUP(F$5,months,2,FALSE)&TEXT($E26+Lists!$AD24,"00"),data_key,0),Results!$H$1) *Lists!AE24 * IF(result_type_slice = "Aggregate", INDEX(enrollment, MATCH(program_slice&category_slice&subcategory_slice&year_slice&VLOOKUP(F$5,months,2,FALSE),enrollment_key,0),MATCH("sites",enrollment_x,0))/1000, 1) * -1), "") -> 0 | G26: =IFERROR(IF(AND(public,confidential_slice),"",INDEX(data,--AND(G$1>=3,G$1<=10)*Data!$AD24+MATCH(Lists!$S$31&VLOOKUP(G$5,months,2,FALSE)&TEXT($E26+Lists!$AD24,"00"),data_key,0),Results!$H$1) *Lists!AF24 * IF(result_type_slice = "Aggregate", INDEX(enrollment, MATCH(program_slice&category_slice&subcategory_slice&year_slice&VLOOKUP(G$5,months,2,FALSE),enrollment_key,0),MATCH("sites",enrollment_x,0))/1000, 1) * -1), "") -> 0 | H26: =IFERROR(IF(AND(public,confidential_slice),"",INDEX(data,--AND(H$1>=3,H$1<=10)*Data!$AD24+MATCH(Lists!$S$31&VLOOKUP(H$5,months,2,FALSE)&TEXT($E26+Lists!$AD24,"00"),data_key,0),Results!$H$1) *Lists!AG24 * IF(result_type_slice = "Aggregate", INDEX(enrollment, MATCH(program_slice&category_slice&subcategory_slice&year_slice&VLOOKUP(H$5,months,2,FALSE),enrollment_key,0),MATCH("sites",enrollment_x,0))/1000, 1) * -1), "") -> 0 | I26: =IFERROR(IF(AND(public,confidential_slice),"",INDEX(data,--AND(I$1>=3,I$1<=10)*Data!$AD24+MATCH(Lists!$S$31&VLOOKUP(I$5,months,2,FALSE)&TEXT($E26+Lists!$AD24,"00"),data_key,0),Results!$H$1) *Lists!AH24 * IF(result_type_slice = "Aggregate", INDEX(enrollment, MATCH(program_slice&category_slice&subcategory_slice&year_slice&VLOOKUP(I$5,months,2,FALSE),enrollment_key,0),MATCH("sites",enrollment_x,0))/1000, 1) * -1), "") -> 0 | J26: =IFERROR(IF(AND(public,confidential_slice),"",INDEX(data,--AND(J$1>=3,J$1<=10)*Data!$AD24+MATCH(Lists!$S$31&VLOOKUP(J$5,months,2,FALSE)&TEXT($E26+Lists!$AD24,"00"),data_key,0),Results!$H$1) *Lists!AI24 * IF(result_type_slice = "Aggregate", INDEX(enrollment, MATCH(program_slice&category_slice&subcategory_slice&year_slice&VLOOKUP(J$5,months,2,FALSE),enrollment_key,0),MATCH("sites",enrollment_x,0))/1000, 1) * -1), "") -> 4.087326028 | K26: =IFERROR(IF(AND(public,confidential_slice),"",INDEX(data,--AND(K$1>=3,K$1<=10)*Data!$AD24+MATCH(Lists!$S$31&VLOOKUP(K$5,months,2,FALSE)&TEXT($E26+Lists!$AD24,"00"),data_key,0),Results!$H$1) *Lists!AJ24 * IF(result_type_slice = "Aggregate", INDEX(enrollment, MATCH(program_slice&category_slice&subcategory_slice&year_slice&VLOOKUP(K$5,months,2,FALSE),enrollment_key,0),MATCH("sites",enrollment_x,0))/1000, 1) * -1), "") -> 4.5169286 | L26: =IFERROR(IF(AND(public,confidential_slice),"",INDEX(data,--AND(L$1>=3,L$1<=10)*Data!$AD24+MATCH(Lists!$S$31&VLOOKUP(L$5,months,2,FALSE)&TEXT($E26+Lists!$AD24,"00"),data_key,0),Results!$H$1) *Lists!AK24 * IF(result_type_slice = "Aggregate", INDEX(enrollment, MATCH(program_slice&category_slice&subcategory_slice&year_slice&VLOOKUP(L$5,months,2,FALSE),enrollment_key,0),MATCH("sites",enrollment_x,0))/1000, 1) * -1), "") -> 4.599312886 | M26: =IFERROR(IF(AND(public,confidential_slice),"",INDEX(data,--AND(M$1>=3,M$1<=10)*Data!$AD24+MATCH(Lists!$S$31&VLOOKUP(M$5,months,2,FALSE)&TEXT($E26+Lists!$AD24,"00"),data_key,0),Results!$H$1) *Lists!AL24 * IF(result_type_slice = "Aggregate", INDEX(enrollment, MATCH(program_slice&category_slice&subcategory_slice&year_slice&VLOOKUP(M$5,months,2,FALSE),enrollment_key,0),MATCH("sites",enrollment_x,0))/1000, 1) * -1), "") -> 4.630120976 | N26: =IFERROR(IF(AND(public,confidential_slice),"",INDEX(data,--AND(N$1>=3,N$1<=10)*Data!$AD24+MATCH(Lists!$S$31&VLOOKUP(N$5,months,2,FALSE)&TEXT($E26+Lists!$AD24,"00"),data_key,0),Results!$H$1) *Lists!AM24 * IF(result_type_slice = "Aggregate", INDEX(enrollment, MATCH(program_slice&category_slice&subcategory_slice&year_slice&VLOOKUP(N$5,months,2,FALSE),enrollment_key,0),MATCH("sites",enrollment_x,0))/1000, 1) * -1), "") -> 4.637157735 | O26: =IFERROR(IF(AND(public,confidential_slice),"",INDEX(data,--AND(O$1>=3,O$1<=10)*Data!$AD24+MATCH(Lists!$S$31&VLOOKUP(O$5,months,2,FALSE)&TEXT($E26+Lists!$AD24,"00"),data_key,0),Results!$H$1) *Lists!AN24 * IF(result_type_slice = "Aggregate", INDEX(enrollment, MATCH(program_slice&category_slice&subcategory_slice&year_slice&VLOOKUP(O$5,months,2,FALSE),enrollment_key,0),MATCH("sites",enrollment_x,0))/1000, 1) * -1), "") -> 4.21570315 | P26: =IFERROR(IF(AND(public,confidential_slice),"",INDEX(data,--AND(P$1>=3,P$1<=10)*Data!$AD24+MATCH(Lists!$S$31&VLOOKUP(P$5,months,2,FALSE)&TEXT($E26+Lists!$AD24,"00"),data_key,0),Results!$H$1) *Lists!AO24 * IF(result_type_slice = "Aggregate", INDEX(enrollment, MATCH(program_slice&category_slice&subcategory_slice&year_slice&VLOOKUP(P$5,months,2,FALSE),enrollment_key,0),MATCH("sites",enrollment_x,0))/1000, 1) * -1), "") -> 0 | Q26: =IFERROR(IF(AND(public,confidential_slice),"",INDEX(data,--AND(Q$1>=3,Q$1<=10)*Data!$AD24+MATCH(Lists!$S$31&VLOOKUP(Q$5,months,2,FALSE)&TEXT($E26+Lists!$AD24,"00"),data_key,0),Results!$H$1) *Lists!AP24 * IF(result_type_slice = "Aggregate", INDEX(enrollment, MATCH(program_slice&category_slice&subcategory_slice&year_slice&VLOOKUP(Q$5,months,2,FALSE),enrollment_key,0),MATCH("sites",enrollment_x,0))/1000, 1) * -1), "") -> 0 | S26: =IFERROR(IF(AND(public,confidential_slice),"",INDEX(data,MATCH(Lists!$S$31&VLOOKUP(M$5,months,2,FALSE)&TEXT($E26+Lists!$AD24,"00"),data_key,0),Results!$N$1) *Lists!AL24 * IF(result_type_slice = "Aggregate", INDEX(enrollment, MATCH(program_slice&category_slice&subcategory_slice&year_slice&VLOOKUP(M$5,months,2,FALSE),enrollment_key,0),MATCH("sites",enrollment_x,0))/1000, 1) * -1), "") -> -0.004530213337 | T26: Yes
E27: 21 | F27: =IFERROR(IF(AND(public,confidential_slice),"",INDEX(data,--AND(F$1>=3,F$1<=10)*Data!$AD25+MATCH(Lists!$S$31&VLOOKUP(F$5,months,2,FALSE)&TEXT($E27+Lists!$AD25,"00"),data_key,0),Results!$H$1) *Lists!AE25 * IF(result_type_slice = "Aggregate", INDEX(enrollment, MATCH(program_slice&category_slice&subcategory_slice&year_slice&VLOOKUP(F$5,months,2,FALSE),enrollment_key,0),MATCH("sites",enrollment_x,0))/1000, 1) * -1), "") -> 0 | G27: =IFERROR(IF(AND(public,confidential_slice),"",INDEX(data,--AND(G$1>=3,G$1<=10)*Data!$AD25+MATCH(Lists!$S$31&VLOOKUP(G$5,months,2,FALSE)&TEXT($E27+Lists!$AD25,"00"),data_key,0),Results!$H$1) *Lists!AF25 * IF(result_type_slice = "Aggregate", INDEX(enrollment, MATCH(program_slice&category_slice&subcategory_slice&year_slice&VLOOKUP(G$5,months,2,FALSE),enrollment_key,0),MATCH("sites",enrollment_x,0))/1000, 1) * -1), "") -> 0 | H27: =IFERROR(IF(AND(public,confidential_slice),"",INDEX(data,--AND(H$1>=3,H$1<=10)*Data!$AD25+MATCH(Lists!$S$31&VLOOKUP(H$5,months,2,FALSE)&TEXT($E27+Lists!$AD25,"00"),data_key,0),Results!$H$1) *Lists!AG25 * IF(result_type_slice = "Aggregate", INDEX(enrollment, MATCH(program_slice&category_slice&subcategory_slice&year_slice&VLOOKUP(H$5,months,2,FALSE),enrollment_key,0),MATCH("sites",enrollment_x,0))/1000, 1) * -1), "") -> 0 | I27: =IFERROR(IF(AND(public,confidential_slice),"",INDEX(data,--AND(I$1>=3,I$1<=10)*Data!$AD25+MATCH(Lists!$S$31&VLOOKUP(I$5,months,2,FALSE)&TEXT($E27+Lists!$AD25,"00"),data_key,0),Results!$H$1) *Lists!AH25 * IF(result_type_slice = "Aggregate", INDEX(enrollment, MATCH(program_slice&category_slice&subcategory_slice&year_slice&VLOOKUP(I$5,months,2,FALSE),enrollment_key,0),MATCH("sites",enrollment_x,0))/1000, 1) * -1), "") -> 0 | J27: =IFERROR(IF(AND(public,confidential_slice),"",INDEX(data,--AND(J$1>=3,J$1<=10)*Data!$AD25+MATCH(Lists!$S$31&VLOOKUP(J$5,months,2,FALSE)&TEXT($E27+Lists!$AD25,"00"),data_key,0),Results!$H$1) *Lists!AI25 * IF(result_type_slice = "Aggregate", INDEX(enrollment, MATCH(program_slice&category_slice&subcategory_slice&year_slice&VLOOKUP(J$5,months,2,FALSE),enrollment_key,0),MATCH("sites",enrollment_x,0))/1000, 1) * -1), "") -> 4.05993196 | K27: =IFERROR(IF(AND(public,confidential_slice),"",INDEX(data,--AND(K$1>=3,K$1<=10)*Data!$AD25+MATCH(Lists!$S$31&VLOOKUP(K$5,months,2,FALSE)&TEXT($E27+Lists!$AD25,"00"),data_key,0),Results!$H$1) *Lists!AJ25 * IF(result_type_slice = "Aggregate", INDEX(enrollment, MATCH(program_slice&category_slice&subcategory_slice&year_slice&VLOOKUP(K$5,months,2,FALSE),enrollment_key,0),MATCH("sites",enrollment_x,0))/1000, 1) * -1), "") -> 4.501051607 | L27: =IFERROR(IF(AND(public,confidential_slice),"",INDEX(data,--AND(L$1>=3,L$1<=10)*Data!$AD25+MATCH(Lists!$S$31&VLOOKUP(L$5,months,2,FALSE)&TEXT($E27+Lists!$AD25,"00"),data_key,0),Results!$H$1) *Lists!AK25 * IF(result_type_slice = "Aggregate", INDEX(enrollment, MATCH(program_slice&category_slice&subcategory_slice&year_slice&VLOOKUP(L$5,months,2,FALSE),enrollment_key,0),MATCH("sites",enrollment_x,0))/1000, 1) * -1), "") -> 4.585620035 | M27: =IFERROR(IF(AND(public,confidential_slice),"",INDEX(data,--AND(M$1>=3,M$1<=10)*Data!$AD25+MATCH(Lists!$S$31&VLOOKUP(M$5,months,2,FALSE)&TEXT($E27+Lists!$AD25,"00"),data_key,0),Results!$H$1) *Lists!AL25 * IF(result_type_slice = "Aggregate", INDEX(enrollment, MATCH(program_slice&category_slice&subcategory_slice&year_slice&VLOOKUP(M$5,months,2,FALSE),enrollment_key,0),MATCH("sites",enrollment_x,0))/1000, 1) * -1), "") -> 4.606095978 | N27: =IFERROR(IF(AND(public,confidential_slice),"",INDEX(data,--AND(N$1>=3,N$1<=10)*Data!$AD25+MATCH(Lists!$S$31&VLOOKUP(N$5,months,2,FALSE)&TEXT($E27+Lists!$AD25,"00"),data_key,0),Results!$H$1) *Lists!AM25 * IF(result_type_slice = "Aggregate", INDEX(enrollment, MATCH(program_slice&category_slice&subcategory_slice&year_slice&VLOOKUP(N$5,months,2,FALSE),enrollment_key,0),MATCH("sites",enrollment_x,0))/1000, 1) * -1), "") -> 4.599719289 | O27: =IFERROR(IF(AND(public,confidential_slice),"",INDEX(data,--AND(O$1>=3,O$1<=10)*Data!$AD25+MATCH(Lists!$S$31&VLOOKUP(O$5,months,2,FALSE)&TEXT($E27+Lists!$AD25,"00"),data_key,0),Results!$H$1) *Lists!AN25 * IF(result_type_slice = "Aggregate", INDEX(enrollment, MATCH(program_slice&category_slice&subcategory_slice&year_slice&VLOOKUP(O$5,months,2,FALSE),enrollment_key,0),MATCH("sites",enrollment_x,0))/1000, 1) * -1), "") -> 4.154279844 | P27: =IFERROR(IF(AND(public,confidential_slice),"",INDEX(data,--AND(P$1>=3,P$1<=10)*Data!$AD25+MATCH(Lists!$S$31&VLOOKUP(P$5,months,2,FALSE)&TEXT($E27+Lists!$AD25,"00"),data_key,0),Results!$H$1) *Lists!AO25 * IF(result_type_slice = "Aggregate", INDEX(enrollment, MATCH(program_slice&category_slice&subcategory_slice&year_slice&VLOOKUP(P$5,months,2,FALSE),enrollment_key,0),MATCH("sites",enrollment_x,0))/1000, 1) * -1), "") -> 0 | Q27: =IFERROR(IF(AND(public,confidential_slice),"",INDEX(data,--AND(Q$1>=3,Q$1<=10)*Data!$AD25+MATCH(Lists!$S$31&VLOOKUP(Q$5,months,2,FALSE)&TEXT($E27+Lists!$AD25,"00"),data_key,0),Results!$H$1) *Lists!AP25 * IF(result_type_slice = "Aggregate", INDEX(enrollment, MATCH(program_slice&category_slice&subcategory_slice&year_slice&VLOOKUP(Q$5,months,2,FALSE),enrollment_key,0),MATCH("sites",enrollment_x,0))/1000, 1) * -1), "") -> 0 | S27: =IFERROR(IF(AND(public,confidential_slice),"",INDEX(data,MATCH(Lists!$S$31&VLOOKUP(M$5,months,2,FALSE)&TEXT($E27+Lists!$AD25,"00"),data_key,0),Results!$N$1) *Lists!AL25 * IF(result_type_slice = "Aggregate", INDEX(enrollment, MATCH(program_slice&category_slice&subcategory_slice&year_slice&VLOOKUP(M$5,months,2,FALSE),enrollment_key,0),MATCH("sites",enrollment_x,0))/1000, 1) * -1), "") -> -0.00441942487 | T27: Yes
E28: 22 | F28: =IFERROR(IF(AND(public,confidential_slice),"",INDEX(data,--AND(F$1>=3,F$1<=10)*Data!$AD26+MATCH(Lists!$S$31&VLOOKUP(F$5,months,2,FALSE)&TEXT($E28+Lists!$AD26,"00"),data_key,0),Results!$H$1) *Lists!AE26 * IF(result_type_slice = "Aggregate", INDEX(enrollment, MATCH(program_slice&category_slice&subcategory_slice&year_slice&VLOOKUP(F$5,months,2,FALSE),enrollment_key,0),MATCH("sites",enrollment_x,0))/1000, 1) * -1), "") -> 0 | G28: =IFERROR(IF(AND(public,confidential_slice),"",INDEX(data,--AND(G$1>=3,G$1<=10)*Data!$AD26+MATCH(Lists!$S$31&VLOOKUP(G$5,months,2,FALSE)&TEXT($E28+Lists!$AD26,"00"),data_key,0),Results!$H$1) *Lists!AF26 * IF(result_type_slice = "Aggregate", INDEX(enrollment, MATCH(program_slice&category_slice&subcategory_slice&year_slice&VLOOKUP(G$5,months,2,FALSE),enrollment_key,0),MATCH("sites",enrollment_x,0))/1000, 1) * -1), "") -> 0 | H28: =IFERROR(IF(AND(public,confidential_slice),"",INDEX(data,--AND(H$1>=3,H$1<=10)*Data!$AD26+MATCH(Lists!$S$31&VLOOKUP(H$5,months,2,FALSE)&TEXT($E28+Lists!$AD26,"00"),data_key,0),Results!$H$1) *Lists!AG26 * IF(result_type_slice = "Aggregate", INDEX(enrollment, MATCH(program_slice&category_slice&subcategory_slice&year_slice&VLOOKUP(H$5,months,2,FALSE),enrollment_key,0),MATCH("sites",enrollment_x,0))/1000, 1) * -1), "") -> 0 | I28: =IFERROR(IF(AND(public,confidential_slice),"",INDEX(data,--AND(I$1>=3,I$1<=10)*Data!$AD26+MATCH(Lists!$S$31&VLOOKUP(I$5,months,2,FALSE)&TEXT($E28+Lists!$AD26,"00"),data_key,0),Results!$H$1) *Lists!AH26 * IF(result_type_slice = "Aggregate", INDEX(enrollment, MATCH(program_slice&category_slice&subcategory_slice&year_slice&VLOOKUP(I$5,months,2,FALSE),enrollment_key,0),MATCH("sites",enrollment_x,0))/1000, 1) * -1), "") -> 0 | J28: =IFERROR(IF(AND(public,confidential_slice),"",INDEX(data,--AND(J$1>=3,J$1<=10)*Data!$AD26+MATCH(Lists!$S$31&VLOOKUP(J$5,months,2,FALSE)&TEXT($E28+Lists!$AD26,"00"),data_key,0),Results!$H$1) *Lists!AI26 * IF(result_type_slice = "Aggregate", INDEX(enrollment, MATCH(program_slice&category_slice&subcategory_slice&year_slice&VLOOKUP(J$5,months,2,FALSE),enrollment_key,0),MATCH("sites",enrollment_x,0))/1000, 1) * -1), "") -> 3.99167094 | K28: =IFERROR(IF(AND(public,confidential_slice),"",INDEX(data,--AND(K$1>=3,K$1<=10)*Data!$AD26+MATCH(Lists!$S$31&VLOOKUP(K$5,months,2,FALSE)&TEXT($E28+Lists!$AD26,"00"),data_key,0),Results!$H$1) *Lists!AJ26 * IF(result_type_slice = "Aggregate", INDEX(enrollment, MATCH(program_slice&category_slice&subcategory_slice&year_slice&VLOOKUP(K$5,months,2,FALSE),enrollment_key,0),MATCH("sites",enrollment_x,0))/1000, 1) * -1), "") -> 0 | L28: =IFERROR(IF(AND(public,confidential_slice),"",INDEX(data,--AND(L$1>=3,L$1<=10)*Data!$AD26+MATCH(Lists!$S$31&VLOOKUP(L$5,months,2,FALSE)&TEXT($E28+Lists!$AD26,"00"),data_key,0),Results!$H$1) *Lists!AK26 * IF(result_type_slice = "Aggregate", INDEX(enrollment, MATCH(program_slice&category_slice&subcategory_slice&year_slice&VLOOKUP(L$5,months,2,FALSE),enrollment_key,0),MATCH("sites",enrollment_x,0))/1000, 1) * -1), "") -> 0 | M28: =IFERROR(IF(AND(public,confidential_slice),"",INDEX(data,--AND(M$1>=3,M$1<=10)*Data!$AD26+MATCH(Lists!$S$31&VLOOKUP(M$5,months,2,FALSE)&TEXT($E28+Lists!$AD26,"00"),data_key,0),Results!$H$1) *Lists!AL26 * IF(result_type_slice = "Aggregate", INDEX(enrollment, MATCH(program_slice&category_slice&subcategory_slice&year_slice&VLOOKUP(M$5,months,2,FALSE),enrollment_key,0),MATCH("sites",enrollment_x,0))/1000, 1) * -1), "") -> 0 | N28: =IFERROR(IF(AND(public,confidential_slice),"",INDEX(data,--AND(N$1>=3,N$1<=10)*Data!$AD26+MATCH(Lists!$S$31&VLOOKUP(N$5,months,2,FALSE)&TEXT($E28+Lists!$AD26,"00"),data_key,0),Results!$H$1) *Lists!AM26 * IF(result_type_slice = "Aggregate", INDEX(enrollment, MATCH(program_slice&category_slice&subcategory_slice&year_slice&VLOOKUP(N$5,months,2,FALSE),enrollment_key,0),MATCH("sites",enrollment_x,0))/1000, 1) * -1), "") -> 0 | O28: =IFERROR(IF(AND(public,confidential_slice),"",INDEX(data,--AND(O$1>=3,O$1<=10)*Data!$AD26+MATCH(Lists!$S$31&VLOOKUP(O$5,months,2,FALSE)&TEXT($E28+Lists!$AD26,"00"),data_key,0),Results!$H$1) *Lists!AN26 * IF(result_type_slice = "Aggregate", INDEX(enrollment, MATCH(program_slice&category_slice&subcategory_slice&year_slice&VLOOKUP(O$5,months,2,FALSE),enrollment_key,0),MATCH("sites",enrollment_x,0))/1000, 1) * -1), "") -> 0 | P28: =IFERROR(IF(AND(public,confidential_slice),"",INDEX(data,--AND(P$1>=3,P$1<=10)*Data!$AD26+MATCH(Lists!$S$31&VLOOKUP(P$5,months,2,FALSE)&TEXT($E28+Lists!$AD26,"00"),data_key,0),Results!$H$1) *Lists!AO26 * IF(result_type_slice = "Aggregate", INDEX(enrollment, MATCH(program_slice&category_slice&subcategory_slice&year_slice&VLOOKUP(P$5,months,2,FALSE),enrollment_key,0),MATCH("sites",enrollment_x,0))/1000, 1) * -1), "") -> 0 | Q28: =IFERROR(IF(AND(public,confidential_slice),"",INDEX(data,--AND(Q$1>=3,Q$1<=10)*Data!$AD26+MATCH(Lists!$S$31&VLOOKUP(Q$5,months,2,FALSE)&TEXT($E28+Lists!$AD26,"00"),data_key,0),Results!$H$1) *Lists!AP26 * IF(result_type_slice = "Aggregate", INDEX(enrollment, MATCH(program_slice&category_slice&subcategory_slice&year_slice&VLOOKUP(Q$5,months,2,FALSE),enrollment_key,0),MATCH("sites",enrollment_x,0))/1000, 1) * -1), "") -> 0 | S28: =IFERROR(IF(AND(public,confidential_slice),"",INDEX(data,MATCH(Lists!$S$31&VLOOKUP(M$5,months,2,FALSE)&TEXT($E28+Lists!$AD26,"00"),data_key,0),Results!$N$1) *Lists!AL26 * IF(result_type_slice = "Aggregate", INDEX(enrollment, MATCH(program_slice&category_slice&subcategory_slice&year_slice&VLOOKUP(M$5,months,2,FALSE),enrollment_key,0),MATCH("sites",enrollment_x,0))/1000, 1) * -1), "") -> 0 | T28: Yes
E29: 23 | F29: =IFERROR(IF(AND(public,confidential_slice),"",INDEX(data,--AND(F$1>=3,F$1<=10)*Data!$AD27+MATCH(Lists!$S$31&VLOOKUP(F$5,months,2,FALSE)&TEXT($E29+Lists!$AD27,"00"),data_key,0),Results!$H$1) *Lists!AE27 * IF(result_type_slice = "Aggregate", INDEX(enrollment, MATCH(program_slice&category_slice&subcategory_slice&year_slice&VLOOKUP(F$5,months,2,FALSE),enrollment_key,0),MATCH("sites",enrollment_x,0))/1000, 1) * -1), "") -> 0 | G29: =IFERROR(IF(AND(public,confidential_slice),"",INDEX(data,--AND(G$1>=3,G$1<=10)*Data!$AD27+MATCH(Lists!$S$31&VLOOKUP(G$5,months,2,FALSE)&TEXT($E29+Lists!$AD27,"00"),data_key,0),Results!$H$1) *Lists!AF27 * IF(result_type_slice = "Aggregate", INDEX(enrollment, MATCH(program_slice&category_slice&subcategory_slice&year_slice&VLOOKUP(G$5,months,2,FALSE),enrollment_key,0),MATCH("sites",enrollment_x,0))/1000, 1) * -1), "") -> 0 | H29: =IFERROR(IF(AND(public,confidential_slice),"",INDEX(data,--AND(H$1>=3,H$1<=10)*Data!$AD27+MATCH(Lists!$S$31&VLOOKUP(H$5,months,2,FALSE)&TEXT($E29+Lists!$AD27,"00"),data_key,0),Results!$H$1) *Lists!AG27 * IF(result_type_slice = "Aggregate", INDEX(enrollment, MATCH(program_slice&category_slice&subcategory_slice&year_slice&VLOOKUP(H$5,months,2,FALSE),enrollment_key,0),MATCH("sites",enrollment_x,0))/1000, 1) * -1), "") -> 0 | I29: =IFERROR(IF(AND(public,confidential_slice),"",INDEX(data,--AND(I$1>=3,I$1<=10)*Data!$AD27+MATCH(Lists!$S$31&VLOOKUP(I$5,months,2,FALSE)&TEXT($E29+Lists!$AD27,"00"),data_key,0),Results!$H$1) *Lists!AH27 * IF(result_type_slice = "Aggregate", INDEX(enrollment, MATCH(program_slice&category_slice&subcategory_slice&year_slice&VLOOKUP(I$5,months,2,FALSE),enrollment_key,0),MATCH("sites",enrollment_x,0))/1000, 1) * -1), "") -> 0 | J29: =IFERROR(IF(AND(public,confidential_slice),"",INDEX(data,--AND(J$1>=3,J$1<=10)*Data!$AD27+MATCH(Lists!$S$31&VLOOKUP(J$5,months,2,FALSE)&TEXT($E29+Lists!$AD27,"00"),data_key,0),Results!$H$1) *Lists!AI27 * IF(result_type_slice = "Aggregate", INDEX(enrollment, MATCH(program_slice&category_slice&subcategory_slice&year_slice&VLOOKUP(J$5,months,2,FALSE),enrollment_key,0),MATCH("sites",enrollment_x,0))/1000, 1) * -1), "") -> 0 | K29: =IFERROR(IF(AND(public,confidential_slice),"",INDEX(data,--AND(K$1>=3,K$1<=10)*Data!$AD27+MATCH(Lists!$S$31&VLOOKUP(K$5,months,2,FALSE)&TEXT($E29+Lists!$AD27,"00"),data_key,0),Results!$H$1) *Lists!AJ27 * IF(result_type_slice = "Aggregate", INDEX(enrollment, MATCH(program_slice&category_slice&subcategory_slice&year_slice&VLOOKUP(K$5,months,2,FALSE),enrollment_key,0),MATCH("sites",enrollment_x,0))/1000, 1) * -1), "") -> 0 | L29: =IFERROR(IF(AND(public,confidential_slice),"",INDEX(data,--AND(L$1>=3,L$1<=10)*Data!$AD27+MATCH(Lists!$S$31&VLOOKUP(L$5,months,2,FALSE)&TEXT($E29+Lists!$AD27,"00"),data_key,0),Results!$H$1) *Lists!AK27 * IF(result_type_slice = "Aggregate", INDEX(enrollment, MATCH(program_slice&category_slice&subcategory_slice&year_slice&VLOOKUP(L$5,months,2,FALSE),enrollment_key,0),MATCH("sites",enrollment_x,0))/1000, 1) * -1), "") -> 0 | M29: =IFERROR(IF(AND(public,confidential_slice),"",INDEX(data,--AND(M$1>=3,M$1<=10)*Data!$AD27+MATCH(Lists!$S$31&VLOOKUP(M$5,months,2,FALSE)&TEXT($E29+Lists!$AD27,"00"),data_key,0),Results!$H$1) *Lists!AL27 * IF(result_type_slice = "Aggregate", INDEX(enrollment, MATCH(program_slice&category_slice&subcategory_slice&year_slice&VLOOKUP(M$5,months,2,FALSE),enrollment_key,0),MATCH("sites",enrollment_x,0))/1000, 1) * -1), "") -> 0 | N29: =IFERROR(IF(AND(public,confidential_slice),"",INDEX(data,--AND(N$1>=3,N$1<=10)*Data!$AD27+MATCH(Lists!$S$31&VLOOKUP(N$5,months,2,FALSE)&TEXT($E29+Lists!$AD27,"00"),data_key,0),Results!$H$1) *Lists!AM27 * IF(result_type_slice = "Aggregate", INDEX(enrollment, MATCH(program_slice&category_slice&subcategory_slice&year_slice&VLOOKUP(N$5,months,2,FALSE),enrollment_key,0),MATCH("sites",enrollment_x,0))/1000, 1) * -1), "") -> 0 | O29: =IFERROR(IF(AND(public,confidential_slice),"",INDEX(data,--AND(O$1>=3,O$1<=10)*Data!$AD27+MATCH(Lists!$S$31&VLOOKUP(O$5,months,2,FALSE)&TEXT($E29+Lists!$AD27,"00"),data_key,0),Results!$H$1) *Lists!AN27 * IF(result_type_slice = "Aggregate", INDEX(enrollment, MATCH(program_slice&category_slice&subcategory_slice&year_slice&VLOOKUP(O$5,months,2,FALSE),enrollment_key,0),MATCH("sites",enrollment_x,0))/1000, 1) * -1), "") -> 0 | P29: =IFERROR(IF(AND(public,confidential_slice),"",INDEX(data,--AND(P$1>=3,P$1<=10)*Data!$AD27+MATCH(Lists!$S$31&VLOOKUP(P$5,months,2,FALSE)&TEXT($E29+Lists!$AD27,"00"),data_key,0),Results!$H$1) *Lists!AO27 * IF(result_type_slice = "Aggregate", INDEX(enrollment, MATCH(program_slice&category_slice&subcategory_slice&year_slice&VLOOKUP(P$5,months,2,FALSE),enrollment_key,0),MATCH("sites",enrollment_x,0))/1000, 1) * -1), "") -> 0 | Q29: =IFERROR(IF(AND(public,confidential_slice),"",INDEX(data,--AND(Q$1>=3,Q$1<=10)*Data!$AD27+MATCH(Lists!$S$31&VLOOKUP(Q$5,months,2,FALSE)&TEXT($E29+Lists!$AD27,"00"),data_key,0),Results!$H$1) *Lists!AP27 * IF(result_type_slice = "Aggregate", INDEX(enrollment, MATCH(program_slice&category_slice&subcategory_slice&year_slice&VLOOKUP(Q$5,months,2,FALSE),enrollment_key,0),MATCH("sites",enrollment_x,0))/1000, 1) * -1), "") -> 0 | S29: =IFERROR(IF(AND(public,confidential_slice),"",INDEX(data,MATCH(Lists!$S$31&VLOOKUP(M$5,months,2,FALSE)&TEXT($E29+Lists!$AD27,"00"),data_key,0),Results!$N$1) *Lists!AL27 * IF(result_type_slice = "Aggregate", INDEX(enrollment, MATCH(program_slice&category_slice&subcategory_slice&year_slice&VLOOKUP(M$5,months,2,FALSE),enrollment_key,0),MATCH("sites",enrollment_x,0))/1000, 1) * -1), "") -> 0 | T29: Yes
E30: 24 | F30: =IFERROR(IF(AND(public,confidential_slice),"",INDEX(data,--AND(F$1>=3,F$1<=10)*Data!$AD28+MATCH(Lists!$S$31&VLOOKUP(F$5,months,2,FALSE)&TEXT($E30+Lists!$AD28,"00"),data_key,0),Results!$H$1) *Lists!AE28 * IF(result_type_slice = "Aggregate", INDEX(enrollment, MATCH(program_slice&category_slice&subcategory_slice&year_slice&VLOOKUP(F$5,months,2,FALSE),enrollment_key,0),MATCH("sites",enrollment_x,0))/1000, 1) * -1), "") -> 0 | G30: =IFERROR(IF(AND(public,confidential_slice),"",INDEX(data,--AND(G$1>=3,G$1<=10)*Data!$AD28+MATCH(Lists!$S$31&VLOOKUP(G$5,months,2,FALSE)&TEXT($E30+Lists!$AD28,"00"),data_key,0),Results!$H$1) *Lists!AF28 * IF(result_type_slice = "Aggregate", INDEX(enrollment, MATCH(program_slice&category_slice&subcategory_slice&year_slice&VLOOKUP(G$5,months,2,FALSE),enrollment_key,0),MATCH("sites",enrollment_x,0))/1000, 1) * -1), "") -> 0 | H30: =IFERROR(IF(AND(public,confidential_slice),"",INDEX(data,--AND(H$1>=3,H$1<=10)*Data!$AD28+MATCH(Lists!$S$31&VLOOKUP(H$5,months,2,FALSE)&TEXT($E30+Lists!$AD28,"00"),data_key,0),Results!$H$1) *Lists!AG28 * IF(result_type_slice = "Aggregate", INDEX(enrollment, MATCH(program_slice&category_slice&subcategory_slice&year_slice&VLOOKUP(H$5,months,2,FALSE),enrollment_key,0),MATCH("sites",enrollment_x,0))/1000, 1) * -1), "") -> 0 | I30: =IFERROR(IF(AND(public,confidential_slice),"",INDEX(data,--AND(I$1>=3,I$1<=10)*Data!$AD28+MATCH(Lists!$S$31&VLOOKUP(I$5,months,2,FALSE)&TEXT($E30+Lists!$AD28,"00"),data_key,0),Results!$H$1) *Lists!AH28 * IF(result_type_slice = "Aggregate", INDEX(enrollment, MATCH(program_slice&category_slice&subcategory_slice&year_slice&VLOOKUP(I$5,months,2,FALSE),enrollment_key,0),MATCH("sites",enrollment_x,0))/1000, 1) * -1), "") -> 0 | J30: =IFERROR(IF(AND(public,confidential_slice),"",INDEX(data,--AND(J$1>=3,J$1<=10)*Data!$AD28+MATCH(Lists!$S$31&VLOOKUP(J$5,months,2,FALSE)&TEXT($E30+Lists!$AD28,"00"),data_key,0),Results!$H$1) *Lists!AI28 * IF(result_type_slice = "Aggregate", INDEX(enrollment, MATCH(program_slice&category_slice&subcategory_slice&year_slice&VLOOKUP(J$5,months,2,FALSE),enrollment_key,0),MATCH("sites",enrollment_x,0))/1000, 1) * -1), "") -> 0 | K30: =IFERROR(IF(AND(public,confidential_slice),"",INDEX(data,--AND(K$1>=3,K$1<=10)*Data!$AD28+MATCH(Lists!$S$31&VLOOKUP(K$5,months,2,FALSE)&TEXT($E30+Lists!$AD28,"00"),data_key,0),Results!$H$1) *Lists!AJ28 * IF(result_type_slice = "Aggregate", INDEX(enrollment, MATCH(program_slice&category_slice&subcategory_slice&year_slice&VLOOKUP(K$5,months,2,FALSE),enrollment_key,0),MATCH("sites",enrollment_x,0))/1000, 1) * -1), "") -> 0 | L30: =IFERROR(IF(AND(public,confidential_slice),"",INDEX(data,--AND(L$1>=3,L$1<=10)*Data!$AD28+MATCH(Lists!$S$31&VLOOKUP(L$5,months,2,FALSE)&TEXT($E30+Lists!$AD28,"00"),data_key,0),Results!$H$1) *Lists!AK28 * IF(result_type_slice = "Aggregate", INDEX(enrollment, MATCH(program_slice&category_slice&subcategory_slice&year_slice&VLOOKUP(L$5,months,2,FALSE),enrollment_key,0),MATCH("sites",enrollment_x,0))/1000, 1) * -1), "") -> 0 | M30: =IFERROR(IF(AND(public,confidential_slice),"",INDEX(data,--AND(M$1>=3,M$1<=10)*Data!$AD28+MATCH(Lists!$S$31&VLOOKUP(M$5,months,2,FALSE)&TEXT($E30+Lists!$AD28,"00"),data_key,0),Results!$H$1) *Lists!AL28 * IF(result_type_slice = "Aggregate", INDEX(enrollment, MATCH(program_slice&category_slice&subcategory_slice&year_slice&VLOOKUP(M$5,months,2,FALSE),enrollment_key,0),MATCH("sites",enrollment_x,0))/1000, 1) * -1), "") -> 0 | N30: =IFERROR(IF(AND(public,confidential_slice),"",INDEX(data,--AND(N$1>=3,N$1<=10)*Data!$AD28+MATCH(Lists!$S$31&VLOOKUP(N$5,months,2,FALSE)&TEXT($E30+Lists!$AD28,"00"),data_key,0),Results!$H$1) *Lists!AM28 * IF(result_type_slice = "Aggregate", INDEX(enrollment, MATCH(program_slice&category_slice&subcategory_slice&year_slice&VLOOKUP(N$5,months,2,FALSE),enrollment_key,0),MATCH("sites",enrollment_x,0))/1000, 1) * -1), "") -> 0 | O30: =IFERROR(IF(AND(public,confidential_slice),"",INDEX(data,--AND(O$1>=3,O$1<=10)*Data!$AD28+MATCH(Lists!$S$31&VLOOKUP(O$5,months,2,FALSE)&TEXT($E30+Lists!$AD28,"00"),data_key,0),Results!$H$1) *Lists!AN28 * IF(result_type_slice = "Aggregate", INDEX(enrollment, MATCH(program_slice&category_slice&subcategory_slice&year_slice&VLOOKUP(O$5,months,2,FALSE),enrollment_key,0),MATCH("sites",enrollment_x,0))/1000, 1) * -1), "") -> 0 | P30: =IFERROR(IF(AND(public,confidential_slice),"",INDEX(data,--AND(P$1>=3,P$1<=10)*Data!$AD28+MATCH(Lists!$S$31&VLOOKUP(P$5,months,2,FALSE)&TEXT($E30+Lists!$AD28,"00"),data_key,0),Results!$H$1) *Lists!AO28 * IF(result_type_slice = "Aggregate", INDEX(enrollment, MATCH(program_slice&category_slice&subcategory_slice&year_slice&VLOOKUP(P$5,months,2,FALSE),enrollment_key,0),MATCH("sites",enrollment_x,0))/1000, 1) * -1), "") -> 0 | Q30: =IFERROR(IF(AND(public,confidential_slice),"",INDEX(data,--AND(Q$1>=3,Q$1<=10)*Data!$AD28+MATCH(Lists!$S$31&VLOOKUP(Q$5,months,2,FALSE)&TEXT($E30+Lists!$AD28,"00"),data_key,0),Results!$H$1) *Lists!AP28 * IF(result_type_slice = "Aggregate", INDEX(enrollment, MATCH(program_slice&category_slice&subcategory_slice&year_slice&VLOOKUP(Q$5,months,2,FALSE),enrollment_key,0),MATCH("sites",enrollment_x,0))/1000, 1) * -1), "") -> 0 | S30: =IFERROR(IF(AND(public,confidential_slice),"",INDEX(data,MATCH(Lists!$S$31&VLOOKUP(M$5,months,2,FALSE)&TEXT($E30+Lists!$AD28,"00"),data_key,0),Results!$N$1) *Lists!AL28 * IF(result_type_slice = "Aggregate", INDEX(enrollment, MATCH(program_slice&category_slice&subcategory_slice&year_slice&VLOOKUP(M$5,months,2,FALSE),enrollment_key,0),MATCH("sites",enrollment_x,0))/1000, 1) * -1), "") -> 0 | T30: Yes
E31: Demand reductions are positive (Blue)
E32: Load increases are negative (Orange)
E34: CONFIDENTIAL content removed and blacked out

Sheet Lists (hidden)
A2: evalyear | C2: Basic Dropdowns | F2: Category Dropdown List & Filters | M2: Confidential? | P2: Lookup Values | X2: Duration Options | AE2: impact_multiplier | AG2: for Slice of Day
A3: 2025 | P3: Month: | R3: =VLOOKUP(month,months,2,FALSE) -> 8 | S3: HE offset: | T3: =--AND(HE="HE (UTC -8)",month_num>=3,month_num<=10) -> 0 | AC3: HE offset: | AD3: =--(HE_slice="HE (UTC -8)") -> 0 | AE3: 1 | AF3: 2 | AG3: 3 | AH3: 4 | AI3: 5 | AJ3: 6 | AK3: 7 | AL3: 8 | AM3: 9 | AN3: 10 | AO3: 11 | AP3: 12
C4: Program | F4: Category | G4: Segment | I4: Category Options | K4: Segment Options | M4: Sheet | N4: Confidential? | P4: Highlight (rahours) | Q4: Event (eventhours) | R4: Hour | S4: Value | T4: HE offset by hour | U4: load_multiplier | V4: impact_multiplier | X4: Group | Y4: Dispatch Length | AA4: Dispatch Length Options | AC4: Hour | AD4: HE offset by hour | AE4: January | AF4: February | AG4: March | AH4: April | AI4: May | AJ4: June | AK4: July | AL4: August | AM4: September | AN4: October | AO4: November | AP4: December
A5: Public | C5: A1 | F5: All | G5: All | I5: =_xlfn.UNIQUE(_xlfn._xlws.FILTER($F$5:$F$34,$F$5:$F$34<>"")) -> All | K5: =IF(ROWS($L$5:$L5) <=COUNTIF(F:F,category),INDEX($G:$G,MATCH(category,F:F,0)+ROWS($L$5:$L5)-1),"") -> All | M5: Results | N5: =(INDEX(enrollment, MATCH(program&category&subcategory&year&month_num,enrollment_key,0),MATCH("confidential",enrollment_x,0))=1) -> FALSE | P5: =--AND(INT($R5)+$T5<IF(AND(OR(program="A4",program="A5"),duration=3),18,17)+--AND(program<>"A4",program<>"A5",VLOOKUP(month,months,3,FALSE)="rahours_spring")+duration,INT($R5)+$T5>=IF(AND(OR(program="A4",program="A5"),duration = 3),18,17)+--AND(program<>"A4",program<>"A5",VLOOKUP(month,months,3,FALSE)="rahours_spring")) -> 0 | Q5: =--AND(INT($R5)+$T5<IF(AND(OR(program="A4",program="A5"),duration=3),18,17)+--AND(evalprogram<>"CPP",program<>"A4",program<>"A5",VLOOKUP(month,months,2,FALSE)>=3,VLOOKUP(month,months,2,FALSE)<=5)+duration,INT($R5)+$T5>=IF(AND(OR(program="A4",program="A5"),duration=3),18,17)+--AND(evalprogram<>"CPP",program<>"A4",program<>"A5",VLOOKUP(month,months,2,FALSE)>=3,VLOOKUP(month,months,2,FALSE)<=5)) -> 0 | R5: 01 | S5: =program&portfolio&category&subcategory&duration&system&wyear&daytype&month_num&TEXT(INT(R5)+T5,"00") -> A1Program SpecificAllAll5PG&E1-in-2WORST DAY801 | T5: =$T$3 -> 0 | U5: =INDEX(load_multipliers, $T5+MATCH(program&category&subcategory&year&VLOOKUP(month,months,2,FALSE)&daytype&$R5,load_multipliers_key,0),MATCH(U$4,load_multipliers_x,0)) -> 1 | V5: =INDEX(load_multipliers, $T5+MATCH(program&category&subcategory&year&VLOOKUP(month,months,2,FALSE)&daytype&$R5,load_multipliers_key,0),MATCH(V$4,load_multipliers_x,0)) -> 1 | X5: A1 | Y5: 5 | AA5: =IF(ROWS($AB$5:$AB5) <=COUNTIF(X:X,program),INDEX($Y:$Y,MATCH(program,X:X,0)+ROWS($AB$5:$AB5)-1),"") -> 5 | AC5: 01 | AD5: =$AD$3 -> 0 | AE5: =INDEX(load_multipliers, --AND(AE$3>=3,AE$3<=10)*$AD5+MATCH(program_slice&category_slice&subcategory_slice&year_slice&AE$3&daytype_slice&$AC5,load_multipliers_key,0),MATCH($AE$2,load_multipliers_x,0)) -> 1 | AF5: =INDEX(load_multipliers, --AND(AF$3>=3,AF$3<=10)*$AD5+MATCH(program_slice&category_slice&subcategory_slice&year_slice&AF$3&daytype_slice&$AC5,load_multipliers_key,0),MATCH($AE$2,load_multipliers_x,0)) -> 1 | AG5: =INDEX(load_multipliers, --AND(AG$3>=3,AG$3<=10)*$AD5+MATCH(program_slice&category_slice&subcategory_slice&year_slice&AG$3&daytype_slice&$AC5,load_multipliers_key,0),MATCH($AE$2,load_multipliers_x,0)) -> 1 | AH5: =INDEX(load_multipliers, --AND(AH$3>=3,AH$3<=10)*$AD5+MATCH(program_slice&category_slice&subcategory_slice&year_slice&AH$3&daytype_slice&$AC5,load_multipliers_key,0),MATCH($AE$2,load_multipliers_x,0)) -> 1 | AI5: =INDEX(load_multipliers, --AND(AI$3>=3,AI$3<=10)*$AD5+MATCH(program_slice&category_slice&subcategory_slice&year_slice&AI$3&daytype_slice&$AC5,load_multipliers_key,0),MATCH($AE$2,load_multipliers_x,0)) -> 1 | AJ5: =INDEX(load_multipliers, --AND(AJ$3>=3,AJ$3<=10)*$AD5+MATCH(program_slice&category_slice&subcategory_slice&year_slice&AJ$3&daytype_slice&$AC5,load_multipliers_key,0),MATCH($AE$2,load_multipliers_x,0)) -> 1 | AK5: =INDEX(load_multipliers, --AND(AK$3>=3,AK$3<=10)*$AD5+MATCH(program_slice&category_slice&subcategory_slice&year_slice&AK$3&daytype_slice&$AC5,load_multipliers_key,0),MATCH($AE$2,load_multipliers_x,0)) -> 1 | AL5: =INDEX(load_multipliers, --AND(AL$3>=3,AL$3<=10)*$AD5+MATCH(program_slice&category_slice&subcategory_slice&year_slice&AL$3&daytype_slice&$AC5,load_multipliers_key,0),MATCH($AE$2,load_multipliers_x,0)) -> 1 | AM5: =INDEX(load_multipliers, --AND(AM$3>=3,AM$3<=10)*$AD5+MATCH(program_slice&category_slice&subcategory_slice&year_slice&AM$3&daytype_slice&$AC5,load_multipliers_key,0),MATCH($AE$2,load_multipliers_x,0)) -> 1 | AN5: =INDEX(load_multipliers, --AND(AN$3>=3,AN$3<=10)*$AD5+MATCH(program_slice&category_slice&subcategory_slice&year_slice&AN$3&daytype_slice&$AC5,load_multipliers_key,0),MATCH($AE$2,load_multipliers_x,0)) -> 1 | AO5: =INDEX(load_multipliers, --AND(AO$3>=3,AO$3<=10)*$AD5+MATCH(program_slice&category_slice&subcategory_slice&year_slice&AO$3&daytype_slice&$AC5,load_multipliers_key,0),MATCH($AE$2,load_multipliers_x,0)) -> 1 | AP5: =INDEX(load_multipliers, --AND(AP$3>=3,AP$3<=10)*$AD5+MATCH(program_slice&category_slice&subcategory_slice&year_slice&AP$3&daytype_slice&$AC5,load_multipliers_key,0),MATCH($AE$2,load_multipliers_x,0)) -> 1
A6: Yes | C6: A1BIP | F6: LCA | G6: Greater Bay Area | I6: LCA | K6: =IF(ROWS($L$5:$L6) <=COUNTIF(F:F,category),INDEX($G:$G,MATCH(category,F:F,0)+ROWS($L$5:$L6)-1),"") ->  | M6: Slice of Day | N6: =IFERROR(MAX(OFFSET(INDEX(enrollment,MATCH(program_slice&category_slice&subcategory_slice&year_slice&1,enrollment_key,0),MATCH("confidential",enrollment_x,0)),0,0,12,1))=1,"") -> FALSE | P6: 0 | Q6: 0 | R6: 02 | S6: A1Program SpecificAllAll5PG&E1-in-2WORST DAY802 | T6: =$T$3 -> 0 | U6: =INDEX(load_multipliers, $T6+MATCH(program&category&subcategory&year&VLOOKUP(month,months,2,FALSE)&daytype&$R6,load_multipliers_key,0),MATCH(U$4,load_multipliers_x,0)) -> 1 | V6: =INDEX(load_multipliers, $T6+MATCH(program&category&subcategory&year&VLOOKUP(month,months,2,FALSE)&daytype&$R6,load_multipliers_key,0),MATCH(V$4,load_multipliers_x,0)) -> 1 | X6: A1BIP | Y6: 5 | AA6: =IF(ROWS($AB$5:$AB6) <=COUNTIF(X:X,program),INDEX($Y:$Y,MATCH(program,X:X,0)+ROWS($AB$5:$AB6)-1),"") ->  | AC6: 02 | AD6: 0 | AE6: =INDEX(load_multipliers, --AND(AE$3>=3,AE$3<=10)*$AD6+MATCH(program_slice&category_slice&subcategory_slice&year_slice&AE$3&daytype_slice&$AC6,load_multipliers_key,0),MATCH($AE$2,load_multipliers_x,0)) -> 1 | AF6: =INDEX(load_multipliers, --AND(AF$3>=3,AF$3<=10)*$AD6+MATCH(program_slice&category_slice&subcategory_slice&year_slice&AF$3&daytype_slice&$AC6,load_multipliers_key,0),MATCH($AE$2,load_multipliers_x,0)) -> 1 | AG6: =INDEX(load_multipliers, --AND(AG$3>=3,AG$3<=10)*$AD6+MATCH(program_slice&category_slice&subcategory_slice&year_slice&AG$3&daytype_slice&$AC6,load_multipliers_key,0),MATCH($AE$2,load_multipliers_x,0)) -> 1 | AH6: =INDEX(load_multipliers, --AND(AH$3>=3,AH$3<=10)*$AD6+MATCH(program_slice&category_slice&subcategory_slice&year_slice&AH$3&daytype_slice&$AC6,load_multipliers_key,0),MATCH($AE$2,load_multipliers_x,0)) -> 1 | AI6: =INDEX(load_multipliers, --AND(AI$3>=3,AI$3<=10)*$AD6+MATCH(program_slice&category_slice&subcategory_slice&year_slice&AI$3&daytype_slice&$AC6,load_multipliers_key,0),MATCH($AE$2,load_multipliers_x,0)) -> 1 | AJ6: =INDEX(load_multipliers, --AND(AJ$3>=3,AJ$3<=10)*$AD6+MATCH(program_slice&category_slice&subcategory_slice&year_slice&AJ$3&daytype_slice&$AC6,load_multipliers_key,0),MATCH($AE$2,load_multipliers_x,0)) -> 1 | AK6: =INDEX(load_multipliers, --AND(AK$3>=3,AK$3<=10)*$AD6+MATCH(program_slice&category_slice&subcategory_slice&year_slice&AK$3&daytype_slice&$AC6,load_multipliers_key,0),MATCH($AE$2,load_multipliers_x,0)) -> 1 | AL6: =INDEX(load_multipliers, --AND(AL$3>=3,AL$3<=10)*$AD6+MATCH(program_slice&category_slice&subcategory_slice&year_slice&AL$3&daytype_slice&$AC6,load_multipliers_key,0),MATCH($AE$2,load_multipliers_x,0)) -> 1 | AM6: =INDEX(load_multipliers, --AND(AM$3>=3,AM$3<=10)*$AD6+MATCH(program_slice&category_slice&subcategory_slice&year_slice&AM$3&daytype_slice&$AC6,load_multipliers_key,0),MATCH($AE$2,load_multipliers_x,0)) -> 1 | AN6: =INDEX(load_multipliers, --AND(AN$3>=3,AN$3<=10)*$AD6+MATCH(program_slice&category_slice&subcategory_slice&year_slice&AN$3&daytype_slice&$AC6,load_multipliers_key,0),MATCH($AE$2,load_multipliers_x,0)) -> 1 | AO6: =INDEX(load_multipliers, --AND(AO$3>=3,AO$3<=10)*$AD6+MATCH(program_slice&category_slice&subcategory_slice&year_slice&AO$3&daytype_slice&$AC6,load_multipliers_key,0),MATCH($AE$2,load_multipliers_x,0)) -> 1 | AP6: =INDEX(load_multipliers, --AND(AP$3>=3,AP$3<=10)*$AD6+MATCH(program_slice&category_slice&subcategory_slice&year_slice&AP$3&daytype_slice&$AC6,load_multipliers_key,0),MATCH($AE$2,load_multipliers_x,0)) -> 1
A7: =A6="Yes" -> TRUE | C7: A2 | F7: LCA | G7: Greater Fresno Area | I7: SubLAP | K7: =IF(ROWS($L$5:$L7) <=COUNTIF(F:F,category),INDEX($G:$G,MATCH(category,F:F,0)+ROWS($L$5:$L7)-1),"") ->  | P7: 0 | Q7: 0 | R7: 03 | S7: A1Program SpecificAllAll5PG&E1-in-2WORST DAY803 | T7: 0 | U7: =INDEX(load_multipliers, $T7+MATCH(program&category&subcategory&year&VLOOKUP(month,months,2,FALSE)&daytype&$R7,load_multipliers_key,0),MATCH(U$4,load_multipliers_x,0)) -> 1 | V7: =INDEX(load_multipliers, $T7+MATCH(program&category&subcategory&year&VLOOKUP(month,months,2,FALSE)&daytype&$R7,load_multipliers_key,0),MATCH(V$4,load_multipliers_x,0)) -> 1 | X7: A2 | Y7: 5 | AA7: =IF(ROWS($AB$5:$AB7) <=COUNTIF(X:X,program),INDEX($Y:$Y,MATCH(program,X:X,0)+ROWS($AB$5:$AB7)-1),"") ->  | AC7: 03 | AD7: 0 | AE7: =INDEX(load_multipliers, --AND(AE$3>=3,AE$3<=10)*$AD7+MATCH(program_slice&category_slice&subcategory_slice&year_slice&AE$3&daytype_slice&$AC7,load_multipliers_key,0),MATCH($AE$2,load_multipliers_x,0)) -> 1 | AF7: =INDEX(load_multipliers, --AND(AF$3>=3,AF$3<=10)*$AD7+MATCH(program_slice&category_slice&subcategory_slice&year_slice&AF$3&daytype_slice&$AC7,load_multipliers_key,0),MATCH($AE$2,load_multipliers_x,0)) -> 1 | AG7: =INDEX(load_multipliers, --AND(AG$3>=3,AG$3<=10)*$AD7+MATCH(program_slice&category_slice&subcategory_slice&year_slice&AG$3&daytype_slice&$AC7,load_multipliers_key,0),MATCH($AE$2,load_multipliers_x,0)) -> 1 | AH7: =INDEX(load_multipliers, --AND(AH$3>=3,AH$3<=10)*$AD7+MATCH(program_slice&category_slice&subcategory_slice&year_slice&AH$3&daytype_slice&$AC7,load_multipliers_key,0),MATCH($AE$2,load_multipliers_x,0)) -> 1 | AI7: =INDEX(load_multipliers, --AND(AI$3>=3,AI$3<=10)*$AD7+MATCH(program_slice&category_slice&subcategory_slice&year_slice&AI$3&daytype_slice&$AC7,load_multipliers_key,0),MATCH($AE$2,load_multipliers_x,0)) -> 1 | AJ7: =INDEX(load_multipliers, --AND(AJ$3>=3,AJ$3<=10)*$AD7+MATCH(program_slice&category_slice&subcategory_slice&year_slice&AJ$3&daytype_slice&$AC7,load_multipliers_key,0),MATCH($AE$2,load_multipliers_x,0)) -> 1 | AK7: =INDEX(load_multipliers, --AND(AK$3>=3,AK$3<=10)*$AD7+MATCH(program_slice&category_slice&subcategory_slice&year_slice&AK$3&daytype_slice&$AC7,load_multipliers_key,0),MATCH($AE$2,load_multipliers_x,0)) -> 1 | AL7: =INDEX(load_multipliers, --AND(AL$3>=3,AL$3<=10)*$AD7+MATCH(program_slice&category_slice&subcategory_slice&year_slice&AL$3&daytype_slice&$AC7,load_multipliers_key,0),MATCH($AE$2,load_multipliers_x,0)) -> 1 | AM7: =INDEX(load_multipliers, --AND(AM$3>=3,AM$3<=10)*$AD7+MATCH(program_slice&category_slice&subcategory_slice&year_slice&AM$3&daytype_slice&$AC7,load_multipliers_key,0),MATCH($AE$2,load_multipliers_x,0)) -> 1 | AN7: =INDEX(load_multipliers, --AND(AN$3>=3,AN$3<=10)*$AD7+MATCH(program_slice&category_slice&subcategory_slice&year_slice&AN$3&daytype_slice&$AC7,load_multipliers_key,0),MATCH($AE$2,load_multipliers_x,0)) -> 1 | AO7: =INDEX(load_multipliers, --AND(AO$3>=3,AO$3<=10)*$AD7+MATCH(program_slice&category_slice&subcategory_slice&year_slice&AO$3&daytype_slice&$AC7,load_multipliers_key,0),MATCH($AE$2,load_multipliers_x,0)) -> 1 | AP7: =INDEX(load_multipliers, --AND(AP$3>=3,AP$3<=10)*$AD7+MATCH(program_slice&category_slice&subcategory_slice&year_slice&AP$3&daytype_slice&$AC7,load_multipliers_key,0),MATCH($AE$2,load_multipliers_x,0)) -> 1
C8: A2BIP | F8: LCA | G8: Humboldt | K8: =IF(ROWS($L$5:$L8) <=COUNTIF(F:F,category),INDEX($G:$G,MATCH(category,F:F,0)+ROWS($L$5:$L8)-1),"") ->  | M8: Program | N8: Multi results | P8: 0 | Q8: 0 | R8: 04 | S8: A1Program SpecificAllAll5PG&E1-in-2WORST DAY804 | T8: 0 | U8: =INDEX(load_multipliers, $T8+MATCH(program&category&subcategory&year&VLOOKUP(month,months,2,FALSE)&daytype&$R8,load_multipliers_key,0),MATCH(U$4,load_multipliers_x,0)) -> 1 | V8: =INDEX(load_multipliers, $T8+MATCH(program&category&subcategory&year&VLOOKUP(month,months,2,FALSE)&daytype&$R8,load_multipliers_key,0),MATCH(V$4,load_multipliers_x,0)) -> 1 | X8: A2BIP | Y8: 5 | AA8: =IF(ROWS($AB$5:$AB8) <=COUNTIF(X:X,program),INDEX($Y:$Y,MATCH(program,X:X,0)+ROWS($AB$5:$AB8)-1),"") ->  | AC8: 04 | AD8: 0 | AE8: =INDEX(load_multipliers, --AND(AE$3>=3,AE$3<=10)*$AD8+MATCH(program_slice&category_slice&subcategory_slice&year_slice&AE$3&daytype_slice&$AC8,load_multipliers_key,0),MATCH($AE$2,load_multipliers_x,0)) -> 1 | AF8: =INDEX(load_multipliers, --AND(AF$3>=3,AF$3<=10)*$AD8+MATCH(program_slice&category_slice&subcategory_slice&year_slice&AF$3&daytype_slice&$AC8,load_multipliers_key,0),MATCH($AE$2,load_multipliers_x,0)) -> 1 | AG8: =INDEX(load_multipliers, --AND(AG$3>=3,AG$3<=10)*$AD8+MATCH(program_slice&category_slice&subcategory_slice&year_slice&AG$3&daytype_slice&$AC8,load_multipliers_key,0),MATCH($AE$2,load_multipliers_x,0)) -> 1 | AH8: =INDEX(load_multipliers, --AND(AH$3>=3,AH$3<=10)*$AD8+MATCH(program_slice&category_slice&subcategory_slice&year_slice&AH$3&daytype_slice&$AC8,load_multipliers_key,0),MATCH($AE$2,load_multipliers_x,0)) -> 1 | AI8: =INDEX(load_multipliers, --AND(AI$3>=3,AI$3<=10)*$AD8+MATCH(program_slice&category_slice&subcategory_slice&year_slice&AI$3&daytype_slice&$AC8,load_multipliers_key,0),MATCH($AE$2,load_multipliers_x,0)) -> 1 | AJ8: =INDEX(load_multipliers, --AND(AJ$3>=3,AJ$3<=10)*$AD8+MATCH(program_slice&category_slice&subcategory_slice&year_slice&AJ$3&daytype_slice&$AC8,load_multipliers_key,0),MATCH($AE$2,load_multipliers_x,0)) -> 1 | AK8: =INDEX(load_multipliers, --AND(AK$3>=3,AK$3<=10)*$AD8+MATCH(program_slice&category_slice&subcategory_slice&year_slice&AK$3&daytype_slice&$AC8,load_multipliers_key,0),MATCH($AE$2,load_multipliers_x,0)) -> 1 | AL8: =INDEX(load_multipliers, --AND(AL$3>=3,AL$3<=10)*$AD8+MATCH(program_slice&category_slice&subcategory_slice&year_slice&AL$3&daytype_slice&$AC8,load_multipliers_key,0),MATCH($AE$2,load_multipliers_x,0)) -> 1 | AM8: =INDEX(load_multipliers, --AND(AM$3>=3,AM$3<=10)*$AD8+MATCH(program_slice&category_slice&subcategory_slice&year_slice&AM$3&daytype_slice&$AC8,load_multipliers_key,0),MATCH($AE$2,load_multipliers_x,0)) -> 1 | AN8: =INDEX(load_multipliers, --AND(AN$3>=3,AN$3<=10)*$AD8+MATCH(program_slice&category_slice&subcategory_slice&year_slice&AN$3&daytype_slice&$AC8,load_multipliers_key,0),MATCH($AE$2,load_multipliers_x,0)) -> 1 | AO8: =INDEX(load_multipliers, --AND(AO$3>=3,AO$3<=10)*$AD8+MATCH(program_slice&category_slice&subcategory_slice&year_slice&AO$3&daytype_slice&$AC8,load_multipliers_key,0),MATCH($AE$2,load_multipliers_x,0)) -> 1 | AP8: =INDEX(load_multipliers, --AND(AP$3>=3,AP$3<=10)*$AD8+MATCH(program_slice&category_slice&subcategory_slice&year_slice&AP$3&daytype_slice&$AC8,load_multipliers_key,0),MATCH($AE$2,load_multipliers_x,0)) -> 1
A9: Threshold | C9: A4 | F9: LCA | G9: Kern | K9: =IF(ROWS($L$5:$L9) <=COUNTIF(F:F,category),INDEX($G:$G,MATCH(category,F:F,0)+ROWS($L$5:$L9)-1),"") ->  | M9: =IF(C5="","",C5) -> A1 | N9: =IFERROR(IF(M9="","",(INDEX(enrollment, MATCH(M9&category&subcategory&year&month_num,enrollment_key,0),MATCH("confidential",enrollment_x,0))=1)),"") -> FALSE | P9: 0 | Q9: 0 | R9: 05 | S9: A1Program SpecificAllAll5PG&E1-in-2WORST DAY805 | T9: 0 | U9: =INDEX(load_multipliers, $T9+MATCH(program&category&subcategory&year&VLOOKUP(month,months,2,FALSE)&daytype&$R9,load_multipliers_key,0),MATCH(U$4,load_multipliers_x,0)) -> 1 | V9: =INDEX(load_multipliers, $T9+MATCH(program&category&subcategory&year&VLOOKUP(month,months,2,FALSE)&daytype&$R9,load_multipliers_key,0),MATCH(V$4,load_multipliers_x,0)) -> 1 | X9: A4 | Y9: 3 | AA9: =IF(ROWS($AB$5:$AB9) <=COUNTIF(X:X,program),INDEX($Y:$Y,MATCH(program,X:X,0)+ROWS($AB$5:$AB9)-1),"") ->  | AC9: 05 | AD9: 0 | AE9: =INDEX(load_multipliers, --AND(AE$3>=3,AE$3<=10)*$AD9+MATCH(program_slice&category_slice&subcategory_slice&year_slice&AE$3&daytype_slice&$AC9,load_multipliers_key,0),MATCH($AE$2,load_multipliers_x,0)) -> 1 | AF9: =INDEX(load_multipliers, --AND(AF$3>=3,AF$3<=10)*$AD9+MATCH(program_slice&category_slice&subcategory_slice&year_slice&AF$3&daytype_slice&$AC9,load_multipliers_key,0),MATCH($AE$2,load_multipliers_x,0)) -> 1 | AG9: =INDEX(load_multipliers, --AND(AG$3>=3,AG$3<=10)*$AD9+MATCH(program_slice&category_slice&subcategory_slice&year_slice&AG$3&daytype_slice&$AC9,load_multipliers_key,0),MATCH($AE$2,load_multipliers_x,0)) -> 1 | AH9: =INDEX(load_multipliers, --AND(AH$3>=3,AH$3<=10)*$AD9+MATCH(program_slice&category_slice&subcategory_slice&year_slice&AH$3&daytype_slice&$AC9,load_multipliers_key,0),MATCH($AE$2,load_multipliers_x,0)) -> 1 | AI9: =INDEX(load_multipliers, --AND(AI$3>=3,AI$3<=10)*$AD9+MATCH(program_slice&category_slice&subcategory_slice&year_slice&AI$3&daytype_slice&$AC9,load_multipliers_key,0),MATCH($AE$2,load_multipliers_x,0)) -> 1 | AJ9: =INDEX(load_multipliers, --AND(AJ$3>=3,AJ$3<=10)*$AD9+MATCH(program_slice&category_slice&subcategory_slice&year_slice&AJ$3&daytype_slice&$AC9,load_multipliers_key,0),MATCH($AE$2,load_multipliers_x,0)) -> 1 | AK9: =INDEX(load_multipliers, --AND(AK$3>=3,AK$3<=10)*$AD9+MATCH(program_slice&category_slice&subcategory_slice&year_slice&AK$3&daytype_slice&$AC9,load_multipliers_key,0),MATCH($AE$2,load_multipliers_x,0)) -> 1 | AL9: =INDEX(load_multipliers, --AND(AL$3>=3,AL$3<=10)*$AD9+MATCH(program_slice&category_slice&subcategory_slice&year_slice&AL$3&daytype_slice&$AC9,load_multipliers_key,0),MATCH($AE$2,load_multipliers_x,0)) -> 1 | AM9: =INDEX(load_multipliers, --AND(AM$3>=3,AM$3<=10)*$AD9+MATCH(program_slice&category_slice&subcategory_slice&year_slice&AM$3&daytype_slice&$AC9,load_multipliers_key,0),MATCH($AE$2,load_multipliers_x,0)) -> 1 | AN9: =INDEX(load_multipliers, --AND(AN$3>=3,AN$3<=10)*$AD9+MATCH(program_slice&category_slice&subcategory_slice&year_slice&AN$3&daytype_slice&$AC9,load_multipliers_key,0),MATCH($AE$2,load_multipliers_x,0)) -> 1 | AO9: =INDEX(load_multipliers, --AND(AO$3>=3,AO$3<=10)*$AD9+MATCH(program_slice&category_slice&subcategory_slice&year_slice&AO$3&daytype_slice&$AC9,load_multipliers_key,0),MATCH($AE$2,load_multipliers_x,0)) -> 1 | AP9: =INDEX(load_multipliers, --AND(AP$3>=3,AP$3<=10)*$AD9+MATCH(program_slice&category_slice&subcategory_slice&year_slice&AP$3&daytype_slice&$AC9,load_multipliers_key,0),MATCH($AE$2,load_multipliers_x,0)) -> 1
A10: 15 | C10: A5 | F10: LCA | G10: North Coast and North Bay | K10: =IF(ROWS($L$5:$L10) <=COUNTIF(F:F,category),INDEX($G:$G,MATCH(category,F:F,0)+ROWS($L$5:$L10)-1),"") ->  | M10: A1BIP | N10: TRUE | P10: 0 | Q10: 0 | R10: 06 | S10: A1Program SpecificAllAll5PG&E1-in-2WORST DAY806 | T10: 0 | U10: =INDEX(load_multipliers, $T10+MATCH(program&category&subcategory&year&VLOOKUP(month,months,2,FALSE)&daytype&$R10,load_multipliers_key,0),MATCH(U$4,load_multipliers_x,0)) -> 1 | V10: =INDEX(load_multipliers, $T10+MATCH(program&category&subcategory&year&VLOOKUP(month,months,2,FALSE)&daytype&$R10,load_multipliers_key,0),MATCH(V$4,load_multipliers_x,0)) -> 1 | X10: A5 | Y10: 3 | AA10: =IF(ROWS($AB$5:$AB10) <=COUNTIF(X:X,program),INDEX($Y:$Y,MATCH(program,X:X,0)+ROWS($AB$5:$AB10)-1),"") ->  | AC10: 06 | AD10: 0 | AE10: =INDEX(load_multipliers, --AND(AE$3>=3,AE$3<=10)*$AD10+MATCH(program_slice&category_slice&subcategory_slice&year_slice&AE$3&daytype_slice&$AC10,load_multipliers_key,0),MATCH($AE$2,load_multipliers_x,0)) -> 1 | AF10: =INDEX(load_multipliers, --AND(AF$3>=3,AF$3<=10)*$AD10+MATCH(program_slice&category_slice&subcategory_slice&year_slice&AF$3&daytype_slice&$AC10,load_multipliers_key,0),MATCH($AE$2,load_multipliers_x,0)) -> 1 | AG10: =INDEX(load_multipliers, --AND(AG$3>=3,AG$3<=10)*$AD10+MATCH(program_slice&category_slice&subcategory_slice&year_slice&AG$3&daytype_slice&$AC10,load_multipliers_key,0),MATCH($AE$2,load_multipliers_x,0)) -> 1 | AH10: =INDEX(load_multipliers, --AND(AH$3>=3,AH$3<=10)*$AD10+MATCH(program_slice&category_slice&subcategory_slice&year_slice&AH$3&daytype_slice&$AC10,load_multipliers_key,0),MATCH($AE$2,load_multipliers_x,0)) -> 1 | AI10: =INDEX(load_multipliers, --AND(AI$3>=3,AI$3<=10)*$AD10+MATCH(program_slice&category_slice&subcategory_slice&year_slice&AI$3&daytype_slice&$AC10,load_multipliers_key,0),MATCH($AE$2,load_multipliers_x,0)) -> 1 | AJ10: =INDEX(load_multipliers, --AND(AJ$3>=3,AJ$3<=10)*$AD10+MATCH(program_slice&category_slice&subcategory_slice&year_slice&AJ$3&daytype_slice&$AC10,load_multipliers_key,0),MATCH($AE$2,load_multipliers_x,0)) -> 1 | AK10: =INDEX(load_multipliers, --AND(AK$3>=3,AK$3<=10)*$AD10+MATCH(program_slice&category_slice&subcategory_slice&year_slice&AK$3&daytype_slice&$AC10,load_multipliers_key,0),MATCH($AE$2,load_multipliers_x,0)) -> 1 | AL10: =INDEX(load_multipliers, --AND(AL$3>=3,AL$3<=10)*$AD10+MATCH(program_slice&category_slice&subcategory_slice&year_slice&AL$3&daytype_slice&$AC10,load_multipliers_key,0),MATCH($AE$2,load_multipliers_x,0)) -> 1 | AM10: =INDEX(load_multipliers, --AND(AM$3>=3,AM$3<=10)*$AD10+MATCH(program_slice&category_slice&subcategory_slice&year_slice&AM$3&daytype_slice&$AC10,load_multipliers_key,0),MATCH($AE$2,load_multipliers_x,0)) -> 1 | AN10: =INDEX(load_multipliers, --AND(AN$3>=3,AN$3<=10)*$AD10+MATCH(program_slice&category_slice&subcategory_slice&year_slice&AN$3&daytype_slice&$AC10,load_multipliers_key,0),MATCH($AE$2,load_multipliers_x,0)) -> 1 | AO10: =INDEX(load_multipliers, --AND(AO$3>=3,AO$3<=10)*$AD10+MATCH(program_slice&category_slice&subcategory_slice&year_slice&AO$3&daytype_slice&$AC10,load_multipliers_key,0),MATCH($AE$2,load_multipliers_x,0)) -> 1 | AP10: =INDEX(load_multipliers, --AND(AP$3>=3,AP$3<=10)*$AD10+MATCH(program_slice&category_slice&subcategory_slice&year_slice&AP$3&daytype_slice&$AC10,load_multipliers_key,0),MATCH($AE$2,load_multipliers_x,0)) -> 1
C11: B2 | F11: LCA | G11: Other | K11: =IF(ROWS($L$5:$L11) <=COUNTIF(F:F,category),INDEX($G:$G,MATCH(category,F:F,0)+ROWS($L$5:$L11)-1),"") ->  | M11: A2 | N11: FALSE | P11: 0 | Q11: 0 | R11: 07 | S11: A1Program SpecificAllAll5PG&E1-in-2WORST DAY807 | T11: 0 | U11: =INDEX(load_multipliers, $T11+MATCH(program&category&subcategory&year&VLOOKUP(month,months,2,FALSE)&daytype&$R11,load_multipliers_key,0),MATCH(U$4,load_multipliers_x,0)) -> 1 | V11: =INDEX(load_multipliers, $T11+MATCH(program&category&subcategory&year&VLOOKUP(month,months,2,FALSE)&daytype&$R11,load_multipliers_key,0),MATCH(V$4,load_multipliers_x,0)) -> 1 | X11: All groups | Y11: 5 | AA11: =IF(ROWS($AB$5:$AB11) <=COUNTIF(X:X,program),INDEX($Y:$Y,MATCH(program,X:X,0)+ROWS($AB$5:$AB11)-1),"") ->  | AC11: 07 | AD11: 0 | AE11: =INDEX(load_multipliers, --AND(AE$3>=3,AE$3<=10)*$AD11+MATCH(program_slice&category_slice&subcategory_slice&year_slice&AE$3&daytype_slice&$AC11,load_multipliers_key,0),MATCH($AE$2,load_multipliers_x,0)) -> 1 | AF11: =INDEX(load_multipliers, --AND(AF$3>=3,AF$3<=10)*$AD11+MATCH(program_slice&category_slice&subcategory_slice&year_slice&AF$3&daytype_slice&$AC11,load_multipliers_key,0),MATCH($AE$2,load_multipliers_x,0)) -> 1 | AG11: =INDEX(load_multipliers, --AND(AG$3>=3,AG$3<=10)*$AD11+MATCH(program_slice&category_slice&subcategory_slice&year_slice&AG$3&daytype_slice&$AC11,load_multipliers_key,0),MATCH($AE$2,load_multipliers_x,0)) -> 1 | AH11: =INDEX(load_multipliers, --AND(AH$3>=3,AH$3<=10)*$AD11+MATCH(program_slice&category_slice&subcategory_slice&year_slice&AH$3&daytype_slice&$AC11,load_multipliers_key,0),MATCH($AE$2,load_multipliers_x,0)) -> 1 | AI11: =INDEX(load_multipliers, --AND(AI$3>=3,AI$3<=10)*$AD11+MATCH(program_slice&category_slice&subcategory_slice&year_slice&AI$3&daytype_slice&$AC11,load_multipliers_key,0),MATCH($AE$2,load_multipliers_x,0)) -> 1 | AJ11: =INDEX(load_multipliers, --AND(AJ$3>=3,AJ$3<=10)*$AD11+MATCH(program_slice&category_slice&subcategory_slice&year_slice&AJ$3&daytype_slice&$AC11,load_multipliers_key,0),MATCH($AE$2,load_multipliers_x,0)) -> 1 | AK11: =INDEX(load_multipliers, --AND(AK$3>=3,AK$3<=10)*$AD11+MATCH(program_slice&category_slice&subcategory_slice&year_slice&AK$3&daytype_slice&$AC11,load_multipliers_key,0),MATCH($AE$2,load_multipliers_x,0)) -> 1 | AL11: =INDEX(load_multipliers, --AND(AL$3>=3,AL$3<=10)*$AD11+MATCH(program_slice&category_slice&subcategory_slice&year_slice&AL$3&daytype_slice&$AC11,load_multipliers_key,0),MATCH($AE$2,load_multipliers_x,0)) -> 1 | AM11: =INDEX(load_multipliers, --AND(AM$3>=3,AM$3<=10)*$AD11+MATCH(program_slice&category_slice&subcategory_slice&year_slice&AM$3&daytype_slice&$AC11,load_multipliers_key,0),MATCH($AE$2,load_multipliers_x,0)) -> 1 | AN11: =INDEX(load_multipliers, --AND(AN$3>=3,AN$3<=10)*$AD11+MATCH(program_slice&category_slice&subcategory_slice&year_slice&AN$3&daytype_slice&$AC11,load_multipliers_key,0),MATCH($AE$2,load_multipliers_x,0)) -> 1 | AO11: =INDEX(load_multipliers, --AND(AO$3>=3,AO$3<=10)*$AD11+MATCH(program_slice&category_slice&subcategory_slice&year_slice&AO$3&daytype_slice&$AC11,load_multipliers_key,0),MATCH($AE$2,load_multipliers_x,0)) -> 1 | AP11: =INDEX(load_multipliers, --AND(AP$3>=3,AP$3<=10)*$AD11+MATCH(program_slice&category_slice&subcategory_slice&year_slice&AP$3&daytype_slice&$AC11,load_multipliers_key,0),MATCH($AE$2,load_multipliers_x,0)) -> 1
A12: evalprogram | C12: All groups | F12: LCA | G12: Sierra | K12: =IF(ROWS($L$5:$L12) <=COUNTIF(F:F,category),INDEX($G:$G,MATCH(category,F:F,0)+ROWS($L$5:$L12)-1),"") ->  | M12: A2BIP | N12: TRUE | P12: 0 | Q12: 0 | R12: 08 | S12: A1Program SpecificAllAll5PG&E1-in-2WORST DAY808 | T12: 0 | U12: =INDEX(load_multipliers, $T12+MATCH(program&category&subcategory&year&VLOOKUP(month,months,2,FALSE)&daytype&$R12,load_multipliers_key,0),MATCH(U$4,load_multipliers_x,0)) -> 1 | V12: =INDEX(load_multipliers, $T12+MATCH(program&category&subcategory&year&VLOOKUP(month,months,2,FALSE)&daytype&$R12,load_multipliers_key,0),MATCH(V$4,load_multipliers_x,0)) -> 1 | X12: B2 | Y12: 5 | AC12: 08 | AD12: 0 | AE12: =INDEX(load_multipliers, --AND(AE$3>=3,AE$3<=10)*$AD12+MATCH(program_slice&category_slice&subcategory_slice&year_slice&AE$3&daytype_slice&$AC12,load_multipliers_key,0),MATCH($AE$2,load_multipliers_x,0)) -> 1 | AF12: =INDEX(load_multipliers, --AND(AF$3>=3,AF$3<=10)*$AD12+MATCH(program_slice&category_slice&subcategory_slice&year_slice&AF$3&daytype_slice&$AC12,load_multipliers_key,0),MATCH($AE$2,load_multipliers_x,0)) -> 1 | AG12: =INDEX(load_multipliers, --AND(AG$3>=3,AG$3<=10)*$AD12+MATCH(program_slice&category_slice&subcategory_slice&year_slice&AG$3&daytype_slice&$AC12,load_multipliers_key,0),MATCH($AE$2,load_multipliers_x,0)) -> 1 | AH12: =INDEX(load_multipliers, --AND(AH$3>=3,AH$3<=10)*$AD12+MATCH(program_slice&category_slice&subcategory_slice&year_slice&AH$3&daytype_slice&$AC12,load_multipliers_key,0),MATCH($AE$2,load_multipliers_x,0)) -> 1 | AI12: =INDEX(load_multipliers, --AND(AI$3>=3,AI$3<=10)*$AD12+MATCH(program_slice&category_slice&subcategory_slice&year_slice&AI$3&daytype_slice&$AC12,load_multipliers_key,0),MATCH($AE$2,load_multipliers_x,0)) -> 1 | AJ12: =INDEX(load_multipliers, --AND(AJ$3>=3,AJ$3<=10)*$AD12+MATCH(program_slice&category_slice&subcategory_slice&year_slice&AJ$3&daytype_slice&$AC12,load_multipliers_key,0),MATCH($AE$2,load_multipliers_x,0)) -> 1 | AK12: =INDEX(load_multipliers, --AND(AK$3>=3,AK$3<=10)*$AD12+MATCH(program_slice&category_slice&subcategory_slice&year_slice&AK$3&daytype_slice&$AC12,load_multipliers_key,0),MATCH($AE$2,load_multipliers_x,0)) -> 1 | AL12: =INDEX(load_multipliers, --AND(AL$3>=3,AL$3<=10)*$AD12+MATCH(program_slice&category_slice&subcategory_slice&year_slice&AL$3&daytype_slice&$AC12,load_multipliers_key,0),MATCH($AE$2,load_multipliers_x,0)) -> 1 | AM12: =INDEX(load_multipliers, --AND(AM$3>=3,AM$3<=10)*$AD12+MATCH(program_slice&category_slice&subcategory_slice&year_slice&AM$3&daytype_slice&$AC12,load_multipliers_key,0),MATCH($AE$2,load_multipliers_x,0)) -> 1 | AN12: =INDEX(load_multipliers, --AND(AN$3>=3,AN$3<=10)*$AD12+MATCH(program_slice&category_slice&subcategory_slice&year_slice&AN$3&daytype_slice&$AC12,load_multipliers_key,0),MATCH($AE$2,load_multipliers_x,0)) -> 1 | AO12: =INDEX(load_multipliers, --AND(AO$3>=3,AO$3<=10)*$AD12+MATCH(program_slice&category_slice&subcategory_slice&year_slice&AO$3&daytype_slice&$AC12,load_multipliers_key,0),MATCH($AE$2,load_multipliers_x,0)) -> 1 | AP12: =INDEX(load_multipliers, --AND(AP$3>=3,AP$3<=10)*$AD12+MATCH(program_slice&category_slice&subcategory_slice&year_slice&AP$3&daytype_slice&$AC12,load_multipliers_key,0),MATCH($AE$2,load_multipliers_x,0)) -> 1
A13: ELRP | F13: LCA | G13: Stockton | K13: =IF(ROWS($L$5:$L13) <=COUNTIF(F:F,category),INDEX($G:$G,MATCH(category,F:F,0)+ROWS($L$5:$L13)-1),"") ->  | M13: A4 | N13: FALSE | P13: 0 | Q13: 0 | R13: 09 | S13: A1Program SpecificAllAll5PG&E1-in-2WORST DAY809 | T13: 0 | U13: =INDEX(load_multipliers, $T13+MATCH(program&category&subcategory&year&VLOOKUP(month,months,2,FALSE)&daytype&$R13,load_multipliers_key,0),MATCH(U$4,load_multipliers_x,0)) -> 1 | V13: =INDEX(load_multipliers, $T13+MATCH(program&category&subcategory&year&VLOOKUP(month,months,2,FALSE)&daytype&$R13,load_multipliers_key,0),MATCH(V$4,load_multipliers_x,0)) -> 1 | AA13: Dispatch Length Options (Slice) | AC13: 09 | AD13: 0 | AE13: =INDEX(load_multipliers, --AND(AE$3>=3,AE$3<=10)*$AD13+MATCH(program_slice&category_slice&subcategory_slice&year_slice&AE$3&daytype_slice&$AC13,load_multipliers_key,0),MATCH($AE$2,load_multipliers_x,0)) -> 1 | AF13: =INDEX(load_multipliers, --AND(AF$3>=3,AF$3<=10)*$AD13+MATCH(program_slice&category_slice&subcategory_slice&year_slice&AF$3&daytype_slice&$AC13,load_multipliers_key,0),MATCH($AE$2,load_multipliers_x,0)) -> 1 | AG13: =INDEX(load_multipliers, --AND(AG$3>=3,AG$3<=10)*$AD13+MATCH(program_slice&category_slice&subcategory_slice&year_slice&AG$3&daytype_slice&$AC13,load_multipliers_key,0),MATCH($AE$2,load_multipliers_x,0)) -> 1 | AH13: =INDEX(load_multipliers, --AND(AH$3>=3,AH$3<=10)*$AD13+MATCH(program_slice&category_slice&subcategory_slice&year_slice&AH$3&daytype_slice&$AC13,load_multipliers_key,0),MATCH($AE$2,load_multipliers_x,0)) -> 1 | AI13: =INDEX(load_multipliers, --AND(AI$3>=3,AI$3<=10)*$AD13+MATCH(program_slice&category_slice&subcategory_slice&year_slice&AI$3&daytype_slice&$AC13,load_multipliers_key,0),MATCH($AE$2,load_multipliers_x,0)) -> 1 | AJ13: =INDEX(load_multipliers, --AND(AJ$3>=3,AJ$3<=10)*$AD13+MATCH(program_slice&category_slice&subcategory_slice&year_slice&AJ$3&daytype_slice&$AC13,load_multipliers_key,0),MATCH($AE$2,load_multipliers_x,0)) -> 1 | AK13: =INDEX(load_multipliers, --AND(AK$3>=3,AK$3<=10)*$AD13+MATCH(program_slice&category_slice&subcategory_slice&year_slice&AK$3&daytype_slice&$AC13,load_multipliers_key,0),MATCH($AE$2,load_multipliers_x,0)) -> 1 | AL13: =INDEX(load_multipliers, --AND(AL$3>=3,AL$3<=10)*$AD13+MATCH(program_slice&category_slice&subcategory_slice&year_slice&AL$3&daytype_slice&$AC13,load_multipliers_key,0),MATCH($AE$2,load_multipliers_x,0)) -> 1 | AM13: =INDEX(load_multipliers, --AND(AM$3>=3,AM$3<=10)*$AD13+MATCH(program_slice&category_slice&subcategory_slice&year_slice&AM$3&daytype_slice&$AC13,load_multipliers_key,0),MATCH($AE$2,load_multipliers_x,0)) -> 1 | AN13: =INDEX(load_multipliers, --AND(AN$3>=3,AN$3<=10)*$AD13+MATCH(program_slice&category_slice&subcategory_slice&year_slice&AN$3&daytype_slice&$AC13,load_multipliers_key,0),MATCH($AE$2,load_multipliers_x,0)) -> 1 | AO13: =INDEX(load_multipliers, --AND(AO$3>=3,AO$3<=10)*$AD13+MATCH(program_slice&category_slice&subcategory_slice&year_slice&AO$3&daytype_slice&$AC13,load_multipliers_key,0),MATCH($AE$2,load_multipliers_x,0)) -> 1 | AP13: =INDEX(load_multipliers, --AND(AP$3>=3,AP$3<=10)*$AD13+MATCH(program_slice&category_slice&subcategory_slice&year_slice&AP$3&daytype_slice&$AC13,load_multipliers_key,0),MATCH($AE$2,load_multipliers_x,0)) -> 1
